Workbook

Sheet INTRODUCTION

Sheet eklipsi
A1: RHLIOS | B1: =100 -> 100 | G1: ` | V1: =MAX(BO135:BO415) -> 0.2234822588 | W1: MAX GI CIRCLE | AV1: Othoni.Circle (riminiskou * Cos(f), riminiskou * Sin(f)), rminimini, RGB(200, 0, 0) | BD1: ABOUT THE SMALL CIRCLE OF THE LOWER LIMIT | BJ1: PSIO_2 | BK1: =(omega1+THITA1)/2 -> -0.02278983123 | BN1: =SQRT(riminiskou^2-(PSIO_2-omega1)^2) -> 0.09450072226 | BO1: chi1 = Sqr(rminiskou ^ 2 - (psio_2 - omega1) ^ 2) 'X OF CUTS OF CRESENTS | CB1: delta = aPostopilios * Rilios / (Rilios + ROPHS) | CK1: s1 = Othoni.Width
A2: SIZE OF HOLE | B2: =0.1*HOLERADIUS/100 -> 0.126 | G2: 126 | V2: =MAX(BW135:BW414) -> 0.2170250994 | AI2: riminiskou = Rilios / aPostopilios * aPostopioth ' Abs(ypsilon - omega) | AP2: ypsilon = -ROPHS + aPostopioth * (Rilios - ROPHS) / aPostopilios | BC2: =(PSIO-THITA1)/CHI_1 -> 3.008501716 | BD2: tanf2 = (psio - thita1) / chi1 'FIND THE LIMITS OF SMALL CIRCLE WHEN IT EXISTS | BN2: =-CHI_1 -> -0.09450072226 | BO2: chi2 = -chi1 ' LEFT OF CRESCENT | CB2: d12 = (aPostopilios + aPostopioth) / aPostopilios | CK2: s2 = Othoni.Height
A3: distance SUN - SCREEN | B3: =100*APOSTASIPHGHS+APOSOPIOTH -> 300292 | G3: 3000 | AI3: =RHLIOS/aPostopilios*APOSOPIOTH -> 0.09723868768 | AP3: =ROPHS+APOSOPIOTH*(RHLIOS-ROPHS)/aPostopilios -> 0.2231161669 | BC3: =ABS((riminiskou-RMINIMINI)/SQRT(1+TANF2^2)) -> 0.02818961723 | BD3: xc = Abs((rminiskou - rminimini) / Sqr(1 + tanf2 ^ 2)) 'riminiskoy-rminimini=RADIUS OF SMALL CIRCLE | BN3: =(PSIO_2-omega1)/CHI_1 -> -0.242456898 | BO3: tanf1 = (psio_2 - omega1) / chi1 'INCLINATION OF LINE FROM CENTER OF UPPER CRESCENT TO THE LIMIT OF CRESCENT | CB3: psienatoixo = d12 * (ROPHS + Rilios - Xisigma) - Rilios + Xisigma | CK3: Dim sx1, sx2, sy1, sy2
A4: distance hole screen | B4: =APOSTASIOPIS -> 292 | G4: 292 | AI4: thita = -ROPHS + aPostopioth * (-ROPHS - Xisigma) / aPostopilios | AO4: thita1 = CDbl(aPostopioth * (-Xisigma) / aPostopilios) | BA4: =--XC -> 0.02818961723 | BB4: =YC -> -0.01595506408 | BC4: =PSIO_2+(XC*TANF2) -> -0.01595506408 | BD4: yc = psio + (xc * tanf2): xd = -xc: yd = yc | BN4: =(PSIO_2-THITA1)/CHI_1 -> 0.242456898 | BO4: tanf2 = (psio_2 - thita1) / chi1 | CB4: psidyotoixo = d12 * (-ROPHS + Rilios - Xisigma) - Rilios + Xisigma | CK4: Dim s11, s22
A5: DISTANCE OF CENTERS OF SUN AND MOON | B5: =G5 -> 47 | G5: 47 | AI5: =-ROPHS+APOSOPIOTH*(-ROPHS-XSIGMA)/aPostopilios -> -0.171824704 | AO5: =APOSOPIOTH*(-XSIGMA/aPostopilios) -> -0.04570218321 | AP5: 'Σημείο Θ2=προβολή του Ξ κέντρου σελήνης από πάνω μέρος οπής | BD5: FIRST PART OF FIRST LEFT CIRCLE | CB5: psitriatoixo = d12 * (ROPHS + Rilios) - Rilios | CK5: s11 = s1 / (s1 + s2)
A6: XSIGMA | B6: =RHLIOS*APOSTASIKENTRO/100 -> 47 | C6: THE DISTANCE BETWEEN CENTER OF SUN AND MOON | AI6: chi = ROPHS + aPostopioth * (Rilios + ROPHS) / aPostopilios | AO6: thita2 = ROPHS + aPostopioth * (ROPHS - Xisigma) / aPostopilios | BD6: NN = 560 | CB6: psitesseratoixo = d12 * (-ROPHS + Rilios) - Rilios | CK6: s22 = s2 / (s1 + s2)
W7: xiena | X7: =SQRT(RHLIOS ^ 2 - XSIGMA ^ 2 / 4) -> 97.19953704 | Y7: the opoint where the two circle meet | AI7: =ROPHS+APOSOPIOTH*(RHLIOS+ROPHS)/aPostopilios -> 0.2233612084 | AO7: =ROPHS+APOSOPIOTH*(ROPHS-XSIGMA)/aPostopilios -> 0.08042033754 | AQ7: zita = ROPHS + aPostopioth * (ROPHS + Rilios - Xisigma) / aPostopilios | BD7: CALCULATE THE LIMIT ANGLE OF SMALL CIRLCE DOWN | CK7: Othoni.Scale (-2 * psitriatoixo, 2 * psitriatoixo / logos1)-(2 * psitriatoixo, -2 * psitriatoixo / logos1)
H8: =2 * PI() - fizero + 1 * DFI -> 5.021928144 | W8: psena | X8: =XSIGMA / 2 -> 23.5 | AB8: dfi = 2 * (Pi - fizero1) / nofpoints | AC8: =2*(PI()-fizero)/nofpoints -> 0.0723205958 | AI8: phi = -ROPHS + aPostopioth * (Rilios - ROPHS - Xisigma) / aPostopilios | AO8: = Worksheets("eklipsi").Range("apostopilios").Value | AQ8: =ROPHS+APOSOPIOTH*(ROPHS+RHLIOS-XSIGMA)/aPostopilios -> 0.1776590252 | AV8: psio = (chi + pchi ^ 2 / (ppsi - chi)) / 2 ' κέντρο του κύκλου της περιβάλλουσας?? | BD8: f02 = Atn(((rminimini + rminiskou) * Sin(Atn(tanf1)) - psio) / ((rminimini + rminiskou) * Cos(Atn(tanf1)) - chi1)) | CB8: D_12 | CC8: =(aPostopilios+APOSOPIOTH)/aPostopilios -> 1.000972387 | CK8: S1=
AI9: =-ROPHS+APOSOPIOTH*(RHLIOS-ROPHS-XSIGMA)/aPostopilios -> -0.07458601628 | AO9: pchi = -Sqr(riminiskou ^ 2 - psekentro ^ 2) 'Χ ΣΥΝΤΕΤΑΓΜΕΝΗ ΤΟΥ Π | AV9: =(chi+PCHI^1/(PPSI-chi))/2 -> 0.2386034019 | AZ9: PSITOMIS | BA9: =IF(ABS(CHI_1)>ABS(RMINIMINI),"",PSIO_2+SQRT(RMINIMINI^2-CHI_1^2)) -> 0.06092052651 | BC9: =ATAN(((RMINIMINI+riminiskou)*SIN(ATAN(TANF1))-PSIO_2)/((RMINIMINI-riminiskou)*COS(ATAN(TANF1))-CHI_1)) -> 0.4232256089 | BD9: IF THEY NOT CUT THEN ABS(xc)>abs(rminimini) | CB9: PSITRIATOIXO | CC9: =D_12*(ROPHS+RHLIOS)-RHLIOS -> 0.2233612084
AI10: omega = -ROPHS + aPostopioth * (-ROPHS) / aPostopilios | AO10: =-SQRT(riminiskou^2-PSEKENTRO^2) -> -0.09451555424 | AZ10: F_2 | BA10: =IF(ABS(CHI_1)>ABS(RMINIMINI),ATAN(TANF2),ATAN((PSITOMIS-PSIO_2)/CHI_1)) -> 0.724923768 | BB10: =F_2 -> 0.724923768 | BD10: If Abs(chi1) > Abs(rminimini) Then | CB10: Othoni.Scale (-1.5 * psitriatoixo, 1.5 * psitriatoixo)-(1.5 * psitriatoixo, -1.5 * psitriatoixo)
C11: Scale factor | G11: 100 | AI11: =-ROPHS+APOSOPIOTH*(-ROPHS)/aPostopilios -> -0.1261225207 | AO11: ochi = Sqr(riminiskou ^ 2 - psekentro ^ 2) 'Χ ΣΥΝΤΕΤΑΓΜΕΝΗ ΤΟΥ Ο | AZ11: XAR | BA11: =IF(ABS(CHI_1)>ABS(RMINIMINI),XD,0) -> 0 | BB11: =XAR -> 0 | BD11: f2 = Atn(tanf2)
AI12: omega1 = aPostopioth * (ROPHS) / aPostopilios | AO12: =SQRT(riminiskou^2-PSEKENTRO^2) -> 0.09451555424 | AP12: gonia1 = Abs(CDbl(Atn(psekentro / pchi))) | AV12: lamda1 = aPostopioth * Rilios / (aPostopilios) | BD12: xar = xd
AI13: =APOSOPIOTH*(ROPHS)/aPostopilios -> 0.0001225207465 | AJ13: center of great circle and of up middle crescent | AP13: =ABS(ATAN(PSEKENTRO/PCHI)) -> 0.2372185681 | AV13: =APOSOPIOTH*RHLIOS/aPostopilios -> 0.09723868768 | BD13: Else ' IF THEY CUT
A14: FOR AL HAYTHAM CONDITION | W14: fizero | X14: =ATAN(2 * xiena / XSIGMA) -> 1.333577759 | Y14: nofpoints | Z14: =50 -> 50 | AA14: number on arc | AI14: omega2 = ROPHS + aPostopioth * (ROPHS) / aPostopilios | AP14: gonia2 = Atn(Abs(psekentro + thita1) / Abs(pchi)) | BD14: psitomis = psio + Sqr(rminimini ^ 2 - chi1 ^ 2) 'áðüëõôç ôéìÞ ôïìÞò
W15: x_01 | X15: =RHLIOS*SIN(fizero) -> 97.19953704 | Y15: nofcircle | Z15: 50 | AA15: number on circle | AI15: =ROPHS+APOSOPIOTH*(ROPHS)/aPostopilios -> 0.1261225207 | AP15: =ATAN(ABS(PSEKENTRO+THITA1)/ABS(PCHI)) -> 0.6275127316 | BD15: f2 = Atn((psitomis - psio) / chi1)
A16: ` | N16: =2*fizero/nofpoints -> 0.05334311035 | AI16: ppsi = (omega + thita) / 2 | AL16: psekentro = thita1 / 2 | AO16: rmegali = Abs(chi - ypsilon) | AR16: rminimini = Abs(omega1 - omega) | BD16: xar = 0 | KV16: =KV19 -> 4.877286953
N17: =DFI -> 0.0723205958 | AI17: =(omega+thita)/2 -> -0.1489736124 | AL17: =THITA1/2 -> -0.0228510916 | AO17: =ABS(chi-YPSILON) -> 0.0002450414929 | AR17: =ABS(omega-omega1) -> 0.1262450415 | BD17: End If
A18: =RHLIOS/ROPHS*APOSOPIOTH -> 231746.0317
H19: =IF(fizero+#REF!*DFI<FLIMIT,fizero+#REF!*DFI,"") ->  | N19: =IF(fizero+H24*DFI<FLIMIT,fizero+H24*DFI,"") -> 1.333577759 | T19: =IF(fizero+N24*DFI<FLIMIT,fizero+N24*DFI,"") -> 1.405898354 | Z19: =IF(fizero+T24*DFI<FLIMIT,fizero+T24*DFI,"") -> 1.47821895 | AF19: =IF(fizero+Z24*DFI<FLIMIT,fizero+Z24*DFI,"") -> 1.550539546 | AL19: =IF(fizero+AF24*DFI<FLIMIT,fizero+AF24*DFI,"") -> 1.622860142 | AR19: =IF(fizero+AL24*DFI<FLIMIT,fizero+AL24*DFI,"") -> 1.695180738 | AX19: =IF(fizero+AR24*DFI<FLIMIT,fizero+AR24*DFI,"") -> 1.767501333 | BD19: =IF(fizero+AX24*DFI<FLIMIT,fizero+AX24*DFI,"") -> 1.839821929 | BJ19: =IF(fizero+BD24*DFI<FLIMIT,fizero+BD24*DFI,"") -> 1.912142525 | BP19: =IF(fizero+BJ24*DFI<FLIMIT,fizero+BJ24*DFI,"") -> 1.984463121 | BV19: =IF(fizero+BP24*DFI<FLIMIT,fizero+BP24*DFI,"") -> 2.056783717 | CB19: =IF(fizero+BV24*DFI<FLIMIT,fizero+BV24*DFI,"") -> 2.129104312 | CH19: =IF(fizero+CB24*DFI<FLIMIT,fizero+CB24*DFI,"") -> 2.201424908 | CN19: =IF(fizero+CH24*DFI<FLIMIT,fizero+CH24*DFI,"") -> 2.273745504 | CT19: =IF(fizero+CN24*DFI<FLIMIT,fizero+CN24*DFI,"") -> 2.3460661 | CZ19: =IF(fizero+CT24*DFI<FLIMIT,fizero+CT24*DFI,"") -> 2.418386696 | DF19: =IF(fizero+CZ24*DFI<FLIMIT,fizero+CZ24*DFI,"") -> 2.490707291 | DL19: =IF(fizero+DF24*DFI<FLIMIT,fizero+DF24*DFI,"") -> 2.563027887 | DR19: =IF(fizero+DL24*DFI<FLIMIT,fizero+DL24*DFI,"") -> 2.635348483 | DX19: =IF(fizero+DR24*DFI<FLIMIT,fizero+DR24*DFI,"") -> 2.707669079 | ED19: =IF(fizero+DX24*DFI<FLIMIT,fizero+DX24*DFI,"") -> 2.779989675 | EJ19: =IF(fizero+ED24*DFI<FLIMIT,fizero+ED24*DFI,"") -> 2.85231027 | EP19: =IF(fizero+EJ24*DFI<FLIMIT,fizero+EJ24*DFI,"") -> 2.924630866 | EV19: =IF(fizero+EP24*DFI<FLIMIT,fizero+EP24*DFI,"") -> 2.996951462 | FB19: =IF(fizero+EV24*DFI<FLIMIT,fizero+EV24*DFI,"") -> 3.069272058 | FH19: =IF(fizero+FB24*DFI<FLIMIT,fizero+FB24*DFI,"") -> 3.141592654 | FN19: =IF(fizero+FH24*DFI<FLIMIT,fizero+FH24*DFI,"") -> 3.213913249 | FT19: =IF(fizero+FN24*DFI<FLIMIT,fizero+FN24*DFI,"") -> 3.286233845 | FZ19: =IF(fizero+FT24*DFI<FLIMIT,fizero+FT24*DFI,"") -> 3.358554441 | GF19: =IF(fizero+FZ24*DFI<FLIMIT,fizero+FZ24*DFI,"") -> 3.430875037 | GL19: =IF(fizero+GF24*DFI<FLIMIT,fizero+GF24*DFI,"") -> 3.503195633 | GR19: =IF(fizero+GL24*DFI<FLIMIT,fizero+GL24*DFI,"") -> 3.575516228 | GX19: =IF(fizero+GR24*DFI<FLIMIT,fizero+GR24*DFI,"") -> 3.647836824 | HD19: =IF(fizero+GX24*DFI<FLIMIT,fizero+GX24*DFI,"") -> 3.72015742 | HJ19: =IF(fizero+HD24*DFI<FLIMIT,fizero+HD24*DFI,"") -> 3.792478016 | HP19: =IF(fizero+HJ24*DFI<FLIMIT,fizero+HJ24*DFI,"") -> 3.864798612 | HV19: =IF(fizero+HP24*DFI<FLIMIT,fizero+HP24*DFI,"") -> 3.937119207 | IB19: =IF(fizero+HV24*DFI<FLIMIT,fizero+HV24*DFI,"") -> 4.009439803 | IH19: =IF(fizero+IB24*DFI<FLIMIT,fizero+IB24*DFI,"") -> 4.081760399 | IN19: =IF(fizero+IH24*DFI<FLIMIT,fizero+IH24*DFI,"") -> 4.154080995 | IT19: =IF(fizero+IN24*DFI<FLIMIT,fizero+IN24*DFI,"") -> 4.226401591 | IZ19: =IF(fizero+IT24*DFI<FLIMIT,fizero+IT24*DFI,"") -> 4.298722186 | JF19: =IF(fizero+IZ24*DFI<FLIMIT,fizero+IZ24*DFI,"") -> 4.371042782 | JL19: =IF(fizero+JF24*DFI<FLIMIT,fizero+JF24*DFI,"") -> 4.443363378 | JR19: =IF(fizero+JL24*DFI<FLIMIT,fizero+JL24*DFI,"") -> 4.515683974 | JX19: =IF(fizero+JR24*DFI<FLIMIT,fizero+JR24*DFI,"") -> 4.58800457 | KD19: =IF(fizero+JX24*DFI<FLIMIT,fizero+JX24*DFI,"") -> 4.660325165 | KJ19: =IF(fizero+KD24*DFI<FLIMIT,fizero+KD24*DFI,"") -> 4.732645761 | KP19: =IF(fizero+KJ24*DFI<FLIMIT,fizero+KJ24*DFI,"") -> 4.804966357 | KV19: =IF(fizero+KP24*DFI<FLIMIT,fizero+KP24*DFI,"") -> 4.877286953 | LB19: =IF(fizero+KV24*DFI<FLIMIT,fizero+KV24*DFI,"") -> 4.949607548
H20: =RHLIOS*SIN(H19) ->  | N20: =RHLIOS*SIN(N19) -> 97.19953704 | T20: =RHLIOS*SIN(T19) -> 98.64351085 | Z20: =RHLIOS*SIN(Z19) -> 99.57177744 | AF20: =RHLIOS*SIN(AF19) -> 99.97948384 | AL20: =RHLIOS*SIN(AL19) -> 99.86449857 | AR20: =RHLIOS*SIN(AR19) -> 99.22742276 | AX20: =RHLIOS*SIN(AX19) -> 98.07158705 | BD20: =RHLIOS*SIN(BD19) -> 96.40303413 | BJ20: =RHLIOS*SIN(BJ19) -> 94.23048717 | BP20: =RHLIOS*SIN(BP19) -> 91.56530423 | BV20: =RHLIOS*SIN(BV19) -> 88.42141885 | CB20: =RHLIOS*SIN(CB19) -> 84.81526724 | CH20: =RHLIOS*SIN(CH19) -> 80.76570232 | CN20: =RHLIOS*SIN(CN19) -> 76.29389517 | CT20: =RHLIOS*SIN(CT19) -> 71.42322435 | CZ20: =RHLIOS*SIN(CZ19) -> 66.17915368 | DF20: =RHLIOS*SIN(DF19) -> 60.58909909 | DL20: =RHLIOS*SIN(DL19) -> 54.68228534 | DR20: =RHLIOS*SIN(DR19) -> 48.48959319 | DX20: =RHLIOS*SIN(DX19) -> 42.04339796 | ED20: =RHLIOS*SIN(ED19) -> 35.3774003 | EJ20: =RHLIOS*SIN(EJ19) -> 28.52644996 | EP20: =RHLIOS*SIN(EP19) -> 21.52636365 | EV20: =RHLIOS*SIN(EV19) -> 14.41373774 | FB20: =RHLIOS*SIN(FB19) -> 7.225756959 | FH20: =RHLIOS*SIN(FH19) -> 1.225148455e-14 | FN20: =RHLIOS*SIN(FN19) -> -7.225756959 | FT20: =RHLIOS*SIN(FT19) -> -14.41373774 | FZ20: =RHLIOS*SIN(FZ19) -> -21.52636365 | GF20: =RHLIOS*SIN(GF19) -> -28.52644996 | GL20: =RHLIOS*SIN(GL19) -> -35.3774003 | GR20: =RHLIOS*SIN(GR19) -> -42.04339796 | GX20: =RHLIOS*SIN(GX19) -> -48.48959319 | HD20: =RHLIOS*SIN(HD19) -> -54.68228534 | HJ20: =RHLIOS*SIN(HJ19) -> -60.58909909 | HP20: =RHLIOS*SIN(HP19) -> -66.17915368 | HV20: =RHLIOS*SIN(HV19) -> -71.42322435 | IB20: =RHLIOS*SIN(IB19) -> -76.29389517 | IH20: =RHLIOS*SIN(IH19) -> -80.76570232 | IN20: =RHLIOS*SIN(IN19) -> -84.81526724 | IT20: =RHLIOS*SIN(IT19) -> -88.42141885 | IZ20: =RHLIOS*SIN(IZ19) -> -91.56530423 | JF20: =RHLIOS*SIN(JF19) -> -94.23048717 | JL20: =RHLIOS*SIN(JL19) -> -96.40303413 | JR20: =RHLIOS*SIN(JR19) -> -98.07158705 | JX20: =RHLIOS*SIN(JX19) -> -99.22742276 | KD20: =RHLIOS*SIN(KD19) -> -99.86449857 | KJ20: =RHLIOS*SIN(KJ19) -> -99.97948384 | KP20: =RHLIOS*SIN(KP19) -> -99.57177744 | KV20: =RHLIOS*SIN(KV19) -> -98.64351085 | LB20: =RHLIOS*SIN(LB19) -> -97.19953704
A23: y_01 | B23: =RHLIOS*COS(fizero) -> 23.5 | H23: =RHLIOS*COS(H19) ->  | N23: =RHLIOS*COS(N19) -> 23.5 | T23: =RHLIOS*COS(T19) -> 16.41516881 | Z23: =RHLIOS*COS(Z19) -> 9.2445193 | AF23: =RHLIOS*COS(AF19) -> 2.025539538 | AL23: =RHLIOS*COS(AL19) -> -5.204029722 | AR23: =RHLIOS*COS(AR19) -> -12.40639237 | AX23: =RHLIOS*COS(AX19) -> -19.54389453 | BD23: =RHLIOS*COS(BD19) -> -26.57922142 | BJ23: =RHLIOS*COS(BJ19) -> -33.47559243 | BP23: =RHLIOS*COS(BP19) -> -40.19695339 | BV23: =RHLIOS*COS(BV19) -> -46.70816511 | CB23: =RHLIOS*COS(CB19) -> -52.97518704 | CH23: =RHLIOS*COS(CH19) -> -58.96525526 | CN23: =RHLIOS*COS(CN19) -> -64.64705376 | CT23: =RHLIOS*COS(CT19) -> -69.99087814 | CZ23: =RHLIOS*COS(CZ19) -> -74.96879096 | DF23: =RHLIOS*COS(DF19) -> -79.55476775 | DL23: =RHLIOS*COS(DL19) -> -83.72483305 | DR23: =RHLIOS*COS(DR19) -> -87.45718582 | DX23: =RHLIOS*COS(DX19) -> -90.73231336 | ED23: =RHLIOS*COS(ED19) -> -93.53309333 | EJ23: =RHLIOS*COS(EJ19) -> -95.84488329 | EP23: =RHLIOS*COS(EP19) -> -97.65559722 | EV23: =RHLIOS*COS(EV19) -> -98.95576873 | FB23: =RHLIOS*COS(FB19) -> -99.73860053 | FH23: =RHLIOS*COS(FH19) -> -100 | FN23: =RHLIOS*COS(FN19) -> -99.73860053 | FT23: =RHLIOS*COS(FT19) -> -98.95576873 | FZ23: =RHLIOS*COS(FZ19) -> -97.65559722 | GF23: =RHLIOS*COS(GF19) -> -95.84488329 | GL23: =RHLIOS*COS(GL19) -> -93.53309333 | GR23: =RHLIOS*COS(GR19) -> -90.73231336 | GX23: =RHLIOS*COS(GX19) -> -87.45718582 | HD23: =RHLIOS*COS(HD19) -> -83.72483305 | HJ23: =RHLIOS*COS(HJ19) -> -79.55476775 | HP23: =RHLIOS*COS(HP19) -> -74.96879096 | HV23: =RHLIOS*COS(HV19) -> -69.99087814 | IB23: =RHLIOS*COS(IB19) -> -64.64705376 | IH23: =RHLIOS*COS(IH19) -> -58.96525526 | IN23: =RHLIOS*COS(IN19) -> -52.97518704 | IT23: =RHLIOS*COS(IT19) -> -46.70816511 | IZ23: =RHLIOS*COS(IZ19) -> -40.19695339 | JF23: =RHLIOS*COS(JF19) -> -33.47559243 | JL23: =RHLIOS*COS(JL19) -> -26.57922142 | JR23: =RHLIOS*COS(JR19) -> -19.54389453 | JX23: =RHLIOS*COS(JX19) -> -12.40639237 | KD23: =RHLIOS*COS(KD19) -> -5.204029722 | KJ23: =RHLIOS*COS(KJ19) -> 2.025539538 | KP23: =RHLIOS*COS(KP19) -> 9.2445193 | KV23: =RHLIOS*COS(KV19) -> 16.41516881 | LB23: =RHLIOS*COS(LB19) -> 23.5
A24: i | B24: =1 -> 1 | C24: FIOPIS | D24: X | E24: Y | F24: x03 = x01 + (x02 - x01) * (aPostopioth + aPostopilios) / aPostopilios | G24: Y0E | N24: =H24+1 -> 1 | T24: =N24+1 -> 2 | Z24: =T24+1 -> 3 | AF24: =Z24+1 -> 4 | AL24: =AF24+1 -> 5 | AR24: =AL24+1 -> 6 | AX24: =AR24+1 -> 7 | BD24: =AX24+1 -> 8 | BJ24: =BD24+1 -> 9 | BP24: =BJ24+1 -> 10 | BV24: =BP24+1 -> 11 | CB24: =BV24+1 -> 12 | CH24: =CB24+1 -> 13 | CN24: =CH24+1 -> 14 | CT24: =CN24+1 -> 15 | CZ24: =CT24+1 -> 16 | DF24: =CZ24+1 -> 17 | DL24: =DF24+1 -> 18 | DR24: =DL24+1 -> 19 | DX24: =DR24+1 -> 20 | ED24: =DX24+1 -> 21 | EJ24: =ED24+1 -> 22 | EP24: =EJ24+1 -> 23 | EV24: =EP24+1 -> 24 | FB24: =EV24+1 -> 25 | FH24: =FB24+1 -> 26 | FN24: =FH24+1 -> 27 | FT24: =FN24+1 -> 28 | FZ24: =FT24+1 -> 29 | GF24: =FZ24+1 -> 30 | GL24: =GF24+1 -> 31 | GR24: =GL24+1 -> 32 | GX24: =GR24+1 -> 33 | HD24: =GX24+1 -> 34 | HJ24: =HD24+1 -> 35 | HP24: =HJ24+1 -> 36 | HV24: =HP24+1 -> 37 | IB24: =HV24+1 -> 38 | IH24: =IB24+1 -> 39 | IN24: =IH24+1 -> 40 | IT24: =IN24+1 -> 41 | IZ24: =IT24+1 -> 42 | JF24: =IZ24+1 -> 43 | JL24: =JF24+1 -> 44 | JR24: =JL24+1 -> 45 | JX24: =JR24+1 -> 46 | KD24: =JX24+1 -> 47 | KJ24: =KD24+1 -> 48 | KP24: =KJ24+1 -> 49 | KV24: =KP24+1 -> 50 | LB24: =KV24+1 -> 51
A25: j | B25: =B24+1 -> 2 | C25: =B24*2*PI()/nofpoints -> 0.1256637061 | D25: =ROPHS*SIN(C25) -> 0.01579198743 | E25: =ROPHS*COS(C25) -> 0.1250064524 | F25: =X$15+(D25-X$15)*(APOSOPIOTH+aPostopilios)/aPostopilios -> -0.07870821089 | G25: =B$23+(E25-B$23)*(APOSOPIOTH+aPostopilios)/aPostopilios -> 0.1022769154 | H25: =1 -> 1 | I25: =H25*2*PI()/nofpoints -> 0.1256637061 | J25: =ROPHS*SIN(I25) -> 0.01579198743 | K25: =ROPHS*COS(I25) -> 0.1250064524 | L25: =H$20+(J25-H$20)*(APOSOPIOTH+aPostopilios)/aPostopilios ->  | M25: =H$23+(K25-H$23)*(APOSOPIOTH+aPostopilios)/aPostopilios ->  | N25: =1 -> 1 | O25: =N25*2*PI()/nofpoints -> 0.1256637061 | P25: =ROPHS*SIN(O25) -> 0.01579198743 | Q25: =ROPHS*COS(O25) -> 0.1250064524 | R25: =N$20+(P25-N$20)*(APOSOPIOTH+aPostopilios)/aPostopilios -> -0.07870821089 | S25: =N$23+(Q25-N$23)*(APOSOPIOTH+aPostopilios)/aPostopilios -> 0.1022769154 | T25: =1 -> 1 | U25: =T25*2*PI()/nofpoints -> 0.1256637061 | V25: =ROPHS*SIN(U25) -> 0.01579198743 | W25: =ROPHS*COS(U25) -> 0.1250064524 | X25: =T$20+(V25-T$20)*(APOSOPIOTH+aPostopilios)/aPostopilios -> -0.08011231208 | Y25: =T$23+(W25-T$23)*(APOSOPIOTH+aPostopilios)/aPostopilios -> 0.1091661123 | Z25: =1 -> 1 | AA25: =Z25*2*PI()/nofpoints -> 0.1256637061 | AB25: =ROPHS*SIN(AA25) -> 0.01579198743 | AC25: =ROPHS*COS(AA25) -> 0.1250064524 | AD25: =Z$20+(AB25-Z$20)*(APOSOPIOTH+aPostopilios)/aPostopilios -> -0.08101494633 | AE25: =Z$23+(AC25-Z$23)*(APOSOPIOTH+aPostopilios)/aPostopilios -> 0.1161387577 | AF25: =1 -> 1 | AG25: =AF25*2*PI()/nofpoints -> 0.1256637061 | AH25: =ROPHS*SIN(AG25) -> 0.01579198743 | AI25: =ROPHS*COS(AG25) -> 0.1250064524 | AJ25: =AF$20+(AH25-AF$20)*(APOSOPIOTH+aPostopilios)/aPostopilios -> -0.08141139469 | AK25: =AF$23+(AI25-AF$23)*(APOSOPIOTH+aPostopilios)/aPostopilios -> 0.1231583989 | AL25: =1 -> 1 | AM25: =AL25*2*PI()/nofpoints -> 0.1256637061 | AN25: =ROPHS*SIN(AM25) -> 0.01579198743 | AO25: =ROPHS*COS(AM25) -> 0.1250064524 | AP25: =AL$20+(AN25-AL$20)*(APOSOPIOTH+aPostopilios)/aPostopilios -> -0.08129958451 | AQ25: =AL$23+(AO25-AL$23)*(APOSOPIOTH+aPostopilios)/aPostopilios -> 0.1301883372 | AR25: =1 -> 1 | AS25: =AR25*2*PI()/nofpoints -> 0.1256637061 | AT25: =ROPHS*SIN(AS25) -> 0.01579198743 | AU25: =ROPHS*COS(AS25) -> 0.1250064524 | AV25: =AR$20+(AT25-AR$20)*(APOSOPIOTH+aPostopilios)/aPostopilios -> -0.08068010036 | AW25: =AR$23+(AU25-AR$23)*(APOSOPIOTH+aPostopilios)/aPostopilios -> 0.1371918201 | AX25: =1 -> 1 | AY25: =AX25*2*PI()/nofpoints -> 0.1256637061 | AZ25: =ROPHS*SIN(AY25) -> 0.01579198743 | BA25: =ROPHS*COS(AY25) -> 0.1250064524 | BB25: =AX$20+(AZ25-AX$20)*(APOSOPIOTH+aPostopilios)/aPostopilios -> -0.07955618088 | BC25: =AX$23+(BA25-AX$23)*(APOSOPIOTH+aPostopilios)/aPostopilios -> 0.1441322336 | BD25: =1 -> 1 | BE25: =BD25*2*PI()/nofpoints -> 0.1256637061 | BF25: =ROPHS*SIN(BE25) -> 0.01579198743 | BG25: =ROPHS*COS(BE25) -> 0.1250064524 | BH25: =BD$20+(BF25-BD$20)*(APOSOPIOTH+aPostopilios)/aPostopilios -> -0.07793370191 | BI25: =BD$23+(BG25-BD$23)*(APOSOPIOTH+aPostopilios)/aPostopilios -> 0.1509732931 | BJ25: =1 -> 1 | BK25: =BJ25*2*PI()/nofpoints -> 0.1256637061 | BL25: =ROPHS*SIN(BK25) -> 0.01579198743 | BM25: =ROPHS*COS(BK25) -> 0.1250064524 | BN25: =BJ$20+(BL25-BJ$20)*(APOSOPIOTH+aPostopilios)/aPostopilios -> -0.07582114576 | BO25: =BJ$23+(BM25-BJ$23)*(APOSOPIOTH+aPostopilios)/aPostopilios -> 0.1576792338 | BP25: =1 -> 1 | BQ25: =BP25*2*PI()/nofpoints -> 0.1256637061 | BR25: =ROPHS*SIN(BQ25) -> 0.01579198743 | BS25: =ROPHS*COS(BQ25) -> 0.1250064524 | BT25: =BP$20+(BR25-BP$20)*(APOSOPIOTH+aPostopilios)/aPostopilios -> -0.07322955685 | BU25: =BP$23+(BS25-BP$23)*(APOSOPIOTH+aPostopilios)/aPostopilios -> 0.164214997 | BV25: =1 -> 1 | BW25: =BV25*2*PI()/nofpoints -> 0.1256637061 | BX25: =ROPHS*SIN(BW25) -> 0.01579198743 | BY25: =ROPHS*COS(BW25) -> 0.1250064524 | BZ25: =BV$20+(BX25-BV$20)*(APOSOPIOTH+aPostopilios)/aPostopilios -> -0.07017248397 | CA25: =BV$23+(BY25-BV$23)*(APOSOPIOTH+aPostopilios)/aPostopilios -> 0.1705464138 | CB25: =1 -> 1 | CC25: =CB25*2*PI()/nofpoints -> 0.1256637061 | CD25: =ROPHS*SIN(CC25) -> 0.01579198743 | CE25: =ROPHS*COS(CC25) -> 0.1250064524 | CF25: =CB$20+(CD25-CB$20)*(APOSOPIOTH+aPostopilios)/aPostopilios -> -0.06666590947 | CG25: =CB$23+(CE25-CB$23)*(APOSOPIOTH+aPostopilios)/aPostopilios -> 0.1766403837 | CH25: =1 -> 1 | CI25: =CH25*2*PI()/nofpoints -> 0.1256637061 | CJ25: =ROPHS*SIN(CI25) -> 0.01579198743 | CK25: =ROPHS*COS(CI25) -> 0.1250064524 | CL25: =CH$20+(CJ25-CH$20)*(APOSOPIOTH+aPostopilios)/aPostopilios -> -0.06272816568 | CM25: =CH$23+(CK25-CH$23)*(APOSOPIOTH+aPostopilios)/aPostopilios -> 0.1824650474 | CN25: =1 -> 1 | CO25: =CN25*2*PI()/nofpoints -> 0.1256637061 | CP25: =ROPHS*SIN(CO25) -> 0.01579198743 | CQ25: =ROPHS*COS(CO25) -> 0.1250064524 | CR25: =CN$20+(CP25-CN$20)*(APOSOPIOTH+aPostopilios)/aPostopilios -> -0.05837983909 | CS25: =CN$23+(CQ25-CN$23)*(APOSOPIOTH+aPostopilios)/aPostopilios -> 0.1879899537 | CT25: =1 -> 1 | CU25: =CT25*2*PI()/nofpoints -> 0.1256637061 | CV25: =ROPHS*SIN(CU25) -> 0.01579198743 | CW25: =ROPHS*COS(CU25) -> 0.1250064524 | CX25: =CT$20+(CV25-CT$20)*(APOSOPIOTH+aPostopilios)/aPostopilios -> -0.05364366271 | CY25: =CT$23+(CW25-CT$23)*(APOSOPIOTH+aPostopilios)/aPostopilios -> 0.1931862184 | CZ25: =1 -> 1 | DA25: =CZ25*2*PI()/nofpoints -> 0.1256637061 | DB25: =ROPHS*SIN(DA25) -> 0.01579198743 | DC25: =ROPHS*COS(DA25) -> 0.1250064524 | DD25: =CZ$20+(DB25-CZ$20)*(APOSOPIOTH+aPostopilios)/aPostopilios -> -0.0485443972 | DE25: =CZ$23+(DC25-CZ$23)*(APOSOPIOTH+aPostopilios)/aPostopilios -> 0.1980266755 | DF25: =1 -> 1 | DG25: =DF25*2*PI()/nofpoints -> 0.1256637061 | DH25: =ROPHS*SIN(DG25) -> 0.01579198743 | DI25: =ROPHS*COS(DG25) -> 0.1250064524 | DJ25: =DF$20+(DH25-DF$20)*(APOSOPIOTH+aPostopilios)/aPostopilios -> -0.04310870148 | DK25: =DF$23+(DI25-DF$23)*(APOSOPIOTH+aPostopilios)/aPostopilios -> 0.2024860191 | DL25: =1 -> 1 | DM25: =DL25*2*PI()/nofpoints -> 0.1256637061 | DN25: =ROPHS*SIN(DM25) -> 0.01579198743 | DO25: =ROPHS*COS(DM25) -> 0.1250064524 | DP25: =DL$20+(DN25-DL$20)*(APOSOPIOTH+aPostopilios)/aPostopilios -> -0.03736499331 | DQ25: =DL$23+(DO25-DL$23)*(APOSOPIOTH+aPostopilios)/aPostopilios -> 0.2065409359 | DR25: =1 -> 1 | DS25: =DR25*2*PI()/nofpoints -> 0.1256637061 | DT25: =ROPHS*SIN(DS25) -> 0.01579198743 | DU25: =ROPHS*COS(DS25) -> 0.1250064524 | DV25: =DR$20+(DT25-DR$20)*(APOSOPIOTH+aPostopilios)/aPostopilios -> -0.03134330073 | DW25: =DR$23+(DU25-DR$23)*(APOSOPIOTH+aPostopilios)/aPostopilios -> 0.2101702268 | DX25: =1 -> 1 | DY25: =DX25*2*PI()/nofpoints -> 0.1256637061 | DZ25: =ROPHS*SIN(DY25) -> 0.01579198743 | EA25: =ROPHS*COS(DY25) -> 0.1250064524 | EB25: =DX$20+(DZ25-DX$20)*(APOSOPIOTH+aPostopilios)/aPostopilios -> -0.02507510508 | EC25: =DX$23+(EA25-DX$23)*(APOSOPIOTH+aPostopilios)/aPostopilios -> 0.2133549178 | ED25: =1 -> 1 | EE25: =ED25*2*PI()/nofpoints -> 0.1256637061 | EF25: =ROPHS*SIN(EE25) -> 0.01579198743 | EG25: =ROPHS*COS(EE25) -> 0.1250064524 | EH25: =ED$20+(EF25-ED$20)*(APOSOPIOTH+aPostopilios)/aPostopilios -> -0.01859317643 | EI25: =ED$23+(EG25-ED$23)*(APOSOPIOTH+aPostopilios)/aPostopilios -> 0.2160783595 | EJ25: =1 -> 1 | EK25: =EJ25*2*PI()/nofpoints -> 0.1256637061 | EL25: =ROPHS*SIN(EK25) -> 0.01579198743 | EM25: =ROPHS*COS(EK25) -> 0.1250064524 | EN25: =EJ$20+(EL25-EJ$20)*(APOSOPIOTH+aPostopilios)/aPostopilios -> -0.01193140223 | EO25: =EJ$23+(EM25-EJ$23)*(APOSOPIOTH+aPostopilios)/aPostopilios -> 0.2183263137 | EP25: =1 -> 1 | EQ25: =EP25*2*PI()/nofpoints -> 0.1256637061 | ER25: =ROPHS*SIN(EQ25) -> 0.01579198743 | ES25: =ROPHS*COS(EQ25) -> 0.1250064524 | ET25: =EP$20+(ER25-EP$20)*(APOSOPIOTH+aPostopilios)/aPostopilios -> -0.005124610167 | EU25: =EP$23+(ES25-EP$23)*(APOSOPIOTH+aPostopilios)/aPostopilios -> 0.2200870282 | EV25: =1 -> 1 | EW25: =EV25*2*PI()/nofpoints -> 0.1256637061 | EX25: =ROPHS*SIN(EW25) -> 0.01579198743 | EY25: =ROPHS*COS(EW25) -> 0.1250064524 | EZ25: =EV$20+(EX25-EV$20)*(APOSOPIOTH+aPostopilios)/aPostopilios -> 0.001791613929 | FA25: =EV$23+(EY25-EV$23)*(APOSOPIOTH+aPostopilios)/aPostopilios -> 0.2213512979 | FB25: =1 -> 1 | FC25: =FB25*2*PI()/nofpoints -> 0.1256637061 | FD25: =ROPHS*SIN(FC25) -> 0.01579198743 | FE25: =ROPHS*COS(FC25) -> 0.1250064524 | FF25: =FB$20+(FD25-FB$20)*(APOSOPIOTH+aPostopilios)/aPostopilios -> 0.008781112109 | FG25: =FB$23+(FE25-FB$23)*(APOSOPIOTH+aPostopilios)/aPostopilios -> 0.2221125133 | FH25: =1 -> 1 | FI25: =FH25*2*PI()/nofpoints -> 0.1256637061 | FJ25: =ROPHS*SIN(FI25) -> 0.01579198743 | FK25: =ROPHS*COS(FI25) -> 0.1250064524 | FL25: =FH$20+(FJ25-FH$20)*(APOSOPIOTH+aPostopilios)/aPostopilios -> 0.01580734335 | FM25: =FH$23+(FK25-FH$23)*(APOSOPIOTH+aPostopilios)/aPostopilios -> 0.2223666947 | FN25: =1 -> 1 | FO25: =FN25*2*PI()/nofpoints -> 0.1256637061 | FP25: =ROPHS*SIN(FO25) -> 0.01579198743 | FQ25: =ROPHS*COS(FO25) -> 0.1250064524 | FR25: =FN$20+(FP25-FN$20)*(APOSOPIOTH+aPostopilios)/aPostopilios -> 0.02283357459 | FS25: =FN$23+(FQ25-FN$23)*(APOSOPIOTH+aPostopilios)/aPostopilios -> 0.2221125133 | FT25: =1 -> 1 | FU25: =FT25*2*PI()/nofpoints -> 0.1256637061 | FV25: =ROPHS*SIN(FU25) -> 0.01579198743 | FW25: =ROPHS*COS(FU25) -> 0.1250064524 | FX25: =FT$20+(FV25-FT$20)*(APOSOPIOTH+aPostopilios)/aPostopilios -> 0.02982307277 | FY25: =FT$23+(FW25-FT$23)*(APOSOPIOTH+aPostopilios)/aPostopilios -> 0.2213512979 | FZ25: =1 -> 1 | GA25: =FZ25*2*PI()/nofpoints -> 0.1256637061 | GB25: =ROPHS*SIN(GA25) -> 0.01579198743 | GC25: =ROPHS*COS(GA25) -> 0.1250064524 | GD25: =FZ$20+(GB25-FZ$20)*(APOSOPIOTH+aPostopilios)/aPostopilios -> 0.03673929687 | GE25: =FZ$23+(GC25-FZ$23)*(APOSOPIOTH+aPostopilios)/aPostopilios -> 0.2200870282 | GF25: =1 -> 1 | GG25: =GF25*2*PI()/nofpoints -> 0.1256637061 | GH25: =ROPHS*SIN(GG25) -> 0.01579198743 | GI25: =ROPHS*COS(GG25) -> 0.1250064524 | GJ25: =GF$20+(GH25-GF$20)*(APOSOPIOTH+aPostopilios)/aPostopilios -> 0.04354608893 | GK25: =GF$23+(GI25-GF$23)*(APOSOPIOTH+aPostopilios)/aPostopilios -> 0.2183263137 | GL25: =1 -> 1 | GM25: =GL25*2*PI()/nofpoints -> 0.1256637061 | GN25: =ROPHS*SIN(GM25) -> 0.01579198743 | GO25: =ROPHS*COS(GM25) -> 0.1250064524 | GP25: =GL$20+(GN25-GL$20)*(APOSOPIOTH+aPostopilios)/aPostopilios -> 0.05020786313 | GQ25: =GL$23+(GO25-GL$23)*(APOSOPIOTH+aPostopilios)/aPostopilios -> 0.2160783595 | GR25: =1 -> 1 | GS25: =GR25*2*PI()/nofpoints -> 0.1256637061 | GT25: =ROPHS*SIN(GS25) -> 0.01579198743 | GU25: =ROPHS*COS(GS25) -> 0.1250064524 | GV25: =GR$20+(GT25-GR$20)*(APOSOPIOTH+aPostopilios)/aPostopilios -> 0.05668979178 | GW25: =GR$23+(GU25-GR$23)*(APOSOPIOTH+aPostopilios)/aPostopilios -> 0.2133549178 | GX25: =1 -> 1 | GY25: =GX25*2*PI()/nofpoints -> 0.1256637061 | GZ25: =ROPHS*SIN(GY25) -> 0.01579198743 | HA25: =ROPHS*COS(GY25) -> 0.1250064524 | HB25: =GX$20+(GZ25-GX$20)*(APOSOPIOTH+aPostopilios)/aPostopilios -> 0.06295798743 | HC25: =GX$23+(HA25-GX$23)*(APOSOPIOTH+aPostopilios)/aPostopilios -> 0.2101702268 | HD25: =1 -> 1 | HE25: =HD25*2*PI()/nofpoints -> 0.1256637061 | HF25: =ROPHS*SIN(HE25) -> 0.01579198743 | HG25: =ROPHS*COS(HE25) -> 0.1250064524 | HH25: =HD$20+(HF25-HD$20)*(APOSOPIOTH+aPostopilios)/aPostopilios -> 0.06897968001 | HI25: =HD$23+(HG25-HD$23)*(APOSOPIOTH+aPostopilios)/aPostopilios -> 0.2065409359 | HJ25: =1 -> 1 | HK25: =HJ25*2*PI()/nofpoints -> 0.1256637061 | HL25: =ROPHS*SIN(HK25) -> 0.01579198743 | HM25: =ROPHS*COS(HK25) -> 0.1250064524 | HN25: =HJ$20+(HL25-HJ$20)*(APOSOPIOTH+aPostopilios)/aPostopilios -> 0.07472338818 | HO25: =HJ$23+(HM25-HJ$23)*(APOSOPIOTH+aPostopilios)/aPostopilios -> 0.2024860191 | HP25: =1 -> 1 | HQ25: =HP25*2*PI()/nofpoints -> 0.1256637061 | HR25: =ROPHS*SIN(HQ25) -> 0.01579198743 | HS25: =ROPHS*COS(HQ25) -> 0.1250064524 | HT25: =HP$20+(HR25-HP$20)*(APOSOPIOTH+aPostopilios)/aPostopilios -> 0.0801590839 | HU25: =HP$23+(HS25-HP$23)*(APOSOPIOTH+aPostopilios)/aPostopilios -> 0.1980266755 | HV25: =1 -> 1 | HW25: =HV25*2*PI()/nofpoints -> 0.1256637061 | HX25: =ROPHS*SIN(HW25) -> 0.01579198743 | HY25: =ROPHS*COS(HW25) -> 0.1250064524 | HZ25: =HV$20+(HX25-HV$20)*(APOSOPIOTH+aPostopilios)/aPostopilios -> 0.08525834941 | IA25: =HV$23+(HY25-HV$23)*(APOSOPIOTH+aPostopilios)/aPostopilios -> 0.1931862184 | IB25: =1 -> 1 | IC25: =IB25*2*PI()/nofpoints -> 0.1256637061 | ID25: =ROPHS*SIN(IC25) -> 0.01579198743 | IE25: =ROPHS*COS(IC25) -> 0.1250064524 | IF25: =IB$20+(ID25-IB$20)*(APOSOPIOTH+aPostopilios)/aPostopilios -> 0.08999452579 | IG25: =IB$23+(IE25-IB$23)*(APOSOPIOTH+aPostopilios)/aPostopilios -> 0.1879899537 | IH25: =1 -> 1 | II25: =IH25*2*PI()/nofpoints -> 0.1256637061 | IJ25: =ROPHS*SIN(II25) -> 0.01579198743 | IK25: =ROPHS*COS(II25) -> 0.1250064524 | IL25: =IH$20+(IJ25-IH$20)*(APOSOPIOTH+aPostopilios)/aPostopilios -> 0.09434285238 | IM25: =IH$23+(IK25-IH$23)*(APOSOPIOTH+aPostopilios)/aPostopilios -> 0.1824650474 | IN25: =1 -> 1 | IO25: =IN25*2*PI()/nofpoints -> 0.1256637061 | IP25: =ROPHS*SIN(IO25) -> 0.01579198743 | IQ25: =ROPHS*COS(IO25) -> 0.1250064524 | IR25: =IN$20+(IP25-IN$20)*(APOSOPIOTH+aPostopilios)/aPostopilios -> 0.09828059617 | IS25: =IN$23+(IQ25-IN$23)*(APOSOPIOTH+aPostopilios)/aPostopilios -> 0.1766403837 | IT25: =1 -> 1 | IU25: =IT25*2*PI()/nofpoints -> 0.1256637061 | IV25: =ROPHS*SIN(IU25) -> 0.01579198743 | IW25: =ROPHS*COS(IU25) -> 0.1250064524 | IX25: =IT$20+(IV25-IT$20)*(APOSOPIOTH+aPostopilios)/aPostopilios -> 0.1017871707 | IY25: =IT$23+(IW25-IT$23)*(APOSOPIOTH+aPostopilios)/aPostopilios -> 0.1705464138 | IZ25: =1 -> 1 | JA25: =IZ25*2*PI()/nofpoints -> 0.1256637061 | JB25: =ROPHS*SIN(JA25) -> 0.01579198743 | JC25: =ROPHS*COS(JA25) -> 0.1250064524 | JD25: =IZ$20+(JB25-IZ$20)*(APOSOPIOTH+aPostopilios)/aPostopilios -> 0.1048442435 | JE25: =IZ$23+(JC25-IZ$23)*(APOSOPIOTH+aPostopilios)/aPostopilios -> 0.164214997 | JF25: =1 -> 1 | JG25: =JF25*2*PI()/nofpoints -> 0.1256637061 | JH25: =ROPHS*SIN(JG25) -> 0.01579198743 | JI25: =ROPHS*COS(JG25) -> 0.1250064524 | JJ25: =JF$20+(JH25-JF$20)*(APOSOPIOTH+aPostopilios)/aPostopilios -> 0.1074358325 | JK25: =JF$23+(JI25-JF$23)*(APOSOPIOTH+aPostopilios)/aPostopilios -> 0.1576792338 | JL25: =1 -> 1 | JM25: =JL25*2*PI()/nofpoints -> 0.1256637061 | JN25: =ROPHS*SIN(JM25) -> 0.01579198743 | JO25: =ROPHS*COS(JM25) -> 0.1250064524 | JP25: =JL$20+(JN25-JL$20)*(APOSOPIOTH+aPostopilios)/aPostopilios -> 0.1095483886 | JQ25: =JL$23+(JO25-JL$23)*(APOSOPIOTH+aPostopilios)/aPostopilios -> 0.1509732931 | JR25: =1 -> 1 | JS25: =JR25*2*PI()/nofpoints -> 0.1256637061 | JT25: =ROPHS*SIN(JS25) -> 0.01579198743 | JU25: =ROPHS*COS(JS25) -> 0.1250064524 | JV25: =JR$20+(JT25-JR$20)*(APOSOPIOTH+aPostopilios)/aPostopilios -> 0.1111708676 | JW25: =JR$23+(JU25-JR$23)*(APOSOPIOTH+aPostopilios)/aPostopilios -> 0.1441322336 | JX25: =1 -> 1 | JY25: =JX25*2*PI()/nofpoints -> 0.1256637061 | JZ25: =ROPHS*SIN(JY25) -> 0.01579198743 | KA25: =ROPHS*COS(JY25) -> 0.1250064524 | KB25: =JX$20+(JZ25-JX$20)*(APOSOPIOTH+aPostopilios)/aPostopilios -> 0.1122947871 | KC25: =JX$23+(KA25-JX$23)*(APOSOPIOTH+aPostopilios)/aPostopilios -> 0.1371918201 | KD25: =1 -> 1 | KE25: =KD25*2*PI()/nofpoints -> 0.1256637061 | KF25: =ROPHS*SIN(KE25) -> 0.01579198743 | KG25: =ROPHS*COS(KE25) -> 0.1250064524 | KH25: =KD$20+(KF25-KD$20)*(APOSOPIOTH+aPostopilios)/aPostopilios -> 0.1129142712 | KI25: =KD$23+(KG25-KD$23)*(APOSOPIOTH+aPostopilios)/aPostopilios -> 0.1301883372 | KJ25: =1 -> 1 | KK25: =KJ25*2*PI()/nofpoints -> 0.1256637061 | KL25: =ROPHS*SIN(KK25) -> 0.01579198743 | KM25: =ROPHS*COS(KK25) -> 0.1250064524 | KN25: =KJ$20+(KL25-KJ$20)*(APOSOPIOTH+aPostopilios)/aPostopilios -> 0.1130260814 | KO25: =KJ$23+(KM25-KJ$23)*(APOSOPIOTH+aPostopilios)/aPostopilios -> 0.1231583989 | KP25: =1 -> 1 | KQ25: =KP25*2*PI()/nofpoints -> 0.1256637061 | KR25: =ROPHS*SIN(KQ25) -> 0.01579198743 | KS25: =ROPHS*COS(KQ25) -> 0.1250064524 | KT25: =KP$20+(KR25-KP$20)*(APOSOPIOTH+aPostopilios)/aPostopilios -> 0.112629633 | KU25: =KP$23+(KS25-KP$23)*(APOSOPIOTH+aPostopilios)/aPostopilios -> 0.1161387577 | KV25: =1 -> 1 | KW25: =KV25*2*PI()/nofpoints -> 0.1256637061 | KX25: =ROPHS*SIN(KW25) -> 0.01579198743 | KY25: =ROPHS*COS(KW25) -> 0.1250064524 | KZ25: =KV$20+(KX25-KV$20)*(APOSOPIOTH+aPostopilios)/aPostopilios -> 0.1117269988 | LA25: =KV$23+(KY25-KV$23)*(APOSOPIOTH+aPostopilios)/aPostopilios -> 0.1091661123 | LB25: =1 -> 1 | LC25: =LB25*PI()/nofpoints -> 0.06283185307 | LD25: =ROPHS*SIN(LC25) -> 0.007911605461 | LE25: =ROPHS*COS(LC25) -> 0.1257513678 | LF25: =LB$20+(LD25-LB$20)*(APOSOPIOTH+aPostopilios)/aPostopilios -> 0.1024348528 | LG25: =LB$23+(LE25-LB$23)*(APOSOPIOTH+aPostopilios)/aPostopilios -> 0.1030225552
B26: =B25+1 -> 3 | C26: 0.2513274123 | D26: 0.03133492578 | E26: 0.1220414783 | F26: -0.06315015879 | G26: 0.09930905823 | H26: =H25+1 -> 2 | I26: 0.2513274123 | J26: 0.03133492578 | K26: 0.1220414783 | N26: =N25+1 -> 2 | O26: 0.2513274123 | P26: 0.03133492578 | Q26: 0.1220414783 | R26: -0.06315015879 | S26: 0.09930905823 | T26: =T25+1 -> 2 | U26: 0.2513274123 | V26: 0.03133492578 | W26: 0.1220414783 | X26: -0.06455425998 | Y26: 0.1061982551 | Z26: =Z25+1 -> 2 | AA26: 0.2513274123 | AB26: 0.03133492578 | AC26: 0.1220414783 | AD26: -0.06545689423 | AE26: 0.1131709006 | AF26: =AF25+1 -> 2 | AG26: 0.2513274123 | AH26: 0.03133492578 | AI26: 0.1220414783 | AJ26: -0.06585334258 | AK26: 0.1201905418 | AL26: =AL25+1 -> 2 | AM26: 0.2513274123 | AN26: 0.03133492578 | AO26: 0.1220414783 | AP26: -0.06574153241 | AQ26: 0.12722048 | AR26: =AR25+1 -> 2 | AS26: 0.2513274123 | AT26: 0.03133492578 | AU26: 0.1220414783 | AV26: -0.06512204826 | AW26: 0.134223963 | AX26: =AX25+1 -> 2 | AY26: 0.2513274123 | AZ26: 0.03133492578 | BA26: 0.1220414783 | BB26: -0.06399812878 | BC26: 0.1411643764 | BD26: =BD25+1 -> 2 | BE26: 0.2513274123 | BF26: 0.03133492578 | BG26: 0.1220414783 | BH26: -0.06237564981 | BI26: 0.1480054359 | BJ26: =BJ25+1 -> 2 | BK26: 0.2513274123 | BL26: 0.03133492578 | BM26: 0.1220414783 | BN26: -0.06026309366 | BO26: 0.1547113766 | BP26: =BP25+1 -> 2 | BQ26: 0.2513274123 | BR26: 0.03133492578 | BS26: 0.1220414783 | BT26: -0.05767150474 | BU26: 0.1612471398 | BV26: =BV25+1 -> 2 | BW26: 0.2513274123 | BX26: 0.03133492578 | BY26: 0.1220414783 | BZ26: -0.05461443186 | CA26: 0.1675785566 | CB26: =CB25+1 -> 2 | CC26: 0.2513274123 | CD26: 0.03133492578 | CE26: 0.1220414783 | CF26: -0.05110785736 | CG26: 0.1736725265 | CH26: =CH25+1 -> 2 | CI26: 0.2513274123 | CJ26: 0.03133492578 | CK26: 0.1220414783 | CL26: -0.04717011358 | CM26: 0.1794971902 | CN26: =CN25+1 -> 2 | CO26: 0.2513274123 | CP26: 0.03133492578 | CQ26: 0.1220414783 | CR26: -0.04282178699 | CS26: 0.1850220965 | CT26: =CT25+1 -> 2 | CU26: 0.2513274123 | CV26: 0.03133492578 | CW26: 0.1220414783 | CX26: -0.0380856106 | CY26: 0.1902183612 | CZ26: =CZ25+1 -> 2 | DA26: 0.2513274123 | DB26: 0.03133492578 | DC26: 0.1220414783 | DD26: -0.0329863451 | DE26: 0.1950588183 | DF26: =DF25+1 -> 2 | DG26: 0.2513274123 | DH26: 0.03133492578 | DI26: 0.1220414783 | DJ26: -0.02755064938 | DK26: 0.199518162 | DL26: =DL25+1 -> 2 | DM26: 0.2513274123 | DN26: 0.03133492578 | DO26: 0.1220414783 | DP26: -0.02180694121 | DQ26: 0.2035730788 | DR26: =DR25+1 -> 2 | DS26: 0.2513274123 | DT26: 0.03133492578 | DU26: 0.1220414783 | DV26: -0.01578524863 | DW26: 0.2072023696 | DX26: =DX25+1 -> 2 | DY26: 0.2513274123 | DZ26: 0.03133492578 | EA26: 0.1220414783 | EB26: -0.00951705298 | EC26: 0.2103870606 | ED26: =ED25+1 -> 2 | EE26: 0.2513274123 | EF26: 0.03133492578 | EG26: 0.1220414783 | EH26: -0.00303512433 | EI26: 0.2131105023 | EJ26: =EJ25+1 -> 2 | EK26: 0.2513274123 | EL26: 0.03133492578 | EM26: 0.1220414783 | EN26: 0.00362664987 | EO26: 0.2153584565 | EP26: =EP25+1 -> 2 | EQ26: 0.2513274123 | ER26: 0.03133492578 | ES26: 0.1220414783 | ET26: 0.01043344194 | EU26: 0.217119171 | EV26: =EV25+1 -> 2 | EW26: 0.2513274123 | EX26: 0.03133492578 | EY26: 0.1220414783 | EZ26: 0.01734966603 | FA26: 0.2183834407 | FB26: =FB25+1 -> 2 | FC26: 0.2513274123 | FD26: 0.03133492578 | FE26: 0.1220414783 | FF26: 0.02433916421 | FG26: 0.2191446561 | FH26: =FH25+1 -> 2 | FI26: 0.2513274123 | FJ26: 0.03133492578 | FK26: 0.1220414783 | FL26: 0.03136539545 | FM26: 0.2193988375 | FN26: =FN25+1 -> 2 | FO26: 0.2513274123 | FP26: 0.03133492578 | FQ26: 0.1220414783 | FR26: 0.0383916267 | FS26: 0.2191446561 | FT26: =FT25+1 -> 2 | FU26: 0.2513274123 | FV26: 0.03133492578 | FW26: 0.1220414783 | FX26: 0.04538112487 | FY26: 0.2183834407 | FZ26: =FZ25+1 -> 2 | GA26: 0.2513274123 | GB26: 0.03133492578 | GC26: 0.1220414783 | GD26: 0.05229734897 | GE26: 0.217119171 | GF26: =GF25+1 -> 2 | GG26: 0.2513274123 | GH26: 0.03133492578 | GI26: 0.1220414783 | GJ26: 0.05910414104 | GK26: 0.2153584565 | GL26: =GL25+1 -> 2 | GM26: 0.2513274123 | GN26: 0.03133492578 | GO26: 0.1220414783 | GP26: 0.06576591524 | GQ26: 0.2131105023 | GR26: =GR25+1 -> 2 | GS26: 0.2513274123 | GT26: 0.03133492578 | GU26: 0.1220414783 | GV26: 0.07224784389 | GW26: 0.2103870606 | GX26: =GX25+1 -> 2 | GY26: 0.2513274123 | GZ26: 0.03133492578 | HA26: 0.1220414783 | HB26: 0.07851603953 | HC26: 0.2072023696 | HD26: =HD25+1 -> 2 | HE26: 0.2513274123 | HF26: 0.03133492578 | HG26: 0.1220414783 | HH26: 0.08453773211 | HI26: 0.2035730788 | HJ26: =HJ25+1 -> 2 | HK26: 0.2513274123 | HL26: 0.03133492578 | HM26: 0.1220414783 | HN26: 0.09028144029 | HO26: 0.199518162 | HP26: =HP25+1 -> 2 | HQ26: 0.2513274123 | HR26: 0.03133492578 | HS26: 0.1220414783 | HT26: 0.095717136 | HU26: 0.1950588183 | HV26: =HV25+1 -> 2 | HW26: 0.2513274123 | HX26: 0.03133492578 | HY26: 0.1220414783 | HZ26: 0.1008164015 | IA26: 0.1902183612 | IB26: =IB25+1 -> 2 | IC26: 0.2513274123 | ID26: 0.03133492578 | IE26: 0.1220414783 | IF26: 0.1055525779 | IG26: 0.1850220965 | IH26: =IH25+1 -> 2 | II26: 0.2513274123 | IJ26: 0.03133492578 | IK26: 0.1220414783 | IL26: 0.1099009045 | IM26: 0.1794971902 | IN26: =IN25+1 -> 2 | IO26: 0.2513274123 | IP26: 0.03133492578 | IQ26: 0.1220414783 | IR26: 0.1138386483 | IS26: 0.1736725265 | IT26: =IT25+1 -> 2 | IU26: 0.2513274123 | IV26: 0.03133492578 | IW26: 0.1220414783 | IX26: 0.1173452228 | IY26: 0.1675785566 | IZ26: =IZ25+1 -> 2 | JA26: 0.2513274123 | JB26: 0.03133492578 | JC26: 0.1220414783 | JD26: 0.1204022957 | JE26: 0.1612471398 | JF26: =JF25+1 -> 2 | JG26: 0.2513274123 | JH26: 0.03133492578 | JI26: 0.1220414783 | JJ26: 0.1229938846 | JK26: 0.1547113766 | JL26: =JL25+1 -> 2 | JM26: 0.2513274123 | JN26: 0.03133492578 | JO26: 0.1220414783 | JP26: 0.1251064407 | JQ26: 0.1480054359 | JR26: =JR25+1 -> 2 | JS26: 0.2513274123 | JT26: 0.03133492578 | JU26: 0.1220414783 | JV26: 0.1267289197 | JW26: 0.1411643764 | JX26: =JX25+1 -> 2 | JY26: 0.2513274123 | JZ26: 0.03133492578 | KA26: 0.1220414783 | KB26: 0.1278528392 | KC26: 0.134223963 | KD26: =KD25+1 -> 2 | KE26: 0.2513274123 | KF26: 0.03133492578 | KG26: 0.1220414783 | KH26: 0.1284723233 | KI26: 0.12722048 | KJ26: =KJ25+1 -> 2 | KK26: 0.2513274123 | KL26: 0.03133492578 | KM26: 0.1220414783 | KN26: 0.1285841335 | KO26: 0.1201905418 | KP26: =KP25+1 -> 2 | KQ26: 0.2513274123 | KR26: 0.03133492578 | KS26: 0.1220414783 | KT26: 0.1281876851 | KU26: 0.1131709006 | KV26: =KV25+1 -> 2 | KW26: 0.2513274123 | KX26: 0.03133492578 | KY26: 0.1220414783 | KZ26: 0.1272850509 | LA26: 0.1061982551 | LB26: =LB25+1 -> 2 | LC26: 0.1256637061 | LD26: 0.01579198743 | LE26: 0.1250064524 | LF26: 0.1103228976 | LG26: 0.1022769154
B27: 4 | C27: 0.3769911184 | D27: 0.04638369364 | E27: 0.1171518372 | F27: -0.04808675771 | G27: 0.09441466253 | H27: =H26+1 -> 3 | I27: 0.3769911184 | J27: 0.04638369364 | K27: 0.1171518372 | N27: =N26+1 -> 3 | O27: 0.3769911184 | P27: 0.04638369364 | Q27: 0.1171518372 | R27: -0.04808675771 | S27: 0.09441466253 | T27: =T26+1 -> 3 | U27: 0.3769911184 | V27: 0.04638369364 | W27: 0.1171518372 | X27: -0.0494908589 | Y27: 0.1013038594 | Z27: =Z26+1 -> 3 | AA27: 0.3769911184 | AB27: 0.04638369364 | AC27: 0.1171518372 | AD27: -0.05039349315 | AE27: 0.1082765049 | AF27: =AF26+1 -> 3 | AG27: 0.3769911184 | AH27: 0.04638369364 | AI27: 0.1171518372 | AJ27: -0.0507899415 | AK27: 0.1152961461 | AL27: =AL26+1 -> 3 | AM27: 0.3769911184 | AN27: 0.04638369364 | AO27: 0.1171518372 | AP27: -0.05067813133 | AQ27: 0.1223260843 | AR27: =AR26+1 -> 3 | AS27: 0.3769911184 | AT27: 0.04638369364 | AU27: 0.1171518372 | AV27: -0.05005864718 | AW27: 0.1293295673 | AX27: =AX26+1 -> 3 | AY27: 0.3769911184 | AZ27: 0.04638369364 | BA27: 0.1171518372 | BB27: -0.0489347277 | BC27: 0.1362699807 | BD27: =BD26+1 -> 3 | BE27: 0.3769911184 | BF27: 0.04638369364 | BG27: 0.1171518372 | BH27: -0.04731224873 | BI27: 0.1431110402 | BJ27: =BJ26+1 -> 3 | BK27: 0.3769911184 | BL27: 0.04638369364 | BM27: 0.1171518372 | BN27: -0.04519969258 | BO27: 0.1498169809 | BP27: =BP26+1 -> 3 | BQ27: 0.3769911184 | BR27: 0.04638369364 | BS27: 0.1171518372 | BT27: -0.04260810366 | BU27: 0.1563527441 | BV27: =BV26+1 -> 3 | BW27: 0.3769911184 | BX27: 0.04638369364 | BY27: 0.1171518372 | BZ27: -0.03955103078 | CA27: 0.1626841609 | CB27: =CB26+1 -> 3 | CC27: 0.3769911184 | CD27: 0.04638369364 | CE27: 0.1171518372 | CF27: -0.03604445629 | CG27: 0.1687781308 | CH27: =CH26+1 -> 3 | CI27: 0.3769911184 | CJ27: 0.04638369364 | CK27: 0.1171518372 | CL27: -0.0321067125 | CM27: 0.1746027945 | CN27: =CN26+1 -> 3 | CO27: 0.3769911184 | CP27: 0.04638369364 | CQ27: 0.1171518372 | CR27: -0.02775838591 | CS27: 0.1801277008 | CT27: =CT26+1 -> 3 | CU27: 0.3769911184 | CV27: 0.04638369364 | CW27: 0.1171518372 | CX27: -0.02302220952 | CY27: 0.1853239655 | CZ27: =CZ26+1 -> 3 | DA27: 0.3769911184 | DB27: 0.04638369364 | DC27: 0.1171518372 | DD27: -0.01792294402 | DE27: 0.1901644226 | DF27: =DF26+1 -> 3 | DG27: 0.3769911184 | DH27: 0.04638369364 | DI27: 0.1171518372 | DJ27: -0.0124872483 | DK27: 0.1946237663 | DL27: =DL26+1 -> 3 | DM27: 0.3769911184 | DN27: 0.04638369364 | DO27: 0.1171518372 | DP27: -0.006743540127 | DQ27: 0.1986786831 | DR27: =DR26+1 -> 3 | DS27: 0.3769911184 | DT27: 0.04638369364 | DU27: 0.1171518372 | DV27: -0.0007218475457 | DW27: 0.2023079739 | DX27: =DX26+1 -> 3 | DY27: 0.3769911184 | DZ27: 0.04638369364 | EA27: 0.1171518372 | EB27: 0.0055463481 | EC27: 0.2054926649 | ED27: =ED26+1 -> 3 | EE27: 0.3769911184 | EF27: 0.04638369364 | EG27: 0.1171518372 | EH27: 0.01202827675 | EI27: 0.2082161066 | EJ27: =EJ26+1 -> 3 | EK27: 0.3769911184 | EL27: 0.04638369364 | EM27: 0.1171518372 | EN27: 0.01869005095 | EO27: 0.2104640608 | EP27: =EP26+1 -> 3 | EQ27: 0.3769911184 | ER27: 0.04638369364 | ES27: 0.1171518372 | ET27: 0.02549684302 | EU27: 0.2122247753 | EV27: =EV26+1 -> 3 | EW27: 0.3769911184 | EX27: 0.04638369364 | EY27: 0.1171518372 | EZ27: 0.03241306711 | FA27: 0.213489045 | FB27: =FB26+1 -> 3 | FC27: 0.3769911184 | FD27: 0.04638369364 | FE27: 0.1171518372 | FF27: 0.03940256529 | FG27: 0.2142502604 | FH27: =FH26+1 -> 3 | FI27: 0.3769911184 | FJ27: 0.04638369364 | FK27: 0.1171518372 | FL27: 0.04642879653 | FM27: 0.2145044418 | FN27: =FN26+1 -> 3 | FO27: 0.3769911184 | FP27: 0.04638369364 | FQ27: 0.1171518372 | FR27: 0.05345502777 | FS27: 0.2142502604 | FT27: =FT26+1 -> 3 | FU27: 0.3769911184 | FV27: 0.04638369364 | FW27: 0.1171518372 | FX27: 0.06044452595 | FY27: 0.213489045 | FZ27: =FZ26+1 -> 3 | GA27: 0.3769911184 | GB27: 0.04638369364 | GC27: 0.1171518372 | GD27: 0.06736075005 | GE27: 0.2122247753 | GF27: =GF26+1 -> 3 | GG27: 0.3769911184 | GH27: 0.04638369364 | GI27: 0.1171518372 | GJ27: 0.07416754212 | GK27: 0.2104640608 | GL27: =GL26+1 -> 3 | GM27: 0.3769911184 | GN27: 0.04638369364 | GO27: 0.1171518372 | GP27: 0.08082931632 | GQ27: 0.2082161066 | GR27: =GR26+1 -> 3 | GS27: 0.3769911184 | GT27: 0.04638369364 | GU27: 0.1171518372 | GV27: 0.08731124497 | GW27: 0.2054926649 | GX27: =GX26+1 -> 3 | GY27: 0.3769911184 | GZ27: 0.04638369364 | HA27: 0.1171518372 | HB27: 0.09357944061 | HC27: 0.2023079739 | HD27: =HD26+1 -> 3 | HE27: 0.3769911184 | HF27: 0.04638369364 | HG27: 0.1171518372 | HH27: 0.09960113319 | HI27: 0.1986786831 | HJ27: =HJ26+1 -> 3 | HK27: 0.3769911184 | HL27: 0.04638369364 | HM27: 0.1171518372 | HN27: 0.1053448414 | HO27: 0.1946237663 | HP27: =HP26+1 -> 3 | HQ27: 0.3769911184 | HR27: 0.04638369364 | HS27: 0.1171518372 | HT27: 0.1107805371 | HU27: 0.1901644226 | HV27: =HV26+1 -> 3 | HW27: 0.3769911184 | HX27: 0.04638369364 | HY27: 0.1171518372 | HZ27: 0.1158798026 | IA27: 0.1853239655 | IB27: =IB26+1 -> 3 | IC27: 0.3769911184 | ID27: 0.04638369364 | IE27: 0.1171518372 | IF27: 0.120615979 | IG27: 0.1801277008 | IH27: =IH26+1 -> 3 | II27: 0.3769911184 | IJ27: 0.04638369364 | IK27: 0.1171518372 | IL27: 0.1249643056 | IM27: 0.1746027945 | IN27: =IN26+1 -> 3 | IO27: 0.3769911184 | IP27: 0.04638369364 | IQ27: 0.1171518372 | IR27: 0.1289020494 | IS27: 0.1687781308 | IT27: =IT26+1 -> 3 | IU27: 0.3769911184 | IV27: 0.04638369364 | IW27: 0.1171518372 | IX27: 0.1324086239 | IY27: 0.1626841609 | IZ27: =IZ26+1 -> 3 | JA27: 0.3769911184 | JB27: 0.04638369364 | JC27: 0.1171518372 | JD27: 0.1354656967 | JE27: 0.1563527441 | JF27: =JF26+1 -> 3 | JG27: 0.3769911184 | JH27: 0.04638369364 | JI27: 0.1171518372 | JJ27: 0.1380572856 | JK27: 0.1498169809 | JL27: =JL26+1 -> 3 | JM27: 0.3769911184 | JN27: 0.04638369364 | JO27: 0.1171518372 | JP27: 0.1401698418 | JQ27: 0.1431110402 | JR27: =JR26+1 -> 3 | JS27: 0.3769911184 | JT27: 0.04638369364 | JU27: 0.1171518372 | JV27: 0.1417923208 | JW27: 0.1362699807 | JX27: =JX26+1 -> 3 | JY27: 0.3769911184 | JZ27: 0.04638369364 | KA27: 0.1171518372 | KB27: 0.1429162402 | KC27: 0.1293295673 | KD27: =KD26+1 -> 3 | KE27: 0.3769911184 | KF27: 0.04638369364 | KG27: 0.1171518372 | KH27: 0.1435357244 | KI27: 0.1223260843 | KJ27: =KJ26+1 -> 3 | KK27: 0.3769911184 | KL27: 0.04638369364 | KM27: 0.1171518372 | KN27: 0.1436475346 | KO27: 0.1152961461 | KP27: =KP26+1 -> 3 | KQ27: 0.3769911184 | KR27: 0.04638369364 | KS27: 0.1171518372 | KT27: 0.1432510862 | KU27: 0.1082765049 | KV27: =KV26+1 -> 3 | KW27: 0.3769911184 | KX27: 0.04638369364 | KY27: 0.1171518372 | KZ27: 0.142348452 | LA27: 0.1013038594 | LB27: =LB26+1 -> 3 | LC27: 0.1884955592 | LD27: 0.02361004564 | LE27: 0.1237681936 | LF27: 0.118148558 | LG27: 0.1010374526
B28: 5 | C28: 0.5026548246 | D28: 0.06070096294 | E28: 0.1104146417 | F28: -0.03375556649 | G28: 0.08767091583 | H28: 4 | I28: 0.5026548246 | J28: 0.06070096294 | K28: 0.1104146417 | N28: 4 | O28: 0.5026548246 | P28: 0.06070096294 | Q28: 0.1104146417 | R28: -0.03375556649 | S28: 0.08767091583 | T28: 4 | U28: 0.5026548246 | V28: 0.06070096294 | W28: 0.1104146417 | X28: -0.03515966767 | Y28: 0.0945601127 | Z28: 4 | AA28: 0.5026548246 | AB28: 0.06070096294 | AC28: 0.1104146417 | AD28: -0.03606230192 | AE28: 0.1015327582 | AF28: 4 | AG28: 0.5026548246 | AH28: 0.06070096294 | AI28: 0.1104146417 | AJ28: -0.03645875028 | AK28: 0.1085523994 | AL28: 4 | AM28: 0.5026548246 | AN28: 0.06070096294 | AO28: 0.1104146417 | AP28: -0.03634694011 | AQ28: 0.1155823376 | AR28: 4 | AS28: 0.5026548246 | AT28: 0.06070096294 | AU28: 0.1104146417 | AV28: -0.03572745595 | AW28: 0.1225858206 | AX28: 4 | AY28: 0.5026548246 | AZ28: 0.06070096294 | BA28: 0.1104146417 | BB28: -0.03460353647 | BC28: 0.129526234 | BD28: 4 | BE28: 0.5026548246 | BF28: 0.06070096294 | BG28: 0.1104146417 | BH28: -0.03298105751 | BI28: 0.1363672935 | BJ28: 4 | BK28: 0.5026548246 | BL28: 0.06070096294 | BM28: 0.1104146417 | BN28: -0.03086850136 | BO28: 0.1430732342 | BP28: 4 | BQ28: 0.5026548246 | BR28: 0.06070096294 | BS28: 0.1104146417 | BT28: -0.02827691244 | BU28: 0.1496089974 | BV28: 4 | BW28: 0.5026548246 | BX28: 0.06070096294 | BY28: 0.1104146417 | BZ28: -0.02521983956 | CA28: 0.1559404142 | CB28: 4 | CC28: 0.5026548246 | CD28: 0.06070096294 | CE28: 0.1104146417 | CF28: -0.02171326506 | CG28: 0.1620343841 | CH28: 4 | CI28: 0.5026548246 | CJ28: 0.06070096294 | CK28: 0.1104146417 | CL28: -0.01777552128 | CM28: 0.1678590478 | CN28: 4 | CO28: 0.5026548246 | CP28: 0.06070096294 | CQ28: 0.1104146417 | CR28: -0.01342719469 | CS28: 0.1733839541 | CT28: 4 | CU28: 0.5026548246 | CV28: 0.06070096294 | CW28: 0.1104146417 | CX28: -0.008691018301 | CY28: 0.1785802188 | CZ28: 4 | DA28: 0.5026548246 | DB28: 0.06070096294 | DC28: 0.1104146417 | DD28: -0.003591752795 | DE28: 0.1834206759 | DF28: 4 | DG28: 0.5026548246 | DH28: 0.06070096294 | DI28: 0.1104146417 | DJ28: 0.001843942924 | DK28: 0.1878800196 | DL28: 4 | DM28: 0.5026548246 | DN28: 0.06070096294 | DO28: 0.1104146417 | DP28: 0.007587651096 | DQ28: 0.1919349364 | DR28: 4 | DS28: 0.5026548246 | DT28: 0.06070096294 | DU28: 0.1104146417 | DV28: 0.01360934368 | DW28: 0.1955642272 | DX28: 4 | DY28: 0.5026548246 | DZ28: 0.06070096294 | EA28: 0.1104146417 | EB28: 0.01987753932 | EC28: 0.1987489182 | ED28: 4 | EE28: 0.5026548246 | EF28: 0.06070096294 | EG28: 0.1104146417 | EH28: 0.02635946797 | EI28: 0.2014723599 | EJ28: 4 | EK28: 0.5026548246 | EL28: 0.06070096294 | EM28: 0.1104146417 | EN28: 0.03302124217 | EO28: 0.2037203141 | EP28: 4 | EQ28: 0.5026548246 | ER28: 0.06070096294 | ES28: 0.1104146417 | ET28: 0.03982803424 | EU28: 0.2054810286 | EV28: 4 | EW28: 0.5026548246 | EX28: 0.06070096294 | EY28: 0.1104146417 | EZ28: 0.04674425834 | FA28: 0.2067452983 | FB28: 4 | FC28: 0.5026548246 | FD28: 0.06070096294 | FE28: 0.1104146417 | FF28: 0.05373375651 | FG28: 0.2075065137 | FH28: 4 | FI28: 0.5026548246 | FJ28: 0.06070096294 | FK28: 0.1104146417 | FL28: 0.06075998776 | FM28: 0.2077606951 | FN28: 4 | FO28: 0.5026548246 | FP28: 0.06070096294 | FQ28: 0.1104146417 | FR28: 0.067786219 | FS28: 0.2075065137 | FT28: 4 | FU28: 0.5026548246 | FV28: 0.06070096294 | FW28: 0.1104146417 | FX28: 0.07477571718 | FY28: 0.2067452983 | FZ28: 4 | GA28: 0.5026548246 | GB28: 0.06070096294 | GC28: 0.1104146417 | GD28: 0.08169194127 | GE28: 0.2054810286 | GF28: 4 | GG28: 0.5026548246 | GH28: 0.06070096294 | GI28: 0.1104146417 | GJ28: 0.08849873334 | GK28: 0.2037203141 | GL28: 4 | GM28: 0.5026548246 | GN28: 0.06070096294 | GO28: 0.1104146417 | GP28: 0.09516050754 | GQ28: 0.2014723599 | GR28: 4 | GS28: 0.5026548246 | GT28: 0.06070096294 | GU28: 0.1104146417 | GV28: 0.1016424362 | GW28: 0.1987489182 | GX28: 4 | GY28: 0.5026548246 | GZ28: 0.06070096294 | HA28: 0.1104146417 | HB28: 0.1079106318 | HC28: 0.1955642272 | HD28: 4 | HE28: 0.5026548246 | HF28: 0.06070096294 | HG28: 0.1104146417 | HH28: 0.1139323244 | HI28: 0.1919349364 | HJ28: 4 | HK28: 0.5026548246 | HL28: 0.06070096294 | HM28: 0.1104146417 | HN28: 0.1196760326 | HO28: 0.1878800196 | HP28: 4 | HQ28: 0.5026548246 | HR28: 0.06070096294 | HS28: 0.1104146417 | HT28: 0.1251117283 | HU28: 0.1834206759 | HV28: 4 | HW28: 0.5026548246 | HX28: 0.06070096294 | HY28: 0.1104146417 | HZ28: 0.1302109938 | IA28: 0.1785802188 | IB28: 4 | IC28: 0.5026548246 | ID28: 0.06070096294 | IE28: 0.1104146417 | IF28: 0.1349471702 | IG28: 0.1733839541 | IH28: 4 | II28: 0.5026548246 | IJ28: 0.06070096294 | IK28: 0.1104146417 | IL28: 0.1392954968 | IM28: 0.1678590478 | IN28: 4 | IO28: 0.5026548246 | IP28: 0.06070096294 | IQ28: 0.1104146417 | IR28: 0.1432332406 | IS28: 0.1620343841 | IT28: 4 | IU28: 0.5026548246 | IV28: 0.06070096294 | IW28: 0.1104146417 | IX28: 0.1467398151 | IY28: 0.1559404142 | IZ28: 4 | JA28: 0.5026548246 | JB28: 0.06070096294 | JC28: 0.1104146417 | JD28: 0.149796888 | JE28: 0.1496089974 | JF28: 4 | JG28: 0.5026548246 | JH28: 0.06070096294 | JI28: 0.1104146417 | JJ28: 0.1523884769 | JK28: 0.1430732342 | JL28: 4 | JM28: 0.5026548246 | JN28: 0.06070096294 | JO28: 0.1104146417 | JP28: 0.154501033 | JQ28: 0.1363672935 | JR28: 4 | JS28: 0.5026548246 | JT28: 0.06070096294 | JU28: 0.1104146417 | JV28: 0.156123512 | JW28: 0.129526234 | JX28: 4 | JY28: 0.5026548246 | JZ28: 0.06070096294 | KA28: 0.1104146417 | KB28: 0.1572474315 | KC28: 0.1225858206 | KD28: 4 | KE28: 0.5026548246 | KF28: 0.06070096294 | KG28: 0.1104146417 | KH28: 0.1578669156 | KI28: 0.1155823376 | KJ28: 4 | KK28: 0.5026548246 | KL28: 0.06070096294 | KM28: 0.1104146417 | KN28: 0.1579787258 | KO28: 0.1085523994 | KP28: 4 | KQ28: 0.5026548246 | KR28: 0.06070096294 | KS28: 0.1104146417 | KT28: 0.1575822774 | KU28: 0.1015327582 | KV28: 4 | KW28: 0.5026548246 | KX28: 0.06070096294 | KY28: 0.1104146417 | KZ28: 0.1566796432 | LA28: 0.0945601127 | LB28: 4 | LC28: 0.2513274123 | LD28: 0.03133492578 | LE28: 0.1220414783 | LF28: 0.1258809497 | LG28: 0.09930905823
B29: 6 | C29: 0.6283185307 | D29: 0.07406094179 | E29: 0.1019361413 | F29: -0.02038259657 | G29: 0.07918417105 | H29: 5 | I29: 0.6283185307 | J29: 0.07406094179 | K29: 0.1019361413 | N29: 5 | O29: 0.6283185307 | P29: 0.07406094179 | Q29: 0.1019361413 | R29: -0.02038259657 | S29: 0.07918417105 | T29: 5 | U29: 0.6283185307 | V29: 0.07406094179 | W29: 0.1019361413 | X29: -0.02178669775 | Y29: 0.08607336792 | Z29: 5 | AA29: 0.6283185307 | AB29: 0.07406094179 | AC29: 0.1019361413 | AD29: -0.022689332 | AE29: 0.09304601341 | AF29: 5 | AG29: 0.6283185307 | AH29: 0.07406094179 | AI29: 0.1019361413 | AJ29: -0.02308578036 | AK29: 0.1000656546 | AL29: 5 | AM29: 0.6283185307 | AN29: 0.07406094179 | AO29: 0.1019361413 | AP29: -0.02297397019 | AQ29: 0.1070955929 | AR29: 5 | AS29: 0.6283185307 | AT29: 0.07406094179 | AU29: 0.1019361413 | AV29: -0.02235448603 | AW29: 0.1140990758 | AX29: 5 | AY29: 0.6283185307 | AZ29: 0.07406094179 | BA29: 0.1019361413 | BB29: -0.02123056655 | BC29: 0.1210394892 | BD29: 5 | BE29: 0.6283185307 | BF29: 0.07406094179 | BG29: 0.1019361413 | BH29: -0.01960808759 | BI29: 0.1278805488 | BJ29: 5 | BK29: 0.6283185307 | BL29: 0.07406094179 | BM29: 0.1019361413 | BN29: -0.01749553144 | BO29: 0.1345864894 | BP29: 5 | BQ29: 0.6283185307 | BR29: 0.07406094179 | BS29: 0.1019361413 | BT29: -0.01490394252 | BU29: 0.1411222526 | BV29: 5 | BW29: 0.6283185307 | BX29: 0.07406094179 | BY29: 0.1019361413 | BZ29: -0.01184686964 | CA29: 0.1474536695 | CB29: 5 | CC29: 0.6283185307 | CD29: 0.07406094179 | CE29: 0.1019361413 | CF29: -0.008340295142 | CG29: 0.1535476393 | CH29: 5 | CI29: 0.6283185307 | CJ29: 0.07406094179 | CK29: 0.1019361413 | CL29: -0.004402551356 | CM29: 0.1593723031 | CN29: 5 | CO29: 0.6283185307 | CP29: 0.07406094179 | CQ29: 0.1019361413 | CR29: -5.422476757e-05 | CS29: 0.1648972094 | CT29: 5 | CU29: 0.6283185307 | CV29: 0.07406094179 | CW29: 0.1019361413 | CX29: 0.004681951619 | CY29: 0.1700934741 | CZ29: 5 | DA29: 0.6283185307 | DB29: 0.07406094179 | DC29: 0.1019361413 | DD29: 0.009781217125 | DE29: 0.1749339312 | DF29: 5 | DG29: 0.6283185307 | DH29: 0.07406094179 | DI29: 0.1019361413 | DJ29: 0.01521691284 | DK29: 0.1793932748 | DL29: 5 | DM29: 0.6283185307 | DN29: 0.07406094179 | DO29: 0.1019361413 | DP29: 0.02096062102 | DQ29: 0.1834481916 | DR29: 5 | DS29: 0.6283185307 | DT29: 0.07406094179 | DU29: 0.1019361413 | DV29: 0.0269823136 | DW29: 0.1870774824 | DX29: 5 | DY29: 0.6283185307 | DZ29: 0.07406094179 | EA29: 0.1019361413 | EB29: 0.03325050924 | EC29: 0.1902621735 | ED29: 5 | EE29: 0.6283185307 | EF29: 0.07406094179 | EG29: 0.1019361413 | EH29: 0.03973243789 | EI29: 0.1929856152 | EJ29: 5 | EK29: 0.6283185307 | EL29: 0.07406094179 | EM29: 0.1019361413 | EN29: 0.04639421209 | EO29: 0.1952335694 | EP29: 5 | EQ29: 0.6283185307 | ER29: 0.07406094179 | ES29: 0.1019361413 | ET29: 0.05320100416 | EU29: 0.1969942838 | EV29: 5 | EW29: 0.6283185307 | EX29: 0.07406094179 | EY29: 0.1019361413 | EZ29: 0.06011722826 | FA29: 0.1982585535 | FB29: 5 | FC29: 0.6283185307 | FD29: 0.07406094179 | FE29: 0.1019361413 | FF29: 0.06710672644 | FG29: 0.1990197689 | FH29: 5 | FI29: 0.6283185307 | FJ29: 0.07406094179 | FK29: 0.1019361413 | FL29: 0.07413295768 | FM29: 0.1992739503 | FN29: 5 | FO29: 0.6283185307 | FP29: 0.07406094179 | FQ29: 0.1019361413 | FR29: 0.08115918892 | FS29: 0.1990197689 | FT29: 5 | FU29: 0.6283185307 | FV29: 0.07406094179 | FW29: 0.1019361413 | FX29: 0.0881486871 | FY29: 0.1982585535 | FZ29: 5 | GA29: 0.6283185307 | GB29: 0.07406094179 | GC29: 0.1019361413 | GD29: 0.09506491119 | GE29: 0.1969942838 | GF29: 5 | GG29: 0.6283185307 | GH29: 0.07406094179 | GI29: 0.1019361413 | GJ29: 0.1018717033 | GK29: 0.1952335694 | GL29: 5 | GM29: 0.6283185307 | GN29: 0.07406094179 | GO29: 0.1019361413 | GP29: 0.1085334775 | GQ29: 0.1929856152 | GR29: 5 | GS29: 0.6283185307 | GT29: 0.07406094179 | GU29: 0.1019361413 | GV29: 0.1150154061 | GW29: 0.1902621735 | GX29: 5 | GY29: 0.6283185307 | GZ29: 0.07406094179 | HA29: 0.1019361413 | HB29: 0.1212836018 | HC29: 0.1870774824 | HD29: 5 | HE29: 0.6283185307 | HF29: 0.07406094179 | HG29: 0.1019361413 | HH29: 0.1273052943 | HI29: 0.1834481916 | HJ29: 5 | HK29: 0.6283185307 | HL29: 0.07406094179 | HM29: 0.1019361413 | HN29: 0.1330490025 | HO29: 0.1793932748 | HP29: 5 | HQ29: 0.6283185307 | HR29: 0.07406094179 | HS29: 0.1019361413 | HT29: 0.1384846982 | HU29: 0.1749339312 | HV29: 5 | HW29: 0.6283185307 | HX29: 0.07406094179 | HY29: 0.1019361413 | HZ29: 0.1435839637 | IA29: 0.1700934741 | IB29: 5 | IC29: 0.6283185307 | ID29: 0.07406094179 | IE29: 0.1019361413 | IF29: 0.1483201401 | IG29: 0.1648972094 | IH29: 5 | II29: 0.6283185307 | IJ29: 0.07406094179 | IK29: 0.1019361413 | IL29: 0.1526684667 | IM29: 0.1593723031 | IN29: 5 | IO29: 0.6283185307 | IP29: 0.07406094179 | IQ29: 0.1019361413 | IR29: 0.1566062105 | IS29: 0.1535476393 | IT29: 5 | IU29: 0.6283185307 | IV29: 0.07406094179 | IW29: 0.1019361413 | IX29: 0.160112785 | IY29: 0.1474536695 | IZ29: 5 | JA29: 0.6283185307 | JB29: 0.07406094179 | JC29: 0.1019361413 | JD29: 0.1631698579 | JE29: 0.1411222526 | JF29: 5 | JG29: 0.6283185307 | JH29: 0.07406094179 | JI29: 0.1019361413 | JJ29: 0.1657614468 | JK29: 0.1345864894 | JL29: 5 | JM29: 0.6283185307 | JN29: 0.07406094179 | JO29: 0.1019361413 | JP29: 0.1678740029 | JQ29: 0.1278805488 | JR29: 5 | JS29: 0.6283185307 | JT29: 0.07406094179 | JU29: 0.1019361413 | JV29: 0.1694964819 | JW29: 0.1210394892 | JX29: 5 | JY29: 0.6283185307 | JZ29: 0.07406094179 | KA29: 0.1019361413 | KB29: 0.1706204014 | KC29: 0.1140990758 | KD29: 5 | KE29: 0.6283185307 | KF29: 0.07406094179 | KG29: 0.1019361413 | KH29: 0.1712398855 | KI29: 0.1070955929 | KJ29: 5 | KK29: 0.6283185307 | KL29: 0.07406094179 | KM29: 0.1019361413 | KN29: 0.1713516957 | KO29: 0.1000656546 | KP29: 5 | KQ29: 0.6283185307 | KR29: 0.07406094179 | KS29: 0.1019361413 | KT29: 0.1709552474 | KU29: 0.09304601341 | KV29: 5 | KW29: 0.6283185307 | KX29: 0.07406094179 | KY29: 0.1019361413 | KZ29: 0.1700526131 | LA29: 0.08607336792 | LB29: 5 | LC29: 0.3141592654 | LD29: 0.03893614129 | LE29: 0.1198331211 | LF29: 0.1334895565 | LG29: 0.0970985536
B30: 7 | C30: 0.7539822369 | D30: 0.08625293535 | E30: 0.09185004706 | F30: -0.008178747673 | G30: 0.06908826923 | H30: 6 | I30: 0.7539822369 | J30: 0.08625293535 | K30: 0.09185004706 | N30: 6 | O30: 0.7539822369 | P30: 0.08625293535 | Q30: 0.09185004706 | R30: -0.008178747673 | S30: 0.06908826923 | T30: 6 | U30: 0.7539822369 | V30: 0.08625293535 | W30: 0.09185004706 | X30: -0.00958284886 | Y30: 0.0759774661 | Z30: 6 | AA30: 0.7539822369 | AB30: 0.08625293535 | AC30: 0.09185004706 | AD30: -0.01048548311 | AE30: 0.08295011159 | AF30: 6 | AG30: 0.7539822369 | AH30: 0.08625293535 | AI30: 0.09185004706 | AJ30: -0.01088193147 | AK30: 0.08996975277 | AL30: 6 | AM30: 0.7539822369 | AN30: 0.08625293535 | AO30: 0.09185004706 | AP30: -0.0107701213 | AQ30: 0.09699969104 | AR30: 6 | AS30: 0.7539822369 | AT30: 0.08625293535 | AU30: 0.09185004706 | AV30: -0.01015063714 | AW30: 0.104003174 | AX30: 6 | AY30: 0.7539822369 | AZ30: 0.08625293535 | BA30: 0.09185004706 | BB30: -0.009026717662 | BC30: 0.1109435874 | BD30: 6 | BE30: 0.7539822369 | BF30: 0.08625293535 | BG30: 0.09185004706 | BH30: -0.007404238695 | BI30: 0.1177846469 | BJ30: 6 | BK30: 0.7539822369 | BL30: 0.08625293535 | BM30: 0.09185004706 | BN30: -0.005291682543 | BO30: 0.1244905876 | BP30: 6 | BQ30: 0.7539822369 | BR30: 0.08625293535 | BS30: 0.09185004706 | BT30: -0.002700093628 | BU30: 0.1310263508 | BV30: 6 | BW30: 0.7539822369 | BX30: 0.08625293535 | BY30: 0.09185004706 | BZ30: 0.0003569792517 | CA30: 0.1373577676 | CB30: 6 | CC30: 0.7539822369 | CD30: 0.08625293535 | CE30: 0.09185004706 | CF30: 0.003863553751 | CG30: 0.1434517375 | CH30: 6 | CI30: 0.7539822369 | CJ30: 0.08625293535 | CK30: 0.09185004706 | CL30: 0.007801297536 | CM30: 0.1492764012 | CN30: 6 | CO30: 0.7539822369 | CP30: 0.08625293535 | CQ30: 0.09185004706 | CR30: 0.01214962413 | CS30: 0.1548013075 | CT30: 6 | CU30: 0.7539822369 | CV30: 0.08625293535 | CW30: 0.09185004706 | CX30: 0.01688580051 | CY30: 0.1599975722 | CZ30: 6 | DA30: 0.7539822369 | DB30: 0.08625293535 | DC30: 0.09185004706 | DD30: 0.02198506602 | DE30: 0.1648380293 | DF30: 6 | DG30: 0.7539822369 | DH30: 0.08625293535 | DI30: 0.09185004706 | DJ30: 0.02742076174 | DK30: 0.169297373 | DL30: 6 | DM30: 0.7539822369 | DN30: 0.08625293535 | DO30: 0.09185004706 | DP30: 0.03316446991 | DQ30: 0.1733522898 | DR30: 6 | DS30: 0.7539822369 | DT30: 0.08625293535 | DU30: 0.09185004706 | DV30: 0.03918616249 | DW30: 0.1769815806 | DX30: 6 | DY30: 0.7539822369 | DZ30: 0.08625293535 | EA30: 0.09185004706 | EB30: 0.04545435814 | EC30: 0.1801662716 | ED30: 6 | EE30: 0.7539822369 | EF30: 0.08625293535 | EG30: 0.09185004706 | EH30: 0.05193628679 | EI30: 0.1828897133 | EJ30: 6 | EK30: 0.7539822369 | EL30: 0.08625293535 | EM30: 0.09185004706 | EN30: 0.05859806099 | EO30: 0.1851376676 | EP30: 6 | EQ30: 0.7539822369 | ER30: 0.08625293535 | ES30: 0.09185004706 | ET30: 0.06540485305 | EU30: 0.186898382 | EV30: 6 | EW30: 0.7539822369 | EX30: 0.08625293535 | EY30: 0.09185004706 | EZ30: 0.07232107715 | FA30: 0.1881626517 | FB30: 6 | FC30: 0.7539822369 | FD30: 0.08625293535 | FE30: 0.09185004706 | FF30: 0.07931057533 | FG30: 0.1889238671 | FH30: 6 | FI30: 0.7539822369 | FJ30: 0.08625293535 | FK30: 0.09185004706 | FL30: 0.08633680657 | FM30: 0.1891780485 | FN30: 6 | FO30: 0.7539822369 | FP30: 0.08625293535 | FQ30: 0.09185004706 | FR30: 0.09336303781 | FS30: 0.1889238671 | FT30: 6 | FU30: 0.7539822369 | FV30: 0.08625293535 | FW30: 0.09185004706 | FX30: 0.100352536 | FY30: 0.1881626517 | FZ30: 6 | GA30: 0.7539822369 | GB30: 0.08625293535 | GC30: 0.09185004706 | GD30: 0.1072687601 | GE30: 0.186898382 | GF30: 6 | GG30: 0.7539822369 | GH30: 0.08625293535 | GI30: 0.09185004706 | GJ30: 0.1140755522 | GK30: 0.1851376676 | GL30: 6 | GM30: 0.7539822369 | GN30: 0.08625293535 | GO30: 0.09185004706 | GP30: 0.1207373264 | GQ30: 0.1828897133 | GR30: 6 | GS30: 0.7539822369 | GT30: 0.08625293535 | GU30: 0.09185004706 | GV30: 0.127219255 | GW30: 0.1801662716 | GX30: 6 | GY30: 0.7539822369 | GZ30: 0.08625293535 | HA30: 0.09185004706 | HB30: 0.1334874506 | HC30: 0.1769815806 | HD30: 6 | HE30: 0.7539822369 | HF30: 0.08625293535 | HG30: 0.09185004706 | HH30: 0.1395091432 | HI30: 0.1733522898 | HJ30: 6 | HK30: 0.7539822369 | HL30: 0.08625293535 | HM30: 0.09185004706 | HN30: 0.1452528514 | HO30: 0.169297373 | HP30: 6 | HQ30: 0.7539822369 | HR30: 0.08625293535 | HS30: 0.09185004706 | HT30: 0.1506885471 | HU30: 0.1648380293 | HV30: 6 | HW30: 0.7539822369 | HX30: 0.08625293535 | HY30: 0.09185004706 | HZ30: 0.1557878126 | IA30: 0.1599975722 | IB30: 6 | IC30: 0.7539822369 | ID30: 0.08625293535 | IE30: 0.09185004706 | IF30: 0.160523989 | IG30: 0.1548013075 | IH30: 6 | II30: 0.7539822369 | IJ30: 0.08625293535 | IK30: 0.09185004706 | IL30: 0.1648723156 | IM30: 0.1492764012 | IN30: 6 | IO30: 0.7539822369 | IP30: 0.08625293535 | IQ30: 0.09185004706 | IR30: 0.1688100594 | IS30: 0.1434517375 | IT30: 6 | IU30: 0.7539822369 | IV30: 0.08625293535 | IW30: 0.09185004706 | IX30: 0.1723166339 | IY30: 0.1373577676 | IZ30: 6 | JA30: 0.7539822369 | JB30: 0.08625293535 | JC30: 0.09185004706 | JD30: 0.1753737068 | JE30: 0.1310263508 | JF30: 6 | JG30: 0.7539822369 | JH30: 0.08625293535 | JI30: 0.09185004706 | JJ30: 0.1779652957 | JK30: 0.1244905876 | JL30: 6 | JM30: 0.7539822369 | JN30: 0.08625293535 | JO30: 0.09185004706 | JP30: 0.1800778518 | JQ30: 0.1177846469 | JR30: 6 | JS30: 0.7539822369 | JT30: 0.08625293535 | JU30: 0.09185004706 | JV30: 0.1817003308 | JW30: 0.1109435874 | JX30: 6 | JY30: 0.7539822369 | JZ30: 0.08625293535 | KA30: 0.09185004706 | KB30: 0.1828242503 | KC30: 0.104003174 | KD30: 6 | KE30: 0.7539822369 | KF30: 0.08625293535 | KG30: 0.09185004706 | KH30: 0.1834437344 | KI30: 0.09699969104 | KJ30: 6 | KK30: 0.7539822369 | KL30: 0.08625293535 | KM30: 0.09185004706 | KN30: 0.1835555446 | KO30: 0.08996975277 | KP30: 6 | KQ30: 0.7539822369 | KR30: 0.08625293535 | KS30: 0.09185004706 | KT30: 0.1831590963 | KU30: 0.08295011159 | KV30: 6 | KW30: 0.7539822369 | KX30: 0.08625293535 | KY30: 0.09185004706 | KZ30: 0.182256462 | LA30: 0.0759774661 | LB30: 6 | LC30: 0.3769911184 | LD30: 0.04638369364 | LE30: 0.1171518372 | LF30: 0.1409443508 | LG30: 0.09441466253
B31: 8 | C31: 0.879645943 | D31: 0.09708466859 | E31: 0.08031542271 | F31: 0.002663518205 | G31: 0.05754242877 | H31: 7 | I31: 0.879645943 | J31: 0.09708466859 | K31: 0.08031542271 | N31: 7 | O31: 0.879645943 | P31: 0.09708466859 | Q31: 0.08031542271 | R31: 0.002663518205 | S31: 0.05754242877 | T31: 7 | U31: 0.879645943 | V31: 0.09708466859 | W31: 0.08031542271 | X31: 0.001259417018 | Y31: 0.06443162564 | Z31: 7 | AA31: 0.879645943 | AB31: 0.09708466859 | AC31: 0.08031542271 | AD31: 0.0003567827661 | AE31: 0.07140427112 | AF31: 7 | AG31: 0.879645943 | AH31: 0.09708466859 | AI31: 0.08031542271 | AJ31: -3.96655884e-05 | AK31: 0.07842391231 | AL31: 7 | AM31: 0.879645943 | AN31: 0.09708466859 | AO31: 0.08031542271 | AP31: 7.214458236e-05 | AQ31: 0.08545385058 | AR31: 7 | AS31: 0.879645943 | AT31: 0.09708466859 | AU31: 0.08031542271 | AV31: 0.000691628736 | AW31: 0.0924573335 | AX31: 7 | AY31: 0.879645943 | AZ31: 0.09708466859 | BA31: 0.08031542271 | BB31: 0.001815548216 | BC31: 0.09939774694 | BD31: 7 | BE31: 0.879645943 | BF31: 0.09708466859 | BG31: 0.08031542271 | BH31: 0.003438027183 | BI31: 0.1062388065 | BJ31: 7 | BK31: 0.879645943 | BL31: 0.09708466859 | BM31: 0.08031542271 | BN31: 0.005550583335 | BO31: 0.1129447471 | BP31: 7 | BQ31: 0.879645943 | BR31: 0.09708466859 | BS31: 0.08031542271 | BT31: 0.00814217225 | BU31: 0.1194805103 | BV31: 7 | BW31: 0.879645943 | BX31: 0.09708466859 | BY31: 0.08031542271 | BZ31: 0.01119924513 | CA31: 0.1258119272 | CB31: 7 | CC31: 0.879645943 | CD31: 0.09708466859 | CE31: 0.08031542271 | CF31: 0.01470581963 | CG31: 0.131905897 | CH31: 7 | CI31: 0.879645943 | CJ31: 0.09708466859 | CK31: 0.08031542271 | CL31: 0.01864356341 | CM31: 0.1377305608 | CN31: 7 | CO31: 0.879645943 | CP31: 0.09708466859 | CQ31: 0.08031542271 | CR31: 0.02299189 | CS31: 0.1432554671 | CT31: 7 | CU31: 0.879645943 | CV31: 0.09708466859 | CW31: 0.08031542271 | CX31: 0.02772806639 | CY31: 0.1484517318 | CZ31: 7 | DA31: 0.879645943 | DB31: 0.09708466859 | DC31: 0.08031542271 | DD31: 0.0328273319 | DE31: 0.1532921889 | DF31: 7 | DG31: 0.879645943 | DH31: 0.09708466859 | DI31: 0.08031542271 | DJ31: 0.03826302761 | DK31: 0.1577515325 | DL31: 7 | DM31: 0.879645943 | DN31: 0.09708466859 | DO31: 0.08031542271 | DP31: 0.04400673579 | DQ31: 0.1618064493 | DR31: 7 | DS31: 0.879645943 | DT31: 0.09708466859 | DU31: 0.08031542271 | DV31: 0.05002842837 | DW31: 0.1654357401 | DX31: 7 | DY31: 0.879645943 | DZ31: 0.09708466859 | EA31: 0.08031542271 | EB31: 0.05629662401 | EC31: 0.1686204312 | ED31: 7 | EE31: 0.879645943 | EF31: 0.09708466859 | EG31: 0.08031542271 | EH31: 0.06277855266 | EI31: 0.1713438729 | EJ31: 7 | EK31: 0.879645943 | EL31: 0.09708466859 | EM31: 0.08031542271 | EN31: 0.06944032686 | EO31: 0.1735918271 | EP31: 7 | EQ31: 0.879645943 | ER31: 0.09708466859 | ES31: 0.08031542271 | ET31: 0.07624711893 | EU31: 0.1753525415 | EV31: 7 | EW31: 0.879645943 | EX31: 0.09708466859 | EY31: 0.08031542271 | EZ31: 0.08316334303 | FA31: 0.1766168113 | FB31: 7 | FC31: 0.879645943 | FD31: 0.09708466859 | FE31: 0.08031542271 | FF31: 0.09015284121 | FG31: 0.1773780266 | FH31: 7 | FI31: 0.879645943 | FJ31: 0.09708466859 | FK31: 0.08031542271 | FL31: 0.09717907245 | FM31: 0.177632208 | FN31: 7 | FO31: 0.879645943 | FP31: 0.09708466859 | FQ31: 0.08031542271 | FR31: 0.1042053037 | FS31: 0.1773780266 | FT31: 7 | FU31: 0.879645943 | FV31: 0.09708466859 | FW31: 0.08031542271 | FX31: 0.1111948019 | FY31: 0.1766168113 | FZ31: 7 | GA31: 0.879645943 | GB31: 0.09708466859 | GC31: 0.08031542271 | GD31: 0.118111026 | GE31: 0.1753525415 | GF31: 7 | GG31: 0.879645943 | GH31: 0.09708466859 | GI31: 0.08031542271 | GJ31: 0.124917818 | GK31: 0.1735918271 | GL31: 7 | GM31: 0.879645943 | GN31: 0.09708466859 | GO31: 0.08031542271 | GP31: 0.1315795922 | GQ31: 0.1713438729 | GR31: 7 | GS31: 0.879645943 | GT31: 0.09708466859 | GU31: 0.08031542271 | GV31: 0.1380615209 | GW31: 0.1686204312 | GX31: 7 | GY31: 0.879645943 | GZ31: 0.09708466859 | HA31: 0.08031542271 | HB31: 0.1443297165 | HC31: 0.1654357401 | HD31: 7 | HE31: 0.879645943 | HF31: 0.09708466859 | HG31: 0.08031542271 | HH31: 0.1503514091 | HI31: 0.1618064493 | HJ31: 7 | HK31: 0.879645943 | HL31: 0.09708466859 | HM31: 0.08031542271 | HN31: 0.1560951173 | HO31: 0.1577515325 | HP31: 7 | HQ31: 0.879645943 | HR31: 0.09708466859 | HS31: 0.08031542271 | HT31: 0.161530813 | HU31: 0.1532921889 | HV31: 7 | HW31: 0.879645943 | HX31: 0.09708466859 | HY31: 0.08031542271 | HZ31: 0.1666300785 | IA31: 0.1484517318 | IB31: 7 | IC31: 0.879645943 | ID31: 0.09708466859 | IE31: 0.08031542271 | IF31: 0.1713662549 | IG31: 0.1432554671 | IH31: 7 | II31: 0.879645943 | IJ31: 0.09708466859 | IK31: 0.08031542271 | IL31: 0.1757145815 | IM31: 0.1377305608 | IN31: 7 | IO31: 0.879645943 | IP31: 0.09708466859 | IQ31: 0.08031542271 | IR31: 0.1796523253 | IS31: 0.131905897 | IT31: 7 | IU31: 0.879645943 | IV31: 0.09708466859 | IW31: 0.08031542271 | IX31: 0.1831588998 | IY31: 0.1258119272 | IZ31: 7 | JA31: 0.879645943 | JB31: 0.09708466859 | JC31: 0.08031542271 | JD31: 0.1862159726 | JE31: 0.1194805103 | JF31: 7 | JG31: 0.879645943 | JH31: 0.09708466859 | JI31: 0.08031542271 | JJ31: 0.1888075616 | JK31: 0.1129447471 | JL31: 7 | JM31: 0.879645943 | JN31: 0.09708466859 | JO31: 0.08031542271 | JP31: 0.1909201177 | JQ31: 0.1062388065 | JR31: 7 | JS31: 0.879645943 | JT31: 0.09708466859 | JU31: 0.08031542271 | JV31: 0.1925425967 | JW31: 0.09939774694 | JX31: 7 | JY31: 0.879645943 | JZ31: 0.09708466859 | KA31: 0.08031542271 | KB31: 0.1936665162 | KC31: 0.0924573335 | KD31: 7 | KE31: 0.879645943 | KF31: 0.09708466859 | KG31: 0.08031542271 | KH31: 0.1942860003 | KI31: 0.08545385058 | KJ31: 7 | KK31: 0.879645943 | KL31: 0.09708466859 | KM31: 0.08031542271 | KN31: 0.1943978105 | KO31: 0.07842391231 | KP31: 7 | KQ31: 0.879645943 | KR31: 0.09708466859 | KS31: 0.08031542271 | KT31: 0.1940013621 | KU31: 0.07140427112 | KV31: 7 | KW31: 0.879645943 | KX31: 0.09708466859 | KY31: 0.08031542271 | KZ31: 0.1930987279 | LA31: 0.06443162564 | LB31: 7 | LC31: 0.4398229715 | LD31: 0.05364819074 | LE31: 0.1140082086 | LF31: 0.1482159118 | LG31: 0.09126797709
B32: 9 | C32: 1.005309649 | D32: 0.1063853186 | E32: 0.06751417617 | F32: 0.01197321206 | G32: 0.04472873446 | H32: 8 | I32: 1.005309649 | J32: 0.1063853186 | K32: 0.06751417617 | N32: 8 | O32: 1.005309649 | P32: 0.1063853186 | Q32: 0.06751417617 | R32: 0.01197321206 | S32: 0.04472873446 | T32: 8 | U32: 1.005309649 | V32: 0.1063853186 | W32: 0.06751417617 | X32: 0.01056911087 | Y32: 0.05161793133 | Z32: 8 | AA32: 1.005309649 | AB32: 0.1063853186 | AC32: 0.06751417617 | AD32: 0.00966647662 | AE32: 0.05859057682 | AF32: 8 | AG32: 1.005309649 | AH32: 0.1063853186 | AI32: 0.06751417617 | AJ32: 0.009270028265 | AK32: 0.065610218 | AL32: 8 | AM32: 1.005309649 | AN32: 0.1063853186 | AO32: 0.06751417617 | AP32: 0.009381838436 | AQ32: 0.07264015627 | AR32: 8 | AS32: 1.005309649 | AT32: 0.1063853186 | AU32: 0.06751417617 | AV32: 0.01000132259 | AW32: 0.0796436392 | AX32: 8 | AY32: 1.005309649 | AZ32: 0.1063853186 | BA32: 0.06751417617 | BB32: 0.01112524207 | BC32: 0.08658405263 | BD32: 8 | BE32: 1.005309649 | BF32: 0.1063853186 | BG32: 0.06751417617 | BH32: 0.01274772104 | BI32: 0.09342511217 | BJ32: 8 | BK32: 1.005309649 | BL32: 0.1063853186 | BM32: 0.06751417617 | BN32: 0.01486027719 | BO32: 0.1001310528 | BP32: 8 | BQ32: 1.005309649 | BR32: 0.1063853186 | BS32: 0.06751417617 | BT32: 0.0174518661 | BU32: 0.106666816 | BV32: 8 | BW32: 1.005309649 | BX32: 0.1063853186 | BY32: 0.06751417617 | BZ32: 0.02050893898 | CA32: 0.1129982329 | CB32: 8 | CC32: 1.005309649 | CD32: 0.1063853186 | CE32: 0.06751417617 | CF32: 0.02401551348 | CG32: 0.1190922027 | CH32: 8 | CI32: 1.005309649 | CJ32: 0.1063853186 | CK32: 0.06751417617 | CL32: 0.02795325727 | CM32: 0.1249168665 | CN32: 8 | CO32: 1.005309649 | CP32: 0.1063853186 | CQ32: 0.06751417617 | CR32: 0.03230158386 | CS32: 0.1304417728 | CT32: 8 | CU32: 1.005309649 | CV32: 0.1063853186 | CW32: 0.06751417617 | CX32: 0.03703776024 | CY32: 0.1356380375 | CZ32: 8 | DA32: 1.005309649 | DB32: 0.1063853186 | DC32: 0.06751417617 | DD32: 0.04213702575 | DE32: 0.1404784946 | DF32: 8 | DG32: 1.005309649 | DH32: 0.1063853186 | DI32: 0.06751417617 | DJ32: 0.04757272147 | DK32: 0.1449378382 | DL32: 8 | DM32: 1.005309649 | DN32: 0.1063853186 | DO32: 0.06751417617 | DP32: 0.05331642964 | DQ32: 0.148992755 | DR32: 8 | DS32: 1.005309649 | DT32: 0.1063853186 | DU32: 0.06751417617 | DV32: 0.05933812222 | DW32: 0.1526220458 | DX32: 8 | DY32: 1.005309649 | DZ32: 0.1063853186 | EA32: 0.06751417617 | EB32: 0.06560631787 | EC32: 0.1558067369 | ED32: 8 | EE32: 1.005309649 | EF32: 0.1063853186 | EG32: 0.06751417617 | EH32: 0.07208824652 | EI32: 0.1585301786 | EJ32: 8 | EK32: 1.005309649 | EL32: 0.1063853186 | EM32: 0.06751417617 | EN32: 0.07875002072 | EO32: 0.1607781328 | EP32: 8 | EQ32: 1.005309649 | ER32: 0.1063853186 | ES32: 0.06751417617 | ET32: 0.08555681278 | EU32: 0.1625388472 | EV32: 8 | EW32: 1.005309649 | EX32: 0.1063853186 | EY32: 0.06751417617 | EZ32: 0.09247303688 | FA32: 0.163803117 | FB32: 8 | FC32: 1.005309649 | FD32: 0.1063853186 | FE32: 0.06751417617 | FF32: 0.09946253506 | FG32: 0.1645643323 | FH32: 8 | FI32: 1.005309649 | FJ32: 0.1063853186 | FK32: 0.06751417617 | FL32: 0.1064887663 | FM32: 0.1648185137 | FN32: 8 | FO32: 1.005309649 | FP32: 0.1063853186 | FQ32: 0.06751417617 | FR32: 0.1135149975 | FS32: 0.1645643323 | FT32: 8 | FU32: 1.005309649 | FV32: 0.1063853186 | FW32: 0.06751417617 | FX32: 0.1205044957 | FY32: 0.163803117 | FZ32: 8 | GA32: 1.005309649 | GB32: 0.1063853186 | GC32: 0.06751417617 | GD32: 0.1274207198 | GE32: 0.1625388472 | GF32: 8 | GG32: 1.005309649 | GH32: 0.1063853186 | GI32: 0.06751417617 | GJ32: 0.1342275119 | GK32: 0.1607781328 | GL32: 8 | GM32: 1.005309649 | GN32: 0.1063853186 | GO32: 0.06751417617 | GP32: 0.1408892861 | GQ32: 0.1585301786 | GR32: 8 | GS32: 1.005309649 | GT32: 0.1063853186 | GU32: 0.06751417617 | GV32: 0.1473712147 | GW32: 0.1558067369 | GX32: 8 | GY32: 1.005309649 | GZ32: 0.1063853186 | HA32: 0.06751417617 | HB32: 0.1536394104 | HC32: 0.1526220458 | HD32: 8 | HE32: 1.005309649 | HF32: 0.1063853186 | HG32: 0.06751417617 | HH32: 0.159661103 | HI32: 0.148992755 | HJ32: 8 | HK32: 1.005309649 | HL32: 0.1063853186 | HM32: 0.06751417617 | HN32: 0.1654048111 | HO32: 0.1449378382 | HP32: 8 | HQ32: 1.005309649 | HR32: 0.1063853186 | HS32: 0.06751417617 | HT32: 0.1708405069 | HU32: 0.1404784946 | HV32: 8 | HW32: 1.005309649 | HX32: 0.1063853186 | HY32: 0.06751417617 | HZ32: 0.1759397724 | IA32: 0.1356380375 | IB32: 8 | IC32: 1.005309649 | ID32: 0.1063853186 | IE32: 0.06751417617 | IF32: 0.1806759487 | IG32: 0.1304417728 | IH32: 8 | II32: 1.005309649 | IJ32: 0.1063853186 | IK32: 0.06751417617 | IL32: 0.1850242753 | IM32: 0.1249168665 | IN32: 8 | IO32: 1.005309649 | IP32: 0.1063853186 | IQ32: 0.06751417617 | IR32: 0.1889620191 | IS32: 0.1190922027 | IT32: 8 | IU32: 1.005309649 | IV32: 0.1063853186 | IW32: 0.06751417617 | IX32: 0.1924685936 | IY32: 0.1129982329 | IZ32: 8 | JA32: 1.005309649 | JB32: 0.1063853186 | JC32: 0.06751417617 | JD32: 0.1955256665 | JE32: 0.106666816 | JF32: 8 | JG32: 1.005309649 | JH32: 0.1063853186 | JI32: 0.06751417617 | JJ32: 0.1981172554 | JK32: 0.1001310528 | JL32: 8 | JM32: 1.005309649 | JN32: 0.1063853186 | JO32: 0.06751417617 | JP32: 0.2002298116 | JQ32: 0.09342511217 | JR32: 8 | JS32: 1.005309649 | JT32: 0.1063853186 | JU32: 0.06751417617 | JV32: 0.2018522905 | JW32: 0.08658405263 | JX32: 8 | JY32: 1.005309649 | JZ32: 0.1063853186 | KA32: 0.06751417617 | KB32: 0.20297621 | KC32: 0.0796436392 | KD32: 8 | KE32: 1.005309649 | KF32: 0.1063853186 | KG32: 0.06751417617 | KH32: 0.2035956942 | KI32: 0.07264015627 | KJ32: 8 | KK32: 1.005309649 | KL32: 0.1063853186 | KM32: 0.06751417617 | KN32: 0.2037075043 | KO32: 0.065610218 | KP32: 8 | KQ32: 1.005309649 | KR32: 0.1063853186 | KS32: 0.06751417617 | KT32: 0.203311056 | KU32: 0.05859057682 | KV32: 8 | KW32: 1.005309649 | KX32: 0.1063853186 | KY32: 0.06751417617 | KZ32: 0.2024084217 | LA32: 0.05161793133 | LB32: 8 | LC32: 0.5026548246 | LD32: 0.06070096294 | LE32: 0.1104146417 | LF32: 0.155275542 | LG32: 0.08767091583
B33: 10 | C33: 1.130973355 | D33: 0.1140082086 | E33: 0.05364819074 | F33: 0.01960351445 | G33: 0.03084926593 | H33: 9 | I33: 1.130973355 | J33: 0.1140082086 | K33: 0.05364819074 | N33: 9 | O33: 1.130973355 | P33: 0.1140082086 | Q33: 0.05364819074 | R33: 0.01960351445 | S33: 0.03084926593 | T33: 9 | U33: 1.130973355 | V33: 0.1140082086 | W33: 0.05364819074 | X33: 0.01819941327 | Y33: 0.0377384628 | Z33: 9 | AA33: 1.130973355 | AB33: 0.1140082086 | AC33: 0.05364819074 | AD33: 0.01729677902 | AE33: 0.04471110828 | AF33: 9 | AG33: 1.130973355 | AH33: 0.1140082086 | AI33: 0.05364819074 | AJ33: 0.01690033066 | AK33: 0.05173074947 | AL33: 9 | AM33: 1.130973355 | AN33: 0.1140082086 | AO33: 0.05364819074 | AP33: 0.01701214083 | AQ33: 0.05876068774 | AR33: 9 | AS33: 1.130973355 | AT33: 0.1140082086 | AU33: 0.05364819074 | AV33: 0.01763162499 | AW33: 0.06576417066 | AX33: 9 | AY33: 1.130973355 | AZ33: 0.1140082086 | BA33: 0.05364819074 | BB33: 0.01875554447 | BC33: 0.0727045841 | BD33: 9 | BE33: 1.130973355 | BF33: 0.1140082086 | BG33: 0.05364819074 | BH33: 0.02037802343 | BI33: 0.07954564364 | BJ33: 9 | BK33: 1.130973355 | BL33: 0.1140082086 | BM33: 0.05364819074 | BN33: 0.02249057958 | BO33: 0.0862515843 | BP33: 9 | BQ33: 1.130973355 | BR33: 0.1140082086 | BS33: 0.05364819074 | BT33: 0.0250821685 | BU33: 0.0927873475 | BV33: 9 | BW33: 1.130973355 | BX33: 0.1140082086 | BY33: 0.05364819074 | BZ33: 0.02813924138 | CA33: 0.09911876433 | CB33: 9 | CC33: 1.130973355 | CD33: 0.1140082086 | CE33: 0.05364819074 | CF33: 0.03164581588 | CG33: 0.1052127342 | CH33: 9 | CI33: 1.130973355 | CJ33: 0.1140082086 | CK33: 0.05364819074 | CL33: 0.03558355966 | CM33: 0.1110373979 | CN33: 9 | CO33: 1.130973355 | CP33: 0.1140082086 | CQ33: 0.05364819074 | CR33: 0.03993188625 | CS33: 0.1165623042 | CT33: 9 | CU33: 1.130973355 | CV33: 0.1140082086 | CW33: 0.05364819074 | CX33: 0.04466806264 | CY33: 0.1217585689 | CZ33: 9 | DA33: 1.130973355 | DB33: 0.1140082086 | DC33: 0.05364819074 | DD33: 0.04976732815 | DE33: 0.126599026 | DF33: 9 | DG33: 1.130973355 | DH33: 0.1140082086 | DI33: 0.05364819074 | DJ33: 0.05520302386 | DK33: 0.1310583697 | DL33: 9 | DM33: 1.130973355 | DN33: 0.1140082086 | DO33: 0.05364819074 | DP33: 0.06094673204 | DQ33: 0.1351132865 | DR33: 9 | DS33: 1.130973355 | DT33: 0.1140082086 | DU33: 0.05364819074 | DV33: 0.06696842462 | DW33: 0.1387425773 | DX33: 9 | DY33: 1.130973355 | DZ33: 0.1140082086 | EA33: 0.05364819074 | EB33: 0.07323662026 | EC33: 0.1419272683 | ED33: 9 | EE33: 1.130973355 | EF33: 0.1140082086 | EG33: 0.05364819074 | EH33: 0.07971854891 | EI33: 0.14465071 | EJ33: 9 | EK33: 1.130973355 | EL33: 0.1140082086 | EM33: 0.05364819074 | EN33: 0.08638032311 | EO33: 0.1468986642 | EP33: 9 | EQ33: 1.130973355 | ER33: 0.1140082086 | ES33: 0.05364819074 | ET33: 0.09318711518 | EU33: 0.1486593787 | EV33: 9 | EW33: 1.130973355 | EX33: 0.1140082086 | EY33: 0.05364819074 | EZ33: 0.1001033393 | FA33: 0.1499236484 | FB33: 9 | FC33: 1.130973355 | FD33: 0.1140082086 | FE33: 0.05364819074 | FF33: 0.1070928375 | FG33: 0.1506848638 | FH33: 9 | FI33: 1.130973355 | FJ33: 0.1140082086 | FK33: 0.05364819074 | FL33: 0.1141190687 | FM33: 0.1509390452 | FN33: 9 | FO33: 1.130973355 | FP33: 0.1140082086 | FQ33: 0.05364819074 | FR33: 0.1211452999 | FS33: 0.1506848638 | FT33: 9 | FU33: 1.130973355 | FV33: 0.1140082086 | FW33: 0.05364819074 | FX33: 0.1281347981 | FY33: 0.1499236484 | FZ33: 9 | GA33: 1.130973355 | GB33: 0.1140082086 | GC33: 0.05364819074 | GD33: 0.1350510222 | GE33: 0.1486593787 | GF33: 9 | GG33: 1.130973355 | GH33: 0.1140082086 | GI33: 0.05364819074 | GJ33: 0.1418578143 | GK33: 0.1468986642 | GL33: 9 | GM33: 1.130973355 | GN33: 0.1140082086 | GO33: 0.05364819074 | GP33: 0.1485195885 | GQ33: 0.14465071 | GR33: 9 | GS33: 1.130973355 | GT33: 0.1140082086 | GU33: 0.05364819074 | GV33: 0.1550015171 | GW33: 0.1419272683 | GX33: 9 | GY33: 1.130973355 | GZ33: 0.1140082086 | HA33: 0.05364819074 | HB33: 0.1612697128 | HC33: 0.1387425773 | HD33: 9 | HE33: 1.130973355 | HF33: 0.1140082086 | HG33: 0.05364819074 | HH33: 0.1672914054 | HI33: 0.1351132865 | HJ33: 9 | HK33: 1.130973355 | HL33: 0.1140082086 | HM33: 0.05364819074 | HN33: 0.1730351135 | HO33: 0.1310583697 | HP33: 9 | HQ33: 1.130973355 | HR33: 0.1140082086 | HS33: 0.05364819074 | HT33: 0.1784708092 | HU33: 0.126599026 | HV33: 9 | HW33: 1.130973355 | HX33: 0.1140082086 | HY33: 0.05364819074 | HZ33: 0.1835700748 | IA33: 0.1217585689 | IB33: 9 | IC33: 1.130973355 | ID33: 0.1140082086 | IE33: 0.05364819074 | IF33: 0.1883062511 | IG33: 0.1165623042 | IH33: 9 | II33: 1.130973355 | IJ33: 0.1140082086 | IK33: 0.05364819074 | IL33: 0.1926545777 | IM33: 0.1110373979 | IN33: 9 | IO33: 1.130973355 | IP33: 0.1140082086 | IQ33: 0.05364819074 | IR33: 0.1965923215 | IS33: 0.1052127342 | IT33: 9 | IU33: 1.130973355 | IV33: 0.1140082086 | IW33: 0.05364819074 | IX33: 0.200098896 | IY33: 0.09911876433 | IZ33: 9 | JA33: 1.130973355 | JB33: 0.1140082086 | JC33: 0.05364819074 | JD33: 0.2031559689 | JE33: 0.0927873475 | JF33: 9 | JG33: 1.130973355 | JH33: 0.1140082086 | JI33: 0.05364819074 | JJ33: 0.2057475578 | JK33: 0.0862515843 | JL33: 9 | JM33: 1.130973355 | JN33: 0.1140082086 | JO33: 0.05364819074 | JP33: 0.207860114 | JQ33: 0.07954564364 | JR33: 9 | JS33: 1.130973355 | JT33: 0.1140082086 | JU33: 0.05364819074 | JV33: 0.2094825929 | JW33: 0.0727045841 | JX33: 9 | JY33: 1.130973355 | JZ33: 0.1140082086 | KA33: 0.05364819074 | KB33: 0.2106065124 | KC33: 0.06576417066 | KD33: 9 | KE33: 1.130973355 | KF33: 0.1140082086 | KG33: 0.05364819074 | KH33: 0.2112259966 | KI33: 0.05876068774 | KJ33: 9 | KK33: 1.130973355 | KL33: 0.1140082086 | KM33: 0.05364819074 | KN33: 0.2113378067 | KO33: 0.05173074947 | KP33: 9 | KQ33: 1.130973355 | KR33: 0.1140082086 | KS33: 0.05364819074 | KT33: 0.2109413584 | KU33: 0.04471110828 | KV33: 9 | KW33: 1.130973355 | KX33: 0.1140082086 | KY33: 0.05364819074 | KZ33: 0.2100387241 | LA33: 0.0377384628 | LB33: 9 | LC33: 0.5654866776 | LD33: 0.06751417617 | LE33: 0.1063853186 | LF33: 0.1620953803 | LG33: 0.0836376747
B34: 11 | C34: 1.256637061 | D34: 0.1198331211 | E34: 0.03893614129 | F34: 0.02543409097 | G34: 0.01612291068 | H34: 10 | I34: 1.256637061 | J34: 0.1198331211 | K34: 0.03893614129 | N34: 10 | O34: 1.256637061 | P34: 0.1198331211 | Q34: 0.03893614129 | R34: 0.02543409097 | S34: 0.01612291068 | T34: 10 | U34: 1.256637061 | V34: 0.1198331211 | W34: 0.03893614129 | X34: 0.02402998978 | Y34: 0.02301210755 | Z34: 10 | AA34: 1.256637061 | AB34: 0.1198331211 | AC34: 0.03893614129 | AD34: 0.02312735553 | AE34: 0.02998475303 | AF34: 10 | AG34: 1.256637061 | AH34: 0.1198331211 | AI34: 0.03893614129 | AJ34: 0.02273090717 | AK34: 0.03700439422 | AL34: 10 | AM34: 1.256637061 | AN34: 0.1198331211 | AO34: 0.03893614129 | AP34: 0.02284271734 | AQ34: 0.04403433249 | AR34: 10 | AS34: 1.256637061 | AT34: 0.1198331211 | AU34: 0.03893614129 | AV34: 0.0234622015 | AW34: 0.05103781541 | AX34: 10 | AY34: 1.256637061 | AZ34: 0.1198331211 | BA34: 0.03893614129 | BB34: 0.02458612098 | BC34: 0.05797822885 | BD34: 10 | BE34: 1.256637061 | BF34: 0.1198331211 | BG34: 0.03893614129 | BH34: 0.02620859994 | BI34: 0.06481928839 | BJ34: 10 | BK34: 1.256637061 | BL34: 0.1198331211 | BM34: 0.03893614129 | BN34: 0.02832115609 | BO34: 0.07152522905 | BP34: 10 | BQ34: 1.256637061 | BR34: 0.1198331211 | BS34: 0.03893614129 | BT34: 0.03091274501 | BU34: 0.07806099225 | BV34: 10 | BW34: 1.256637061 | BX34: 0.1198331211 | BY34: 0.03893614129 | BZ34: 0.03396981789 | CA34: 0.08439240908 | CB34: 10 | CC34: 1.256637061 | CD34: 0.1198331211 | CE34: 0.03893614129 | CF34: 0.03747639239 | CG34: 0.09048637896 | CH34: 10 | CI34: 1.256637061 | CJ34: 0.1198331211 | CK34: 0.03893614129 | CL34: 0.04141413617 | CM34: 0.09631104269 | CN34: 10 | CO34: 1.256637061 | CP34: 0.1198331211 | CQ34: 0.03893614129 | CR34: 0.04576246276 | CS34: 0.101835949 | CT34: 10 | CU34: 1.256637061 | CV34: 0.1198331211 | CW34: 0.03893614129 | CX34: 0.05049863915 | CY34: 0.1070322137 | CZ34: 10 | DA34: 1.256637061 | DB34: 0.1198331211 | DC34: 0.03893614129 | DD34: 0.05559790466 | DE34: 0.1118726708 | DF34: 10 | DG34: 1.256637061 | DH34: 0.1198331211 | DI34: 0.03893614129 | DJ34: 0.06103360037 | DK34: 0.1163320144 | DL34: 10 | DM34: 1.256637061 | DN34: 0.1198331211 | DO34: 0.03893614129 | DP34: 0.06677730855 | DQ34: 0.1203869312 | DR34: 10 | DS34: 1.256637061 | DT34: 0.1198331211 | DU34: 0.03893614129 | DV34: 0.07279900113 | DW34: 0.1240162221 | DX34: 10 | DY34: 1.256637061 | DZ34: 0.1198331211 | EA34: 0.03893614129 | EB34: 0.07906719677 | EC34: 0.1272009131 | ED34: 10 | EE34: 1.256637061 | EF34: 0.1198331211 | EG34: 0.03893614129 | EH34: 0.08554912542 | EI34: 0.1299243548 | EJ34: 10 | EK34: 1.256637061 | EL34: 0.1198331211 | EM34: 0.03893614129 | EN34: 0.09221089962 | EO34: 0.132172309 | EP34: 10 | EQ34: 1.256637061 | ER34: 0.1198331211 | ES34: 0.03893614129 | ET34: 0.09901769169 | EU34: 0.1339330235 | EV34: 10 | EW34: 1.256637061 | EX34: 0.1198331211 | EY34: 0.03893614129 | EZ34: 0.1059339158 | FA34: 0.1351972932 | FB34: 10 | FC34: 1.256637061 | FD34: 0.1198331211 | FE34: 0.03893614129 | FF34: 0.112923414 | FG34: 0.1359585086 | FH34: 10 | FI34: 1.256637061 | FJ34: 0.1198331211 | FK34: 0.03893614129 | FL34: 0.1199496452 | FM34: 0.13621269 | FN34: 10 | FO34: 1.256637061 | FP34: 0.1198331211 | FQ34: 0.03893614129 | FR34: 0.1269758764 | FS34: 0.1359585086 | FT34: 10 | FU34: 1.256637061 | FV34: 0.1198331211 | FW34: 0.03893614129 | FX34: 0.1339653746 | FY34: 0.1351972932 | FZ34: 10 | GA34: 1.256637061 | GB34: 0.1198331211 | GC34: 0.03893614129 | GD34: 0.1408815987 | GE34: 0.1339330235 | GF34: 10 | GG34: 1.256637061 | GH34: 0.1198331211 | GI34: 0.03893614129 | GJ34: 0.1476883908 | GK34: 0.132172309 | GL34: 10 | GM34: 1.256637061 | GN34: 0.1198331211 | GO34: 0.03893614129 | GP34: 0.154350165 | GQ34: 0.1299243548 | GR34: 10 | GS34: 1.256637061 | GT34: 0.1198331211 | GU34: 0.03893614129 | GV34: 0.1608320936 | GW34: 0.1272009131 | GX34: 10 | GY34: 1.256637061 | GZ34: 0.1198331211 | HA34: 0.03893614129 | HB34: 0.1671002893 | HC34: 0.1240162221 | HD34: 10 | HE34: 1.256637061 | HF34: 0.1198331211 | HG34: 0.03893614129 | HH34: 0.1731219819 | HI34: 0.1203869312 | HJ34: 10 | HK34: 1.256637061 | HL34: 0.1198331211 | HM34: 0.03893614129 | HN34: 0.17886569 | HO34: 0.1163320144 | HP34: 10 | HQ34: 1.256637061 | HR34: 0.1198331211 | HS34: 0.03893614129 | HT34: 0.1843013858 | HU34: 0.1118726708 | HV34: 10 | HW34: 1.256637061 | HX34: 0.1198331211 | HY34: 0.03893614129 | HZ34: 0.1894006513 | IA34: 0.1070322137 | IB34: 10 | IC34: 1.256637061 | ID34: 0.1198331211 | IE34: 0.03893614129 | IF34: 0.1941368277 | IG34: 0.101835949 | IH34: 10 | II34: 1.256637061 | IJ34: 0.1198331211 | IK34: 0.03893614129 | IL34: 0.1984851542 | IM34: 0.09631104269 | IN34: 10 | IO34: 1.256637061 | IP34: 0.1198331211 | IQ34: 0.03893614129 | IR34: 0.202422898 | IS34: 0.09048637896 | IT34: 10 | IU34: 1.256637061 | IV34: 0.1198331211 | IW34: 0.03893614129 | IX34: 0.2059294725 | IY34: 0.08439240908 | IZ34: 10 | JA34: 1.256637061 | JB34: 0.1198331211 | JC34: 0.03893614129 | JD34: 0.2089865454 | JE34: 0.07806099225 | JF34: 10 | JG34: 1.256637061 | JH34: 0.1198331211 | JI34: 0.03893614129 | JJ34: 0.2115781343 | JK34: 0.07152522905 | JL34: 10 | JM34: 1.256637061 | JN34: 0.1198331211 | JO34: 0.03893614129 | JP34: 0.2136906905 | JQ34: 0.06481928839 | JR34: 10 | JS34: 1.256637061 | JT34: 0.1198331211 | JU34: 0.03893614129 | JV34: 0.2153131694 | JW34: 0.05797822885 | JX34: 10 | JY34: 1.256637061 | JZ34: 0.1198331211 | KA34: 0.03893614129 | KB34: 0.2164370889 | KC34: 0.05103781541 | KD34: 10 | KE34: 1.256637061 | KF34: 0.1198331211 | KG34: 0.03893614129 | KH34: 0.2170565731 | KI34: 0.04403433249 | KJ34: 10 | KK34: 1.256637061 | KL34: 0.1198331211 | KM34: 0.03893614129 | KN34: 0.2171683832 | KO34: 0.03700439422 | KP34: 10 | KQ34: 1.256637061 | KR34: 0.1198331211 | KS34: 0.03893614129 | KT34: 0.2167719349 | KU34: 0.02998475303 | KV34: 10 | KW34: 1.256637061 | KX34: 0.1198331211 | KY34: 0.03893614129 | KZ34: 0.2158693006 | LA34: 0.02301210755 | LB34: 10 | LC34: 0.6283185307 | LD34: 0.07406094179 | LE34: 0.1019361413 | LF34: 0.1686485119 | LG34: 0.07918417105
B35: 12 | C35: 1.382300768 | D35: 0.1237681936 | E35: 0.02361004564 | F35: 0.02937298992 | G35: 0.0007819121322 | H35: 11 | I35: 1.382300768 | J35: 0.1237681936 | K35: 0.02361004564 | N35: 11 | O35: 1.382300768 | P35: 0.1237681936 | Q35: 0.02361004564 | R35: 0.02937298992 | S35: 0.0007819121322 | T35: 11 | U35: 1.382300768 | V35: 0.1237681936 | W35: 0.02361004564 | X35: 0.02796888873 | Y35: 0.007671109002 | Z35: 11 | AA35: 1.382300768 | AB35: 0.1237681936 | AC35: 0.02361004564 | AD35: 0.02706625448 | AE35: 0.01464375449 | AF35: 11 | AG35: 1.382300768 | AH35: 0.1237681936 | AI35: 0.02361004564 | AJ35: 0.02666980612 | AK35: 0.02166339567 | AL35: 11 | AM35: 1.382300768 | AN35: 0.1237681936 | AO35: 0.02361004564 | AP35: 0.02678161629 | AQ35: 0.02869333394 | AR35: 11 | AS35: 1.382300768 | AT35: 0.1237681936 | AU35: 0.02361004564 | AV35: 0.02740110045 | AW35: 0.03569681687 | AX35: 11 | AY35: 1.382300768 | AZ35: 0.1237681936 | BA35: 0.02361004564 | BB35: 0.02852501993 | BC35: 0.0426372303 | BD35: 11 | BE35: 1.382300768 | BF35: 0.1237681936 | BG35: 0.02361004564 | BH35: 0.03014749889 | BI35: 0.04947828984 | BJ35: 11 | BK35: 1.382300768 | BL35: 0.1237681936 | BM35: 0.02361004564 | BN35: 0.03226005505 | BO35: 0.05618423051 | BP35: 11 | BQ35: 1.382300768 | BR35: 0.1237681936 | BS35: 0.02361004564 | BT35: 0.03485164396 | BU35: 0.0627199937 | BV35: 11 | BW35: 1.382300768 | BX35: 0.1237681936 | BY35: 0.02361004564 | BZ35: 0.03790871684 | CA35: 0.06905141053 | CB35: 11 | CC35: 1.382300768 | CD35: 0.1237681936 | CE35: 0.02361004564 | CF35: 0.04141529134 | CG35: 0.07514538041 | CH35: 11 | CI35: 1.382300768 | CJ35: 0.1237681936 | CK35: 0.02361004564 | CL35: 0.04535303513 | CM35: 0.08097004414 | CN35: 11 | CO35: 1.382300768 | CP35: 0.1237681936 | CQ35: 0.02361004564 | CR35: 0.04970136171 | CS35: 0.08649495043 | CT35: 11 | CU35: 1.382300768 | CV35: 0.1237681936 | CW35: 0.02361004564 | CX35: 0.0544375381 | CY35: 0.09169121514 | CZ35: 11 | DA35: 1.382300768 | DB35: 0.1237681936 | DC35: 0.02361004564 | DD35: 0.05953680361 | DE35: 0.09653167224 | DF35: 11 | DG35: 1.382300768 | DH35: 0.1237681936 | DI35: 0.02361004564 | DJ35: 0.06497249933 | DK35: 0.1009910159 | DL35: 11 | DM35: 1.382300768 | DN35: 0.1237681936 | DO35: 0.02361004564 | DP35: 0.0707162075 | DQ35: 0.1050459327 | DR35: 11 | DS35: 1.382300768 | DT35: 0.1237681936 | DU35: 0.02361004564 | DV35: 0.07673790008 | DW35: 0.1086752235 | DX35: 11 | DY35: 1.382300768 | DZ35: 0.1237681936 | EA35: 0.02361004564 | EB35: 0.08300609573 | EC35: 0.1118599145 | ED35: 11 | EE35: 1.382300768 | EF35: 0.1237681936 | EG35: 0.02361004564 | EH35: 0.08948802438 | EI35: 0.1145833562 | EJ35: 11 | EK35: 1.382300768 | EL35: 0.1237681936 | EM35: 0.02361004564 | EN35: 0.09614979858 | EO35: 0.1168313105 | EP35: 11 | EQ35: 1.382300768 | ER35: 0.1237681936 | ES35: 0.02361004564 | ET35: 0.1029565906 | EU35: 0.1185920249 | EV35: 11 | EW35: 1.382300768 | EX35: 0.1237681936 | EY35: 0.02361004564 | EZ35: 0.1098728147 | FA35: 0.1198562946 | FB35: 11 | FC35: 1.382300768 | FD35: 0.1237681936 | FE35: 0.02361004564 | FF35: 0.1168623129 | FG35: 0.12061751 | FH35: 11 | FI35: 1.382300768 | FJ35: 0.1237681936 | FK35: 0.02361004564 | FL35: 0.1238885442 | FM35: 0.1208716914 | FN35: 11 | FO35: 1.382300768 | FP35: 0.1237681936 | FQ35: 0.02361004564 | FR35: 0.1309147754 | FS35: 0.12061751 | FT35: 11 | FU35: 1.382300768 | FV35: 0.1237681936 | FW35: 0.02361004564 | FX35: 0.1379042736 | FY35: 0.1198562946 | FZ35: 11 | GA35: 1.382300768 | GB35: 0.1237681936 | GC35: 0.02361004564 | GD35: 0.1448204977 | GE35: 0.1185920249 | GF35: 11 | GG35: 1.382300768 | GH35: 0.1237681936 | GI35: 0.02361004564 | GJ35: 0.1516272897 | GK35: 0.1168313105 | GL35: 11 | GM35: 1.382300768 | GN35: 0.1237681936 | GO35: 0.02361004564 | GP35: 0.1582890639 | GQ35: 0.1145833562 | GR35: 11 | GS35: 1.382300768 | GT35: 0.1237681936 | GU35: 0.02361004564 | GV35: 0.1647709926 | GW35: 0.1118599145 | GX35: 11 | GY35: 1.382300768 | GZ35: 0.1237681936 | HA35: 0.02361004564 | HB35: 0.1710391882 | HC35: 0.1086752235 | HD35: 11 | HE35: 1.382300768 | HF35: 0.1237681936 | HG35: 0.02361004564 | HH35: 0.1770608808 | HI35: 0.1050459327 | HJ35: 11 | HK35: 1.382300768 | HL35: 0.1237681936 | HM35: 0.02361004564 | HN35: 0.182804589 | HO35: 0.1009910159 | HP35: 11 | HQ35: 1.382300768 | HR35: 0.1237681936 | HS35: 0.02361004564 | HT35: 0.1882402847 | HU35: 0.09653167224 | HV35: 11 | HW35: 1.382300768 | HX35: 0.1237681936 | HY35: 0.02361004564 | HZ35: 0.1933395502 | IA35: 0.09169121514 | IB35: 11 | IC35: 1.382300768 | ID35: 0.1237681936 | IE35: 0.02361004564 | IF35: 0.1980757266 | IG35: 0.08649495043 | IH35: 11 | II35: 1.382300768 | IJ35: 0.1237681936 | IK35: 0.02361004564 | IL35: 0.2024240532 | IM35: 0.08097004414 | IN35: 11 | IO35: 1.382300768 | IP35: 0.1237681936 | IQ35: 0.02361004564 | IR35: 0.206361797 | IS35: 0.07514538041 | IT35: 11 | IU35: 1.382300768 | IV35: 0.1237681936 | IW35: 0.02361004564 | IX35: 0.2098683715 | IY35: 0.06905141053 | IZ35: 11 | JA35: 1.382300768 | JB35: 0.1237681936 | JC35: 0.02361004564 | JD35: 0.2129254444 | JE35: 0.0627199937 | JF35: 11 | JG35: 1.382300768 | JH35: 0.1237681936 | JI35: 0.02361004564 | JJ35: 0.2155170333 | JK35: 0.05618423051 | JL35: 11 | JM35: 1.382300768 | JN35: 0.1237681936 | JO35: 0.02361004564 | JP35: 0.2176295894 | JQ35: 0.04947828984 | JR35: 11 | JS35: 1.382300768 | JT35: 0.1237681936 | JU35: 0.02361004564 | JV35: 0.2192520684 | JW35: 0.0426372303 | JX35: 11 | JY35: 1.382300768 | JZ35: 0.1237681936 | KA35: 0.02361004564 | KB35: 0.2203759879 | KC35: 0.03569681687 | KD35: 11 | KE35: 1.382300768 | KF35: 0.1237681936 | KG35: 0.02361004564 | KH35: 0.220995472 | KI35: 0.02869333394 | KJ35: 11 | KK35: 1.382300768 | KL35: 0.1237681936 | KM35: 0.02361004564 | KN35: 0.2211072822 | KO35: 0.02166339567 | KP35: 11 | KQ35: 1.382300768 | KR35: 0.1237681936 | KS35: 0.02361004564 | KT35: 0.2207108338 | KU35: 0.01464375449 | KV35: 11 | KW35: 1.382300768 | KX35: 0.1237681936 | KY35: 0.02361004564 | KZ35: 0.2198081996 | LA35: 0.007671109002 | LB35: 11 | LC35: 0.6911503838 | LD35: 0.08031542271 | LE35: 0.09708466859 | LF35: 0.1749090746 | LG35: 0.07432798084
B36: 13 | C36: 1.507964474 | D36: 0.1257513678 | E36: 0.007911605461 | F36: 0.03135809252 | G36: -0.014931793 | H36: 12 | I36: 1.507964474 | J36: 0.1257513678 | K36: 0.007911605461 | N36: 12 | O36: 1.507964474 | P36: 0.1257513678 | Q36: 0.007911605461 | R36: 0.03135809252 | S36: -0.014931793 | T36: 12 | U36: 1.507964474 | V36: 0.1257513678 | W36: 0.007911605461 | X36: 0.02995399133 | Y36: -0.008042596133 | Z36: 12 | AA36: 1.507964474 | AB36: 0.1257513678 | AC36: 0.007911605461 | AD36: 0.02905135708 | AE36: -0.001069950648 | AF36: 12 | AG36: 1.507964474 | AH36: 0.1257513678 | AI36: 0.007911605461 | AJ36: 0.02865490873 | AK36: 0.005949690536 | AL36: 12 | AM36: 1.507964474 | AN36: 0.1257513678 | AO36: 0.007911605461 | AP36: 0.0287667189 | AQ36: 0.01297962881 | AR36: 12 | AS36: 1.507964474 | AT36: 0.1257513678 | AU36: 0.007911605461 | AV36: 0.02938620305 | AW36: 0.01998311173 | AX36: 12 | AY36: 1.507964474 | AZ36: 0.1257513678 | BA36: 0.007911605461 | BB36: 0.03051012253 | BC36: 0.02692352517 | BD36: 12 | BE36: 1.507964474 | BF36: 0.1257513678 | BG36: 0.007911605461 | BH36: 0.0321326015 | BI36: 0.03376458471 | BJ36: 12 | BK36: 1.507964474 | BL36: 0.1257513678 | BM36: 0.007911605461 | BN36: 0.03424515765 | BO36: 0.04047052537 | BP36: 12 | BQ36: 1.507964474 | BR36: 0.1257513678 | BS36: 0.007911605461 | BT36: 0.03683674656 | BU36: 0.04700628857 | BV36: 12 | BW36: 1.507964474 | BX36: 0.1257513678 | BY36: 0.007911605461 | BZ36: 0.03989381944 | CA36: 0.0533377054 | CB36: 12 | CC36: 1.507964474 | CD36: 0.1257513678 | CE36: 0.007911605461 | CF36: 0.04340039394 | CG36: 0.05943167528 | CH36: 12 | CI36: 1.507964474 | CJ36: 0.1257513678 | CK36: 0.007911605461 | CL36: 0.04733813773 | CM36: 0.065256339 | CN36: 12 | CO36: 1.507964474 | CP36: 0.1257513678 | CQ36: 0.007911605461 | CR36: 0.05168646432 | CS36: 0.0707812453 | CT36: 12 | CU36: 1.507964474 | CV36: 0.1257513678 | CW36: 0.007911605461 | CX36: 0.0564226407 | CY36: 0.07597751 | CZ36: 12 | DA36: 1.507964474 | DB36: 0.1257513678 | DC36: 0.007911605461 | DD36: 0.06152190621 | DE36: 0.0808179671 | DF36: 12 | DG36: 1.507964474 | DH36: 0.1257513678 | DI36: 0.007911605461 | DJ36: 0.06695760193 | DK36: 0.08527731074 | DL36: 12 | DM36: 1.507964474 | DN36: 0.1257513678 | DO36: 0.007911605461 | DP36: 0.0727013101 | DQ36: 0.08933222752 | DR36: 12 | DS36: 1.507964474 | DT36: 0.1257513678 | DU36: 0.007911605461 | DV36: 0.07872300268 | DW36: 0.09296151838 | DX36: 12 | DY36: 1.507964474 | DZ36: 0.1257513678 | EA36: 0.007911605461 | EB36: 0.08499119833 | EC36: 0.09614620941 | ED36: 12 | EE36: 1.507964474 | EF36: 0.1257513678 | EG36: 0.007911605461 | EH36: 0.09147312698 | EI36: 0.0988696511 | EJ36: 12 | EK36: 1.507964474 | EL36: 0.1257513678 | EM36: 0.007911605461 | EN36: 0.09813490118 | EO36: 0.1011176053 | EP36: 12 | EQ36: 1.507964474 | ER36: 0.1257513678 | ES36: 0.007911605461 | ET36: 0.1049416932 | EU36: 0.1028783198 | EV36: 12 | EW36: 1.507964474 | EX36: 0.1257513678 | EY36: 0.007911605461 | EZ36: 0.1118579173 | FA36: 0.1041425895 | FB36: 12 | FC36: 1.507964474 | FD36: 0.1257513678 | FE36: 0.007911605461 | FF36: 0.1188474155 | FG36: 0.1049038049 | FH36: 12 | FI36: 1.507964474 | FJ36: 0.1257513678 | FK36: 0.007911605461 | FL36: 0.1258736468 | FM36: 0.1051579863 | FN36: 12 | FO36: 1.507964474 | FP36: 0.1257513678 | FQ36: 0.007911605461 | FR36: 0.132899878 | FS36: 0.1049038049 | FT36: 12 | FU36: 1.507964474 | FV36: 0.1257513678 | FW36: 0.007911605461 | FX36: 0.1398893762 | FY36: 0.1041425895 | FZ36: 12 | GA36: 1.507964474 | GB36: 0.1257513678 | GC36: 0.007911605461 | GD36: 0.1468056003 | GE36: 0.1028783198 | GF36: 12 | GG36: 1.507964474 | GH36: 0.1257513678 | GI36: 0.007911605461 | GJ36: 0.1536123923 | GK36: 0.1011176053 | GL36: 12 | GM36: 1.507964474 | GN36: 0.1257513678 | GO36: 0.007911605461 | GP36: 0.1602741665 | GQ36: 0.0988696511 | GR36: 12 | GS36: 1.507964474 | GT36: 0.1257513678 | GU36: 0.007911605461 | GV36: 0.1667560952 | GW36: 0.09614620941 | GX36: 12 | GY36: 1.507964474 | GZ36: 0.1257513678 | HA36: 0.007911605461 | HB36: 0.1730242908 | HC36: 0.09296151838 | HD36: 12 | HE36: 1.507964474 | HF36: 0.1257513678 | HG36: 0.007911605461 | HH36: 0.1790459834 | HI36: 0.08933222752 | HJ36: 12 | HK36: 1.507964474 | HL36: 0.1257513678 | HM36: 0.007911605461 | HN36: 0.1847896916 | HO36: 0.08527731074 | HP36: 12 | HQ36: 1.507964474 | HR36: 0.1257513678 | HS36: 0.007911605461 | HT36: 0.1902253873 | HU36: 0.0808179671 | HV36: 12 | HW36: 1.507964474 | HX36: 0.1257513678 | HY36: 0.007911605461 | HZ36: 0.1953246528 | IA36: 0.07597751 | IB36: 12 | IC36: 1.507964474 | ID36: 0.1257513678 | IE36: 0.007911605461 | IF36: 0.2000608292 | IG36: 0.0707812453 | IH36: 12 | II36: 1.507964474 | IJ36: 0.1257513678 | IK36: 0.007911605461 | IL36: 0.2044091558 | IM36: 0.065256339 | IN36: 12 | IO36: 1.507964474 | IP36: 0.1257513678 | IQ36: 0.007911605461 | IR36: 0.2083468996 | IS36: 0.05943167528 | IT36: 12 | IU36: 1.507964474 | IV36: 0.1257513678 | IW36: 0.007911605461 | IX36: 0.2118534741 | IY36: 0.0533377054 | IZ36: 12 | JA36: 1.507964474 | JB36: 0.1257513678 | JC36: 0.007911605461 | JD36: 0.214910547 | JE36: 0.04700628857 | JF36: 12 | JG36: 1.507964474 | JH36: 0.1257513678 | JI36: 0.007911605461 | JJ36: 0.2175021359 | JK36: 0.04047052537 | JL36: 12 | JM36: 1.507964474 | JN36: 0.1257513678 | JO36: 0.007911605461 | JP36: 0.219614692 | JQ36: 0.03376458471 | JR36: 12 | JS36: 1.507964474 | JT36: 0.1257513678 | JU36: 0.007911605461 | JV36: 0.221237171 | JW36: 0.02692352517 | JX36: 12 | JY36: 1.507964474 | JZ36: 0.1257513678 | KA36: 0.007911605461 | KB36: 0.2223610905 | KC36: 0.01998311173 | KD36: 12 | KE36: 1.507964474 | KF36: 0.1257513678 | KG36: 0.007911605461 | KH36: 0.2229805746 | KI36: 0.01297962881 | KJ36: 12 | KK36: 1.507964474 | KL36: 0.1257513678 | KM36: 0.007911605461 | KN36: 0.2230923848 | KO36: 0.005949690536 | KP36: 12 | KQ36: 1.507964474 | KR36: 0.1257513678 | KS36: 0.007911605461 | KT36: 0.2226959364 | KU36: -0.001069950648 | KV36: 12 | KW36: 1.507964474 | KX36: 0.1257513678 | KY36: 0.007911605461 | KZ36: 0.2217933022 | LA36: -0.008042596133 | LB36: 12 | LC36: 0.7539822369 | LD36: 0.08625293535 | LE36: 0.09185004706 | LF36: 0.1808523608 | LG36: 0.06908826923
B37: 14 | C37: 1.63362818 | D37: 0.1257513678 | E37: -0.007911605461 | F37: 0.03135809252 | G37: -0.03077039021 | H37: 13 | I37: 1.63362818 | J37: 0.1257513678 | K37: -0.007911605461 | N37: 13 | O37: 1.63362818 | P37: 0.1257513678 | Q37: -0.007911605461 | R37: 0.03135809252 | S37: -0.03077039021 | T37: 13 | U37: 1.63362818 | V37: 0.1257513678 | W37: -0.007911605461 | X37: 0.02995399133 | Y37: -0.02388119334 | Z37: 13 | AA37: 1.63362818 | AB37: 0.1257513678 | AC37: -0.007911605461 | AD37: 0.02905135708 | AE37: -0.01690854785 | AF37: 13 | AG37: 1.63362818 | AH37: 0.1257513678 | AI37: -0.007911605461 | AJ37: 0.02865490873 | AK37: -0.009888906668 | AL37: 13 | AM37: 1.63362818 | AN37: 0.1257513678 | AO37: -0.007911605461 | AP37: 0.0287667189 | AQ37: -0.002858968394 | AR37: 13 | AS37: 1.63362818 | AT37: 0.1257513678 | AU37: -0.007911605461 | AV37: 0.02938620305 | AW37: 0.004144514528 | AX37: 13 | AY37: 1.63362818 | AZ37: 0.1257513678 | BA37: -0.007911605461 | BB37: 0.03051012253 | BC37: 0.01108492796 | BD37: 13 | BE37: 1.63362818 | BF37: 0.1257513678 | BG37: -0.007911605461 | BH37: 0.0321326015 | BI37: 0.01792598751 | BJ37: 13 | BK37: 1.63362818 | BL37: 0.1257513678 | BM37: -0.007911605461 | BN37: 0.03424515765 | BO37: 0.02463192817 | BP37: 13 | BQ37: 1.63362818 | BR37: 0.1257513678 | BS37: -0.007911605461 | BT37: 0.03683674656 | BU37: 0.03116769136 | BV37: 13 | BW37: 1.63362818 | BX37: 0.1257513678 | BY37: -0.007911605461 | BZ37: 0.03989381944 | CA37: 0.03749910819 | CB37: 13 | CC37: 1.63362818 | CD37: 0.1257513678 | CE37: -0.007911605461 | CF37: 0.04340039394 | CG37: 0.04359307807 | CH37: 13 | CI37: 1.63362818 | CJ37: 0.1257513678 | CK37: -0.007911605461 | CL37: 0.04733813773 | CM37: 0.0494177418 | CN37: 13 | CO37: 1.63362818 | CP37: 0.1257513678 | CQ37: -0.007911605461 | CR37: 0.05168646432 | CS37: 0.05494264809 | CT37: 13 | CU37: 1.63362818 | CV37: 0.1257513678 | CW37: -0.007911605461 | CX37: 0.0564226407 | CY37: 0.0601389128 | CZ37: 13 | DA37: 1.63362818 | DB37: 0.1257513678 | DC37: -0.007911605461 | DD37: 0.06152190621 | DE37: 0.0649793699 | DF37: 13 | DG37: 1.63362818 | DH37: 0.1257513678 | DI37: -0.007911605461 | DJ37: 0.06695760193 | DK37: 0.06943871354 | DL37: 13 | DM37: 1.63362818 | DN37: 0.1257513678 | DO37: -0.007911605461 | DP37: 0.0727013101 | DQ37: 0.07349363032 | DR37: 13 | DS37: 1.63362818 | DT37: 0.1257513678 | DU37: -0.007911605461 | DV37: 0.07872300268 | DW37: 0.07712292117 | DX37: 13 | DY37: 1.63362818 | DZ37: 0.1257513678 | EA37: -0.007911605461 | EB37: 0.08499119833 | EC37: 0.08030761221 | ED37: 13 | EE37: 1.63362818 | EF37: 0.1257513678 | EG37: -0.007911605461 | EH37: 0.09147312698 | EI37: 0.0830310539 | EJ37: 13 | EK37: 1.63362818 | EL37: 0.1257513678 | EM37: -0.007911605461 | EN37: 0.09813490118 | EO37: 0.08527900811 | EP37: 13 | EQ37: 1.63362818 | ER37: 0.1257513678 | ES37: -0.007911605461 | ET37: 0.1049416932 | EU37: 0.08703972258 | EV37: 13 | EW37: 1.63362818 | EX37: 0.1257513678 | EY37: -0.007911605461 | EZ37: 0.1118579173 | FA37: 0.08830399229 | FB37: 13 | FC37: 1.63362818 | FD37: 0.1257513678 | FE37: -0.007911605461 | FF37: 0.1188474155 | FG37: 0.08906520766 | FH37: 13 | FI37: 1.63362818 | FJ37: 0.1257513678 | FK37: -0.007911605461 | FL37: 0.1258736468 | FM37: 0.08931938908 | FN37: 13 | FO37: 1.63362818 | FP37: 0.1257513678 | FQ37: -0.007911605461 | FR37: 0.132899878 | FS37: 0.08906520766 | FT37: 13 | FU37: 1.63362818 | FV37: 0.1257513678 | FW37: -0.007911605461 | FX37: 0.1398893762 | FY37: 0.08830399229 | FZ37: 13 | GA37: 1.63362818 | GB37: 0.1257513678 | GC37: -0.007911605461 | GD37: 0.1468056003 | GE37: 0.08703972258 | GF37: 13 | GG37: 1.63362818 | GH37: 0.1257513678 | GI37: -0.007911605461 | GJ37: 0.1536123923 | GK37: 0.08527900811 | GL37: 13 | GM37: 1.63362818 | GN37: 0.1257513678 | GO37: -0.007911605461 | GP37: 0.1602741665 | GQ37: 0.0830310539 | GR37: 13 | GS37: 1.63362818 | GT37: 0.1257513678 | GU37: -0.007911605461 | GV37: 0.1667560952 | GW37: 0.08030761221 | GX37: 13 | GY37: 1.63362818 | GZ37: 0.1257513678 | HA37: -0.007911605461 | HB37: 0.1730242908 | HC37: 0.07712292117 | HD37: 13 | HE37: 1.63362818 | HF37: 0.1257513678 | HG37: -0.007911605461 | HH37: 0.1790459834 | HI37: 0.07349363032 | HJ37: 13 | HK37: 1.63362818 | HL37: 0.1257513678 | HM37: -0.007911605461 | HN37: 0.1847896916 | HO37: 0.06943871354 | HP37: 13 | HQ37: 1.63362818 | HR37: 0.1257513678 | HS37: -0.007911605461 | HT37: 0.1902253873 | HU37: 0.0649793699 | HV37: 13 | HW37: 1.63362818 | HX37: 0.1257513678 | HY37: -0.007911605461 | HZ37: 0.1953246528 | IA37: 0.0601389128 | IB37: 13 | IC37: 1.63362818 | ID37: 0.1257513678 | IE37: -0.007911605461 | IF37: 0.2000608292 | IG37: 0.05494264809 | IH37: 13 | II37: 1.63362818 | IJ37: 0.1257513678 | IK37: -0.007911605461 | IL37: 0.2044091558 | IM37: 0.0494177418 | IN37: 13 | IO37: 1.63362818 | IP37: 0.1257513678 | IQ37: -0.007911605461 | IR37: 0.2083468996 | IS37: 0.04359307807 | IT37: 13 | IU37: 1.63362818 | IV37: 0.1257513678 | IW37: -0.007911605461 | IX37: 0.2118534741 | IY37: 0.03749910819 | IZ37: 13 | JA37: 1.63362818 | JB37: 0.1257513678 | JC37: -0.007911605461 | JD37: 0.214910547 | JE37: 0.03116769136 | JF37: 13 | JG37: 1.63362818 | JH37: 0.1257513678 | JI37: -0.007911605461 | JJ37: 0.2175021359 | JK37: 0.02463192817 | JL37: 13 | JM37: 1.63362818 | JN37: 0.1257513678 | JO37: -0.007911605461 | JP37: 0.219614692 | JQ37: 0.01792598751 | JR37: 13 | JS37: 1.63362818 | JT37: 0.1257513678 | JU37: -0.007911605461 | JV37: 0.221237171 | JW37: 0.01108492796 | JX37: 13 | JY37: 1.63362818 | JZ37: 0.1257513678 | KA37: -0.007911605461 | KB37: 0.2223610905 | KC37: 0.004144514528 | KD37: 13 | KE37: 1.63362818 | KF37: 0.1257513678 | KG37: -0.007911605461 | KH37: 0.2229805746 | KI37: -0.002858968394 | KJ37: 13 | KK37: 1.63362818 | KL37: 0.1257513678 | KM37: -0.007911605461 | KN37: 0.2230923848 | KO37: -0.009888906668 | KP37: 13 | KQ37: 1.63362818 | KR37: 0.1257513678 | KS37: -0.007911605461 | KT37: 0.2226959364 | KU37: -0.01690854785 | KV37: 13 | KW37: 1.63362818 | KX37: 0.1257513678 | KY37: -0.007911605461 | KZ37: 0.2217933022 | LA37: -0.02388119334 | LB37: 13 | LC37: 0.8168140899 | LD37: 0.09185004706 | LE37: 0.08625293535 | LF37: 0.1864549151 | LG37: 0.06348571497
B38: 15 | C38: 1.759291886 | D38: 0.1237681936 | E38: -0.02361004564 | F38: 0.02937298992 | G38: -0.04648409534 | H38: 14 | I38: 1.759291886 | J38: 0.1237681936 | K38: -0.02361004564 | N38: 14 | O38: 1.759291886 | P38: 0.1237681936 | Q38: -0.02361004564 | R38: 0.02937298992 | S38: -0.04648409534 | T38: 14 | U38: 1.759291886 | V38: 0.1237681936 | W38: -0.02361004564 | X38: 0.02796888873 | Y38: -0.03959489847 | Z38: 14 | AA38: 1.759291886 | AB38: 0.1237681936 | AC38: -0.02361004564 | AD38: 0.02706625448 | AE38: -0.03262225299 | AF38: 14 | AG38: 1.759291886 | AH38: 0.1237681936 | AI38: -0.02361004564 | AJ38: 0.02666980612 | AK38: -0.0256026118 | AL38: 14 | AM38: 1.759291886 | AN38: 0.1237681936 | AO38: -0.02361004564 | AP38: 0.02678161629 | AQ38: -0.01857267353 | AR38: 14 | AS38: 1.759291886 | AT38: 0.1237681936 | AU38: -0.02361004564 | AV38: 0.02740110045 | AW38: -0.01156919061 | AX38: 14 | AY38: 1.759291886 | AZ38: 0.1237681936 | BA38: -0.02361004564 | BB38: 0.02852501993 | BC38: -0.004628777171 | BD38: 14 | BE38: 1.759291886 | BF38: 0.1237681936 | BG38: -0.02361004564 | BH38: 0.03014749889 | BI38: 0.002212282371 | BJ38: 14 | BK38: 1.759291886 | BL38: 0.1237681936 | BM38: -0.02361004564 | BN38: 0.03226005505 | BO38: 0.008918223033 | BP38: 14 | BQ38: 1.759291886 | BR38: 0.1237681936 | BS38: -0.02361004564 | BT38: 0.03485164396 | BU38: 0.01545398623 | BV38: 14 | BW38: 1.759291886 | BX38: 0.1237681936 | BY38: -0.02361004564 | BZ38: 0.03790871684 | CA38: 0.02178540306 | CB38: 14 | CC38: 1.759291886 | CD38: 0.1237681936 | CE38: -0.02361004564 | CF38: 0.04141529134 | CG38: 0.02787937294 | CH38: 14 | CI38: 1.759291886 | CJ38: 0.1237681936 | CK38: -0.02361004564 | CL38: 0.04535303513 | CM38: 0.03370403667 | CN38: 14 | CO38: 1.759291886 | CP38: 0.1237681936 | CQ38: -0.02361004564 | CR38: 0.04970136171 | CS38: 0.03922894296 | CT38: 14 | CU38: 1.759291886 | CV38: 0.1237681936 | CW38: -0.02361004564 | CX38: 0.0544375381 | CY38: 0.04442520766 | CZ38: 14 | DA38: 1.759291886 | DB38: 0.1237681936 | DC38: -0.02361004564 | DD38: 0.05953680361 | DE38: 0.04926566476 | DF38: 14 | DG38: 1.759291886 | DH38: 0.1237681936 | DI38: -0.02361004564 | DJ38: 0.06497249933 | DK38: 0.05372500841 | DL38: 14 | DM38: 1.759291886 | DN38: 0.1237681936 | DO38: -0.02361004564 | DP38: 0.0707162075 | DQ38: 0.05777992518 | DR38: 14 | DS38: 1.759291886 | DT38: 0.1237681936 | DU38: -0.02361004564 | DV38: 0.07673790008 | DW38: 0.06140921604 | DX38: 14 | DY38: 1.759291886 | DZ38: 0.1237681936 | EA38: -0.02361004564 | EB38: 0.08300609573 | EC38: 0.06459390707 | ED38: 14 | EE38: 1.759291886 | EF38: 0.1237681936 | EG38: -0.02361004564 | EH38: 0.08948802438 | EI38: 0.06731734876 | EJ38: 14 | EK38: 1.759291886 | EL38: 0.1237681936 | EM38: -0.02361004564 | EN38: 0.09614979858 | EO38: 0.06956530298 | EP38: 14 | EQ38: 1.759291886 | ER38: 0.1237681936 | ES38: -0.02361004564 | ET38: 0.1029565906 | EU38: 0.07132601744 | EV38: 14 | EW38: 1.759291886 | EX38: 0.1237681936 | EY38: -0.02361004564 | EZ38: 0.1098728147 | FA38: 0.07259028716 | FB38: 14 | FC38: 1.759291886 | FD38: 0.1237681936 | FE38: -0.02361004564 | FF38: 0.1168623129 | FG38: 0.07335150253 | FH38: 14 | FI38: 1.759291886 | FJ38: 0.1237681936 | FK38: -0.02361004564 | FL38: 0.1238885442 | FM38: 0.07360568394 | FN38: 14 | FO38: 1.759291886 | FP38: 0.1237681936 | FQ38: -0.02361004564 | FR38: 0.1309147754 | FS38: 0.07335150253 | FT38: 14 | FU38: 1.759291886 | FV38: 0.1237681936 | FW38: -0.02361004564 | FX38: 0.1379042736 | FY38: 0.07259028716 | FZ38: 14 | GA38: 1.759291886 | GB38: 0.1237681936 | GC38: -0.02361004564 | GD38: 0.1448204977 | GE38: 0.07132601744 | GF38: 14 | GG38: 1.759291886 | GH38: 0.1237681936 | GI38: -0.02361004564 | GJ38: 0.1516272897 | GK38: 0.06956530298 | GL38: 14 | GM38: 1.759291886 | GN38: 0.1237681936 | GO38: -0.02361004564 | GP38: 0.1582890639 | GQ38: 0.06731734876 | GR38: 14 | GS38: 1.759291886 | GT38: 0.1237681936 | GU38: -0.02361004564 | GV38: 0.1647709926 | GW38: 0.06459390707 | GX38: 14 | GY38: 1.759291886 | GZ38: 0.1237681936 | HA38: -0.02361004564 | HB38: 0.1710391882 | HC38: 0.06140921604 | HD38: 14 | HE38: 1.759291886 | HF38: 0.1237681936 | HG38: -0.02361004564 | HH38: 0.1770608808 | HI38: 0.05777992518 | HJ38: 14 | HK38: 1.759291886 | HL38: 0.1237681936 | HM38: -0.02361004564 | HN38: 0.182804589 | HO38: 0.05372500841 | HP38: 14 | HQ38: 1.759291886 | HR38: 0.1237681936 | HS38: -0.02361004564 | HT38: 0.1882402847 | HU38: 0.04926566476 | HV38: 14 | HW38: 1.759291886 | HX38: 0.1237681936 | HY38: -0.02361004564 | HZ38: 0.1933395502 | IA38: 0.04442520766 | IB38: 14 | IC38: 1.759291886 | ID38: 0.1237681936 | IE38: -0.02361004564 | IF38: 0.1980757266 | IG38: 0.03922894296 | IH38: 14 | II38: 1.759291886 | IJ38: 0.1237681936 | IK38: -0.02361004564 | IL38: 0.2024240532 | IM38: 0.03370403667 | IN38: 14 | IO38: 1.759291886 | IP38: 0.1237681936 | IQ38: -0.02361004564 | IR38: 0.206361797 | IS38: 0.02787937294 | IT38: 14 | IU38: 1.759291886 | IV38: 0.1237681936 | IW38: -0.02361004564 | IX38: 0.2098683715 | IY38: 0.02178540306 | IZ38: 14 | JA38: 1.759291886 | JB38: 0.1237681936 | JC38: -0.02361004564 | JD38: 0.2129254444 | JE38: 0.01545398623 | JF38: 14 | JG38: 1.759291886 | JH38: 0.1237681936 | JI38: -0.02361004564 | JJ38: 0.2155170333 | JK38: 0.008918223033 | JL38: 14 | JM38: 1.759291886 | JN38: 0.1237681936 | JO38: -0.02361004564 | JP38: 0.2176295894 | JQ38: 0.002212282371 | JR38: 14 | JS38: 1.759291886 | JT38: 0.1237681936 | JU38: -0.02361004564 | JV38: 0.2192520684 | JW38: -0.004628777171 | JX38: 14 | JY38: 1.759291886 | JZ38: 0.1237681936 | KA38: -0.02361004564 | KB38: 0.2203759879 | KC38: -0.01156919061 | KD38: 14 | KE38: 1.759291886 | KF38: 0.1237681936 | KG38: -0.02361004564 | KH38: 0.220995472 | KI38: -0.01857267353 | KJ38: 14 | KK38: 1.759291886 | KL38: 0.1237681936 | KM38: -0.02361004564 | KN38: 0.2211072822 | KO38: -0.0256026118 | KP38: 14 | KQ38: 1.759291886 | KR38: 0.1237681936 | KS38: -0.02361004564 | KT38: 0.2207108338 | KU38: -0.03262225299 | KV38: 14 | KW38: 1.759291886 | KX38: 0.1237681936 | KY38: -0.02361004564 | KZ38: 0.2198081996 | LA38: -0.03959489847 | LB38: 14 | LC38: 0.879645943 | LD38: 0.09708466859 | LE38: 0.08031542271 | LF38: 0.1916946267 | LG38: 0.05754242877
B39: 16 | C39: 1.884955592 | D39: 0.1198331211 | E39: -0.03893614129 | F39: 0.02543409097 | G39: -0.06182509389 | H39: 15 | I39: 1.884955592 | J39: 0.1198331211 | K39: -0.03893614129 | N39: 15 | O39: 1.884955592 | P39: 0.1198331211 | Q39: -0.03893614129 | R39: 0.02543409097 | S39: -0.06182509389 | T39: 15 | U39: 1.884955592 | V39: 0.1198331211 | W39: -0.03893614129 | X39: 0.02402998978 | Y39: -0.05493589702 | Z39: 15 | AA39: 1.884955592 | AB39: 0.1198331211 | AC39: -0.03893614129 | AD39: 0.02312735553 | AE39: -0.04796325153 | AF39: 15 | AG39: 1.884955592 | AH39: 0.1198331211 | AI39: -0.03893614129 | AJ39: 0.02273090717 | AK39: -0.04094361035 | AL39: 15 | AM39: 1.884955592 | AN39: 0.1198331211 | AO39: -0.03893614129 | AP39: 0.02284271734 | AQ39: -0.03391367208 | AR39: 15 | AS39: 1.884955592 | AT39: 0.1198331211 | AU39: -0.03893614129 | AV39: 0.0234622015 | AW39: -0.02691018915 | AX39: 15 | AY39: 1.884955592 | AZ39: 0.1198331211 | BA39: -0.03893614129 | BB39: 0.02458612098 | BC39: -0.01996977572 | BD39: 15 | BE39: 1.884955592 | BF39: 0.1198331211 | BG39: -0.03893614129 | BH39: 0.02620859994 | BI39: -0.01312871618 | BJ39: 15 | BK39: 1.884955592 | BL39: 0.1198331211 | BM39: -0.03893614129 | BN39: 0.02832115609 | BO39: -0.006422775515 | BP39: 15 | BQ39: 1.884955592 | BR39: 0.1198331211 | BS39: -0.03893614129 | BT39: 0.03091274501 | BU39: 0.0001129876801 | BV39: 15 | BW39: 1.884955592 | BX39: 0.1198331211 | BY39: -0.03893614129 | BZ39: 0.03396981789 | CA39: 0.006444404509 | CB39: 15 | CC39: 1.884955592 | CD39: 0.1198331211 | CE39: -0.03893614129 | CF39: 0.03747639239 | CG39: 0.01253837439 | CH39: 15 | CI39: 1.884955592 | CJ39: 0.1198331211 | CK39: -0.03893614129 | CL39: 0.04141413617 | CM39: 0.01836303812 | CN39: 15 | CO39: 1.884955592 | CP39: 0.1198331211 | CQ39: -0.03893614129 | CR39: 0.04576246276 | CS39: 0.02388794441 | CT39: 15 | CU39: 1.884955592 | CV39: 0.1198331211 | CW39: -0.03893614129 | CX39: 0.05049863915 | CY39: 0.02908420911 | CZ39: 15 | DA39: 1.884955592 | DB39: 0.1198331211 | DC39: -0.03893614129 | DD39: 0.05559790466 | DE39: 0.03392466622 | DF39: 15 | DG39: 1.884955592 | DH39: 0.1198331211 | DI39: -0.03893614129 | DJ39: 0.06103360037 | DK39: 0.03838400986 | DL39: 15 | DM39: 1.884955592 | DN39: 0.1198331211 | DO39: -0.03893614129 | DP39: 0.06677730855 | DQ39: 0.04243892664 | DR39: 15 | DS39: 1.884955592 | DT39: 0.1198331211 | DU39: -0.03893614129 | DV39: 0.07279900113 | DW39: 0.04606821749 | DX39: 15 | DY39: 1.884955592 | DZ39: 0.1198331211 | EA39: -0.03893614129 | EB39: 0.07906719677 | EC39: 0.04925290853 | ED39: 15 | EE39: 1.884955592 | EF39: 0.1198331211 | EG39: -0.03893614129 | EH39: 0.08554912542 | EI39: 0.05197635022 | EJ39: 15 | EK39: 1.884955592 | EL39: 0.1198331211 | EM39: -0.03893614129 | EN39: 0.09221089962 | EO39: 0.05422430443 | EP39: 15 | EQ39: 1.884955592 | ER39: 0.1198331211 | ES39: -0.03893614129 | ET39: 0.09901769169 | EU39: 0.05598501889 | EV39: 15 | EW39: 1.884955592 | EX39: 0.1198331211 | EY39: -0.03893614129 | EZ39: 0.1059339158 | FA39: 0.05724928861 | FB39: 15 | FC39: 1.884955592 | FD39: 0.1198331211 | FE39: -0.03893614129 | FF39: 0.112923414 | FG39: 0.05801050398 | FH39: 15 | FI39: 1.884955592 | FJ39: 0.1198331211 | FK39: -0.03893614129 | FL39: 0.1199496452 | FM39: 0.05826468539 | FN39: 15 | FO39: 1.884955592 | FP39: 0.1198331211 | FQ39: -0.03893614129 | FR39: 0.1269758764 | FS39: 0.05801050398 | FT39: 15 | FU39: 1.884955592 | FV39: 0.1198331211 | FW39: -0.03893614129 | FX39: 0.1339653746 | FY39: 0.05724928861 | FZ39: 15 | GA39: 1.884955592 | GB39: 0.1198331211 | GC39: -0.03893614129 | GD39: 0.1408815987 | GE39: 0.05598501889 | GF39: 15 | GG39: 1.884955592 | GH39: 0.1198331211 | GI39: -0.03893614129 | GJ39: 0.1476883908 | GK39: 0.05422430443 | GL39: 15 | GM39: 1.884955592 | GN39: 0.1198331211 | GO39: -0.03893614129 | GP39: 0.154350165 | GQ39: 0.05197635022 | GR39: 15 | GS39: 1.884955592 | GT39: 0.1198331211 | GU39: -0.03893614129 | GV39: 0.1608320936 | GW39: 0.04925290853 | GX39: 15 | GY39: 1.884955592 | GZ39: 0.1198331211 | HA39: -0.03893614129 | HB39: 0.1671002893 | HC39: 0.04606821749 | HD39: 15 | HE39: 1.884955592 | HF39: 0.1198331211 | HG39: -0.03893614129 | HH39: 0.1731219819 | HI39: 0.04243892664 | HJ39: 15 | HK39: 1.884955592 | HL39: 0.1198331211 | HM39: -0.03893614129 | HN39: 0.17886569 | HO39: 0.03838400986 | HP39: 15 | HQ39: 1.884955592 | HR39: 0.1198331211 | HS39: -0.03893614129 | HT39: 0.1843013858 | HU39: 0.03392466622 | HV39: 15 | HW39: 1.884955592 | HX39: 0.1198331211 | HY39: -0.03893614129 | HZ39: 0.1894006513 | IA39: 0.02908420911 | IB39: 15 | IC39: 1.884955592 | ID39: 0.1198331211 | IE39: -0.03893614129 | IF39: 0.1941368277 | IG39: 0.02388794441 | IH39: 15 | II39: 1.884955592 | IJ39: 0.1198331211 | IK39: -0.03893614129 | IL39: 0.1984851542 | IM39: 0.01836303812 | IN39: 15 | IO39: 1.884955592 | IP39: 0.1198331211 | IQ39: -0.03893614129 | IR39: 0.202422898 | IS39: 0.01253837439 | IT39: 15 | IU39: 1.884955592 | IV39: 0.1198331211 | IW39: -0.03893614129 | IX39: 0.2059294725 | IY39: 0.006444404509 | IZ39: 15 | JA39: 1.884955592 | JB39: 0.1198331211 | JC39: -0.03893614129 | JD39: 0.2089865454 | JE39: 0.0001129876801 | JF39: 15 | JG39: 1.884955592 | JH39: 0.1198331211 | JI39: -0.03893614129 | JJ39: 0.2115781343 | JK39: -0.006422775515 | JL39: 15 | JM39: 1.884955592 | JN39: 0.1198331211 | JO39: -0.03893614129 | JP39: 0.2136906905 | JQ39: -0.01312871618 | JR39: 15 | JS39: 1.884955592 | JT39: 0.1198331211 | JU39: -0.03893614129 | JV39: 0.2153131694 | JW39: -0.01996977572 | JX39: 15 | JY39: 1.884955592 | JZ39: 0.1198331211 | KA39: -0.03893614129 | KB39: 0.2164370889 | KC39: -0.02691018915 | KD39: 15 | KE39: 1.884955592 | KF39: 0.1198331211 | KG39: -0.03893614129 | KH39: 0.2170565731 | KI39: -0.03391367208 | KJ39: 15 | KK39: 1.884955592 | KL39: 0.1198331211 | KM39: -0.03893614129 | KN39: 0.2171683832 | KO39: -0.04094361035 | KP39: 15 | KQ39: 1.884955592 | KR39: 0.1198331211 | KS39: -0.03893614129 | KT39: 0.2167719349 | KU39: -0.04796325153 | KV39: 15 | KW39: 1.884955592 | KX39: 0.1198331211 | KY39: -0.03893614129 | KZ39: 0.2158693006 | LA39: -0.05493589702 | LB39: 15 | LC39: 0.9424777961 | LD39: 0.1019361413 | LE39: 0.07406094179 | LF39: 0.1965508169 | LG39: 0.05128186607
B40: 17 | C40: 2.010619298 | D40: 0.1140082086 | E40: -0.05364819074 | F40: 0.01960351445 | G40: -0.07655144914 | H40: 16 | I40: 2.010619298 | J40: 0.1140082086 | K40: -0.05364819074 | N40: 16 | O40: 2.010619298 | P40: 0.1140082086 | Q40: -0.05364819074 | R40: 0.01960351445 | S40: -0.07655144914 | T40: 16 | U40: 2.010619298 | V40: 0.1140082086 | W40: -0.05364819074 | X40: 0.01819941327 | Y40: -0.06966225227 | Z40: 16 | AA40: 2.010619298 | AB40: 0.1140082086 | AC40: -0.05364819074 | AD40: 0.01729677902 | AE40: -0.06268960678 | AF40: 16 | AG40: 2.010619298 | AH40: 0.1140082086 | AI40: -0.05364819074 | AJ40: 0.01690033066 | AK40: -0.0556699656 | AL40: 16 | AM40: 2.010619298 | AN40: 0.1140082086 | AO40: -0.05364819074 | AP40: 0.01701214083 | AQ40: -0.04864002733 | AR40: 16 | AS40: 2.010619298 | AT40: 0.1140082086 | AU40: -0.05364819074 | AV40: 0.01763162499 | AW40: -0.0416365444 | AX40: 16 | AY40: 2.010619298 | AZ40: 0.1140082086 | BA40: -0.05364819074 | BB40: 0.01875554447 | BC40: -0.03469613097 | BD40: 16 | BE40: 2.010619298 | BF40: 0.1140082086 | BG40: -0.05364819074 | BH40: 0.02037802343 | BI40: -0.02785507143 | BJ40: 16 | BK40: 2.010619298 | BL40: 0.1140082086 | BM40: -0.05364819074 | BN40: 0.02249057958 | BO40: -0.02114913076 | BP40: 16 | BQ40: 2.010619298 | BR40: 0.1140082086 | BS40: -0.05364819074 | BT40: 0.0250821685 | BU40: -0.01461336757 | BV40: 16 | BW40: 2.010619298 | BX40: 0.1140082086 | BY40: -0.05364819074 | BZ40: 0.02813924138 | CA40: -0.008281950741 | CB40: 16 | CC40: 2.010619298 | CD40: 0.1140082086 | CE40: -0.05364819074 | CF40: 0.03164581588 | CG40: -0.002187980858 | CH40: 16 | CI40: 2.010619298 | CJ40: 0.1140082086 | CK40: -0.05364819074 | CL40: 0.03558355966 | CM40: 0.003636682869 | CN40: 16 | CO40: 2.010619298 | CP40: 0.1140082086 | CQ40: -0.05364819074 | CR40: 0.03993188625 | CS40: 0.00916158916 | CT40: 16 | CU40: 2.010619298 | CV40: 0.1140082086 | CW40: -0.05364819074 | CX40: 0.04466806264 | CY40: 0.01435785387 | CZ40: 16 | DA40: 2.010619298 | DB40: 0.1140082086 | DC40: -0.05364819074 | DD40: 0.04976732815 | DE40: 0.01919831097 | DF40: 16 | DG40: 2.010619298 | DH40: 0.1140082086 | DI40: -0.05364819074 | DJ40: 0.05520302386 | DK40: 0.02365765461 | DL40: 16 | DM40: 2.010619298 | DN40: 0.1140082086 | DO40: -0.05364819074 | DP40: 0.06094673204 | DQ40: 0.02771257139 | DR40: 16 | DS40: 2.010619298 | DT40: 0.1140082086 | DU40: -0.05364819074 | DV40: 0.06696842462 | DW40: 0.03134186224 | DX40: 16 | DY40: 2.010619298 | DZ40: 0.1140082086 | EA40: -0.05364819074 | EB40: 0.07323662026 | EC40: 0.03452655328 | ED40: 16 | EE40: 2.010619298 | EF40: 0.1140082086 | EG40: -0.05364819074 | EH40: 0.07971854891 | EI40: 0.03724999497 | EJ40: 16 | EK40: 2.010619298 | EL40: 0.1140082086 | EM40: -0.05364819074 | EN40: 0.08638032311 | EO40: 0.03949794918 | EP40: 16 | EQ40: 2.010619298 | ER40: 0.1140082086 | ES40: -0.05364819074 | ET40: 0.09318711518 | EU40: 0.04125866364 | EV40: 16 | EW40: 2.010619298 | EX40: 0.1140082086 | EY40: -0.05364819074 | EZ40: 0.1001033393 | FA40: 0.04252293336 | FB40: 16 | FC40: 2.010619298 | FD40: 0.1140082086 | FE40: -0.05364819074 | FF40: 0.1070928375 | FG40: 0.04328414873 | FH40: 16 | FI40: 2.010619298 | FJ40: 0.1140082086 | FK40: -0.05364819074 | FL40: 0.1141190687 | FM40: 0.04353833014 | FN40: 16 | FO40: 2.010619298 | FP40: 0.1140082086 | FQ40: -0.05364819074 | FR40: 0.1211452999 | FS40: 0.04328414873 | FT40: 16 | FU40: 2.010619298 | FV40: 0.1140082086 | FW40: -0.05364819074 | FX40: 0.1281347981 | FY40: 0.04252293336 | FZ40: 16 | GA40: 2.010619298 | GB40: 0.1140082086 | GC40: -0.05364819074 | GD40: 0.1350510222 | GE40: 0.04125866364 | GF40: 16 | GG40: 2.010619298 | GH40: 0.1140082086 | GI40: -0.05364819074 | GJ40: 0.1418578143 | GK40: 0.03949794918 | GL40: 16 | GM40: 2.010619298 | GN40: 0.1140082086 | GO40: -0.05364819074 | GP40: 0.1485195885 | GQ40: 0.03724999497 | GR40: 16 | GS40: 2.010619298 | GT40: 0.1140082086 | GU40: -0.05364819074 | GV40: 0.1550015171 | GW40: 0.03452655328 | GX40: 16 | GY40: 2.010619298 | GZ40: 0.1140082086 | HA40: -0.05364819074 | HB40: 0.1612697128 | HC40: 0.03134186224 | HD40: 16 | HE40: 2.010619298 | HF40: 0.1140082086 | HG40: -0.05364819074 | HH40: 0.1672914054 | HI40: 0.02771257139 | HJ40: 16 | HK40: 2.010619298 | HL40: 0.1140082086 | HM40: -0.05364819074 | HN40: 0.1730351135 | HO40: 0.02365765461 | HP40: 16 | HQ40: 2.010619298 | HR40: 0.1140082086 | HS40: -0.05364819074 | HT40: 0.1784708092 | HU40: 0.01919831097 | HV40: 16 | HW40: 2.010619298 | HX40: 0.1140082086 | HY40: -0.05364819074 | HZ40: 0.1835700748 | IA40: 0.01435785387 | IB40: 16 | IC40: 2.010619298 | ID40: 0.1140082086 | IE40: -0.05364819074 | IF40: 0.1883062511 | IG40: 0.00916158916 | IH40: 16 | II40: 2.010619298 | IJ40: 0.1140082086 | IK40: -0.05364819074 | IL40: 0.1926545777 | IM40: 0.003636682869 | IN40: 16 | IO40: 2.010619298 | IP40: 0.1140082086 | IQ40: -0.05364819074 | IR40: 0.1965923215 | IS40: -0.002187980858 | IT40: 16 | IU40: 2.010619298 | IV40: 0.1140082086 | IW40: -0.05364819074 | IX40: 0.200098896 | IY40: -0.008281950741 | IZ40: 16 | JA40: 2.010619298 | JB40: 0.1140082086 | JC40: -0.05364819074 | JD40: 0.2031559689 | JE40: -0.01461336757 | JF40: 16 | JG40: 2.010619298 | JH40: 0.1140082086 | JI40: -0.05364819074 | JJ40: 0.2057475578 | JK40: -0.02114913076 | JL40: 16 | JM40: 2.010619298 | JN40: 0.1140082086 | JO40: -0.05364819074 | JP40: 0.207860114 | JQ40: -0.02785507143 | JR40: 16 | JS40: 2.010619298 | JT40: 0.1140082086 | JU40: -0.05364819074 | JV40: 0.2094825929 | JW40: -0.03469613097 | JX40: 16 | JY40: 2.010619298 | JZ40: 0.1140082086 | KA40: -0.05364819074 | KB40: 0.2106065124 | KC40: -0.0416365444 | KD40: 16 | KE40: 2.010619298 | KF40: 0.1140082086 | KG40: -0.05364819074 | KH40: 0.2112259966 | KI40: -0.04864002733 | KJ40: 16 | KK40: 2.010619298 | KL40: 0.1140082086 | KM40: -0.05364819074 | KN40: 0.2113378067 | KO40: -0.0556699656 | KP40: 16 | KQ40: 2.010619298 | KR40: 0.1140082086 | KS40: -0.05364819074 | KT40: 0.2109413584 | KU40: -0.06268960678 | KV40: 16 | KW40: 2.010619298 | KX40: 0.1140082086 | KY40: -0.05364819074 | KZ40: 0.2100387241 | LA40: -0.06966225227 | LB40: 16 | LC40: 1.005309649 | LD40: 0.1063853186 | LE40: 0.06751417617 | LF40: 0.2010043205 | LG40: 0.04472873446
B41: 18 | C41: 2.136283004 | D41: 0.1063853186 | E41: -0.06751417617 | F41: 0.01197321206 | G41: -0.09043091767 | H41: 17 | I41: 2.136283004 | J41: 0.1063853186 | K41: -0.06751417617 | N41: 17 | O41: 2.136283004 | P41: 0.1063853186 | Q41: -0.06751417617 | R41: 0.01197321206 | S41: -0.09043091767 | T41: 17 | U41: 2.136283004 | V41: 0.1063853186 | W41: -0.06751417617 | X41: 0.01056911087 | Y41: -0.0835417208 | Z41: 17 | AA41: 2.136283004 | AB41: 0.1063853186 | AC41: -0.06751417617 | AD41: 0.00966647662 | AE41: -0.07656907532 | AF41: 17 | AG41: 2.136283004 | AH41: 0.1063853186 | AI41: -0.06751417617 | AJ41: 0.009270028265 | AK41: -0.06954943413 | AL41: 17 | AM41: 2.136283004 | AN41: 0.1063853186 | AO41: -0.06751417617 | AP41: 0.009381838436 | AQ41: -0.06251949586 | AR41: 17 | AS41: 2.136283004 | AT41: 0.1063853186 | AU41: -0.06751417617 | AV41: 0.01000132259 | AW41: -0.05551601294 | AX41: 17 | AY41: 2.136283004 | AZ41: 0.1063853186 | BA41: -0.06751417617 | BB41: 0.01112524207 | BC41: -0.0485755995 | BD41: 17 | BE41: 2.136283004 | BF41: 0.1063853186 | BG41: -0.06751417617 | BH41: 0.01274772104 | BI41: -0.04173453996 | BJ41: 17 | BK41: 2.136283004 | BL41: 0.1063853186 | BM41: -0.06751417617 | BN41: 0.01486027719 | BO41: -0.0350285993 | BP41: 17 | BQ41: 2.136283004 | BR41: 0.1063853186 | BS41: -0.06751417617 | BT41: 0.0174518661 | BU41: -0.0284928361 | BV41: 17 | BW41: 2.136283004 | BX41: 0.1063853186 | BY41: -0.06751417617 | BZ41: 0.02050893898 | CA41: -0.02216141927 | CB41: 17 | CC41: 2.136283004 | CD41: 0.1063853186 | CE41: -0.06751417617 | CF41: 0.02401551348 | CG41: -0.01606744939 | CH41: 17 | CI41: 2.136283004 | CJ41: 0.1063853186 | CK41: -0.06751417617 | CL41: 0.02795325727 | CM41: -0.01024278566 | CN41: 17 | CO41: 2.136283004 | CP41: 0.1063853186 | CQ41: -0.06751417617 | CR41: 0.03230158386 | CS41: -0.004717879372 | CT41: 17 | CU41: 2.136283004 | CV41: 0.1063853186 | CW41: -0.06751417617 | CX41: 0.03703776024 | CY41: 0.0004783853328 | CZ41: 17 | DA41: 2.136283004 | DB41: 0.1063853186 | DC41: -0.06751417617 | DD41: 0.04213702575 | DE41: 0.005318842435 | DF41: 17 | DG41: 2.136283004 | DH41: 0.1063853186 | DI41: -0.06751417617 | DJ41: 0.04757272147 | DK41: 0.009778186075 | DL41: 17 | DM41: 2.136283004 | DN41: 0.1063853186 | DO41: -0.06751417617 | DP41: 0.05331642964 | DQ41: 0.01383310285 | DR41: 17 | DS41: 2.136283004 | DT41: 0.1063853186 | DU41: -0.06751417617 | DV41: 0.05933812222 | DW41: 0.01746239371 | DX41: 17 | DY41: 2.136283004 | DZ41: 0.1063853186 | EA41: -0.06751417617 | EB41: 0.06560631787 | EC41: 0.02064708475 | ED41: 17 | EE41: 2.136283004 | EF41: 0.1063853186 | EG41: -0.06751417617 | EH41: 0.07208824652 | EI41: 0.02337052643 | EJ41: 17 | EK41: 2.136283004 | EL41: 0.1063853186 | EM41: -0.06751417617 | EN41: 0.07875002072 | EO41: 0.02561848065 | EP41: 17 | EQ41: 2.136283004 | ER41: 0.1063853186 | ES41: -0.06751417617 | ET41: 0.08555681278 | EU41: 0.02737919511 | EV41: 17 | EW41: 2.136283004 | EX41: 0.1063853186 | EY41: -0.06751417617 | EZ41: 0.09247303688 | FA41: 0.02864346483 | FB41: 17 | FC41: 2.136283004 | FD41: 0.1063853186 | FE41: -0.06751417617 | FF41: 0.09946253506 | FG41: 0.0294046802 | FH41: 17 | FI41: 2.136283004 | FJ41: 0.1063853186 | FK41: -0.06751417617 | FL41: 0.1064887663 | FM41: 0.02965886161 | FN41: 17 | FO41: 2.136283004 | FP41: 0.1063853186 | FQ41: -0.06751417617 | FR41: 0.1135149975 | FS41: 0.0294046802 | FT41: 17 | FU41: 2.136283004 | FV41: 0.1063853186 | FW41: -0.06751417617 | FX41: 0.1205044957 | FY41: 0.02864346483 | FZ41: 17 | GA41: 2.136283004 | GB41: 0.1063853186 | GC41: -0.06751417617 | GD41: 0.1274207198 | GE41: 0.02737919511 | GF41: 17 | GG41: 2.136283004 | GH41: 0.1063853186 | GI41: -0.06751417617 | GJ41: 0.1342275119 | GK41: 0.02561848065 | GL41: 17 | GM41: 2.136283004 | GN41: 0.1063853186 | GO41: -0.06751417617 | GP41: 0.1408892861 | GQ41: 0.02337052643 | GR41: 17 | GS41: 2.136283004 | GT41: 0.1063853186 | GU41: -0.06751417617 | GV41: 0.1473712147 | GW41: 0.02064708475 | GX41: 17 | GY41: 2.136283004 | GZ41: 0.1063853186 | HA41: -0.06751417617 | HB41: 0.1536394104 | HC41: 0.01746239371 | HD41: 17 | HE41: 2.136283004 | HF41: 0.1063853186 | HG41: -0.06751417617 | HH41: 0.159661103 | HI41: 0.01383310285 | HJ41: 17 | HK41: 2.136283004 | HL41: 0.1063853186 | HM41: -0.06751417617 | HN41: 0.1654048111 | HO41: 0.009778186075 | HP41: 17 | HQ41: 2.136283004 | HR41: 0.1063853186 | HS41: -0.06751417617 | HT41: 0.1708405069 | HU41: 0.005318842435 | HV41: 17 | HW41: 2.136283004 | HX41: 0.1063853186 | HY41: -0.06751417617 | HZ41: 0.1759397724 | IA41: 0.0004783853328 | IB41: 17 | IC41: 2.136283004 | ID41: 0.1063853186 | IE41: -0.06751417617 | IF41: 0.1806759487 | IG41: -0.004717879372 | IH41: 17 | II41: 2.136283004 | IJ41: 0.1063853186 | IK41: -0.06751417617 | IL41: 0.1850242753 | IM41: -0.01024278566 | IN41: 17 | IO41: 2.136283004 | IP41: 0.1063853186 | IQ41: -0.06751417617 | IR41: 0.1889620191 | IS41: -0.01606744939 | IT41: 17 | IU41: 2.136283004 | IV41: 0.1063853186 | IW41: -0.06751417617 | IX41: 0.1924685936 | IY41: -0.02216141927 | IZ41: 17 | JA41: 2.136283004 | JB41: 0.1063853186 | JC41: -0.06751417617 | JD41: 0.1955256665 | JE41: -0.0284928361 | JF41: 17 | JG41: 2.136283004 | JH41: 0.1063853186 | JI41: -0.06751417617 | JJ41: 0.1981172554 | JK41: -0.0350285993 | JL41: 17 | JM41: 2.136283004 | JN41: 0.1063853186 | JO41: -0.06751417617 | JP41: 0.2002298116 | JQ41: -0.04173453996 | JR41: 17 | JS41: 2.136283004 | JT41: 0.1063853186 | JU41: -0.06751417617 | JV41: 0.2018522905 | JW41: -0.0485755995 | JX41: 17 | JY41: 2.136283004 | JZ41: 0.1063853186 | KA41: -0.06751417617 | KB41: 0.20297621 | KC41: -0.05551601294 | KD41: 17 | KE41: 2.136283004 | KF41: 0.1063853186 | KG41: -0.06751417617 | KH41: 0.2035956942 | KI41: -0.06251949586 | KJ41: 17 | KK41: 2.136283004 | KL41: 0.1063853186 | KM41: -0.06751417617 | KN41: 0.2037075043 | KO41: -0.06954943413 | KP41: 17 | KQ41: 2.136283004 | KR41: 0.1063853186 | KS41: -0.06751417617 | KT41: 0.203311056 | KU41: -0.07656907532 | KV41: 17 | KW41: 2.136283004 | KX41: 0.1063853186 | KY41: -0.06751417617 | KZ41: 0.2024084217 | LA41: -0.0835417208 | LB41: 17 | LC41: 1.068141502 | LD41: 0.1104146417 | LE41: 0.06070096294 | LF41: 0.2050375617 | LG41: 0.03790889615
B42: 19 | C42: 2.261946711 | D42: 0.09708466859 | E42: -0.08031542271 | F42: 0.002663518205 | G42: -0.103244612 | H42: 18 | I42: 2.261946711 | J42: 0.09708466859 | K42: -0.08031542271 | N42: 18 | O42: 2.261946711 | P42: 0.09708466859 | Q42: -0.08031542271 | R42: 0.002663518205 | S42: -0.103244612 | T42: 18 | U42: 2.261946711 | V42: 0.09708466859 | W42: -0.08031542271 | X42: 0.001259417018 | Y42: -0.09635541511 | Z42: 18 | AA42: 2.261946711 | AB42: 0.09708466859 | AC42: -0.08031542271 | AD42: 0.0003567827661 | AE42: -0.08938276962 | AF42: 18 | AG42: 2.261946711 | AH42: 0.09708466859 | AI42: -0.08031542271 | AJ42: -3.96655884e-05 | AK42: -0.08236312844 | AL42: 18 | AM42: 2.261946711 | AN42: 0.09708466859 | AO42: -0.08031542271 | AP42: 7.214458236e-05 | AQ42: -0.07533319016 | AR42: 18 | AS42: 2.261946711 | AT42: 0.09708466859 | AU42: -0.08031542271 | AV42: 0.000691628736 | AW42: -0.06832970724 | AX42: 18 | AY42: 2.261946711 | AZ42: 0.09708466859 | BA42: -0.08031542271 | BB42: 0.001815548216 | BC42: -0.06138929381 | BD42: 18 | BE42: 2.261946711 | BF42: 0.09708466859 | BG42: -0.08031542271 | BH42: 0.003438027183 | BI42: -0.05454823426 | BJ42: 18 | BK42: 2.261946711 | BL42: 0.09708466859 | BM42: -0.08031542271 | BN42: 0.005550583335 | BO42: -0.0478422936 | BP42: 18 | BQ42: 2.261946711 | BR42: 0.09708466859 | BS42: -0.08031542271 | BT42: 0.00814217225 | BU42: -0.04130653041 | BV42: 18 | BW42: 2.261946711 | BX42: 0.09708466859 | BY42: -0.08031542271 | BZ42: 0.01119924513 | CA42: -0.03497511358 | CB42: 18 | CC42: 2.261946711 | CD42: 0.09708466859 | CE42: -0.08031542271 | CF42: 0.01470581963 | CG42: -0.0288811437 | CH42: 18 | CI42: 2.261946711 | CJ42: 0.09708466859 | CK42: -0.08031542271 | CL42: 0.01864356341 | CM42: -0.02305647997 | CN42: 18 | CO42: 2.261946711 | CP42: 0.09708466859 | CQ42: -0.08031542271 | CR42: 0.02299189 | CS42: -0.01753157368 | CT42: 18 | CU42: 2.261946711 | CV42: 0.09708466859 | CW42: -0.08031542271 | CX42: 0.02772806639 | CY42: -0.01233530897 | CZ42: 18 | DA42: 2.261946711 | DB42: 0.09708466859 | DC42: -0.08031542271 | DD42: 0.0328273319 | DE42: -0.007494851871 | DF42: 18 | DG42: 2.261946711 | DH42: 0.09708466859 | DI42: -0.08031542271 | DJ42: 0.03826302761 | DK42: -0.00303550823 | DL42: 18 | DM42: 2.261946711 | DN42: 0.09708466859 | DO42: -0.08031542271 | DP42: 0.04400673579 | DQ42: 0.001019408548 | DR42: 18 | DS42: 2.261946711 | DT42: 0.09708466859 | DU42: -0.08031542271 | DV42: 0.05002842837 | DW42: 0.004648699403 | DX42: 18 | DY42: 2.261946711 | DZ42: 0.09708466859 | EA42: -0.08031542271 | EB42: 0.05629662401 | EC42: 0.00783339044 | ED42: 18 | EE42: 2.261946711 | EF42: 0.09708466859 | EG42: -0.08031542271 | EH42: 0.06277855266 | EI42: 0.01055683213 | EJ42: 18 | EK42: 2.261946711 | EL42: 0.09708466859 | EM42: -0.08031542271 | EN42: 0.06944032686 | EO42: 0.01280478634 | EP42: 18 | EQ42: 2.261946711 | ER42: 0.09708466859 | ES42: -0.08031542271 | ET42: 0.07624711893 | EU42: 0.01456550081 | EV42: 18 | EW42: 2.261946711 | EX42: 0.09708466859 | EY42: -0.08031542271 | EZ42: 0.08316334303 | FA42: 0.01582977052 | FB42: 18 | FC42: 2.261946711 | FD42: 0.09708466859 | FE42: -0.08031542271 | FF42: 0.09015284121 | FG42: 0.0165909859 | FH42: 18 | FI42: 2.261946711 | FJ42: 0.09708466859 | FK42: -0.08031542271 | FL42: 0.09717907245 | FM42: 0.01684516731 | FN42: 18 | FO42: 2.261946711 | FP42: 0.09708466859 | FQ42: -0.08031542271 | FR42: 0.1042053037 | FS42: 0.0165909859 | FT42: 18 | FU42: 2.261946711 | FV42: 0.09708466859 | FW42: -0.08031542271 | FX42: 0.1111948019 | FY42: 0.01582977052 | FZ42: 18 | GA42: 2.261946711 | GB42: 0.09708466859 | GC42: -0.08031542271 | GD42: 0.118111026 | GE42: 0.01456550081 | GF42: 18 | GG42: 2.261946711 | GH42: 0.09708466859 | GI42: -0.08031542271 | GJ42: 0.124917818 | GK42: 0.01280478634 | GL42: 18 | GM42: 2.261946711 | GN42: 0.09708466859 | GO42: -0.08031542271 | GP42: 0.1315795922 | GQ42: 0.01055683213 | GR42: 18 | GS42: 2.261946711 | GT42: 0.09708466859 | GU42: -0.08031542271 | GV42: 0.1380615209 | GW42: 0.00783339044 | GX42: 18 | GY42: 2.261946711 | GZ42: 0.09708466859 | HA42: -0.08031542271 | HB42: 0.1443297165 | HC42: 0.004648699403 | HD42: 18 | HE42: 2.261946711 | HF42: 0.09708466859 | HG42: -0.08031542271 | HH42: 0.1503514091 | HI42: 0.001019408548 | HJ42: 18 | HK42: 2.261946711 | HL42: 0.09708466859 | HM42: -0.08031542271 | HN42: 0.1560951173 | HO42: -0.00303550823 | HP42: 18 | HQ42: 2.261946711 | HR42: 0.09708466859 | HS42: -0.08031542271 | HT42: 0.161530813 | HU42: -0.007494851871 | HV42: 18 | HW42: 2.261946711 | HX42: 0.09708466859 | HY42: -0.08031542271 | HZ42: 0.1666300785 | IA42: -0.01233530897 | IB42: 18 | IC42: 2.261946711 | ID42: 0.09708466859 | IE42: -0.08031542271 | IF42: 0.1713662549 | IG42: -0.01753157368 | IH42: 18 | II42: 2.261946711 | IJ42: 0.09708466859 | IK42: -0.08031542271 | IL42: 0.1757145815 | IM42: -0.02305647997 | IN42: 18 | IO42: 2.261946711 | IP42: 0.09708466859 | IQ42: -0.08031542271 | IR42: 0.1796523253 | IS42: -0.0288811437 | IT42: 18 | IU42: 2.261946711 | IV42: 0.09708466859 | IW42: -0.08031542271 | IX42: 0.1831588998 | IY42: -0.03497511358 | IZ42: 18 | JA42: 2.261946711 | JB42: 0.09708466859 | JC42: -0.08031542271 | JD42: 0.1862159726 | JE42: -0.04130653041 | JF42: 18 | JG42: 2.261946711 | JH42: 0.09708466859 | JI42: -0.08031542271 | JJ42: 0.1888075616 | JK42: -0.0478422936 | JL42: 18 | JM42: 2.261946711 | JN42: 0.09708466859 | JO42: -0.08031542271 | JP42: 0.1909201177 | JQ42: -0.05454823426 | JR42: 18 | JS42: 2.261946711 | JT42: 0.09708466859 | JU42: -0.08031542271 | JV42: 0.1925425967 | JW42: -0.06138929381 | JX42: 18 | JY42: 2.261946711 | JZ42: 0.09708466859 | KA42: -0.08031542271 | KB42: 0.1936665162 | KC42: -0.06832970724 | KD42: 18 | KE42: 2.261946711 | KF42: 0.09708466859 | KG42: -0.08031542271 | KH42: 0.1942860003 | KI42: -0.07533319016 | KJ42: 18 | KK42: 2.261946711 | KL42: 0.09708466859 | KM42: -0.08031542271 | KN42: 0.1943978105 | KO42: -0.08236312844 | KP42: 18 | KQ42: 2.261946711 | KR42: 0.09708466859 | KS42: -0.08031542271 | KT42: 0.1940013621 | KU42: -0.08938276962 | KV42: 18 | KW42: 2.261946711 | KX42: 0.09708466859 | KY42: -0.08031542271 | KZ42: 0.1930987279 | LA42: -0.09635541511 | LB42: 18 | LC42: 1.130973355 | LD42: 0.1140082086 | LE42: 0.05364819074 | LF42: 0.2086346229 | LG42: 0.03084926593
B43: 20 | C43: 2.387610417 | D43: 0.08625293535 | E43: -0.09185004706 | F43: -0.008178747673 | G43: -0.1147904524 | H43: 19 | I43: 2.387610417 | J43: 0.08625293535 | K43: -0.09185004706 | N43: 19 | O43: 2.387610417 | P43: 0.08625293535 | Q43: -0.09185004706 | R43: -0.008178747673 | S43: -0.1147904524 | T43: 19 | U43: 2.387610417 | V43: 0.08625293535 | W43: -0.09185004706 | X43: -0.00958284886 | Y43: -0.1079012556 | Z43: 19 | AA43: 2.387610417 | AB43: 0.08625293535 | AC43: -0.09185004706 | AD43: -0.01048548311 | AE43: -0.1009286101 | AF43: 19 | AG43: 2.387610417 | AH43: 0.08625293535 | AI43: -0.09185004706 | AJ43: -0.01088193147 | AK43: -0.0939089689 | AL43: 19 | AM43: 2.387610417 | AN43: 0.08625293535 | AO43: -0.09185004706 | AP43: -0.0107701213 | AQ43: -0.08687903063 | AR43: 19 | AS43: 2.387610417 | AT43: 0.08625293535 | AU43: -0.09185004706 | AV43: -0.01015063714 | AW43: -0.07987554771 | AX43: 19 | AY43: 2.387610417 | AZ43: 0.08625293535 | BA43: -0.09185004706 | BB43: -0.009026717662 | BC43: -0.07293513427 | BD43: 19 | BE43: 2.387610417 | BF43: 0.08625293535 | BG43: -0.09185004706 | BH43: -0.007404238695 | BI43: -0.06609407473 | BJ43: 19 | BK43: 2.387610417 | BL43: 0.08625293535 | BM43: -0.09185004706 | BN43: -0.005291682543 | BO43: -0.05938813407 | BP43: 19 | BQ43: 2.387610417 | BR43: 0.08625293535 | BS43: -0.09185004706 | BT43: -0.002700093628 | BU43: -0.05285237087 | BV43: 19 | BW43: 2.387610417 | BX43: 0.08625293535 | BY43: -0.09185004706 | BZ43: 0.0003569792517 | CA43: -0.04652095404 | CB43: 19 | CC43: 2.387610417 | CD43: 0.08625293535 | CE43: -0.09185004706 | CF43: 0.003863553751 | CG43: -0.04042698416 | CH43: 19 | CI43: 2.387610417 | CJ43: 0.08625293535 | CK43: -0.09185004706 | CL43: 0.007801297536 | CM43: -0.03460232043 | CN43: 19 | CO43: 2.387610417 | CP43: 0.08625293535 | CQ43: -0.09185004706 | CR43: 0.01214962413 | CS43: -0.02907741414 | CT43: 19 | CU43: 2.387610417 | CV43: 0.08625293535 | CW43: -0.09185004706 | CX43: 0.01688580051 | CY43: -0.02388114944 | CZ43: 19 | DA43: 2.387610417 | DB43: 0.08625293535 | DC43: -0.09185004706 | DD43: 0.02198506602 | DE43: -0.01904069233 | DF43: 19 | DG43: 2.387610417 | DH43: 0.08625293535 | DI43: -0.09185004706 | DJ43: 0.02742076174 | DK43: -0.01458134869 | DL43: 19 | DM43: 2.387610417 | DN43: 0.08625293535 | DO43: -0.09185004706 | DP43: 0.03316446991 | DQ43: -0.01052643192 | DR43: 19 | DS43: 2.387610417 | DT43: 0.08625293535 | DU43: -0.09185004706 | DV43: 0.03918616249 | DW43: -0.006897141061 | DX43: 19 | DY43: 2.387610417 | DZ43: 0.08625293535 | EA43: -0.09185004706 | EB43: 0.04545435814 | EC43: -0.003712450024 | ED43: 19 | EE43: 2.387610417 | EF43: 0.08625293535 | EG43: -0.09185004706 | EH43: 0.05193628679 | EI43: -0.0009890083358 | EJ43: 19 | EK43: 2.387610417 | EL43: 0.08625293535 | EM43: -0.09185004706 | EN43: 0.05859806099 | EO43: 0.00125894588 | EP43: 19 | EQ43: 2.387610417 | ER43: 0.08625293535 | ES43: -0.09185004706 | ET43: 0.06540485305 | EU43: 0.003019660343 | EV43: 19 | EW43: 2.387610417 | EX43: 0.08625293535 | EY43: -0.09185004706 | EZ43: 0.07232107715 | FA43: 0.004283930056 | FB43: 19 | FC43: 2.387610417 | FD43: 0.08625293535 | FE43: -0.09185004706 | FF43: 0.07931057533 | FG43: 0.005045145431 | FH43: 19 | FI43: 2.387610417 | FJ43: 0.08625293535 | FK43: -0.09185004706 | FL43: 0.08633680657 | FM43: 0.005299326842 | FN43: 19 | FO43: 2.387610417 | FP43: 0.08625293535 | FQ43: -0.09185004706 | FR43: 0.09336303781 | FS43: 0.005045145431 | FT43: 19 | FU43: 2.387610417 | FV43: 0.08625293535 | FW43: -0.09185004706 | FX43: 0.100352536 | FY43: 0.004283930056 | FZ43: 19 | GA43: 2.387610417 | GB43: 0.08625293535 | GC43: -0.09185004706 | GD43: 0.1072687601 | GE43: 0.003019660343 | GF43: 19 | GG43: 2.387610417 | GH43: 0.08625293535 | GI43: -0.09185004706 | GJ43: 0.1140755522 | GK43: 0.00125894588 | GL43: 19 | GM43: 2.387610417 | GN43: 0.08625293535 | GO43: -0.09185004706 | GP43: 0.1207373264 | GQ43: -0.0009890083358 | GR43: 19 | GS43: 2.387610417 | GT43: 0.08625293535 | GU43: -0.09185004706 | GV43: 0.127219255 | GW43: -0.003712450024 | GX43: 19 | GY43: 2.387610417 | GZ43: 0.08625293535 | HA43: -0.09185004706 | HB43: 0.1334874506 | HC43: -0.006897141061 | HD43: 19 | HE43: 2.387610417 | HF43: 0.08625293535 | HG43: -0.09185004706 | HH43: 0.1395091432 | HI43: -0.01052643192 | HJ43: 19 | HK43: 2.387610417 | HL43: 0.08625293535 | HM43: -0.09185004706 | HN43: 0.1452528514 | HO43: -0.01458134869 | HP43: 19 | HQ43: 2.387610417 | HR43: 0.08625293535 | HS43: -0.09185004706 | HT43: 0.1506885471 | HU43: -0.01904069233 | HV43: 19 | HW43: 2.387610417 | HX43: 0.08625293535 | HY43: -0.09185004706 | HZ43: 0.1557878126 | IA43: -0.02388114944 | IB43: 19 | IC43: 2.387610417 | ID43: 0.08625293535 | IE43: -0.09185004706 | IF43: 0.160523989 | IG43: -0.02907741414 | IH43: 19 | II43: 2.387610417 | IJ43: 0.08625293535 | IK43: -0.09185004706 | IL43: 0.1648723156 | IM43: -0.03460232043 | IN43: 19 | IO43: 2.387610417 | IP43: 0.08625293535 | IQ43: -0.09185004706 | IR43: 0.1688100594 | IS43: -0.04042698416 | IT43: 19 | IU43: 2.387610417 | IV43: 0.08625293535 | IW43: -0.09185004706 | IX43: 0.1723166339 | IY43: -0.04652095404 | IZ43: 19 | JA43: 2.387610417 | JB43: 0.08625293535 | JC43: -0.09185004706 | JD43: 0.1753737068 | JE43: -0.05285237087 | JF43: 19 | JG43: 2.387610417 | JH43: 0.08625293535 | JI43: -0.09185004706 | JJ43: 0.1779652957 | JK43: -0.05938813407 | JL43: 19 | JM43: 2.387610417 | JN43: 0.08625293535 | JO43: -0.09185004706 | JP43: 0.1800778518 | JQ43: -0.06609407473 | JR43: 19 | JS43: 2.387610417 | JT43: 0.08625293535 | JU43: -0.09185004706 | JV43: 0.1817003308 | JW43: -0.07293513427 | JX43: 19 | JY43: 2.387610417 | JZ43: 0.08625293535 | KA43: -0.09185004706 | KB43: 0.1828242503 | KC43: -0.07987554771 | KD43: 19 | KE43: 2.387610417 | KF43: 0.08625293535 | KG43: -0.09185004706 | KH43: 0.1834437344 | KI43: -0.08687903063 | KJ43: 19 | KK43: 2.387610417 | KL43: 0.08625293535 | KM43: -0.09185004706 | KN43: 0.1835555446 | KO43: -0.0939089689 | KP43: 19 | KQ43: 2.387610417 | KR43: 0.08625293535 | KS43: -0.09185004706 | KT43: 0.1831590963 | KU43: -0.1009286101 | KV43: 19 | KW43: 2.387610417 | KX43: 0.08625293535 | KY43: -0.09185004706 | KZ43: 0.182256462 | LA43: -0.1079012556 | LB43: 19 | LC43: 1.193805208 | LD43: 0.1171518372 | LE43: 0.04638369364 | LF43: 0.2117813084 | LG43: 0.02357770493
B44: 21 | C44: 2.513274123 | D44: 0.07406094179 | E44: -0.1019361413 | F44: -0.02038259657 | G44: -0.1248863543 | H44: 20 | I44: 2.513274123 | J44: 0.07406094179 | K44: -0.1019361413 | N44: 20 | O44: 2.513274123 | P44: 0.07406094179 | Q44: -0.1019361413 | R44: -0.02038259657 | S44: -0.1248863543 | T44: 20 | U44: 2.513274123 | V44: 0.07406094179 | W44: -0.1019361413 | X44: -0.02178669775 | Y44: -0.1179971574 | Z44: 20 | AA44: 2.513274123 | AB44: 0.07406094179 | AC44: -0.1019361413 | AD44: -0.022689332 | AE44: -0.1110245119 | AF44: 20 | AG44: 2.513274123 | AH44: 0.07406094179 | AI44: -0.1019361413 | AJ44: -0.02308578036 | AK44: -0.1040048707 | AL44: 20 | AM44: 2.513274123 | AN44: 0.07406094179 | AO44: -0.1019361413 | AP44: -0.02297397019 | AQ44: -0.09697493245 | AR44: 20 | AS44: 2.513274123 | AT44: 0.07406094179 | AU44: -0.1019361413 | AV44: -0.02235448603 | AW44: -0.08997144953 | AX44: 20 | AY44: 2.513274123 | AZ44: 0.07406094179 | BA44: -0.1019361413 | BB44: -0.02123056655 | BC44: -0.08303103609 | BD44: 20 | BE44: 2.513274123 | BF44: 0.07406094179 | BG44: -0.1019361413 | BH44: -0.01960808759 | BI44: -0.07618997655 | BJ44: 20 | BK44: 2.513274123 | BL44: 0.07406094179 | BM44: -0.1019361413 | BN44: -0.01749553144 | BO44: -0.06948403589 | BP44: 20 | BQ44: 2.513274123 | BR44: 0.07406094179 | BS44: -0.1019361413 | BT44: -0.01490394252 | BU44: -0.06294827269 | BV44: 20 | BW44: 2.513274123 | BX44: 0.07406094179 | BY44: -0.1019361413 | BZ44: -0.01184686964 | CA44: -0.05661685586 | CB44: 20 | CC44: 2.513274123 | CD44: 0.07406094179 | CE44: -0.1019361413 | CF44: -0.008340295142 | CG44: -0.05052288598 | CH44: 20 | CI44: 2.513274123 | CJ44: 0.07406094179 | CK44: -0.1019361413 | CL44: -0.004402551356 | CM44: -0.04469822225 | CN44: 20 | CO44: 2.513274123 | CP44: 0.07406094179 | CQ44: -0.1019361413 | CR44: -5.422476757e-05 | CS44: -0.03917331596 | CT44: 20 | CU44: 2.513274123 | CV44: 0.07406094179 | CW44: -0.1019361413 | CX44: 0.004681951619 | CY44: -0.03397705126 | CZ44: 20 | DA44: 2.513274123 | DB44: 0.07406094179 | DC44: -0.1019361413 | DD44: 0.009781217125 | DE44: -0.02913659416 | DF44: 20 | DG44: 2.513274123 | DH44: 0.07406094179 | DI44: -0.1019361413 | DJ44: 0.01521691284 | DK44: -0.02467725052 | DL44: 20 | DM44: 2.513274123 | DN44: 0.07406094179 | DO44: -0.1019361413 | DP44: 0.02096062102 | DQ44: -0.02062233374 | DR44: 20 | DS44: 2.513274123 | DT44: 0.07406094179 | DU44: -0.1019361413 | DV44: 0.0269823136 | DW44: -0.01699304288 | DX44: 20 | DY44: 2.513274123 | DZ44: 0.07406094179 | EA44: -0.1019361413 | EB44: 0.03325050924 | EC44: -0.01380835185 | ED44: 20 | EE44: 2.513274123 | EF44: 0.07406094179 | EG44: -0.1019361413 | EH44: 0.03973243789 | EI44: -0.01108491016 | EJ44: 20 | EK44: 2.513274123 | EL44: 0.07406094179 | EM44: -0.1019361413 | EN44: 0.04639421209 | EO44: -0.008836955942 | EP44: 20 | EQ44: 2.513274123 | ER44: 0.07406094179 | ES44: -0.1019361413 | ET44: 0.05320100416 | EU44: -0.007076241479 | EV44: 20 | EW44: 2.513274123 | EX44: 0.07406094179 | EY44: -0.1019361413 | EZ44: 0.06011722826 | FA44: -0.005811971766 | FB44: 20 | FC44: 2.513274123 | FD44: 0.07406094179 | FE44: -0.1019361413 | FF44: 0.06710672644 | FG44: -0.005050756391 | FH44: 20 | FI44: 2.513274123 | FJ44: 0.07406094179 | FK44: -0.1019361413 | FL44: 0.07413295768 | FM44: -0.00479657498 | FN44: 20 | FO44: 2.513274123 | FP44: 0.07406094179 | FQ44: -0.1019361413 | FR44: 0.08115918892 | FS44: -0.005050756391 | FT44: 20 | FU44: 2.513274123 | FV44: 0.07406094179 | FW44: -0.1019361413 | FX44: 0.0881486871 | FY44: -0.005811971766 | FZ44: 20 | GA44: 2.513274123 | GB44: 0.07406094179 | GC44: -0.1019361413 | GD44: 0.09506491119 | GE44: -0.007076241479 | GF44: 20 | GG44: 2.513274123 | GH44: 0.07406094179 | GI44: -0.1019361413 | GJ44: 0.1018717033 | GK44: -0.008836955942 | GL44: 20 | GM44: 2.513274123 | GN44: 0.07406094179 | GO44: -0.1019361413 | GP44: 0.1085334775 | GQ44: -0.01108491016 | GR44: 20 | GS44: 2.513274123 | GT44: 0.07406094179 | GU44: -0.1019361413 | GV44: 0.1150154061 | GW44: -0.01380835185 | GX44: 20 | GY44: 2.513274123 | GZ44: 0.07406094179 | HA44: -0.1019361413 | HB44: 0.1212836018 | HC44: -0.01699304288 | HD44: 20 | HE44: 2.513274123 | HF44: 0.07406094179 | HG44: -0.1019361413 | HH44: 0.1273052943 | HI44: -0.02062233374 | HJ44: 20 | HK44: 2.513274123 | HL44: 0.07406094179 | HM44: -0.1019361413 | HN44: 0.1330490025 | HO44: -0.02467725052 | HP44: 20 | HQ44: 2.513274123 | HR44: 0.07406094179 | HS44: -0.1019361413 | HT44: 0.1384846982 | HU44: -0.02913659416 | HV44: 20 | HW44: 2.513274123 | HX44: 0.07406094179 | HY44: -0.1019361413 | HZ44: 0.1435839637 | IA44: -0.03397705126 | IB44: 20 | IC44: 2.513274123 | ID44: 0.07406094179 | IE44: -0.1019361413 | IF44: 0.1483201401 | IG44: -0.03917331596 | IH44: 20 | II44: 2.513274123 | IJ44: 0.07406094179 | IK44: -0.1019361413 | IL44: 0.1526684667 | IM44: -0.04469822225 | IN44: 20 | IO44: 2.513274123 | IP44: 0.07406094179 | IQ44: -0.1019361413 | IR44: 0.1566062105 | IS44: -0.05052288598 | IT44: 20 | IU44: 2.513274123 | IV44: 0.07406094179 | IW44: -0.1019361413 | IX44: 0.160112785 | IY44: -0.05661685586 | IZ44: 20 | JA44: 2.513274123 | JB44: 0.07406094179 | JC44: -0.1019361413 | JD44: 0.1631698579 | JE44: -0.06294827269 | JF44: 20 | JG44: 2.513274123 | JH44: 0.07406094179 | JI44: -0.1019361413 | JJ44: 0.1657614468 | JK44: -0.06948403589 | JL44: 20 | JM44: 2.513274123 | JN44: 0.07406094179 | JO44: -0.1019361413 | JP44: 0.1678740029 | JQ44: -0.07618997655 | JR44: 20 | JS44: 2.513274123 | JT44: 0.07406094179 | JU44: -0.1019361413 | JV44: 0.1694964819 | JW44: -0.08303103609 | JX44: 20 | JY44: 2.513274123 | JZ44: 0.07406094179 | KA44: -0.1019361413 | KB44: 0.1706204014 | KC44: -0.08997144953 | KD44: 20 | KE44: 2.513274123 | KF44: 0.07406094179 | KG44: -0.1019361413 | KH44: 0.1712398855 | KI44: -0.09697493245 | KJ44: 20 | KK44: 2.513274123 | KL44: 0.07406094179 | KM44: -0.1019361413 | KN44: 0.1713516957 | KO44: -0.1040048707 | KP44: 20 | KQ44: 2.513274123 | KR44: 0.07406094179 | KS44: -0.1019361413 | KT44: 0.1709552474 | KU44: -0.1110245119 | KV44: 20 | KW44: 2.513274123 | KX44: 0.07406094179 | KY44: -0.1019361413 | KZ44: 0.1700526131 | LA44: -0.1179971574 | LB44: 20 | LC44: 1.256637061 | LD44: 0.1198331211 | LE44: 0.03893614129 | LF44: 0.2144651994 | LG44: 0.01612291068
B45: 22 | C45: 2.638937829 | D45: 0.06070096294 | E45: -0.1104146417 | F45: -0.03375556649 | G45: -0.133373099 | H45: 21 | I45: 2.638937829 | J45: 0.06070096294 | K45: -0.1104146417 | N45: 21 | O45: 2.638937829 | P45: 0.06070096294 | Q45: -0.1104146417 | R45: -0.03375556649 | S45: -0.133373099 | T45: 21 | U45: 2.638937829 | V45: 0.06070096294 | W45: -0.1104146417 | X45: -0.03515966767 | Y45: -0.1264839022 | Z45: 21 | AA45: 2.638937829 | AB45: 0.06070096294 | AC45: -0.1104146417 | AD45: -0.03606230192 | AE45: -0.1195112567 | AF45: 21 | AG45: 2.638937829 | AH45: 0.06070096294 | AI45: -0.1104146417 | AJ45: -0.03645875028 | AK45: -0.1124916155 | AL45: 21 | AM45: 2.638937829 | AN45: 0.06070096294 | AO45: -0.1104146417 | AP45: -0.03634694011 | AQ45: -0.1054616772 | AR45: 21 | AS45: 2.638937829 | AT45: 0.06070096294 | AU45: -0.1104146417 | AV45: -0.03572745595 | AW45: -0.0984581943 | AX45: 21 | AY45: 2.638937829 | AZ45: 0.06070096294 | BA45: -0.1104146417 | BB45: -0.03460353647 | BC45: -0.09151778087 | BD45: 21 | BE45: 2.638937829 | BF45: 0.06070096294 | BG45: -0.1104146417 | BH45: -0.03298105751 | BI45: -0.08467672133 | BJ45: 21 | BK45: 2.638937829 | BL45: 0.06070096294 | BM45: -0.1104146417 | BN45: -0.03086850136 | BO45: -0.07797078067 | BP45: 21 | BQ45: 2.638937829 | BR45: 0.06070096294 | BS45: -0.1104146417 | BT45: -0.02827691244 | BU45: -0.07143501747 | BV45: 21 | BW45: 2.638937829 | BX45: 0.06070096294 | BY45: -0.1104146417 | BZ45: -0.02521983956 | CA45: -0.06510360064 | CB45: 21 | CC45: 2.638937829 | CD45: 0.06070096294 | CE45: -0.1104146417 | CF45: -0.02171326506 | CG45: -0.05900963076 | CH45: 21 | CI45: 2.638937829 | CJ45: 0.06070096294 | CK45: -0.1104146417 | CL45: -0.01777552128 | CM45: -0.05318496703 | CN45: 21 | CO45: 2.638937829 | CP45: 0.06070096294 | CQ45: -0.1104146417 | CR45: -0.01342719469 | CS45: -0.04766006074 | CT45: 21 | CU45: 2.638937829 | CV45: 0.06070096294 | CW45: -0.1104146417 | CX45: -0.008691018301 | CY45: -0.04246379604 | CZ45: 21 | DA45: 2.638937829 | DB45: 0.06070096294 | DC45: -0.1104146417 | DD45: -0.003591752795 | DE45: -0.03762333893 | DF45: 21 | DG45: 2.638937829 | DH45: 0.06070096294 | DI45: -0.1104146417 | DJ45: 0.001843942924 | DK45: -0.03316399529 | DL45: 21 | DM45: 2.638937829 | DN45: 0.06070096294 | DO45: -0.1104146417 | DP45: 0.007587651096 | DQ45: -0.02910907851 | DR45: 21 | DS45: 2.638937829 | DT45: 0.06070096294 | DU45: -0.1104146417 | DV45: 0.01360934368 | DW45: -0.02547978766 | DX45: 21 | DY45: 2.638937829 | DZ45: 0.06070096294 | EA45: -0.1104146417 | EB45: 0.01987753932 | EC45: -0.02229509662 | ED45: 21 | EE45: 2.638937829 | EF45: 0.06070096294 | EG45: -0.1104146417 | EH45: 0.02635946797 | EI45: -0.01957165493 | EJ45: 21 | EK45: 2.638937829 | EL45: 0.06070096294 | EM45: -0.1104146417 | EN45: 0.03302124217 | EO45: -0.01732370072 | EP45: 21 | EQ45: 2.638937829 | ER45: 0.06070096294 | ES45: -0.1104146417 | ET45: 0.03982803424 | EU45: -0.01556298626 | EV45: 21 | EW45: 2.638937829 | EX45: 0.06070096294 | EY45: -0.1104146417 | EZ45: 0.04674425834 | FA45: -0.01429871654 | FB45: 21 | FC45: 2.638937829 | FD45: 0.06070096294 | FE45: -0.1104146417 | FF45: 0.05373375651 | FG45: -0.01353750117 | FH45: 21 | FI45: 2.638937829 | FJ45: 0.06070096294 | FK45: -0.1104146417 | FL45: 0.06075998776 | FM45: -0.01328331976 | FN45: 21 | FO45: 2.638937829 | FP45: 0.06070096294 | FQ45: -0.1104146417 | FR45: 0.067786219 | FS45: -0.01353750117 | FT45: 21 | FU45: 2.638937829 | FV45: 0.06070096294 | FW45: -0.1104146417 | FX45: 0.07477571718 | FY45: -0.01429871654 | FZ45: 21 | GA45: 2.638937829 | GB45: 0.06070096294 | GC45: -0.1104146417 | GD45: 0.08169194127 | GE45: -0.01556298626 | GF45: 21 | GG45: 2.638937829 | GH45: 0.06070096294 | GI45: -0.1104146417 | GJ45: 0.08849873334 | GK45: -0.01732370072 | GL45: 21 | GM45: 2.638937829 | GN45: 0.06070096294 | GO45: -0.1104146417 | GP45: 0.09516050754 | GQ45: -0.01957165493 | GR45: 21 | GS45: 2.638937829 | GT45: 0.06070096294 | GU45: -0.1104146417 | GV45: 0.1016424362 | GW45: -0.02229509662 | GX45: 21 | GY45: 2.638937829 | GZ45: 0.06070096294 | HA45: -0.1104146417 | HB45: 0.1079106318 | HC45: -0.02547978766 | HD45: 21 | HE45: 2.638937829 | HF45: 0.06070096294 | HG45: -0.1104146417 | HH45: 0.1139323244 | HI45: -0.02910907851 | HJ45: 21 | HK45: 2.638937829 | HL45: 0.06070096294 | HM45: -0.1104146417 | HN45: 0.1196760326 | HO45: -0.03316399529 | HP45: 21 | HQ45: 2.638937829 | HR45: 0.06070096294 | HS45: -0.1104146417 | HT45: 0.1251117283 | HU45: -0.03762333893 | HV45: 21 | HW45: 2.638937829 | HX45: 0.06070096294 | HY45: -0.1104146417 | HZ45: 0.1302109938 | IA45: -0.04246379604 | IB45: 21 | IC45: 2.638937829 | ID45: 0.06070096294 | IE45: -0.1104146417 | IF45: 0.1349471702 | IG45: -0.04766006074 | IH45: 21 | II45: 2.638937829 | IJ45: 0.06070096294 | IK45: -0.1104146417 | IL45: 0.1392954968 | IM45: -0.05318496703 | IN45: 21 | IO45: 2.638937829 | IP45: 0.06070096294 | IQ45: -0.1104146417 | IR45: 0.1432332406 | IS45: -0.05900963076 | IT45: 21 | IU45: 2.638937829 | IV45: 0.06070096294 | IW45: -0.1104146417 | IX45: 0.1467398151 | IY45: -0.06510360064 | IZ45: 21 | JA45: 2.638937829 | JB45: 0.06070096294 | JC45: -0.1104146417 | JD45: 0.149796888 | JE45: -0.07143501747 | JF45: 21 | JG45: 2.638937829 | JH45: 0.06070096294 | JI45: -0.1104146417 | JJ45: 0.1523884769 | JK45: -0.07797078067 | JL45: 21 | JM45: 2.638937829 | JN45: 0.06070096294 | JO45: -0.1104146417 | JP45: 0.154501033 | JQ45: -0.08467672133 | JR45: 21 | JS45: 2.638937829 | JT45: 0.06070096294 | JU45: -0.1104146417 | JV45: 0.156123512 | JW45: -0.09151778087 | JX45: 21 | JY45: 2.638937829 | JZ45: 0.06070096294 | KA45: -0.1104146417 | KB45: 0.1572474315 | KC45: -0.0984581943 | KD45: 21 | KE45: 2.638937829 | KF45: 0.06070096294 | KG45: -0.1104146417 | KH45: 0.1578669156 | KI45: -0.1054616772 | KJ45: 21 | KK45: 2.638937829 | KL45: 0.06070096294 | KM45: -0.1104146417 | KN45: 0.1579787258 | KO45: -0.1124916155 | KP45: 21 | KQ45: 2.638937829 | KR45: 0.06070096294 | KS45: -0.1104146417 | KT45: 0.1575822774 | KU45: -0.1195112567 | KV45: 21 | KW45: 2.638937829 | KX45: 0.06070096294 | KY45: -0.1104146417 | KZ45: 0.1566796432 | LA45: -0.1264839022 | LB45: 21 | LC45: 1.319468915 | LD45: 0.1220414783 | LE45: 0.03133492578 | LF45: 0.2166757041 | LG45: 0.008514303849
B46: 23 | C46: 2.764601535 | D46: 0.04638369364 | E46: -0.1171518372 | F46: -0.04808675771 | G46: -0.1401168457 | H46: 22 | I46: 2.764601535 | J46: 0.04638369364 | K46: -0.1171518372 | N46: 22 | O46: 2.764601535 | P46: 0.04638369364 | Q46: -0.1171518372 | R46: -0.04808675771 | S46: -0.1401168457 | T46: 22 | U46: 2.764601535 | V46: 0.04638369364 | W46: -0.1171518372 | X46: -0.0494908589 | Y46: -0.1332276489 | Z46: 22 | AA46: 2.764601535 | AB46: 0.04638369364 | AC46: -0.1171518372 | AD46: -0.05039349315 | AE46: -0.1262550034 | AF46: 22 | AG46: 2.764601535 | AH46: 0.04638369364 | AI46: -0.1171518372 | AJ46: -0.0507899415 | AK46: -0.1192353622 | AL46: 22 | AM46: 2.764601535 | AN46: 0.04638369364 | AO46: -0.1171518372 | AP46: -0.05067813133 | AQ46: -0.1122054239 | AR46: 22 | AS46: 2.764601535 | AT46: 0.04638369364 | AU46: -0.1171518372 | AV46: -0.05005864718 | AW46: -0.105201941 | AX46: 22 | AY46: 2.764601535 | AZ46: 0.04638369364 | BA46: -0.1171518372 | BB46: -0.0489347277 | BC46: -0.09826152757 | BD46: 22 | BE46: 2.764601535 | BF46: 0.04638369364 | BG46: -0.1171518372 | BH46: -0.04731224873 | BI46: -0.09142046802 | BJ46: 22 | BK46: 2.764601535 | BL46: 0.04638369364 | BM46: -0.1171518372 | BN46: -0.04519969258 | BO46: -0.08471452736 | BP46: 22 | BQ46: 2.764601535 | BR46: 0.04638369364 | BS46: -0.1171518372 | BT46: -0.04260810366 | BU46: -0.07817876417 | BV46: 22 | BW46: 2.764601535 | BX46: 0.04638369364 | BY46: -0.1171518372 | BZ46: -0.03955103078 | CA46: -0.07184734734 | CB46: 22 | CC46: 2.764601535 | CD46: 0.04638369364 | CE46: -0.1171518372 | CF46: -0.03604445629 | CG46: -0.06575337746 | CH46: 22 | CI46: 2.764601535 | CJ46: 0.04638369364 | CK46: -0.1171518372 | CL46: -0.0321067125 | CM46: -0.05992871373 | CN46: 22 | CO46: 2.764601535 | CP46: 0.04638369364 | CQ46: -0.1171518372 | CR46: -0.02775838591 | CS46: -0.05440380744 | CT46: 22 | CU46: 2.764601535 | CV46: 0.04638369364 | CW46: -0.1171518372 | CX46: -0.02302220952 | CY46: -0.04920754273 | CZ46: 22 | DA46: 2.764601535 | DB46: 0.04638369364 | DC46: -0.1171518372 | DD46: -0.01792294402 | DE46: -0.04436708563 | DF46: 22 | DG46: 2.764601535 | DH46: 0.04638369364 | DI46: -0.1171518372 | DJ46: -0.0124872483 | DK46: -0.03990774199 | DL46: 22 | DM46: 2.764601535 | DN46: 0.04638369364 | DO46: -0.1171518372 | DP46: -0.006743540127 | DQ46: -0.03585282521 | DR46: 22 | DS46: 2.764601535 | DT46: 0.04638369364 | DU46: -0.1171518372 | DV46: -0.0007218475457 | DW46: -0.03222353436 | DX46: 22 | DY46: 2.764601535 | DZ46: 0.04638369364 | EA46: -0.1171518372 | EB46: 0.0055463481 | EC46: -0.02903884332 | ED46: 22 | EE46: 2.764601535 | EF46: 0.04638369364 | EG46: -0.1171518372 | EH46: 0.01202827675 | EI46: -0.02631540163 | EJ46: 22 | EK46: 2.764601535 | EL46: 0.04638369364 | EM46: -0.1171518372 | EN46: 0.01869005095 | EO46: -0.02406744742 | EP46: 22 | EQ46: 2.764601535 | ER46: 0.04638369364 | ES46: -0.1171518372 | ET46: 0.02549684302 | EU46: -0.02230673295 | EV46: 22 | EW46: 2.764601535 | EX46: 0.04638369364 | EY46: -0.1171518372 | EZ46: 0.03241306711 | FA46: -0.02104246324 | FB46: 22 | FC46: 2.764601535 | FD46: 0.04638369364 | FE46: -0.1171518372 | FF46: 0.03940256529 | FG46: -0.02028124786 | FH46: 22 | FI46: 2.764601535 | FJ46: 0.04638369364 | FK46: -0.1171518372 | FL46: 0.04642879653 | FM46: -0.02002706645 | FN46: 22 | FO46: 2.764601535 | FP46: 0.04638369364 | FQ46: -0.1171518372 | FR46: 0.05345502777 | FS46: -0.02028124786 | FT46: 22 | FU46: 2.764601535 | FV46: 0.04638369364 | FW46: -0.1171518372 | FX46: 0.06044452595 | FY46: -0.02104246324 | FZ46: 22 | GA46: 2.764601535 | GB46: 0.04638369364 | GC46: -0.1171518372 | GD46: 0.06736075005 | GE46: -0.02230673295 | GF46: 22 | GG46: 2.764601535 | GH46: 0.04638369364 | GI46: -0.1171518372 | GJ46: 0.07416754212 | GK46: -0.02406744742 | GL46: 22 | GM46: 2.764601535 | GN46: 0.04638369364 | GO46: -0.1171518372 | GP46: 0.08082931632 | GQ46: -0.02631540163 | GR46: 22 | GS46: 2.764601535 | GT46: 0.04638369364 | GU46: -0.1171518372 | GV46: 0.08731124497 | GW46: -0.02903884332 | GX46: 22 | GY46: 2.764601535 | GZ46: 0.04638369364 | HA46: -0.1171518372 | HB46: 0.09357944061 | HC46: -0.03222353436 | HD46: 22 | HE46: 2.764601535 | HF46: 0.04638369364 | HG46: -0.1171518372 | HH46: 0.09960113319 | HI46: -0.03585282521 | HJ46: 22 | HK46: 2.764601535 | HL46: 0.04638369364 | HM46: -0.1171518372 | HN46: 0.1053448414 | HO46: -0.03990774199 | HP46: 22 | HQ46: 2.764601535 | HR46: 0.04638369364 | HS46: -0.1171518372 | HT46: 0.1107805371 | HU46: -0.04436708563 | HV46: 22 | HW46: 2.764601535 | HX46: 0.04638369364 | HY46: -0.1171518372 | HZ46: 0.1158798026 | IA46: -0.04920754273 | IB46: 22 | IC46: 2.764601535 | ID46: 0.04638369364 | IE46: -0.1171518372 | IF46: 0.120615979 | IG46: -0.05440380744 | IH46: 22 | II46: 2.764601535 | IJ46: 0.04638369364 | IK46: -0.1171518372 | IL46: 0.1249643056 | IM46: -0.05992871373 | IN46: 22 | IO46: 2.764601535 | IP46: 0.04638369364 | IQ46: -0.1171518372 | IR46: 0.1289020494 | IS46: -0.06575337746 | IT46: 22 | IU46: 2.764601535 | IV46: 0.04638369364 | IW46: -0.1171518372 | IX46: 0.1324086239 | IY46: -0.07184734734 | IZ46: 22 | JA46: 2.764601535 | JB46: 0.04638369364 | JC46: -0.1171518372 | JD46: 0.1354656967 | JE46: -0.07817876417 | JF46: 22 | JG46: 2.764601535 | JH46: 0.04638369364 | JI46: -0.1171518372 | JJ46: 0.1380572856 | JK46: -0.08471452736 | JL46: 22 | JM46: 2.764601535 | JN46: 0.04638369364 | JO46: -0.1171518372 | JP46: 0.1401698418 | JQ46: -0.09142046802 | JR46: 22 | JS46: 2.764601535 | JT46: 0.04638369364 | JU46: -0.1171518372 | JV46: 0.1417923208 | JW46: -0.09826152757 | JX46: 22 | JY46: 2.764601535 | JZ46: 0.04638369364 | KA46: -0.1171518372 | KB46: 0.1429162402 | KC46: -0.105201941 | KD46: 22 | KE46: 2.764601535 | KF46: 0.04638369364 | KG46: -0.1171518372 | KH46: 0.1435357244 | KI46: -0.1122054239 | KJ46: 22 | KK46: 2.764601535 | KL46: 0.04638369364 | KM46: -0.1171518372 | KN46: 0.1436475346 | KO46: -0.1192353622 | KP46: 22 | KQ46: 2.764601535 | KR46: 0.04638369364 | KS46: -0.1171518372 | KT46: 0.1432510862 | KU46: -0.1262550034 | KV46: 22 | KW46: 2.764601535 | KX46: 0.04638369364 | KY46: -0.1171518372 | KZ46: 0.142348452 | LA46: -0.1332276489 | LB46: 22 | LC46: 1.382300768 | LD46: 0.1237681936 | LE46: 0.02361004564 | LF46: 0.2184040984 | LG46: 0.0007819121322
B47: 24 | C47: 2.890265241 | D47: 0.03133492578 | E47: -0.1220414783 | F47: -0.06315015879 | G47: -0.1450112414 | H47: 23 | I47: 2.890265241 | J47: 0.03133492578 | K47: -0.1220414783 | N47: 23 | O47: 2.890265241 | P47: 0.03133492578 | Q47: -0.1220414783 | R47: -0.06315015879 | S47: -0.1450112414 | T47: 23 | U47: 2.890265241 | V47: 0.03133492578 | W47: -0.1220414783 | X47: -0.06455425998 | Y47: -0.1381220446 | Z47: 23 | AA47: 2.890265241 | AB47: 0.03133492578 | AC47: -0.1220414783 | AD47: -0.06545689423 | AE47: -0.1311493991 | AF47: 23 | AG47: 2.890265241 | AH47: 0.03133492578 | AI47: -0.1220414783 | AJ47: -0.06585334258 | AK47: -0.1241297579 | AL47: 23 | AM47: 2.890265241 | AN47: 0.03133492578 | AO47: -0.1220414783 | AP47: -0.06574153241 | AQ47: -0.1170998196 | AR47: 23 | AS47: 2.890265241 | AT47: 0.03133492578 | AU47: -0.1220414783 | AV47: -0.06512204826 | AW47: -0.1100963367 | AX47: 23 | AY47: 2.890265241 | AZ47: 0.03133492578 | BA47: -0.1220414783 | BB47: -0.06399812878 | BC47: -0.1031559233 | BD47: 23 | BE47: 2.890265241 | BF47: 0.03133492578 | BG47: -0.1220414783 | BH47: -0.06237564981 | BI47: -0.09631486373 | BJ47: 23 | BK47: 2.890265241 | BL47: 0.03133492578 | BM47: -0.1220414783 | BN47: -0.06026309366 | BO47: -0.08960892307 | BP47: 23 | BQ47: 2.890265241 | BR47: 0.03133492578 | BS47: -0.1220414783 | BT47: -0.05767150474 | BU47: -0.08307315987 | BV47: 23 | BW47: 2.890265241 | BX47: 0.03133492578 | BY47: -0.1220414783 | BZ47: -0.05461443186 | CA47: -0.07674174304 | CB47: 23 | CC47: 2.890265241 | CD47: 0.03133492578 | CE47: -0.1220414783 | CF47: -0.05110785736 | CG47: -0.07064777316 | CH47: 23 | CI47: 2.890265241 | CJ47: 0.03133492578 | CK47: -0.1220414783 | CL47: -0.04717011358 | CM47: -0.06482310943 | CN47: 23 | CO47: 2.890265241 | CP47: 0.03133492578 | CQ47: -0.1220414783 | CR47: -0.04282178699 | CS47: -0.05929820314 | CT47: 23 | CU47: 2.890265241 | CV47: 0.03133492578 | CW47: -0.1220414783 | CX47: -0.0380856106 | CY47: -0.05410193844 | CZ47: 23 | DA47: 2.890265241 | DB47: 0.03133492578 | DC47: -0.1220414783 | DD47: -0.0329863451 | DE47: -0.04926148133 | DF47: 23 | DG47: 2.890265241 | DH47: 0.03133492578 | DI47: -0.1220414783 | DJ47: -0.02755064938 | DK47: -0.04480213769 | DL47: 23 | DM47: 2.890265241 | DN47: 0.03133492578 | DO47: -0.1220414783 | DP47: -0.02180694121 | DQ47: -0.04074722091 | DR47: 23 | DS47: 2.890265241 | DT47: 0.03133492578 | DU47: -0.1220414783 | DV47: -0.01578524863 | DW47: -0.03711793006 | DX47: 23 | DY47: 2.890265241 | DZ47: 0.03133492578 | EA47: -0.1220414783 | EB47: -0.00951705298 | EC47: -0.03393323902 | ED47: 23 | EE47: 2.890265241 | EF47: 0.03133492578 | EG47: -0.1220414783 | EH47: -0.00303512433 | EI47: -0.03120979733 | EJ47: 23 | EK47: 2.890265241 | EL47: 0.03133492578 | EM47: -0.1220414783 | EN47: 0.00362664987 | EO47: -0.02896184312 | EP47: 23 | EQ47: 2.890265241 | ER47: 0.03133492578 | ES47: -0.1220414783 | ET47: 0.01043344194 | EU47: -0.02720112866 | EV47: 23 | EW47: 2.890265241 | EX47: 0.03133492578 | EY47: -0.1220414783 | EZ47: 0.01734966603 | FA47: -0.02593685894 | FB47: 23 | FC47: 2.890265241 | FD47: 0.03133492578 | FE47: -0.1220414783 | FF47: 0.02433916421 | FG47: -0.02517564357 | FH47: 23 | FI47: 2.890265241 | FJ47: 0.03133492578 | FK47: -0.1220414783 | FL47: 0.03136539545 | FM47: -0.02492146216 | FN47: 23 | FO47: 2.890265241 | FP47: 0.03133492578 | FQ47: -0.1220414783 | FR47: 0.0383916267 | FS47: -0.02517564357 | FT47: 23 | FU47: 2.890265241 | FV47: 0.03133492578 | FW47: -0.1220414783 | FX47: 0.04538112487 | FY47: -0.02593685894 | FZ47: 23 | GA47: 2.890265241 | GB47: 0.03133492578 | GC47: -0.1220414783 | GD47: 0.05229734897 | GE47: -0.02720112866 | GF47: 23 | GG47: 2.890265241 | GH47: 0.03133492578 | GI47: -0.1220414783 | GJ47: 0.05910414104 | GK47: -0.02896184312 | GL47: 23 | GM47: 2.890265241 | GN47: 0.03133492578 | GO47: -0.1220414783 | GP47: 0.06576591524 | GQ47: -0.03120979733 | GR47: 23 | GS47: 2.890265241 | GT47: 0.03133492578 | GU47: -0.1220414783 | GV47: 0.07224784389 | GW47: -0.03393323902 | GX47: 23 | GY47: 2.890265241 | GZ47: 0.03133492578 | HA47: -0.1220414783 | HB47: 0.07851603953 | HC47: -0.03711793006 | HD47: 23 | HE47: 2.890265241 | HF47: 0.03133492578 | HG47: -0.1220414783 | HH47: 0.08453773211 | HI47: -0.04074722091 | HJ47: 23 | HK47: 2.890265241 | HL47: 0.03133492578 | HM47: -0.1220414783 | HN47: 0.09028144029 | HO47: -0.04480213769 | HP47: 23 | HQ47: 2.890265241 | HR47: 0.03133492578 | HS47: -0.1220414783 | HT47: 0.095717136 | HU47: -0.04926148133 | HV47: 23 | HW47: 2.890265241 | HX47: 0.03133492578 | HY47: -0.1220414783 | HZ47: 0.1008164015 | IA47: -0.05410193844 | IB47: 23 | IC47: 2.890265241 | ID47: 0.03133492578 | IE47: -0.1220414783 | IF47: 0.1055525779 | IG47: -0.05929820314 | IH47: 23 | II47: 2.890265241 | IJ47: 0.03133492578 | IK47: -0.1220414783 | IL47: 0.1099009045 | IM47: -0.06482310943 | IN47: 23 | IO47: 2.890265241 | IP47: 0.03133492578 | IQ47: -0.1220414783 | IR47: 0.1138386483 | IS47: -0.07064777316 | IT47: 23 | IU47: 2.890265241 | IV47: 0.03133492578 | IW47: -0.1220414783 | IX47: 0.1173452228 | IY47: -0.07674174304 | IZ47: 23 | JA47: 2.890265241 | JB47: 0.03133492578 | JC47: -0.1220414783 | JD47: 0.1204022957 | JE47: -0.08307315987 | JF47: 23 | JG47: 2.890265241 | JH47: 0.03133492578 | JI47: -0.1220414783 | JJ47: 0.1229938846 | JK47: -0.08960892307 | JL47: 23 | JM47: 2.890265241 | JN47: 0.03133492578 | JO47: -0.1220414783 | JP47: 0.1251064407 | JQ47: -0.09631486373 | JR47: 23 | JS47: 2.890265241 | JT47: 0.03133492578 | JU47: -0.1220414783 | JV47: 0.1267289197 | JW47: -0.1031559233 | JX47: 23 | JY47: 2.890265241 | JZ47: 0.03133492578 | KA47: -0.1220414783 | KB47: 0.1278528392 | KC47: -0.1100963367 | KD47: 23 | KE47: 2.890265241 | KF47: 0.03133492578 | KG47: -0.1220414783 | KH47: 0.1284723233 | KI47: -0.1170998196 | KJ47: 23 | KK47: 2.890265241 | KL47: 0.03133492578 | KM47: -0.1220414783 | KN47: 0.1285841335 | KO47: -0.1241297579 | KP47: 23 | KQ47: 2.890265241 | KR47: 0.03133492578 | KS47: -0.1220414783 | KT47: 0.1281876851 | KU47: -0.1311493991 | KV47: 23 | KW47: 2.890265241 | KX47: 0.03133492578 | KY47: -0.1220414783 | KZ47: 0.1272850509 | LA47: -0.1381220446 | LB47: 23 | LC47: 1.445132621 | LD47: 0.1250064524 | LE47: 0.01579198743 | LF47: 0.2196435612 | LG47: -0.007043748254
B48: 25 | C48: 3.015928947 | D48: 0.01579198743 | E48: -0.1250064524 | F48: -0.07870821089 | G48: -0.1479790986 | H48: 24 | I48: 3.015928947 | J48: 0.01579198743 | K48: -0.1250064524 | N48: 24 | O48: 3.015928947 | P48: 0.01579198743 | Q48: -0.1250064524 | R48: -0.07870821089 | S48: -0.1479790986 | T48: 24 | U48: 3.015928947 | V48: 0.01579198743 | W48: -0.1250064524 | X48: -0.08011231208 | Y48: -0.1410899017 | Z48: 24 | AA48: 3.015928947 | AB48: 0.01579198743 | AC48: -0.1250064524 | AD48: -0.08101494633 | AE48: -0.1341172562 | AF48: 24 | AG48: 3.015928947 | AH48: 0.01579198743 | AI48: -0.1250064524 | AJ48: -0.08141139469 | AK48: -0.1270976151 | AL48: 24 | AM48: 3.015928947 | AN48: 0.01579198743 | AO48: -0.1250064524 | AP48: -0.08129958451 | AQ48: -0.1200676768 | AR48: 24 | AS48: 3.015928947 | AT48: 0.01579198743 | AU48: -0.1250064524 | AV48: -0.08068010036 | AW48: -0.1130641939 | AX48: 24 | AY48: 3.015928947 | AZ48: 0.01579198743 | BA48: -0.1250064524 | BB48: -0.07955618088 | BC48: -0.1061237804 | BD48: 24 | BE48: 3.015928947 | BF48: 0.01579198743 | BG48: -0.1250064524 | BH48: -0.07793370191 | BI48: -0.09928272089 | BJ48: 24 | BK48: 3.015928947 | BL48: 0.01579198743 | BM48: -0.1250064524 | BN48: -0.07582114576 | BO48: -0.09257678023 | BP48: 24 | BQ48: 3.015928947 | BR48: 0.01579198743 | BS48: -0.1250064524 | BT48: -0.07322955685 | BU48: -0.08604101704 | BV48: 24 | BW48: 3.015928947 | BX48: 0.01579198743 | BY48: -0.1250064524 | BZ48: -0.07017248397 | CA48: -0.07970960021 | CB48: 24 | CC48: 3.015928947 | CD48: 0.01579198743 | CE48: -0.1250064524 | CF48: -0.06666590947 | CG48: -0.07361563032 | CH48: 24 | CI48: 3.015928947 | CJ48: 0.01579198743 | CK48: -0.1250064524 | CL48: -0.06272816568 | CM48: -0.0677909666 | CN48: 24 | CO48: 3.015928947 | CP48: 0.01579198743 | CQ48: -0.1250064524 | CR48: -0.05837983909 | CS48: -0.06226606031 | CT48: 24 | CU48: 3.015928947 | CV48: 0.01579198743 | CW48: -0.1250064524 | CX48: -0.05364366271 | CY48: -0.0570697956 | CZ48: 24 | DA48: 3.015928947 | DB48: 0.01579198743 | DC48: -0.1250064524 | DD48: -0.0485443972 | DE48: -0.0522293385 | DF48: 24 | DG48: 3.015928947 | DH48: 0.01579198743 | DI48: -0.1250064524 | DJ48: -0.04310870148 | DK48: -0.04776999486 | DL48: 24 | DM48: 3.015928947 | DN48: 0.01579198743 | DO48: -0.1250064524 | DP48: -0.03736499331 | DQ48: -0.04371507808 | DR48: 24 | DS48: 3.015928947 | DT48: 0.01579198743 | DU48: -0.1250064524 | DV48: -0.03134330073 | DW48: -0.04008578723 | DX48: 24 | DY48: 3.015928947 | DZ48: 0.01579198743 | EA48: -0.1250064524 | EB48: -0.02507510508 | EC48: -0.03690109619 | ED48: 24 | EE48: 3.015928947 | EF48: 0.01579198743 | EG48: -0.1250064524 | EH48: -0.01859317643 | EI48: -0.0341776545 | EJ48: 24 | EK48: 3.015928947 | EL48: 0.01579198743 | EM48: -0.1250064524 | EN48: -0.01193140223 | EO48: -0.03192970028 | EP48: 24 | EQ48: 3.015928947 | ER48: 0.01579198743 | ES48: -0.1250064524 | ET48: -0.005124610167 | EU48: -0.03016898582 | EV48: 24 | EW48: 3.015928947 | EX48: 0.01579198743 | EY48: -0.1250064524 | EZ48: 0.001791613929 | FA48: -0.02890471611 | FB48: 24 | FC48: 3.015928947 | FD48: 0.01579198743 | FE48: -0.1250064524 | FF48: 0.008781112109 | FG48: -0.02814350073 | FH48: 24 | FI48: 3.015928947 | FJ48: 0.01579198743 | FK48: -0.1250064524 | FL48: 0.01580734335 | FM48: -0.02788931932 | FN48: 24 | FO48: 3.015928947 | FP48: 0.01579198743 | FQ48: -0.1250064524 | FR48: 0.02283357459 | FS48: -0.02814350073 | FT48: 24 | FU48: 3.015928947 | FV48: 0.01579198743 | FW48: -0.1250064524 | FX48: 0.02982307277 | FY48: -0.02890471611 | FZ48: 24 | GA48: 3.015928947 | GB48: 0.01579198743 | GC48: -0.1250064524 | GD48: 0.03673929687 | GE48: -0.03016898582 | GF48: 24 | GG48: 3.015928947 | GH48: 0.01579198743 | GI48: -0.1250064524 | GJ48: 0.04354608893 | GK48: -0.03192970028 | GL48: 24 | GM48: 3.015928947 | GN48: 0.01579198743 | GO48: -0.1250064524 | GP48: 0.05020786313 | GQ48: -0.0341776545 | GR48: 24 | GS48: 3.015928947 | GT48: 0.01579198743 | GU48: -0.1250064524 | GV48: 0.05668979178 | GW48: -0.03690109619 | GX48: 24 | GY48: 3.015928947 | GZ48: 0.01579198743 | HA48: -0.1250064524 | HB48: 0.06295798743 | HC48: -0.04008578723 | HD48: 24 | HE48: 3.015928947 | HF48: 0.01579198743 | HG48: -0.1250064524 | HH48: 0.06897968001 | HI48: -0.04371507808 | HJ48: 24 | HK48: 3.015928947 | HL48: 0.01579198743 | HM48: -0.1250064524 | HN48: 0.07472338818 | HO48: -0.04776999486 | HP48: 24 | HQ48: 3.015928947 | HR48: 0.01579198743 | HS48: -0.1250064524 | HT48: 0.0801590839 | HU48: -0.0522293385 | HV48: 24 | HW48: 3.015928947 | HX48: 0.01579198743 | HY48: -0.1250064524 | HZ48: 0.08525834941 | IA48: -0.0570697956 | IB48: 24 | IC48: 3.015928947 | ID48: 0.01579198743 | IE48: -0.1250064524 | IF48: 0.08999452579 | IG48: -0.06226606031 | IH48: 24 | II48: 3.015928947 | IJ48: 0.01579198743 | IK48: -0.1250064524 | IL48: 0.09434285238 | IM48: -0.0677909666 | IN48: 24 | IO48: 3.015928947 | IP48: 0.01579198743 | IQ48: -0.1250064524 | IR48: 0.09828059617 | IS48: -0.07361563032 | IT48: 24 | IU48: 3.015928947 | IV48: 0.01579198743 | IW48: -0.1250064524 | IX48: 0.1017871707 | IY48: -0.07970960021 | IZ48: 24 | JA48: 3.015928947 | JB48: 0.01579198743 | JC48: -0.1250064524 | JD48: 0.1048442435 | JE48: -0.08604101704 | JF48: 24 | JG48: 3.015928947 | JH48: 0.01579198743 | JI48: -0.1250064524 | JJ48: 0.1074358325 | JK48: -0.09257678023 | JL48: 24 | JM48: 3.015928947 | JN48: 0.01579198743 | JO48: -0.1250064524 | JP48: 0.1095483886 | JQ48: -0.09928272089 | JR48: 24 | JS48: 3.015928947 | JT48: 0.01579198743 | JU48: -0.1250064524 | JV48: 0.1111708676 | JW48: -0.1061237804 | JX48: 24 | JY48: 3.015928947 | JZ48: 0.01579198743 | KA48: -0.1250064524 | KB48: 0.1122947871 | KC48: -0.1130641939 | KD48: 24 | KE48: 3.015928947 | KF48: 0.01579198743 | KG48: -0.1250064524 | KH48: 0.1129142712 | KI48: -0.1200676768 | KJ48: 24 | KK48: 3.015928947 | KL48: 0.01579198743 | KM48: -0.1250064524 | KN48: 0.1130260814 | KO48: -0.1270976151 | KP48: 24 | KQ48: 3.015928947 | KR48: 0.01579198743 | KS48: -0.1250064524 | KT48: 0.112629633 | KU48: -0.1341172562 | KV48: 24 | KW48: 3.015928947 | KX48: 0.01579198743 | KY48: -0.1250064524 | KZ48: 0.1117269988 | LA48: -0.1410899017 | LB48: 24 | LC48: 1.507964474 | LD48: 0.1257513678 | LE48: 0.007911605461 | LF48: 0.220389201 | LG48: -0.014931793
B49: 26 | C49: 3.141592654 | D49: 1.543687053e-17 | E49: -0.126 | F49: -0.09451555424 | G49: -0.1489736124 | H49: 25 | I49: 3.141592654 | J49: 1.543687053e-17 | K49: -0.126 | N49: 25 | O49: 3.141592654 | P49: 1.543687053e-17 | Q49: -0.126 | R49: -0.09451555424 | S49: -0.1489736124 | T49: 25 | U49: 3.141592654 | V49: 1.543687053e-17 | W49: -0.126 | X49: -0.09591965543 | Y49: -0.1420844155 | Z49: 25 | AA49: 3.141592654 | AB49: 1.543687053e-17 | AC49: -0.126 | AD49: -0.09682228968 | AE49: -0.13511177 | AF49: 25 | AG49: 3.141592654 | AH49: 1.543687053e-17 | AI49: -0.126 | AJ49: -0.09721873804 | AK49: -0.1280921288 | AL49: 25 | AM49: 3.141592654 | AN49: 1.543687053e-17 | AO49: -0.126 | AP49: -0.09710692787 | AQ49: -0.1210621905 | AR49: 25 | AS49: 3.141592654 | AT49: 1.543687053e-17 | AU49: -0.126 | AV49: -0.09648744371 | AW49: -0.1140587076 | AX49: 25 | AY49: 3.141592654 | AZ49: 1.543687053e-17 | BA49: -0.126 | BB49: -0.09536352423 | BC49: -0.1071182942 | BD49: 25 | BE49: 3.141592654 | BF49: 1.543687053e-17 | BG49: -0.126 | BH49: -0.09374104526 | BI49: -0.1002772346 | BJ49: 25 | BK49: 3.141592654 | BL49: 1.543687053e-17 | BM49: -0.126 | BN49: -0.09162848911 | BO49: -0.09357129398 | BP49: 25 | BQ49: 3.141592654 | BR49: 1.543687053e-17 | BS49: -0.126 | BT49: -0.0890369002 | BU49: -0.08703553078 | BV49: 25 | BW49: 3.141592654 | BX49: 1.543687053e-17 | BY49: -0.126 | BZ49: -0.08597982732 | CA49: -0.08070411395 | CB49: 25 | CC49: 3.141592654 | CD49: 1.543687053e-17 | CE49: -0.126 | CF49: -0.08247325282 | CG49: -0.07461014407 | CH49: 25 | CI49: 3.141592654 | CJ49: 1.543687053e-17 | CK49: -0.126 | CL49: -0.07853550903 | CM49: -0.06878548034 | CN49: 25 | CO49: 3.141592654 | CP49: 1.543687053e-17 | CQ49: -0.126 | CR49: -0.07418718244 | CS49: -0.06326057405 | CT49: 25 | CU49: 3.141592654 | CV49: 1.543687053e-17 | CW49: -0.126 | CX49: -0.06945100606 | CY49: -0.05806430935 | CZ49: 25 | DA49: 3.141592654 | DB49: 1.543687053e-17 | DC49: -0.126 | DD49: -0.06435174055 | DE49: -0.05322385225 | DF49: 25 | DG49: 3.141592654 | DH49: 1.543687053e-17 | DI49: -0.126 | DJ49: -0.05891604483 | DK49: -0.04876450861 | DL49: 25 | DM49: 3.141592654 | DN49: 1.543687053e-17 | DO49: -0.126 | DP49: -0.05317233666 | DQ49: -0.04470959183 | DR49: 25 | DS49: 3.141592654 | DT49: 1.543687053e-17 | DU49: -0.126 | DV49: -0.04715064408 | DW49: -0.04108030097 | DX49: 25 | DY49: 3.141592654 | DZ49: 1.543687053e-17 | EA49: -0.126 | EB49: -0.04088244843 | EC49: -0.03789560994 | ED49: 25 | EE49: 3.141592654 | EF49: 1.543687053e-17 | EG49: -0.126 | EH49: -0.03440051978 | EI49: -0.03517216825 | EJ49: 25 | EK49: 3.141592654 | EL49: 1.543687053e-17 | EM49: -0.126 | EN49: -0.02773874558 | EO49: -0.03292421403 | EP49: 25 | EQ49: 3.141592654 | ER49: 1.543687053e-17 | ES49: -0.126 | ET49: -0.02093195352 | EU49: -0.03116349957 | EV49: 25 | EW49: 3.141592654 | EX49: 1.543687053e-17 | EY49: -0.126 | EZ49: -0.01401572942 | FA49: -0.02989922985 | FB49: 25 | FC49: 3.141592654 | FD49: 1.543687053e-17 | FE49: -0.126 | FF49: -0.007026231242 | FG49: -0.02913801448 | FH49: 25 | FI49: 3.141592654 | FJ49: 1.543687053e-17 | FK49: -0.126 | FL49: 3.538698346e-18 | FM49: -0.02888383307 | FN49: 25 | FO49: 3.141592654 | FP49: 1.543687053e-17 | FQ49: -0.126 | FR49: 0.007026231242 | FS49: -0.02913801448 | FT49: 25 | FU49: 3.141592654 | FV49: 1.543687053e-17 | FW49: -0.126 | FX49: 0.01401572942 | FY49: -0.02989922985 | FZ49: 25 | GA49: 3.141592654 | GB49: 1.543687053e-17 | GC49: -0.126 | GD49: 0.02093195352 | GE49: -0.03116349957 | GF49: 25 | GG49: 3.141592654 | GH49: 1.543687053e-17 | GI49: -0.126 | GJ49: 0.02773874558 | GK49: -0.03292421403 | GL49: 25 | GM49: 3.141592654 | GN49: 1.543687053e-17 | GO49: -0.126 | GP49: 0.03440051978 | GQ49: -0.03517216825 | GR49: 25 | GS49: 3.141592654 | GT49: 1.543687053e-17 | GU49: -0.126 | GV49: 0.04088244843 | GW49: -0.03789560994 | GX49: 25 | GY49: 3.141592654 | GZ49: 1.543687053e-17 | HA49: -0.126 | HB49: 0.04715064408 | HC49: -0.04108030097 | HD49: 25 | HE49: 3.141592654 | HF49: 1.543687053e-17 | HG49: -0.126 | HH49: 0.05317233666 | HI49: -0.04470959183 | HJ49: 25 | HK49: 3.141592654 | HL49: 1.543687053e-17 | HM49: -0.126 | HN49: 0.05891604483 | HO49: -0.04876450861 | HP49: 25 | HQ49: 3.141592654 | HR49: 1.543687053e-17 | HS49: -0.126 | HT49: 0.06435174055 | HU49: -0.05322385225 | HV49: 25 | HW49: 3.141592654 | HX49: 1.543687053e-17 | HY49: -0.126 | HZ49: 0.06945100606 | IA49: -0.05806430935 | IB49: 25 | IC49: 3.141592654 | ID49: 1.543687053e-17 | IE49: -0.126 | IF49: 0.07418718244 | IG49: -0.06326057405 | IH49: 25 | II49: 3.141592654 | IJ49: 1.543687053e-17 | IK49: -0.126 | IL49: 0.07853550903 | IM49: -0.06878548034 | IN49: 25 | IO49: 3.141592654 | IP49: 1.543687053e-17 | IQ49: -0.126 | IR49: 0.08247325282 | IS49: -0.07461014407 | IT49: 25 | IU49: 3.141592654 | IV49: 1.543687053e-17 | IW49: -0.126 | IX49: 0.08597982732 | IY49: -0.08070411395 | IZ49: 25 | JA49: 3.141592654 | JB49: 1.543687053e-17 | JC49: -0.126 | JD49: 0.0890369002 | JE49: -0.08703553078 | JF49: 25 | JG49: 3.141592654 | JH49: 1.543687053e-17 | JI49: -0.126 | JJ49: 0.09162848911 | JK49: -0.09357129398 | JL49: 25 | JM49: 3.141592654 | JN49: 1.543687053e-17 | JO49: -0.126 | JP49: 0.09374104526 | JQ49: -0.1002772346 | JR49: 25 | JS49: 3.141592654 | JT49: 1.543687053e-17 | JU49: -0.126 | JV49: 0.09536352423 | JW49: -0.1071182942 | JX49: 25 | JY49: 3.141592654 | JZ49: 1.543687053e-17 | KA49: -0.126 | KB49: 0.09648744371 | KC49: -0.1140587076 | KD49: 25 | KE49: 3.141592654 | KF49: 1.543687053e-17 | KG49: -0.126 | KH49: 0.09710692787 | KI49: -0.1210621905 | KJ49: 25 | KK49: 3.141592654 | KL49: 1.543687053e-17 | KM49: -0.126 | KN49: 0.09721873804 | KO49: -0.1280921288 | KP49: 25 | KQ49: 3.141592654 | KR49: 1.543687053e-17 | KS49: -0.126 | KT49: 0.09682228968 | KU49: -0.13511177 | KV49: 25 | KW49: 3.141592654 | KX49: 1.543687053e-17 | KY49: -0.126 | KZ49: 0.09591965543 | LA49: -0.1420844155 | LB49: 25 | LC49: 1.570796327 | LD49: 0.126 | LE49: 7.718435266e-18 | LF49: 0.220638075 | LG49: -0.0228510916
B50: 27 | C50: 3.26725636 | D50: -0.01579198743 | E50: -0.1250064524 | F50: -0.1103228976 | G50: -0.1479790986 | H50: 26 | I50: 3.26725636 | J50: -0.01579198743 | K50: -0.1250064524 | N50: 26 | O50: 3.26725636 | P50: -0.01579198743 | Q50: -0.1250064524 | R50: -0.1103228976 | S50: -0.1479790986 | T50: 26 | U50: 3.26725636 | V50: -0.01579198743 | W50: -0.1250064524 | X50: -0.1117269988 | Y50: -0.1410899017 | Z50: 26 | AA50: 3.26725636 | AB50: -0.01579198743 | AC50: -0.1250064524 | AD50: -0.112629633 | AE50: -0.1341172562 | AF50: 26 | AG50: 3.26725636 | AH50: -0.01579198743 | AI50: -0.1250064524 | AJ50: -0.1130260814 | AK50: -0.1270976151 | AL50: 26 | AM50: 3.26725636 | AN50: -0.01579198743 | AO50: -0.1250064524 | AP50: -0.1129142712 | AQ50: -0.1200676768 | AR50: 26 | AS50: 3.26725636 | AT50: -0.01579198743 | AU50: -0.1250064524 | AV50: -0.1122947871 | AW50: -0.1130641939 | AX50: 26 | AY50: 3.26725636 | AZ50: -0.01579198743 | BA50: -0.1250064524 | BB50: -0.1111708676 | BC50: -0.1061237804 | BD50: 26 | BE50: 3.26725636 | BF50: -0.01579198743 | BG50: -0.1250064524 | BH50: -0.1095483886 | BI50: -0.09928272089 | BJ50: 26 | BK50: 3.26725636 | BL50: -0.01579198743 | BM50: -0.1250064524 | BN50: -0.1074358325 | BO50: -0.09257678023 | BP50: 26 | BQ50: 3.26725636 | BR50: -0.01579198743 | BS50: -0.1250064524 | BT50: -0.1048442435 | BU50: -0.08604101704 | BV50: 26 | BW50: 3.26725636 | BX50: -0.01579198743 | BY50: -0.1250064524 | BZ50: -0.1017871707 | CA50: -0.07970960021 | CB50: 26 | CC50: 3.26725636 | CD50: -0.01579198743 | CE50: -0.1250064524 | CF50: -0.09828059617 | CG50: -0.07361563032 | CH50: 26 | CI50: 3.26725636 | CJ50: -0.01579198743 | CK50: -0.1250064524 | CL50: -0.09434285238 | CM50: -0.0677909666 | CN50: 26 | CO50: 3.26725636 | CP50: -0.01579198743 | CQ50: -0.1250064524 | CR50: -0.08999452579 | CS50: -0.06226606031 | CT50: 26 | CU50: 3.26725636 | CV50: -0.01579198743 | CW50: -0.1250064524 | CX50: -0.08525834941 | CY50: -0.0570697956 | CZ50: 26 | DA50: 3.26725636 | DB50: -0.01579198743 | DC50: -0.1250064524 | DD50: -0.0801590839 | DE50: -0.0522293385 | DF50: 26 | DG50: 3.26725636 | DH50: -0.01579198743 | DI50: -0.1250064524 | DJ50: -0.07472338818 | DK50: -0.04776999486 | DL50: 26 | DM50: 3.26725636 | DN50: -0.01579198743 | DO50: -0.1250064524 | DP50: -0.06897968001 | DQ50: -0.04371507808 | DR50: 26 | DS50: 3.26725636 | DT50: -0.01579198743 | DU50: -0.1250064524 | DV50: -0.06295798743 | DW50: -0.04008578723 | DX50: 26 | DY50: 3.26725636 | DZ50: -0.01579198743 | EA50: -0.1250064524 | EB50: -0.05668979178 | EC50: -0.03690109619 | ED50: 26 | EE50: 3.26725636 | EF50: -0.01579198743 | EG50: -0.1250064524 | EH50: -0.05020786313 | EI50: -0.0341776545 | EJ50: 26 | EK50: 3.26725636 | EL50: -0.01579198743 | EM50: -0.1250064524 | EN50: -0.04354608893 | EO50: -0.03192970028 | EP50: 26 | EQ50: 3.26725636 | ER50: -0.01579198743 | ES50: -0.1250064524 | ET50: -0.03673929687 | EU50: -0.03016898582 | EV50: 26 | EW50: 3.26725636 | EX50: -0.01579198743 | EY50: -0.1250064524 | EZ50: -0.02982307277 | FA50: -0.02890471611 | FB50: 26 | FC50: 3.26725636 | FD50: -0.01579198743 | FE50: -0.1250064524 | FF50: -0.02283357459 | FG50: -0.02814350073 | FH50: 26 | FI50: 3.26725636 | FJ50: -0.01579198743 | FK50: -0.1250064524 | FL50: -0.01580734335 | FM50: -0.02788931932 | FN50: 26 | FO50: 3.26725636 | FP50: -0.01579198743 | FQ50: -0.1250064524 | FR50: -0.008781112109 | FS50: -0.02814350073 | FT50: 26 | FU50: 3.26725636 | FV50: -0.01579198743 | FW50: -0.1250064524 | FX50: -0.001791613929 | FY50: -0.02890471611 | FZ50: 26 | GA50: 3.26725636 | GB50: -0.01579198743 | GC50: -0.1250064524 | GD50: 0.005124610167 | GE50: -0.03016898582 | GF50: 26 | GG50: 3.26725636 | GH50: -0.01579198743 | GI50: -0.1250064524 | GJ50: 0.01193140223 | GK50: -0.03192970028 | GL50: 26 | GM50: 3.26725636 | GN50: -0.01579198743 | GO50: -0.1250064524 | GP50: 0.01859317643 | GQ50: -0.0341776545 | GR50: 26 | GS50: 3.26725636 | GT50: -0.01579198743 | GU50: -0.1250064524 | GV50: 0.02507510508 | GW50: -0.03690109619 | GX50: 26 | GY50: 3.26725636 | GZ50: -0.01579198743 | HA50: -0.1250064524 | HB50: 0.03134330073 | HC50: -0.04008578723 | HD50: 26 | HE50: 3.26725636 | HF50: -0.01579198743 | HG50: -0.1250064524 | HH50: 0.03736499331 | HI50: -0.04371507808 | HJ50: 26 | HK50: 3.26725636 | HL50: -0.01579198743 | HM50: -0.1250064524 | HN50: 0.04310870148 | HO50: -0.04776999486 | HP50: 26 | HQ50: 3.26725636 | HR50: -0.01579198743 | HS50: -0.1250064524 | HT50: 0.0485443972 | HU50: -0.0522293385 | HV50: 26 | HW50: 3.26725636 | HX50: -0.01579198743 | HY50: -0.1250064524 | HZ50: 0.05364366271 | IA50: -0.0570697956 | IB50: 26 | IC50: 3.26725636 | ID50: -0.01579198743 | IE50: -0.1250064524 | IF50: 0.05837983909 | IG50: -0.06226606031 | IH50: 26 | II50: 3.26725636 | IJ50: -0.01579198743 | IK50: -0.1250064524 | IL50: 0.06272816568 | IM50: -0.0677909666 | IN50: 26 | IO50: 3.26725636 | IP50: -0.01579198743 | IQ50: -0.1250064524 | IR50: 0.06666590947 | IS50: -0.07361563032 | IT50: 26 | IU50: 3.26725636 | IV50: -0.01579198743 | IW50: -0.1250064524 | IX50: 0.07017248397 | IY50: -0.07970960021 | IZ50: 26 | JA50: 3.26725636 | JB50: -0.01579198743 | JC50: -0.1250064524 | JD50: 0.07322955685 | JE50: -0.08604101704 | JF50: 26 | JG50: 3.26725636 | JH50: -0.01579198743 | JI50: -0.1250064524 | JJ50: 0.07582114576 | JK50: -0.09257678023 | JL50: 26 | JM50: 3.26725636 | JN50: -0.01579198743 | JO50: -0.1250064524 | JP50: 0.07793370191 | JQ50: -0.09928272089 | JR50: 26 | JS50: 3.26725636 | JT50: -0.01579198743 | JU50: -0.1250064524 | JV50: 0.07955618088 | JW50: -0.1061237804 | JX50: 26 | JY50: 3.26725636 | JZ50: -0.01579198743 | KA50: -0.1250064524 | KB50: 0.08068010036 | KC50: -0.1130641939 | KD50: 26 | KE50: 3.26725636 | KF50: -0.01579198743 | KG50: -0.1250064524 | KH50: 0.08129958451 | KI50: -0.1200676768 | KJ50: 26 | KK50: 3.26725636 | KL50: -0.01579198743 | KM50: -0.1250064524 | KN50: 0.08141139469 | KO50: -0.1270976151 | KP50: 26 | KQ50: 3.26725636 | KR50: -0.01579198743 | KS50: -0.1250064524 | KT50: 0.08101494633 | KU50: -0.1341172562 | KV50: 26 | KW50: 3.26725636 | KX50: -0.01579198743 | KY50: -0.1250064524 | KZ50: 0.08011231208 | LA50: -0.1410899017 | LB50: 26 | LC50: 1.63362818 | LD50: 0.1257513678 | LE50: -0.007911605461 | LF50: 0.220389201 | LG50: -0.03077039021
B51: 28 | C51: 3.392920066 | D51: -0.03133492578 | E51: -0.1220414783 | F51: -0.1258809497 | G51: -0.1450112414 | H51: 27 | I51: 3.392920066 | J51: -0.03133492578 | K51: -0.1220414783 | N51: 27 | O51: 3.392920066 | P51: -0.03133492578 | Q51: -0.1220414783 | R51: -0.1258809497 | S51: -0.1450112414 | T51: 27 | U51: 3.392920066 | V51: -0.03133492578 | W51: -0.1220414783 | X51: -0.1272850509 | Y51: -0.1381220446 | Z51: 27 | AA51: 3.392920066 | AB51: -0.03133492578 | AC51: -0.1220414783 | AD51: -0.1281876851 | AE51: -0.1311493991 | AF51: 27 | AG51: 3.392920066 | AH51: -0.03133492578 | AI51: -0.1220414783 | AJ51: -0.1285841335 | AK51: -0.1241297579 | AL51: 27 | AM51: 3.392920066 | AN51: -0.03133492578 | AO51: -0.1220414783 | AP51: -0.1284723233 | AQ51: -0.1170998196 | AR51: 27 | AS51: 3.392920066 | AT51: -0.03133492578 | AU51: -0.1220414783 | AV51: -0.1278528392 | AW51: -0.1100963367 | AX51: 27 | AY51: 3.392920066 | AZ51: -0.03133492578 | BA51: -0.1220414783 | BB51: -0.1267289197 | BC51: -0.1031559233 | BD51: 27 | BE51: 3.392920066 | BF51: -0.03133492578 | BG51: -0.1220414783 | BH51: -0.1251064407 | BI51: -0.09631486373 | BJ51: 27 | BK51: 3.392920066 | BL51: -0.03133492578 | BM51: -0.1220414783 | BN51: -0.1229938846 | BO51: -0.08960892307 | BP51: 27 | BQ51: 3.392920066 | BR51: -0.03133492578 | BS51: -0.1220414783 | BT51: -0.1204022957 | BU51: -0.08307315987 | BV51: 27 | BW51: 3.392920066 | BX51: -0.03133492578 | BY51: -0.1220414783 | BZ51: -0.1173452228 | CA51: -0.07674174304 | CB51: 27 | CC51: 3.392920066 | CD51: -0.03133492578 | CE51: -0.1220414783 | CF51: -0.1138386483 | CG51: -0.07064777316 | CH51: 27 | CI51: 3.392920066 | CJ51: -0.03133492578 | CK51: -0.1220414783 | CL51: -0.1099009045 | CM51: -0.06482310943 | CN51: 27 | CO51: 3.392920066 | CP51: -0.03133492578 | CQ51: -0.1220414783 | CR51: -0.1055525779 | CS51: -0.05929820314 | CT51: 27 | CU51: 3.392920066 | CV51: -0.03133492578 | CW51: -0.1220414783 | CX51: -0.1008164015 | CY51: -0.05410193844 | CZ51: 27 | DA51: 3.392920066 | DB51: -0.03133492578 | DC51: -0.1220414783 | DD51: -0.095717136 | DE51: -0.04926148133 | DF51: 27 | DG51: 3.392920066 | DH51: -0.03133492578 | DI51: -0.1220414783 | DJ51: -0.09028144029 | DK51: -0.04480213769 | DL51: 27 | DM51: 3.392920066 | DN51: -0.03133492578 | DO51: -0.1220414783 | DP51: -0.08453773211 | DQ51: -0.04074722091 | DR51: 27 | DS51: 3.392920066 | DT51: -0.03133492578 | DU51: -0.1220414783 | DV51: -0.07851603953 | DW51: -0.03711793006 | DX51: 27 | DY51: 3.392920066 | DZ51: -0.03133492578 | EA51: -0.1220414783 | EB51: -0.07224784389 | EC51: -0.03393323902 | ED51: 27 | EE51: 3.392920066 | EF51: -0.03133492578 | EG51: -0.1220414783 | EH51: -0.06576591524 | EI51: -0.03120979733 | EJ51: 27 | EK51: 3.392920066 | EL51: -0.03133492578 | EM51: -0.1220414783 | EN51: -0.05910414104 | EO51: -0.02896184312 | EP51: 27 | EQ51: 3.392920066 | ER51: -0.03133492578 | ES51: -0.1220414783 | ET51: -0.05229734897 | EU51: -0.02720112866 | EV51: 27 | EW51: 3.392920066 | EX51: -0.03133492578 | EY51: -0.1220414783 | EZ51: -0.04538112487 | FA51: -0.02593685894 | FB51: 27 | FC51: 3.392920066 | FD51: -0.03133492578 | FE51: -0.1220414783 | FF51: -0.0383916267 | FG51: -0.02517564357 | FH51: 27 | FI51: 3.392920066 | FJ51: -0.03133492578 | FK51: -0.1220414783 | FL51: -0.03136539545 | FM51: -0.02492146216 | FN51: 27 | FO51: 3.392920066 | FP51: -0.03133492578 | FQ51: -0.1220414783 | FR51: -0.02433916421 | FS51: -0.02517564357 | FT51: 27 | FU51: 3.392920066 | FV51: -0.03133492578 | FW51: -0.1220414783 | FX51: -0.01734966603 | FY51: -0.02593685894 | FZ51: 27 | GA51: 3.392920066 | GB51: -0.03133492578 | GC51: -0.1220414783 | GD51: -0.01043344194 | GE51: -0.02720112866 | GF51: 27 | GG51: 3.392920066 | GH51: -0.03133492578 | GI51: -0.1220414783 | GJ51: -0.00362664987 | GK51: -0.02896184312 | GL51: 27 | GM51: 3.392920066 | GN51: -0.03133492578 | GO51: -0.1220414783 | GP51: 0.00303512433 | GQ51: -0.03120979733 | GR51: 27 | GS51: 3.392920066 | GT51: -0.03133492578 | GU51: -0.1220414783 | GV51: 0.00951705298 | GW51: -0.03393323902 | GX51: 27 | GY51: 3.392920066 | GZ51: -0.03133492578 | HA51: -0.1220414783 | HB51: 0.01578524863 | HC51: -0.03711793006 | HD51: 27 | HE51: 3.392920066 | HF51: -0.03133492578 | HG51: -0.1220414783 | HH51: 0.02180694121 | HI51: -0.04074722091 | HJ51: 27 | HK51: 3.392920066 | HL51: -0.03133492578 | HM51: -0.1220414783 | HN51: 0.02755064938 | HO51: -0.04480213769 | HP51: 27 | HQ51: 3.392920066 | HR51: -0.03133492578 | HS51: -0.1220414783 | HT51: 0.0329863451 | HU51: -0.04926148133 | HV51: 27 | HW51: 3.392920066 | HX51: -0.03133492578 | HY51: -0.1220414783 | HZ51: 0.0380856106 | IA51: -0.05410193844 | IB51: 27 | IC51: 3.392920066 | ID51: -0.03133492578 | IE51: -0.1220414783 | IF51: 0.04282178699 | IG51: -0.05929820314 | IH51: 27 | II51: 3.392920066 | IJ51: -0.03133492578 | IK51: -0.1220414783 | IL51: 0.04717011358 | IM51: -0.06482310943 | IN51: 27 | IO51: 3.392920066 | IP51: -0.03133492578 | IQ51: -0.1220414783 | IR51: 0.05110785736 | IS51: -0.07064777316 | IT51: 27 | IU51: 3.392920066 | IV51: -0.03133492578 | IW51: -0.1220414783 | IX51: 0.05461443186 | IY51: -0.07674174304 | IZ51: 27 | JA51: 3.392920066 | JB51: -0.03133492578 | JC51: -0.1220414783 | JD51: 0.05767150474 | JE51: -0.08307315987 | JF51: 27 | JG51: 3.392920066 | JH51: -0.03133492578 | JI51: -0.1220414783 | JJ51: 0.06026309366 | JK51: -0.08960892307 | JL51: 27 | JM51: 3.392920066 | JN51: -0.03133492578 | JO51: -0.1220414783 | JP51: 0.06237564981 | JQ51: -0.09631486373 | JR51: 27 | JS51: 3.392920066 | JT51: -0.03133492578 | JU51: -0.1220414783 | JV51: 0.06399812878 | JW51: -0.1031559233 | JX51: 27 | JY51: 3.392920066 | JZ51: -0.03133492578 | KA51: -0.1220414783 | KB51: 0.06512204826 | KC51: -0.1100963367 | KD51: 27 | KE51: 3.392920066 | KF51: -0.03133492578 | KG51: -0.1220414783 | KH51: 0.06574153241 | KI51: -0.1170998196 | KJ51: 27 | KK51: 3.392920066 | KL51: -0.03133492578 | KM51: -0.1220414783 | KN51: 0.06585334258 | KO51: -0.1241297579 | KP51: 27 | KQ51: 3.392920066 | KR51: -0.03133492578 | KS51: -0.1220414783 | KT51: 0.06545689423 | KU51: -0.1311493991 | KV51: 27 | KW51: 3.392920066 | KX51: -0.03133492578 | KY51: -0.1220414783 | KZ51: 0.06455425998 | LA51: -0.1381220446 | LB51: 27 | LC51: 1.696460033 | LD51: 0.1250064524 | LE51: -0.01579198743 | LF51: 0.2196435612 | LG51: -0.03865843495
B52: 29 | C52: 3.518583772 | D52: -0.04638369364 | E52: -0.1171518372 | F52: -0.1409443508 | G52: -0.1401168457 | H52: 28 | I52: 3.518583772 | J52: -0.04638369364 | K52: -0.1171518372 | N52: 28 | O52: 3.518583772 | P52: -0.04638369364 | Q52: -0.1171518372 | R52: -0.1409443508 | S52: -0.1401168457 | T52: 28 | U52: 3.518583772 | V52: -0.04638369364 | W52: -0.1171518372 | X52: -0.142348452 | Y52: -0.1332276489 | Z52: 28 | AA52: 3.518583772 | AB52: -0.04638369364 | AC52: -0.1171518372 | AD52: -0.1432510862 | AE52: -0.1262550034 | AF52: 28 | AG52: 3.518583772 | AH52: -0.04638369364 | AI52: -0.1171518372 | AJ52: -0.1436475346 | AK52: -0.1192353622 | AL52: 28 | AM52: 3.518583772 | AN52: -0.04638369364 | AO52: -0.1171518372 | AP52: -0.1435357244 | AQ52: -0.1122054239 | AR52: 28 | AS52: 3.518583772 | AT52: -0.04638369364 | AU52: -0.1171518372 | AV52: -0.1429162402 | AW52: -0.105201941 | AX52: 28 | AY52: 3.518583772 | AZ52: -0.04638369364 | BA52: -0.1171518372 | BB52: -0.1417923208 | BC52: -0.09826152757 | BD52: 28 | BE52: 3.518583772 | BF52: -0.04638369364 | BG52: -0.1171518372 | BH52: -0.1401698418 | BI52: -0.09142046802 | BJ52: 28 | BK52: 3.518583772 | BL52: -0.04638369364 | BM52: -0.1171518372 | BN52: -0.1380572856 | BO52: -0.08471452736 | BP52: 28 | BQ52: 3.518583772 | BR52: -0.04638369364 | BS52: -0.1171518372 | BT52: -0.1354656967 | BU52: -0.07817876417 | BV52: 28 | BW52: 3.518583772 | BX52: -0.04638369364 | BY52: -0.1171518372 | BZ52: -0.1324086239 | CA52: -0.07184734734 | CB52: 28 | CC52: 3.518583772 | CD52: -0.04638369364 | CE52: -0.1171518372 | CF52: -0.1289020494 | CG52: -0.06575337746 | CH52: 28 | CI52: 3.518583772 | CJ52: -0.04638369364 | CK52: -0.1171518372 | CL52: -0.1249643056 | CM52: -0.05992871373 | CN52: 28 | CO52: 3.518583772 | CP52: -0.04638369364 | CQ52: -0.1171518372 | CR52: -0.120615979 | CS52: -0.05440380744 | CT52: 28 | CU52: 3.518583772 | CV52: -0.04638369364 | CW52: -0.1171518372 | CX52: -0.1158798026 | CY52: -0.04920754273 | CZ52: 28 | DA52: 3.518583772 | DB52: -0.04638369364 | DC52: -0.1171518372 | DD52: -0.1107805371 | DE52: -0.04436708563 | DF52: 28 | DG52: 3.518583772 | DH52: -0.04638369364 | DI52: -0.1171518372 | DJ52: -0.1053448414 | DK52: -0.03990774199 | DL52: 28 | DM52: 3.518583772 | DN52: -0.04638369364 | DO52: -0.1171518372 | DP52: -0.09960113319 | DQ52: -0.03585282521 | DR52: 28 | DS52: 3.518583772 | DT52: -0.04638369364 | DU52: -0.1171518372 | DV52: -0.09357944061 | DW52: -0.03222353436 | DX52: 28 | DY52: 3.518583772 | DZ52: -0.04638369364 | EA52: -0.1171518372 | EB52: -0.08731124497 | EC52: -0.02903884332 | ED52: 28 | EE52: 3.518583772 | EF52: -0.04638369364 | EG52: -0.1171518372 | EH52: -0.08082931632 | EI52: -0.02631540163 | EJ52: 28 | EK52: 3.518583772 | EL52: -0.04638369364 | EM52: -0.1171518372 | EN52: -0.07416754212 | EO52: -0.02406744742 | EP52: 28 | EQ52: 3.518583772 | ER52: -0.04638369364 | ES52: -0.1171518372 | ET52: -0.06736075005 | EU52: -0.02230673295 | EV52: 28 | EW52: 3.518583772 | EX52: -0.04638369364 | EY52: -0.1171518372 | EZ52: -0.06044452595 | FA52: -0.02104246324 | FB52: 28 | FC52: 3.518583772 | FD52: -0.04638369364 | FE52: -0.1171518372 | FF52: -0.05345502777 | FG52: -0.02028124786 | FH52: 28 | FI52: 3.518583772 | FJ52: -0.04638369364 | FK52: -0.1171518372 | FL52: -0.04642879653 | FM52: -0.02002706645 | FN52: 28 | FO52: 3.518583772 | FP52: -0.04638369364 | FQ52: -0.1171518372 | FR52: -0.03940256529 | FS52: -0.02028124786 | FT52: 28 | FU52: 3.518583772 | FV52: -0.04638369364 | FW52: -0.1171518372 | FX52: -0.03241306711 | FY52: -0.02104246324 | FZ52: 28 | GA52: 3.518583772 | GB52: -0.04638369364 | GC52: -0.1171518372 | GD52: -0.02549684302 | GE52: -0.02230673295 | GF52: 28 | GG52: 3.518583772 | GH52: -0.04638369364 | GI52: -0.1171518372 | GJ52: -0.01869005095 | GK52: -0.02406744742 | GL52: 28 | GM52: 3.518583772 | GN52: -0.04638369364 | GO52: -0.1171518372 | GP52: -0.01202827675 | GQ52: -0.02631540163 | GR52: 28 | GS52: 3.518583772 | GT52: -0.04638369364 | GU52: -0.1171518372 | GV52: -0.0055463481 | GW52: -0.02903884332 | GX52: 28 | GY52: 3.518583772 | GZ52: -0.04638369364 | HA52: -0.1171518372 | HB52: 0.0007218475457 | HC52: -0.03222353436 | HD52: 28 | HE52: 3.518583772 | HF52: -0.04638369364 | HG52: -0.1171518372 | HH52: 0.006743540127 | HI52: -0.03585282521 | HJ52: 28 | HK52: 3.518583772 | HL52: -0.04638369364 | HM52: -0.1171518372 | HN52: 0.0124872483 | HO52: -0.03990774199 | HP52: 28 | HQ52: 3.518583772 | HR52: -0.04638369364 | HS52: -0.1171518372 | HT52: 0.01792294402 | HU52: -0.04436708563 | HV52: 28 | HW52: 3.518583772 | HX52: -0.04638369364 | HY52: -0.1171518372 | HZ52: 0.02302220952 | IA52: -0.04920754273 | IB52: 28 | IC52: 3.518583772 | ID52: -0.04638369364 | IE52: -0.1171518372 | IF52: 0.02775838591 | IG52: -0.05440380744 | IH52: 28 | II52: 3.518583772 | IJ52: -0.04638369364 | IK52: -0.1171518372 | IL52: 0.0321067125 | IM52: -0.05992871373 | IN52: 28 | IO52: 3.518583772 | IP52: -0.04638369364 | IQ52: -0.1171518372 | IR52: 0.03604445629 | IS52: -0.06575337746 | IT52: 28 | IU52: 3.518583772 | IV52: -0.04638369364 | IW52: -0.1171518372 | IX52: 0.03955103078 | IY52: -0.07184734734 | IZ52: 28 | JA52: 3.518583772 | JB52: -0.04638369364 | JC52: -0.1171518372 | JD52: 0.04260810366 | JE52: -0.07817876417 | JF52: 28 | JG52: 3.518583772 | JH52: -0.04638369364 | JI52: -0.1171518372 | JJ52: 0.04519969258 | JK52: -0.08471452736 | JL52: 28 | JM52: 3.518583772 | JN52: -0.04638369364 | JO52: -0.1171518372 | JP52: 0.04731224873 | JQ52: -0.09142046802 | JR52: 28 | JS52: 3.518583772 | JT52: -0.04638369364 | JU52: -0.1171518372 | JV52: 0.0489347277 | JW52: -0.09826152757 | JX52: 28 | JY52: 3.518583772 | JZ52: -0.04638369364 | KA52: -0.1171518372 | KB52: 0.05005864718 | KC52: -0.105201941 | KD52: 28 | KE52: 3.518583772 | KF52: -0.04638369364 | KG52: -0.1171518372 | KH52: 0.05067813133 | KI52: -0.1122054239 | KJ52: 28 | KK52: 3.518583772 | KL52: -0.04638369364 | KM52: -0.1171518372 | KN52: 0.0507899415 | KO52: -0.1192353622 | KP52: 28 | KQ52: 3.518583772 | KR52: -0.04638369364 | KS52: -0.1171518372 | KT52: 0.05039349315 | KU52: -0.1262550034 | KV52: 28 | KW52: 3.518583772 | KX52: -0.04638369364 | KY52: -0.1171518372 | KZ52: 0.0494908589 | LA52: -0.1332276489 | LB52: 28 | LC52: 1.759291886 | LD52: 0.1237681936 | LE52: -0.02361004564 | LF52: 0.2184040984 | LG52: -0.04648409534
B53: 30 | C53: 3.644247478 | D53: -0.06070096294 | E53: -0.1104146417 | F53: -0.155275542 | G53: -0.133373099 | H53: 29 | I53: 3.644247478 | J53: -0.06070096294 | K53: -0.1104146417 | N53: 29 | O53: 3.644247478 | P53: -0.06070096294 | Q53: -0.1104146417 | R53: -0.155275542 | S53: -0.133373099 | T53: 29 | U53: 3.644247478 | V53: -0.06070096294 | W53: -0.1104146417 | X53: -0.1566796432 | Y53: -0.1264839022 | Z53: 29 | AA53: 3.644247478 | AB53: -0.06070096294 | AC53: -0.1104146417 | AD53: -0.1575822774 | AE53: -0.1195112567 | AF53: 29 | AG53: 3.644247478 | AH53: -0.06070096294 | AI53: -0.1104146417 | AJ53: -0.1579787258 | AK53: -0.1124916155 | AL53: 29 | AM53: 3.644247478 | AN53: -0.06070096294 | AO53: -0.1104146417 | AP53: -0.1578669156 | AQ53: -0.1054616772 | AR53: 29 | AS53: 3.644247478 | AT53: -0.06070096294 | AU53: -0.1104146417 | AV53: -0.1572474315 | AW53: -0.0984581943 | AX53: 29 | AY53: 3.644247478 | AZ53: -0.06070096294 | BA53: -0.1104146417 | BB53: -0.156123512 | BC53: -0.09151778087 | BD53: 29 | BE53: 3.644247478 | BF53: -0.06070096294 | BG53: -0.1104146417 | BH53: -0.154501033 | BI53: -0.08467672133 | BJ53: 29 | BK53: 3.644247478 | BL53: -0.06070096294 | BM53: -0.1104146417 | BN53: -0.1523884769 | BO53: -0.07797078067 | BP53: 29 | BQ53: 3.644247478 | BR53: -0.06070096294 | BS53: -0.1104146417 | BT53: -0.149796888 | BU53: -0.07143501747 | BV53: 29 | BW53: 3.644247478 | BX53: -0.06070096294 | BY53: -0.1104146417 | BZ53: -0.1467398151 | CA53: -0.06510360064 | CB53: 29 | CC53: 3.644247478 | CD53: -0.06070096294 | CE53: -0.1104146417 | CF53: -0.1432332406 | CG53: -0.05900963076 | CH53: 29 | CI53: 3.644247478 | CJ53: -0.06070096294 | CK53: -0.1104146417 | CL53: -0.1392954968 | CM53: -0.05318496703 | CN53: 29 | CO53: 3.644247478 | CP53: -0.06070096294 | CQ53: -0.1104146417 | CR53: -0.1349471702 | CS53: -0.04766006074 | CT53: 29 | CU53: 3.644247478 | CV53: -0.06070096294 | CW53: -0.1104146417 | CX53: -0.1302109938 | CY53: -0.04246379604 | CZ53: 29 | DA53: 3.644247478 | DB53: -0.06070096294 | DC53: -0.1104146417 | DD53: -0.1251117283 | DE53: -0.03762333893 | DF53: 29 | DG53: 3.644247478 | DH53: -0.06070096294 | DI53: -0.1104146417 | DJ53: -0.1196760326 | DK53: -0.03316399529 | DL53: 29 | DM53: 3.644247478 | DN53: -0.06070096294 | DO53: -0.1104146417 | DP53: -0.1139323244 | DQ53: -0.02910907851 | DR53: 29 | DS53: 3.644247478 | DT53: -0.06070096294 | DU53: -0.1104146417 | DV53: -0.1079106318 | DW53: -0.02547978766 | DX53: 29 | DY53: 3.644247478 | DZ53: -0.06070096294 | EA53: -0.1104146417 | EB53: -0.1016424362 | EC53: -0.02229509662 | ED53: 29 | EE53: 3.644247478 | EF53: -0.06070096294 | EG53: -0.1104146417 | EH53: -0.09516050754 | EI53: -0.01957165493 | EJ53: 29 | EK53: 3.644247478 | EL53: -0.06070096294 | EM53: -0.1104146417 | EN53: -0.08849873334 | EO53: -0.01732370072 | EP53: 29 | EQ53: 3.644247478 | ER53: -0.06070096294 | ES53: -0.1104146417 | ET53: -0.08169194127 | EU53: -0.01556298626 | EV53: 29 | EW53: 3.644247478 | EX53: -0.06070096294 | EY53: -0.1104146417 | EZ53: -0.07477571718 | FA53: -0.01429871654 | FB53: 29 | FC53: 3.644247478 | FD53: -0.06070096294 | FE53: -0.1104146417 | FF53: -0.067786219 | FG53: -0.01353750117 | FH53: 29 | FI53: 3.644247478 | FJ53: -0.06070096294 | FK53: -0.1104146417 | FL53: -0.06075998776 | FM53: -0.01328331976 | FN53: 29 | FO53: 3.644247478 | FP53: -0.06070096294 | FQ53: -0.1104146417 | FR53: -0.05373375651 | FS53: -0.01353750117 | FT53: 29 | FU53: 3.644247478 | FV53: -0.06070096294 | FW53: -0.1104146417 | FX53: -0.04674425834 | FY53: -0.01429871654 | FZ53: 29 | GA53: 3.644247478 | GB53: -0.06070096294 | GC53: -0.1104146417 | GD53: -0.03982803424 | GE53: -0.01556298626 | GF53: 29 | GG53: 3.644247478 | GH53: -0.06070096294 | GI53: -0.1104146417 | GJ53: -0.03302124217 | GK53: -0.01732370072 | GL53: 29 | GM53: 3.644247478 | GN53: -0.06070096294 | GO53: -0.1104146417 | GP53: -0.02635946797 | GQ53: -0.01957165493 | GR53: 29 | GS53: 3.644247478 | GT53: -0.06070096294 | GU53: -0.1104146417 | GV53: -0.01987753932 | GW53: -0.02229509662 | GX53: 29 | GY53: 3.644247478 | GZ53: -0.06070096294 | HA53: -0.1104146417 | HB53: -0.01360934368 | HC53: -0.02547978766 | HD53: 29 | HE53: 3.644247478 | HF53: -0.06070096294 | HG53: -0.1104146417 | HH53: -0.007587651096 | HI53: -0.02910907851 | HJ53: 29 | HK53: 3.644247478 | HL53: -0.06070096294 | HM53: -0.1104146417 | HN53: -0.001843942924 | HO53: -0.03316399529 | HP53: 29 | HQ53: 3.644247478 | HR53: -0.06070096294 | HS53: -0.1104146417 | HT53: 0.003591752795 | HU53: -0.03762333893 | HV53: 29 | HW53: 3.644247478 | HX53: -0.06070096294 | HY53: -0.1104146417 | HZ53: 0.008691018301 | IA53: -0.04246379604 | IB53: 29 | IC53: 3.644247478 | ID53: -0.06070096294 | IE53: -0.1104146417 | IF53: 0.01342719469 | IG53: -0.04766006074 | IH53: 29 | II53: 3.644247478 | IJ53: -0.06070096294 | IK53: -0.1104146417 | IL53: 0.01777552128 | IM53: -0.05318496703 | IN53: 29 | IO53: 3.644247478 | IP53: -0.06070096294 | IQ53: -0.1104146417 | IR53: 0.02171326506 | IS53: -0.05900963076 | IT53: 29 | IU53: 3.644247478 | IV53: -0.06070096294 | IW53: -0.1104146417 | IX53: 0.02521983956 | IY53: -0.06510360064 | IZ53: 29 | JA53: 3.644247478 | JB53: -0.06070096294 | JC53: -0.1104146417 | JD53: 0.02827691244 | JE53: -0.07143501747 | JF53: 29 | JG53: 3.644247478 | JH53: -0.06070096294 | JI53: -0.1104146417 | JJ53: 0.03086850136 | JK53: -0.07797078067 | JL53: 29 | JM53: 3.644247478 | JN53: -0.06070096294 | JO53: -0.1104146417 | JP53: 0.03298105751 | JQ53: -0.08467672133 | JR53: 29 | JS53: 3.644247478 | JT53: -0.06070096294 | JU53: -0.1104146417 | JV53: 0.03460353647 | JW53: -0.09151778087 | JX53: 29 | JY53: 3.644247478 | JZ53: -0.06070096294 | KA53: -0.1104146417 | KB53: 0.03572745595 | KC53: -0.0984581943 | KD53: 29 | KE53: 3.644247478 | KF53: -0.06070096294 | KG53: -0.1104146417 | KH53: 0.03634694011 | KI53: -0.1054616772 | KJ53: 29 | KK53: 3.644247478 | KL53: -0.06070096294 | KM53: -0.1104146417 | KN53: 0.03645875028 | KO53: -0.1124916155 | KP53: 29 | KQ53: 3.644247478 | KR53: -0.06070096294 | KS53: -0.1104146417 | KT53: 0.03606230192 | KU53: -0.1195112567 | KV53: 29 | KW53: 3.644247478 | KX53: -0.06070096294 | KY53: -0.1104146417 | KZ53: 0.03515966767 | LA53: -0.1264839022 | LB53: 29 | LC53: 1.822123739 | LD53: 0.1220414783 | LE53: -0.03133492578 | LF53: 0.2166757041 | LG53: -0.05421648706
B54: 31 | C54: 3.769911184 | D54: -0.07406094179 | E54: -0.1019361413 | F54: -0.1686485119 | G54: -0.1248863543 | H54: 30 | I54: 3.769911184 | J54: -0.07406094179 | K54: -0.1019361413 | N54: 30 | O54: 3.769911184 | P54: -0.07406094179 | Q54: -0.1019361413 | R54: -0.1686485119 | S54: -0.1248863543 | T54: 30 | U54: 3.769911184 | V54: -0.07406094179 | W54: -0.1019361413 | X54: -0.1700526131 | Y54: -0.1179971574 | Z54: 30 | AA54: 3.769911184 | AB54: -0.07406094179 | AC54: -0.1019361413 | AD54: -0.1709552474 | AE54: -0.1110245119 | AF54: 30 | AG54: 3.769911184 | AH54: -0.07406094179 | AI54: -0.1019361413 | AJ54: -0.1713516957 | AK54: -0.1040048707 | AL54: 30 | AM54: 3.769911184 | AN54: -0.07406094179 | AO54: -0.1019361413 | AP54: -0.1712398855 | AQ54: -0.09697493245 | AR54: 30 | AS54: 3.769911184 | AT54: -0.07406094179 | AU54: -0.1019361413 | AV54: -0.1706204014 | AW54: -0.08997144953 | AX54: 30 | AY54: 3.769911184 | AZ54: -0.07406094179 | BA54: -0.1019361413 | BB54: -0.1694964819 | BC54: -0.08303103609 | BD54: 30 | BE54: 3.769911184 | BF54: -0.07406094179 | BG54: -0.1019361413 | BH54: -0.1678740029 | BI54: -0.07618997655 | BJ54: 30 | BK54: 3.769911184 | BL54: -0.07406094179 | BM54: -0.1019361413 | BN54: -0.1657614468 | BO54: -0.06948403589 | BP54: 30 | BQ54: 3.769911184 | BR54: -0.07406094179 | BS54: -0.1019361413 | BT54: -0.1631698579 | BU54: -0.06294827269 | BV54: 30 | BW54: 3.769911184 | BX54: -0.07406094179 | BY54: -0.1019361413 | BZ54: -0.160112785 | CA54: -0.05661685586 | CB54: 30 | CC54: 3.769911184 | CD54: -0.07406094179 | CE54: -0.1019361413 | CF54: -0.1566062105 | CG54: -0.05052288598 | CH54: 30 | CI54: 3.769911184 | CJ54: -0.07406094179 | CK54: -0.1019361413 | CL54: -0.1526684667 | CM54: -0.04469822225 | CN54: 30 | CO54: 3.769911184 | CP54: -0.07406094179 | CQ54: -0.1019361413 | CR54: -0.1483201401 | CS54: -0.03917331596 | CT54: 30 | CU54: 3.769911184 | CV54: -0.07406094179 | CW54: -0.1019361413 | CX54: -0.1435839637 | CY54: -0.03397705126 | CZ54: 30 | DA54: 3.769911184 | DB54: -0.07406094179 | DC54: -0.1019361413 | DD54: -0.1384846982 | DE54: -0.02913659416 | DF54: 30 | DG54: 3.769911184 | DH54: -0.07406094179 | DI54: -0.1019361413 | DJ54: -0.1330490025 | DK54: -0.02467725052 | DL54: 30 | DM54: 3.769911184 | DN54: -0.07406094179 | DO54: -0.1019361413 | DP54: -0.1273052943 | DQ54: -0.02062233374 | DR54: 30 | DS54: 3.769911184 | DT54: -0.07406094179 | DU54: -0.1019361413 | DV54: -0.1212836018 | DW54: -0.01699304288 | DX54: 30 | DY54: 3.769911184 | DZ54: -0.07406094179 | EA54: -0.1019361413 | EB54: -0.1150154061 | EC54: -0.01380835185 | ED54: 30 | EE54: 3.769911184 | EF54: -0.07406094179 | EG54: -0.1019361413 | EH54: -0.1085334775 | EI54: -0.01108491016 | EJ54: 30 | EK54: 3.769911184 | EL54: -0.07406094179 | EM54: -0.1019361413 | EN54: -0.1018717033 | EO54: -0.008836955942 | EP54: 30 | EQ54: 3.769911184 | ER54: -0.07406094179 | ES54: -0.1019361413 | ET54: -0.09506491119 | EU54: -0.007076241479 | EV54: 30 | EW54: 3.769911184 | EX54: -0.07406094179 | EY54: -0.1019361413 | EZ54: -0.0881486871 | FA54: -0.005811971766 | FB54: 30 | FC54: 3.769911184 | FD54: -0.07406094179 | FE54: -0.1019361413 | FF54: -0.08115918892 | FG54: -0.005050756391 | FH54: 30 | FI54: 3.769911184 | FJ54: -0.07406094179 | FK54: -0.1019361413 | FL54: -0.07413295768 | FM54: -0.00479657498 | FN54: 30 | FO54: 3.769911184 | FP54: -0.07406094179 | FQ54: -0.1019361413 | FR54: -0.06710672644 | FS54: -0.005050756391 | FT54: 30 | FU54: 3.769911184 | FV54: -0.07406094179 | FW54: -0.1019361413 | FX54: -0.06011722826 | FY54: -0.005811971766 | FZ54: 30 | GA54: 3.769911184 | GB54: -0.07406094179 | GC54: -0.1019361413 | GD54: -0.05320100416 | GE54: -0.007076241479 | GF54: 30 | GG54: 3.769911184 | GH54: -0.07406094179 | GI54: -0.1019361413 | GJ54: -0.04639421209 | GK54: -0.008836955942 | GL54: 30 | GM54: 3.769911184 | GN54: -0.07406094179 | GO54: -0.1019361413 | GP54: -0.03973243789 | GQ54: -0.01108491016 | GR54: 30 | GS54: 3.769911184 | GT54: -0.07406094179 | GU54: -0.1019361413 | GV54: -0.03325050924 | GW54: -0.01380835185 | GX54: 30 | GY54: 3.769911184 | GZ54: -0.07406094179 | HA54: -0.1019361413 | HB54: -0.0269823136 | HC54: -0.01699304288 | HD54: 30 | HE54: 3.769911184 | HF54: -0.07406094179 | HG54: -0.1019361413 | HH54: -0.02096062102 | HI54: -0.02062233374 | HJ54: 30 | HK54: 3.769911184 | HL54: -0.07406094179 | HM54: -0.1019361413 | HN54: -0.01521691284 | HO54: -0.02467725052 | HP54: 30 | HQ54: 3.769911184 | HR54: -0.07406094179 | HS54: -0.1019361413 | HT54: -0.009781217125 | HU54: -0.02913659416 | HV54: 30 | HW54: 3.769911184 | HX54: -0.07406094179 | HY54: -0.1019361413 | HZ54: -0.004681951619 | IA54: -0.03397705126 | IB54: 30 | IC54: 3.769911184 | ID54: -0.07406094179 | IE54: -0.1019361413 | IF54: 5.422476757e-05 | IG54: -0.03917331596 | IH54: 30 | II54: 3.769911184 | IJ54: -0.07406094179 | IK54: -0.1019361413 | IL54: 0.004402551356 | IM54: -0.04469822225 | IN54: 30 | IO54: 3.769911184 | IP54: -0.07406094179 | IQ54: -0.1019361413 | IR54: 0.008340295142 | IS54: -0.05052288598 | IT54: 30 | IU54: 3.769911184 | IV54: -0.07406094179 | IW54: -0.1019361413 | IX54: 0.01184686964 | IY54: -0.05661685586 | IZ54: 30 | JA54: 3.769911184 | JB54: -0.07406094179 | JC54: -0.1019361413 | JD54: 0.01490394252 | JE54: -0.06294827269 | JF54: 30 | JG54: 3.769911184 | JH54: -0.07406094179 | JI54: -0.1019361413 | JJ54: 0.01749553144 | JK54: -0.06948403589 | JL54: 30 | JM54: 3.769911184 | JN54: -0.07406094179 | JO54: -0.1019361413 | JP54: 0.01960808759 | JQ54: -0.07618997655 | JR54: 30 | JS54: 3.769911184 | JT54: -0.07406094179 | JU54: -0.1019361413 | JV54: 0.02123056655 | JW54: -0.08303103609 | JX54: 30 | JY54: 3.769911184 | JZ54: -0.07406094179 | KA54: -0.1019361413 | KB54: 0.02235448603 | KC54: -0.08997144953 | KD54: 30 | KE54: 3.769911184 | KF54: -0.07406094179 | KG54: -0.1019361413 | KH54: 0.02297397019 | KI54: -0.09697493245 | KJ54: 30 | KK54: 3.769911184 | KL54: -0.07406094179 | KM54: -0.1019361413 | KN54: 0.02308578036 | KO54: -0.1040048707 | KP54: 30 | KQ54: 3.769911184 | KR54: -0.07406094179 | KS54: -0.1019361413 | KT54: 0.022689332 | KU54: -0.1110245119 | KV54: 30 | KW54: 3.769911184 | KX54: -0.07406094179 | KY54: -0.1019361413 | KZ54: 0.02178669775 | LA54: -0.1179971574 | LB54: 30 | LC54: 1.884955592 | LD54: 0.1198331211 | LE54: -0.03893614129 | LF54: 0.2144651994 | LG54: -0.06182509389
B55: 32 | C55: 3.89557489 | D55: -0.08625293535 | E55: -0.09185004706 | F55: -0.1808523608 | G55: -0.1147904524 | H55: 31 | I55: 3.89557489 | J55: -0.08625293535 | K55: -0.09185004706 | N55: 31 | O55: 3.89557489 | P55: -0.08625293535 | Q55: -0.09185004706 | R55: -0.1808523608 | S55: -0.1147904524 | T55: 31 | U55: 3.89557489 | V55: -0.08625293535 | W55: -0.09185004706 | X55: -0.182256462 | Y55: -0.1079012556 | Z55: 31 | AA55: 3.89557489 | AB55: -0.08625293535 | AC55: -0.09185004706 | AD55: -0.1831590963 | AE55: -0.1009286101 | AF55: 31 | AG55: 3.89557489 | AH55: -0.08625293535 | AI55: -0.09185004706 | AJ55: -0.1835555446 | AK55: -0.0939089689 | AL55: 31 | AM55: 3.89557489 | AN55: -0.08625293535 | AO55: -0.09185004706 | AP55: -0.1834437344 | AQ55: -0.08687903063 | AR55: 31 | AS55: 3.89557489 | AT55: -0.08625293535 | AU55: -0.09185004706 | AV55: -0.1828242503 | AW55: -0.07987554771 | AX55: 31 | AY55: 3.89557489 | AZ55: -0.08625293535 | BA55: -0.09185004706 | BB55: -0.1817003308 | BC55: -0.07293513427 | BD55: 31 | BE55: 3.89557489 | BF55: -0.08625293535 | BG55: -0.09185004706 | BH55: -0.1800778518 | BI55: -0.06609407473 | BJ55: 31 | BK55: 3.89557489 | BL55: -0.08625293535 | BM55: -0.09185004706 | BN55: -0.1779652957 | BO55: -0.05938813407 | BP55: 31 | BQ55: 3.89557489 | BR55: -0.08625293535 | BS55: -0.09185004706 | BT55: -0.1753737068 | BU55: -0.05285237087 | BV55: 31 | BW55: 3.89557489 | BX55: -0.08625293535 | BY55: -0.09185004706 | BZ55: -0.1723166339 | CA55: -0.04652095404 | CB55: 31 | CC55: 3.89557489 | CD55: -0.08625293535 | CE55: -0.09185004706 | CF55: -0.1688100594 | CG55: -0.04042698416 | CH55: 31 | CI55: 3.89557489 | CJ55: -0.08625293535 | CK55: -0.09185004706 | CL55: -0.1648723156 | CM55: -0.03460232043 | CN55: 31 | CO55: 3.89557489 | CP55: -0.08625293535 | CQ55: -0.09185004706 | CR55: -0.160523989 | CS55: -0.02907741414 | CT55: 31 | CU55: 3.89557489 | CV55: -0.08625293535 | CW55: -0.09185004706 | CX55: -0.1557878126 | CY55: -0.02388114944 | CZ55: 31 | DA55: 3.89557489 | DB55: -0.08625293535 | DC55: -0.09185004706 | DD55: -0.1506885471 | DE55: -0.01904069233 | DF55: 31 | DG55: 3.89557489 | DH55: -0.08625293535 | DI55: -0.09185004706 | DJ55: -0.1452528514 | DK55: -0.01458134869 | DL55: 31 | DM55: 3.89557489 | DN55: -0.08625293535 | DO55: -0.09185004706 | DP55: -0.1395091432 | DQ55: -0.01052643192 | DR55: 31 | DS55: 3.89557489 | DT55: -0.08625293535 | DU55: -0.09185004706 | DV55: -0.1334874506 | DW55: -0.006897141061 | DX55: 31 | DY55: 3.89557489 | DZ55: -0.08625293535 | EA55: -0.09185004706 | EB55: -0.127219255 | EC55: -0.003712450024 | ED55: 31 | EE55: 3.89557489 | EF55: -0.08625293535 | EG55: -0.09185004706 | EH55: -0.1207373264 | EI55: -0.0009890083358 | EJ55: 31 | EK55: 3.89557489 | EL55: -0.08625293535 | EM55: -0.09185004706 | EN55: -0.1140755522 | EO55: 0.00125894588 | EP55: 31 | EQ55: 3.89557489 | ER55: -0.08625293535 | ES55: -0.09185004706 | ET55: -0.1072687601 | EU55: 0.003019660343 | EV55: 31 | EW55: 3.89557489 | EX55: -0.08625293535 | EY55: -0.09185004706 | EZ55: -0.100352536 | FA55: 0.004283930056 | FB55: 31 | FC55: 3.89557489 | FD55: -0.08625293535 | FE55: -0.09185004706 | FF55: -0.09336303781 | FG55: 0.005045145431 | FH55: 31 | FI55: 3.89557489 | FJ55: -0.08625293535 | FK55: -0.09185004706 | FL55: -0.08633680657 | FM55: 0.005299326842 | FN55: 31 | FO55: 3.89557489 | FP55: -0.08625293535 | FQ55: -0.09185004706 | FR55: -0.07931057533 | FS55: 0.005045145431 | FT55: 31 | FU55: 3.89557489 | FV55: -0.08625293535 | FW55: -0.09185004706 | FX55: -0.07232107715 | FY55: 0.004283930056 | FZ55: 31 | GA55: 3.89557489 | GB55: -0.08625293535 | GC55: -0.09185004706 | GD55: -0.06540485305 | GE55: 0.003019660343 | GF55: 31 | GG55: 3.89557489 | GH55: -0.08625293535 | GI55: -0.09185004706 | GJ55: -0.05859806099 | GK55: 0.00125894588 | GL55: 31 | GM55: 3.89557489 | GN55: -0.08625293535 | GO55: -0.09185004706 | GP55: -0.05193628679 | GQ55: -0.0009890083358 | GR55: 31 | GS55: 3.89557489 | GT55: -0.08625293535 | GU55: -0.09185004706 | GV55: -0.04545435814 | GW55: -0.003712450024 | GX55: 31 | GY55: 3.89557489 | GZ55: -0.08625293535 | HA55: -0.09185004706 | HB55: -0.03918616249 | HC55: -0.006897141061 | HD55: 31 | HE55: 3.89557489 | HF55: -0.08625293535 | HG55: -0.09185004706 | HH55: -0.03316446991 | HI55: -0.01052643192 | HJ55: 31 | HK55: 3.89557489 | HL55: -0.08625293535 | HM55: -0.09185004706 | HN55: -0.02742076174 | HO55: -0.01458134869 | HP55: 31 | HQ55: 3.89557489 | HR55: -0.08625293535 | HS55: -0.09185004706 | HT55: -0.02198506602 | HU55: -0.01904069233 | HV55: 31 | HW55: 3.89557489 | HX55: -0.08625293535 | HY55: -0.09185004706 | HZ55: -0.01688580051 | IA55: -0.02388114944 | IB55: 31 | IC55: 3.89557489 | ID55: -0.08625293535 | IE55: -0.09185004706 | IF55: -0.01214962413 | IG55: -0.02907741414 | IH55: 31 | II55: 3.89557489 | IJ55: -0.08625293535 | IK55: -0.09185004706 | IL55: -0.007801297536 | IM55: -0.03460232043 | IN55: 31 | IO55: 3.89557489 | IP55: -0.08625293535 | IQ55: -0.09185004706 | IR55: -0.003863553751 | IS55: -0.04042698416 | IT55: 31 | IU55: 3.89557489 | IV55: -0.08625293535 | IW55: -0.09185004706 | IX55: -0.0003569792517 | IY55: -0.04652095404 | IZ55: 31 | JA55: 3.89557489 | JB55: -0.08625293535 | JC55: -0.09185004706 | JD55: 0.002700093628 | JE55: -0.05285237087 | JF55: 31 | JG55: 3.89557489 | JH55: -0.08625293535 | JI55: -0.09185004706 | JJ55: 0.005291682543 | JK55: -0.05938813407 | JL55: 31 | JM55: 3.89557489 | JN55: -0.08625293535 | JO55: -0.09185004706 | JP55: 0.007404238695 | JQ55: -0.06609407473 | JR55: 31 | JS55: 3.89557489 | JT55: -0.08625293535 | JU55: -0.09185004706 | JV55: 0.009026717662 | JW55: -0.07293513427 | JX55: 31 | JY55: 3.89557489 | JZ55: -0.08625293535 | KA55: -0.09185004706 | KB55: 0.01015063714 | KC55: -0.07987554771 | KD55: 31 | KE55: 3.89557489 | KF55: -0.08625293535 | KG55: -0.09185004706 | KH55: 0.0107701213 | KI55: -0.08687903063 | KJ55: 31 | KK55: 3.89557489 | KL55: -0.08625293535 | KM55: -0.09185004706 | KN55: 0.01088193147 | KO55: -0.0939089689 | KP55: 31 | KQ55: 3.89557489 | KR55: -0.08625293535 | KS55: -0.09185004706 | KT55: 0.01048548311 | KU55: -0.1009286101 | KV55: 31 | KW55: 3.89557489 | KX55: -0.08625293535 | KY55: -0.09185004706 | KZ55: 0.00958284886 | LA55: -0.1079012556 | LB55: 31 | LC55: 1.947787445 | LD55: 0.1171518372 | LE55: -0.04638369364 | LF55: 0.2117813084 | LG55: -0.06927988814
B56: 33 | C56: 4.021238597 | D56: -0.09708466859 | E56: -0.08031542271 | F56: -0.1916946267 | G56: -0.103244612 | H56: 32 | I56: 4.021238597 | J56: -0.09708466859 | K56: -0.08031542271 | N56: 32 | O56: 4.021238597 | P56: -0.09708466859 | Q56: -0.08031542271 | R56: -0.1916946267 | S56: -0.103244612 | T56: 32 | U56: 4.021238597 | V56: -0.09708466859 | W56: -0.08031542271 | X56: -0.1930987279 | Y56: -0.09635541511 | Z56: 32 | AA56: 4.021238597 | AB56: -0.09708466859 | AC56: -0.08031542271 | AD56: -0.1940013621 | AE56: -0.08938276962 | AF56: 32 | AG56: 4.021238597 | AH56: -0.09708466859 | AI56: -0.08031542271 | AJ56: -0.1943978105 | AK56: -0.08236312844 | AL56: 32 | AM56: 4.021238597 | AN56: -0.09708466859 | AO56: -0.08031542271 | AP56: -0.1942860003 | AQ56: -0.07533319016 | AR56: 32 | AS56: 4.021238597 | AT56: -0.09708466859 | AU56: -0.08031542271 | AV56: -0.1936665162 | AW56: -0.06832970724 | AX56: 32 | AY56: 4.021238597 | AZ56: -0.09708466859 | BA56: -0.08031542271 | BB56: -0.1925425967 | BC56: -0.06138929381 | BD56: 32 | BE56: 4.021238597 | BF56: -0.09708466859 | BG56: -0.08031542271 | BH56: -0.1909201177 | BI56: -0.05454823426 | BJ56: 32 | BK56: 4.021238597 | BL56: -0.09708466859 | BM56: -0.08031542271 | BN56: -0.1888075616 | BO56: -0.0478422936 | BP56: 32 | BQ56: 4.021238597 | BR56: -0.09708466859 | BS56: -0.08031542271 | BT56: -0.1862159726 | BU56: -0.04130653041 | BV56: 32 | BW56: 4.021238597 | BX56: -0.09708466859 | BY56: -0.08031542271 | BZ56: -0.1831588998 | CA56: -0.03497511358 | CB56: 32 | CC56: 4.021238597 | CD56: -0.09708466859 | CE56: -0.08031542271 | CF56: -0.1796523253 | CG56: -0.0288811437 | CH56: 32 | CI56: 4.021238597 | CJ56: -0.09708466859 | CK56: -0.08031542271 | CL56: -0.1757145815 | CM56: -0.02305647997 | CN56: 32 | CO56: 4.021238597 | CP56: -0.09708466859 | CQ56: -0.08031542271 | CR56: -0.1713662549 | CS56: -0.01753157368 | CT56: 32 | CU56: 4.021238597 | CV56: -0.09708466859 | CW56: -0.08031542271 | CX56: -0.1666300785 | CY56: -0.01233530897 | CZ56: 32 | DA56: 4.021238597 | DB56: -0.09708466859 | DC56: -0.08031542271 | DD56: -0.161530813 | DE56: -0.007494851871 | DF56: 32 | DG56: 4.021238597 | DH56: -0.09708466859 | DI56: -0.08031542271 | DJ56: -0.1560951173 | DK56: -0.00303550823 | DL56: 32 | DM56: 4.021238597 | DN56: -0.09708466859 | DO56: -0.08031542271 | DP56: -0.1503514091 | DQ56: 0.001019408548 | DR56: 32 | DS56: 4.021238597 | DT56: -0.09708466859 | DU56: -0.08031542271 | DV56: -0.1443297165 | DW56: 0.004648699403 | DX56: 32 | DY56: 4.021238597 | DZ56: -0.09708466859 | EA56: -0.08031542271 | EB56: -0.1380615209 | EC56: 0.00783339044 | ED56: 32 | EE56: 4.021238597 | EF56: -0.09708466859 | EG56: -0.08031542271 | EH56: -0.1315795922 | EI56: 0.01055683213 | EJ56: 32 | EK56: 4.021238597 | EL56: -0.09708466859 | EM56: -0.08031542271 | EN56: -0.124917818 | EO56: 0.01280478634 | EP56: 32 | EQ56: 4.021238597 | ER56: -0.09708466859 | ES56: -0.08031542271 | ET56: -0.118111026 | EU56: 0.01456550081 | EV56: 32 | EW56: 4.021238597 | EX56: -0.09708466859 | EY56: -0.08031542271 | EZ56: -0.1111948019 | FA56: 0.01582977052 | FB56: 32 | FC56: 4.021238597 | FD56: -0.09708466859 | FE56: -0.08031542271 | FF56: -0.1042053037 | FG56: 0.0165909859 | FH56: 32 | FI56: 4.021238597 | FJ56: -0.09708466859 | FK56: -0.08031542271 | FL56: -0.09717907245 | FM56: 0.01684516731 | FN56: 32 | FO56: 4.021238597 | FP56: -0.09708466859 | FQ56: -0.08031542271 | FR56: -0.09015284121 | FS56: 0.0165909859 | FT56: 32 | FU56: 4.021238597 | FV56: -0.09708466859 | FW56: -0.08031542271 | FX56: -0.08316334303 | FY56: 0.01582977052 | FZ56: 32 | GA56: 4.021238597 | GB56: -0.09708466859 | GC56: -0.08031542271 | GD56: -0.07624711893 | GE56: 0.01456550081 | GF56: 32 | GG56: 4.021238597 | GH56: -0.09708466859 | GI56: -0.08031542271 | GJ56: -0.06944032686 | GK56: 0.01280478634 | GL56: 32 | GM56: 4.021238597 | GN56: -0.09708466859 | GO56: -0.08031542271 | GP56: -0.06277855266 | GQ56: 0.01055683213 | GR56: 32 | GS56: 4.021238597 | GT56: -0.09708466859 | GU56: -0.08031542271 | GV56: -0.05629662401 | GW56: 0.00783339044 | GX56: 32 | GY56: 4.021238597 | GZ56: -0.09708466859 | HA56: -0.08031542271 | HB56: -0.05002842837 | HC56: 0.004648699403 | HD56: 32 | HE56: 4.021238597 | HF56: -0.09708466859 | HG56: -0.08031542271 | HH56: -0.04400673579 | HI56: 0.001019408548 | HJ56: 32 | HK56: 4.021238597 | HL56: -0.09708466859 | HM56: -0.08031542271 | HN56: -0.03826302761 | HO56: -0.00303550823 | HP56: 32 | HQ56: 4.021238597 | HR56: -0.09708466859 | HS56: -0.08031542271 | HT56: -0.0328273319 | HU56: -0.007494851871 | HV56: 32 | HW56: 4.021238597 | HX56: -0.09708466859 | HY56: -0.08031542271 | HZ56: -0.02772806639 | IA56: -0.01233530897 | IB56: 32 | IC56: 4.021238597 | ID56: -0.09708466859 | IE56: -0.08031542271 | IF56: -0.02299189 | IG56: -0.01753157368 | IH56: 32 | II56: 4.021238597 | IJ56: -0.09708466859 | IK56: -0.08031542271 | IL56: -0.01864356341 | IM56: -0.02305647997 | IN56: 32 | IO56: 4.021238597 | IP56: -0.09708466859 | IQ56: -0.08031542271 | IR56: -0.01470581963 | IS56: -0.0288811437 | IT56: 32 | IU56: 4.021238597 | IV56: -0.09708466859 | IW56: -0.08031542271 | IX56: -0.01119924513 | IY56: -0.03497511358 | IZ56: 32 | JA56: 4.021238597 | JB56: -0.09708466859 | JC56: -0.08031542271 | JD56: -0.00814217225 | JE56: -0.04130653041 | JF56: 32 | JG56: 4.021238597 | JH56: -0.09708466859 | JI56: -0.08031542271 | JJ56: -0.005550583335 | JK56: -0.0478422936 | JL56: 32 | JM56: 4.021238597 | JN56: -0.09708466859 | JO56: -0.08031542271 | JP56: -0.003438027183 | JQ56: -0.05454823426 | JR56: 32 | JS56: 4.021238597 | JT56: -0.09708466859 | JU56: -0.08031542271 | JV56: -0.001815548216 | JW56: -0.06138929381 | JX56: 32 | JY56: 4.021238597 | JZ56: -0.09708466859 | KA56: -0.08031542271 | KB56: -0.000691628736 | KC56: -0.06832970724 | KD56: 32 | KE56: 4.021238597 | KF56: -0.09708466859 | KG56: -0.08031542271 | KH56: -7.214458236e-05 | KI56: -0.07533319016 | KJ56: 32 | KK56: 4.021238597 | KL56: -0.09708466859 | KM56: -0.08031542271 | KN56: 3.96655884e-05 | KO56: -0.08236312844 | KP56: 32 | KQ56: 4.021238597 | KR56: -0.09708466859 | KS56: -0.08031542271 | KT56: -0.0003567827661 | KU56: -0.08938276962 | KV56: 32 | KW56: 4.021238597 | KX56: -0.09708466859 | KY56: -0.08031542271 | KZ56: -0.001259417018 | LA56: -0.09635541511 | LB56: 32 | LC56: 2.010619298 | LD56: 0.1140082086 | LE56: -0.05364819074 | LF56: 0.2086346229 | LG56: -0.07655144914
B57: 34 | C57: =B56*2*PI()/nofpoints -> 4.146902303 | D57: =ROPHS*SIN(C57) -> -0.1063853186 | E57: =ROPHS*COS(C57) -> -0.06751417617 | F57: =X$15+(D57-X$15)*(APOSOPIOTH+aPostopilios)/aPostopilios -> -0.2010043205 | G57: =B$23+(E57-B$23)*(APOSOPIOTH+aPostopilios)/aPostopilios -> -0.09043091767 | H57: 33 | I57: =H57*2*PI()/nofpoints -> 4.146902303 | J57: =ROPHS*SIN(I57) -> -0.1063853186 | K57: =ROPHS*COS(I57) -> -0.06751417617 | L57: =H$20+(J57-H$20)*(APOSOPIOTH+aPostopilios)/aPostopilios ->  | M57: =H$23+(K57-H$23)*(APOSOPIOTH+aPostopilios)/aPostopilios ->  | N57: 33 | O57: =N57*2*PI()/nofpoints -> 4.146902303 | P57: =ROPHS*SIN(O57) -> -0.1063853186 | Q57: =ROPHS*COS(O57) -> -0.06751417617 | R57: =N$20+(P57-N$20)*(APOSOPIOTH+aPostopilios)/aPostopilios -> -0.2010043205 | S57: =N$23+(Q57-N$23)*(APOSOPIOTH+aPostopilios)/aPostopilios -> -0.09043091767 | T57: 33 | U57: =T57*2*PI()/nofpoints -> 4.146902303 | V57: =ROPHS*SIN(U57) -> -0.1063853186 | W57: =ROPHS*COS(U57) -> -0.06751417617 | X57: =T$20+(V57-T$20)*(APOSOPIOTH+aPostopilios)/aPostopilios -> -0.2024084217 | Y57: =T$23+(W57-T$23)*(APOSOPIOTH+aPostopilios)/aPostopilios -> -0.0835417208 | Z57: 33 | AA57: =Z57*2*PI()/nofpoints -> 4.146902303 | AB57: =ROPHS*SIN(AA57) -> -0.1063853186 | AC57: =ROPHS*COS(AA57) -> -0.06751417617 | AD57: =Z$20+(AB57-Z$20)*(APOSOPIOTH+aPostopilios)/aPostopilios -> -0.203311056 | AE57: =Z$23+(AC57-Z$23)*(APOSOPIOTH+aPostopilios)/aPostopilios -> -0.07656907532 | AF57: 33 | AG57: =AF57*2*PI()/nofpoints -> 4.146902303 | AH57: =ROPHS*SIN(AG57) -> -0.1063853186 | AI57: =ROPHS*COS(AG57) -> -0.06751417617 | AJ57: =AF$20+(AH57-AF$20)*(APOSOPIOTH+aPostopilios)/aPostopilios -> -0.2037075043 | AK57: =AF$23+(AI57-AF$23)*(APOSOPIOTH+aPostopilios)/aPostopilios -> -0.06954943413 | AL57: 33 | AM57: =AL57*2*PI()/nofpoints -> 4.146902303 | AN57: =ROPHS*SIN(AM57) -> -0.1063853186 | AO57: =ROPHS*COS(AM57) -> -0.06751417617 | AP57: =AL$20+(AN57-AL$20)*(APOSOPIOTH+aPostopilios)/aPostopilios -> -0.2035956942 | AQ57: =AL$23+(AO57-AL$23)*(APOSOPIOTH+aPostopilios)/aPostopilios -> -0.06251949586 | AR57: 33 | AS57: =AR57*2*PI()/nofpoints -> 4.146902303 | AT57: =ROPHS*SIN(AS57) -> -0.1063853186 | AU57: =ROPHS*COS(AS57) -> -0.06751417617 | AV57: =AR$20+(AT57-AR$20)*(APOSOPIOTH+aPostopilios)/aPostopilios -> -0.20297621 | AW57: =AR$23+(AU57-AR$23)*(APOSOPIOTH+aPostopilios)/aPostopilios -> -0.05551601294 | AX57: 33 | AY57: =AX57*2*PI()/nofpoints -> 4.146902303 | AZ57: =ROPHS*SIN(AY57) -> -0.1063853186 | BA57: =ROPHS*COS(AY57) -> -0.06751417617 | BB57: =AX$20+(AZ57-AX$20)*(APOSOPIOTH+aPostopilios)/aPostopilios -> -0.2018522905 | BC57: =AX$23+(BA57-AX$23)*(APOSOPIOTH+aPostopilios)/aPostopilios -> -0.0485755995 | BD57: 33 | BE57: =BD57*2*PI()/nofpoints -> 4.146902303 | BF57: =ROPHS*SIN(BE57) -> -0.1063853186 | BG57: =ROPHS*COS(BE57) -> -0.06751417617 | BH57: =BD$20+(BF57-BD$20)*(APOSOPIOTH+aPostopilios)/aPostopilios -> -0.2002298116 | BI57: =BD$23+(BG57-BD$23)*(APOSOPIOTH+aPostopilios)/aPostopilios -> -0.04173453996 | BJ57: 33 | BK57: =BJ57*2*PI()/nofpoints -> 4.146902303 | BL57: =ROPHS*SIN(BK57) -> -0.1063853186 | BM57: =ROPHS*COS(BK57) -> -0.06751417617 | BN57: =BJ$20+(BL57-BJ$20)*(APOSOPIOTH+aPostopilios)/aPostopilios -> -0.1981172554 | BO57: =BJ$23+(BM57-BJ$23)*(APOSOPIOTH+aPostopilios)/aPostopilios -> -0.0350285993 | BP57: 33 | BQ57: =BP57*2*PI()/nofpoints -> 4.146902303 | BR57: =ROPHS*SIN(BQ57) -> -0.1063853186 | BS57: =ROPHS*COS(BQ57) -> -0.06751417617 | BT57: =BP$20+(BR57-BP$20)*(APOSOPIOTH+aPostopilios)/aPostopilios -> -0.1955256665 | BU57: =BP$23+(BS57-BP$23)*(APOSOPIOTH+aPostopilios)/aPostopilios -> -0.0284928361 | BV57: 33 | BW57: =BV57*2*PI()/nofpoints -> 4.146902303 | BX57: =ROPHS*SIN(BW57) -> -0.1063853186 | BY57: =ROPHS*COS(BW57) -> -0.06751417617 | BZ57: =BV$20+(BX57-BV$20)*(APOSOPIOTH+aPostopilios)/aPostopilios -> -0.1924685936 | CA57: =BV$23+(BY57-BV$23)*(APOSOPIOTH+aPostopilios)/aPostopilios -> -0.02216141927 | CB57: 33 | CC57: =CB57*2*PI()/nofpoints -> 4.146902303 | CD57: =ROPHS*SIN(CC57) -> -0.1063853186 | CE57: =ROPHS*COS(CC57) -> -0.06751417617 | CF57: =CB$20+(CD57-CB$20)*(APOSOPIOTH+aPostopilios)/aPostopilios -> -0.1889620191 | CG57: =CB$23+(CE57-CB$23)*(APOSOPIOTH+aPostopilios)/aPostopilios -> -0.01606744939 | CH57: 33 | CI57: =CH57*2*PI()/nofpoints -> 4.146902303 | CJ57: =ROPHS*SIN(CI57) -> -0.1063853186 | CK57: =ROPHS*COS(CI57) -> -0.06751417617 | CL57: =CH$20+(CJ57-CH$20)*(APOSOPIOTH+aPostopilios)/aPostopilios -> -0.1850242753 | CM57: =CH$23+(CK57-CH$23)*(APOSOPIOTH+aPostopilios)/aPostopilios -> -0.01024278566 | CN57: 33 | CO57: =CN57*2*PI()/nofpoints -> 4.146902303 | CP57: =ROPHS*SIN(CO57) -> -0.1063853186 | CQ57: =ROPHS*COS(CO57) -> -0.06751417617 | CR57: =CN$20+(CP57-CN$20)*(APOSOPIOTH+aPostopilios)/aPostopilios -> -0.1806759487 | CS57: =CN$23+(CQ57-CN$23)*(APOSOPIOTH+aPostopilios)/aPostopilios -> -0.004717879372 | CT57: 33 | CU57: =CT57*2*PI()/nofpoints -> 4.146902303 | CV57: =ROPHS*SIN(CU57) -> -0.1063853186 | CW57: =ROPHS*COS(CU57) -> -0.06751417617 | CX57: =CT$20+(CV57-CT$20)*(APOSOPIOTH+aPostopilios)/aPostopilios -> -0.1759397724 | CY57: =CT$23+(CW57-CT$23)*(APOSOPIOTH+aPostopilios)/aPostopilios -> 0.0004783853328 | CZ57: 33 | DA57: =CZ57*2*PI()/nofpoints -> 4.146902303 | DB57: =ROPHS*SIN(DA57) -> -0.1063853186 | DC57: =ROPHS*COS(DA57) -> -0.06751417617 | DD57: =CZ$20+(DB57-CZ$20)*(APOSOPIOTH+aPostopilios)/aPostopilios -> -0.1708405069 | DE57: =CZ$23+(DC57-CZ$23)*(APOSOPIOTH+aPostopilios)/aPostopilios -> 0.005318842435 | DF57: 33 | DG57: =DF57*2*PI()/nofpoints -> 4.146902303 | DH57: =ROPHS*SIN(DG57) -> -0.1063853186 | DI57: =ROPHS*COS(DG57) -> -0.06751417617 | DJ57: =DF$20+(DH57-DF$20)*(APOSOPIOTH+aPostopilios)/aPostopilios -> -0.1654048111 | DK57: =DF$23+(DI57-DF$23)*(APOSOPIOTH+aPostopilios)/aPostopilios -> 0.009778186075 | DL57: 33 | DM57: =DL57*2*PI()/nofpoints -> 4.146902303 | DN57: =ROPHS*SIN(DM57) -> -0.1063853186 | DO57: =ROPHS*COS(DM57) -> -0.06751417617 | DP57: =DL$20+(DN57-DL$20)*(APOSOPIOTH+aPostopilios)/aPostopilios -> -0.159661103 | DQ57: =DL$23+(DO57-DL$23)*(APOSOPIOTH+aPostopilios)/aPostopilios -> 0.01383310285 | DR57: 33 | DS57: =DR57*2*PI()/nofpoints -> 4.146902303 | DT57: =ROPHS*SIN(DS57) -> -0.1063853186 | DU57: =ROPHS*COS(DS57) -> -0.06751417617 | DV57: =DR$20+(DT57-DR$20)*(APOSOPIOTH+aPostopilios)/aPostopilios -> -0.1536394104 | DW57: =DR$23+(DU57-DR$23)*(APOSOPIOTH+aPostopilios)/aPostopilios -> 0.01746239371 | DX57: 33 | DY57: =DX57*2*PI()/nofpoints -> 4.146902303 | DZ57: =ROPHS*SIN(DY57) -> -0.1063853186 | EA57: =ROPHS*COS(DY57) -> -0.06751417617 | EB57: =DX$20+(DZ57-DX$20)*(APOSOPIOTH+aPostopilios)/aPostopilios -> -0.1473712147 | EC57: =DX$23+(EA57-DX$23)*(APOSOPIOTH+aPostopilios)/aPostopilios -> 0.02064708475 | ED57: 33 | EE57: =ED57*2*PI()/nofpoints -> 4.146902303 | EF57: =ROPHS*SIN(EE57) -> -0.1063853186 | EG57: =ROPHS*COS(EE57) -> -0.06751417617 | EH57: =ED$20+(EF57-ED$20)*(APOSOPIOTH+aPostopilios)/aPostopilios -> -0.1408892861 | EI57: =ED$23+(EG57-ED$23)*(APOSOPIOTH+aPostopilios)/aPostopilios -> 0.02337052643 | EJ57: 33 | EK57: =EJ57*2*PI()/nofpoints -> 4.146902303 | EL57: =ROPHS*SIN(EK57) -> -0.1063853186 | EM57: =ROPHS*COS(EK57) -> -0.06751417617 | EN57: =EJ$20+(EL57-EJ$20)*(APOSOPIOTH+aPostopilios)/aPostopilios -> -0.1342275119 | EO57: =EJ$23+(EM57-EJ$23)*(APOSOPIOTH+aPostopilios)/aPostopilios -> 0.02561848065 | EP57: 33 | EQ57: =EP57*2*PI()/nofpoints -> 4.146902303 | ER57: =ROPHS*SIN(EQ57) -> -0.1063853186 | ES57: =ROPHS*COS(EQ57) -> -0.06751417617 | ET57: =EP$20+(ER57-EP$20)*(APOSOPIOTH+aPostopilios)/aPostopilios -> -0.1274207198 | EU57: =EP$23+(ES57-EP$23)*(APOSOPIOTH+aPostopilios)/aPostopilios -> 0.02737919511 | EV57: 33 | EW57: =EV57*2*PI()/nofpoints -> 4.146902303 | EX57: =ROPHS*SIN(EW57) -> -0.1063853186 | EY57: =ROPHS*COS(EW57) -> -0.06751417617 | EZ57: =EV$20+(EX57-EV$20)*(APOSOPIOTH+aPostopilios)/aPostopilios -> -0.1205044957 | FA57: =EV$23+(EY57-EV$23)*(APOSOPIOTH+aPostopilios)/aPostopilios -> 0.02864346483 | FB57: 33 | FC57: =FB57*2*PI()/nofpoints -> 4.146902303 | FD57: =ROPHS*SIN(FC57) -> -0.1063853186 | FE57: =ROPHS*COS(FC57) -> -0.06751417617 | FF57: =FB$20+(FD57-FB$20)*(APOSOPIOTH+aPostopilios)/aPostopilios -> -0.1135149975 | FG57: =FB$23+(FE57-FB$23)*(APOSOPIOTH+aPostopilios)/aPostopilios -> 0.0294046802 | FH57: 33 | FI57: =FH57*2*PI()/nofpoints -> 4.146902303 | FJ57: =ROPHS*SIN(FI57) -> -0.1063853186 | FK57: =ROPHS*COS(FI57) -> -0.06751417617 | FL57: =FH$20+(FJ57-FH$20)*(APOSOPIOTH+aPostopilios)/aPostopilios -> -0.1064887663 | FM57: =FH$23+(FK57-FH$23)*(APOSOPIOTH+aPostopilios)/aPostopilios -> 0.02965886161 | FN57: 33 | FO57: =FN57*2*PI()/nofpoints -> 4.146902303 | FP57: =ROPHS*SIN(FO57) -> -0.1063853186 | FQ57: =ROPHS*COS(FO57) -> -0.06751417617 | FR57: =FN$20+(FP57-FN$20)*(APOSOPIOTH+aPostopilios)/aPostopilios -> -0.09946253506 | FS57: =FN$23+(FQ57-FN$23)*(APOSOPIOTH+aPostopilios)/aPostopilios -> 0.0294046802 | FT57: 33 | FU57: =FT57*2*PI()/nofpoints -> 4.146902303 | FV57: =ROPHS*SIN(FU57) -> -0.1063853186 | FW57: =ROPHS*COS(FU57) -> -0.06751417617 | FX57: =FT$20+(FV57-FT$20)*(APOSOPIOTH+aPostopilios)/aPostopilios -> -0.09247303688 | FY57: =FT$23+(FW57-FT$23)*(APOSOPIOTH+aPostopilios)/aPostopilios -> 0.02864346483 | FZ57: 33 | GA57: =FZ57*2*PI()/nofpoints -> 4.146902303 | GB57: =ROPHS*SIN(GA57) -> -0.1063853186 | GC57: =ROPHS*COS(GA57) -> -0.06751417617 | GD57: =FZ$20+(GB57-FZ$20)*(APOSOPIOTH+aPostopilios)/aPostopilios -> -0.08555681278 | GE57: =FZ$23+(GC57-FZ$23)*(APOSOPIOTH+aPostopilios)/aPostopilios -> 0.02737919511 | GF57: 33 | GG57: =GF57*2*PI()/nofpoints -> 4.146902303 | GH57: =ROPHS*SIN(GG57) -> -0.1063853186 | GI57: =ROPHS*COS(GG57) -> -0.06751417617 | GJ57: =GF$20+(GH57-GF$20)*(APOSOPIOTH+aPostopilios)/aPostopilios -> -0.07875002072 | GK57: =GF$23+(GI57-GF$23)*(APOSOPIOTH+aPostopilios)/aPostopilios -> 0.02561848065 | GL57: 33 | GM57: =GL57*2*PI()/nofpoints -> 4.146902303 | GN57: =ROPHS*SIN(GM57) -> -0.1063853186 | GO57: =ROPHS*COS(GM57) -> -0.06751417617 | GP57: =GL$20+(GN57-GL$20)*(APOSOPIOTH+aPostopilios)/aPostopilios -> -0.07208824652 | GQ57: =GL$23+(GO57-GL$23)*(APOSOPIOTH+aPostopilios)/aPostopilios -> 0.02337052643 | GR57: 33 | GS57: =GR57*2*PI()/nofpoints -> 4.146902303 | GT57: =ROPHS*SIN(GS57) -> -0.1063853186 | GU57: =ROPHS*COS(GS57) -> -0.06751417617 | GV57: =GR$20+(GT57-GR$20)*(APOSOPIOTH+aPostopilios)/aPostopilios -> -0.06560631787 | GW57: =GR$23+(GU57-GR$23)*(APOSOPIOTH+aPostopilios)/aPostopilios -> 0.02064708475 | GX57: 33 | GY57: =GX57*2*PI()/nofpoints -> 4.146902303 | GZ57: =ROPHS*SIN(GY57) -> -0.1063853186 | HA57: =ROPHS*COS(GY57) -> -0.06751417617 | HB57: =GX$20+(GZ57-GX$20)*(APOSOPIOTH+aPostopilios)/aPostopilios -> -0.05933812222 | HC57: =GX$23+(HA57-GX$23)*(APOSOPIOTH+aPostopilios)/aPostopilios -> 0.01746239371 | HD57: 33 | HE57: =HD57*2*PI()/nofpoints -> 4.146902303 | HF57: =ROPHS*SIN(HE57) -> -0.1063853186 | HG57: =ROPHS*COS(HE57) -> -0.06751417617 | HH57: =HD$20+(HF57-HD$20)*(APOSOPIOTH+aPostopilios)/aPostopilios -> -0.05331642964 | HI57: =HD$23+(HG57-HD$23)*(APOSOPIOTH+aPostopilios)/aPostopilios -> 0.01383310285 | HJ57: 33 | HK57: =HJ57*2*PI()/nofpoints -> 4.146902303 | HL57: =ROPHS*SIN(HK57) -> -0.1063853186 | HM57: =ROPHS*COS(HK57) -> -0.06751417617 | HN57: =HJ$20+(HL57-HJ$20)*(APOSOPIOTH+aPostopilios)/aPostopilios -> -0.04757272147 | HO57: =HJ$23+(HM57-HJ$23)*(APOSOPIOTH+aPostopilios)/aPostopilios -> 0.009778186075 | HP57: 33 | HQ57: =HP57*2*PI()/nofpoints -> 4.146902303 | HR57: =ROPHS*SIN(HQ57) -> -0.1063853186 | HS57: =ROPHS*COS(HQ57) -> -0.06751417617 | HT57: =HP$20+(HR57-HP$20)*(APOSOPIOTH+aPostopilios)/aPostopilios -> -0.04213702575 | HU57: =HP$23+(HS57-HP$23)*(APOSOPIOTH+aPostopilios)/aPostopilios -> 0.005318842435 | HV57: 33 | HW57: =HV57*2*PI()/nofpoints -> 4.146902303 | HX57: =ROPHS*SIN(HW57) -> -0.1063853186 | HY57: =ROPHS*COS(HW57) -> -0.06751417617 | HZ57: =HV$20+(HX57-HV$20)*(APOSOPIOTH+aPostopilios)/aPostopilios -> -0.03703776024 | IA57: =HV$23+(HY57-HV$23)*(APOSOPIOTH+aPostopilios)/aPostopilios -> 0.0004783853328 | IB57: 33 | IC57: =IB57*2*PI()/nofpoints -> 4.146902303 | ID57: =ROPHS*SIN(IC57) -> -0.1063853186 | IE57: =ROPHS*COS(IC57) -> -0.06751417617 | IF57: =IB$20+(ID57-IB$20)*(APOSOPIOTH+aPostopilios)/aPostopilios -> -0.03230158386 | IG57: =IB$23+(IE57-IB$23)*(APOSOPIOTH+aPostopilios)/aPostopilios -> -0.004717879372 | IH57: 33 | II57: =IH57*2*PI()/nofpoints -> 4.146902303 | IJ57: =ROPHS*SIN(II57) -> -0.1063853186 | IK57: =ROPHS*COS(II57) -> -0.06751417617 | IL57: =IH$20+(IJ57-IH$20)*(APOSOPIOTH+aPostopilios)/aPostopilios -> -0.02795325727 | IM57: =IH$23+(IK57-IH$23)*(APOSOPIOTH+aPostopilios)/aPostopilios -> -0.01024278566 | IN57: 33 | IO57: =IN57*2*PI()/nofpoints -> 4.146902303 | IP57: =ROPHS*SIN(IO57) -> -0.1063853186 | IQ57: =ROPHS*COS(IO57) -> -0.06751417617 | IR57: =IN$20+(IP57-IN$20)*(APOSOPIOTH+aPostopilios)/aPostopilios -> -0.02401551348 | IS57: =IN$23+(IQ57-IN$23)*(APOSOPIOTH+aPostopilios)/aPostopilios -> -0.01606744939 | IT57: 33 | IU57: =IT57*2*PI()/nofpoints -> 4.146902303 | IV57: =ROPHS*SIN(IU57) -> -0.1063853186 | IW57: =ROPHS*COS(IU57) -> -0.06751417617 | IX57: =IT$20+(IV57-IT$20)*(APOSOPIOTH+aPostopilios)/aPostopilios -> -0.02050893898 | IY57: =IT$23+(IW57-IT$23)*(APOSOPIOTH+aPostopilios)/aPostopilios -> -0.02216141927 | IZ57: 33 | JA57: =IZ57*2*PI()/nofpoints -> 4.146902303 | JB57: =ROPHS*SIN(JA57) -> -0.1063853186 | JC57: =ROPHS*COS(JA57) -> -0.06751417617 | JD57: =IZ$20+(JB57-IZ$20)*(APOSOPIOTH+aPostopilios)/aPostopilios -> -0.0174518661 | JE57: =IZ$23+(JC57-IZ$23)*(APOSOPIOTH+aPostopilios)/aPostopilios -> -0.0284928361 | JF57: 33 | JG57: =JF57*2*PI()/nofpoints -> 4.146902303 | JH57: =ROPHS*SIN(JG57) -> -0.1063853186 | JI57: =ROPHS*COS(JG57) -> -0.06751417617 | JJ57: =JF$20+(JH57-JF$20)*(APOSOPIOTH+aPostopilios)/aPostopilios -> -0.01486027719 | JK57: =JF$23+(JI57-JF$23)*(APOSOPIOTH+aPostopilios)/aPostopilios -> -0.0350285993 | JL57: 33 | JM57: =JL57*2*PI()/nofpoints -> 4.146902303 | JN57: =ROPHS*SIN(JM57) -> -0.1063853186 | JO57: =ROPHS*COS(JM57) -> -0.06751417617 | JP57: =JL$20+(JN57-JL$20)*(APOSOPIOTH+aPostopilios)/aPostopilios -> -0.01274772104 | JQ57: =JL$23+(JO57-JL$23)*(APOSOPIOTH+aPostopilios)/aPostopilios -> -0.04173453996 | JR57: 33 | JS57: =JR57*2*PI()/nofpoints -> 4.146902303 | JT57: =ROPHS*SIN(JS57) -> -0.1063853186 | JU57: =ROPHS*COS(JS57) -> -0.06751417617 | JV57: =JR$20+(JT57-JR$20)*(APOSOPIOTH+aPostopilios)/aPostopilios -> -0.01112524207 | JW57: =JR$23+(JU57-JR$23)*(APOSOPIOTH+aPostopilios)/aPostopilios -> -0.0485755995 | JX57: 33 | JY57: =JX57*2*PI()/nofpoints -> 4.146902303 | JZ57: =ROPHS*SIN(JY57) -> -0.1063853186 | KA57: =ROPHS*COS(JY57) -> -0.06751417617 | KB57: =JX$20+(JZ57-JX$20)*(APOSOPIOTH+aPostopilios)/aPostopilios -> -0.01000132259 | KC57: =JX$23+(KA57-JX$23)*(APOSOPIOTH+aPostopilios)/aPostopilios -> -0.05551601294 | KD57: 33 | KE57: =KD57*2*PI()/nofpoints -> 4.146902303 | KF57: =ROPHS*SIN(KE57) -> -0.1063853186 | KG57: =ROPHS*COS(KE57) -> -0.06751417617 | KH57: =KD$20+(KF57-KD$20)*(APOSOPIOTH+aPostopilios)/aPostopilios -> -0.009381838436 | KI57: =KD$23+(KG57-KD$23)*(APOSOPIOTH+aPostopilios)/aPostopilios -> -0.06251949586 | KJ57: 33 | KK57: =KJ57*2*PI()/nofpoints -> 4.146902303 | KL57: =ROPHS*SIN(KK57) -> -0.1063853186 | KM57: =ROPHS*COS(KK57) -> -0.06751417617 | KN57: =KJ$20+(KL57-KJ$20)*(APOSOPIOTH+aPostopilios)/aPostopilios -> -0.009270028265 | KO57: =KJ$23+(KM57-KJ$23)*(APOSOPIOTH+aPostopilios)/aPostopilios -> -0.06954943413 | KP57: 33 | KQ57: =KP57*2*PI()/nofpoints -> 4.146902303 | KR57: =ROPHS*SIN(KQ57) -> -0.1063853186 | KS57: =ROPHS*COS(KQ57) -> -0.06751417617 | KT57: =KP$20+(KR57-KP$20)*(APOSOPIOTH+aPostopilios)/aPostopilios -> -0.00966647662 | KU57: =KP$23+(KS57-KP$23)*(APOSOPIOTH+aPostopilios)/aPostopilios -> -0.07656907532 | KV57: 33 | KW57: =KV57*2*PI()/nofpoints -> 4.146902303 | KX57: =ROPHS*SIN(KW57) -> -0.1063853186 | KY57: =ROPHS*COS(KW57) -> -0.06751417617 | KZ57: =KV$20+(KX57-KV$20)*(APOSOPIOTH+aPostopilios)/aPostopilios -> -0.01056911087 | LA57: =KV$23+(KY57-KV$23)*(APOSOPIOTH+aPostopilios)/aPostopilios -> -0.0835417208 | LB57: 33 | LC57: =LB57*PI()/nofpoints -> 2.073451151 | LD57: =ROPHS*SIN(LC57) -> 0.1104146417 | LE57: =ROPHS*COS(LC57) -> -0.06070096294 | LF57: =LB$20+(LD57-LB$20)*(APOSOPIOTH+aPostopilios)/aPostopilios -> 0.2050375617 | LG57: =LB$23+(LE57-LB$23)*(APOSOPIOTH+aPostopilios)/aPostopilios -> -0.08361107936
B58: 35 | C58: 4.272566009 | D58: -0.1140082086 | E58: -0.05364819074 | F58: -0.2086346229 | G58: -0.07655144914 | H58: 34 | I58: 4.272566009 | J58: -0.1140082086 | K58: -0.05364819074 | N58: 34 | O58: 4.272566009 | P58: -0.1140082086 | Q58: -0.05364819074 | R58: -0.2086346229 | S58: -0.07655144914 | T58: 34 | U58: 4.272566009 | V58: -0.1140082086 | W58: -0.05364819074 | X58: -0.2100387241 | Y58: -0.06966225227 | Z58: 34 | AA58: 4.272566009 | AB58: -0.1140082086 | AC58: -0.05364819074 | AD58: -0.2109413584 | AE58: -0.06268960678 | AF58: 34 | AG58: 4.272566009 | AH58: -0.1140082086 | AI58: -0.05364819074 | AJ58: -0.2113378067 | AK58: -0.0556699656 | AL58: 34 | AM58: 4.272566009 | AN58: -0.1140082086 | AO58: -0.05364819074 | AP58: -0.2112259966 | AQ58: -0.04864002733 | AR58: 34 | AS58: 4.272566009 | AT58: -0.1140082086 | AU58: -0.05364819074 | AV58: -0.2106065124 | AW58: -0.0416365444 | AX58: 34 | AY58: 4.272566009 | AZ58: -0.1140082086 | BA58: -0.05364819074 | BB58: -0.2094825929 | BC58: -0.03469613097 | BD58: 34 | BE58: 4.272566009 | BF58: -0.1140082086 | BG58: -0.05364819074 | BH58: -0.207860114 | BI58: -0.02785507143 | BJ58: 34 | BK58: 4.272566009 | BL58: -0.1140082086 | BM58: -0.05364819074 | BN58: -0.2057475578 | BO58: -0.02114913076 | BP58: 34 | BQ58: 4.272566009 | BR58: -0.1140082086 | BS58: -0.05364819074 | BT58: -0.2031559689 | BU58: -0.01461336757 | BV58: 34 | BW58: 4.272566009 | BX58: -0.1140082086 | BY58: -0.05364819074 | BZ58: -0.200098896 | CA58: -0.008281950741 | CB58: 34 | CC58: 4.272566009 | CD58: -0.1140082086 | CE58: -0.05364819074 | CF58: -0.1965923215 | CG58: -0.002187980858 | CH58: 34 | CI58: 4.272566009 | CJ58: -0.1140082086 | CK58: -0.05364819074 | CL58: -0.1926545777 | CM58: 0.003636682869 | CN58: 34 | CO58: 4.272566009 | CP58: -0.1140082086 | CQ58: -0.05364819074 | CR58: -0.1883062511 | CS58: 0.00916158916 | CT58: 34 | CU58: 4.272566009 | CV58: -0.1140082086 | CW58: -0.05364819074 | CX58: -0.1835700748 | CY58: 0.01435785387 | CZ58: 34 | DA58: 4.272566009 | DB58: -0.1140082086 | DC58: -0.05364819074 | DD58: -0.1784708092 | DE58: 0.01919831097 | DF58: 34 | DG58: 4.272566009 | DH58: -0.1140082086 | DI58: -0.05364819074 | DJ58: -0.1730351135 | DK58: 0.02365765461 | DL58: 34 | DM58: 4.272566009 | DN58: -0.1140082086 | DO58: -0.05364819074 | DP58: -0.1672914054 | DQ58: 0.02771257139 | DR58: 34 | DS58: 4.272566009 | DT58: -0.1140082086 | DU58: -0.05364819074 | DV58: -0.1612697128 | DW58: 0.03134186224 | DX58: 34 | DY58: 4.272566009 | DZ58: -0.1140082086 | EA58: -0.05364819074 | EB58: -0.1550015171 | EC58: 0.03452655328 | ED58: 34 | EE58: 4.272566009 | EF58: -0.1140082086 | EG58: -0.05364819074 | EH58: -0.1485195885 | EI58: 0.03724999497 | EJ58: 34 | EK58: 4.272566009 | EL58: -0.1140082086 | EM58: -0.05364819074 | EN58: -0.1418578143 | EO58: 0.03949794918 | EP58: 34 | EQ58: 4.272566009 | ER58: -0.1140082086 | ES58: -0.05364819074 | ET58: -0.1350510222 | EU58: 0.04125866364 | EV58: 34 | EW58: 4.272566009 | EX58: -0.1140082086 | EY58: -0.05364819074 | EZ58: -0.1281347981 | FA58: 0.04252293336 | FB58: 34 | FC58: 4.272566009 | FD58: -0.1140082086 | FE58: -0.05364819074 | FF58: -0.1211452999 | FG58: 0.04328414873 | FH58: 34 | FI58: 4.272566009 | FJ58: -0.1140082086 | FK58: -0.05364819074 | FL58: -0.1141190687 | FM58: 0.04353833014 | FN58: 34 | FO58: 4.272566009 | FP58: -0.1140082086 | FQ58: -0.05364819074 | FR58: -0.1070928375 | FS58: 0.04328414873 | FT58: 34 | FU58: 4.272566009 | FV58: -0.1140082086 | FW58: -0.05364819074 | FX58: -0.1001033393 | FY58: 0.04252293336 | FZ58: 34 | GA58: 4.272566009 | GB58: -0.1140082086 | GC58: -0.05364819074 | GD58: -0.09318711518 | GE58: 0.04125866364 | GF58: 34 | GG58: 4.272566009 | GH58: -0.1140082086 | GI58: -0.05364819074 | GJ58: -0.08638032311 | GK58: 0.03949794918 | GL58: 34 | GM58: 4.272566009 | GN58: -0.1140082086 | GO58: -0.05364819074 | GP58: -0.07971854891 | GQ58: 0.03724999497 | GR58: 34 | GS58: 4.272566009 | GT58: -0.1140082086 | GU58: -0.05364819074 | GV58: -0.07323662026 | GW58: 0.03452655328 | GX58: 34 | GY58: 4.272566009 | GZ58: -0.1140082086 | HA58: -0.05364819074 | HB58: -0.06696842462 | HC58: 0.03134186224 | HD58: 34 | HE58: 4.272566009 | HF58: -0.1140082086 | HG58: -0.05364819074 | HH58: -0.06094673204 | HI58: 0.02771257139 | HJ58: 34 | HK58: 4.272566009 | HL58: -0.1140082086 | HM58: -0.05364819074 | HN58: -0.05520302386 | HO58: 0.02365765461 | HP58: 34 | HQ58: 4.272566009 | HR58: -0.1140082086 | HS58: -0.05364819074 | HT58: -0.04976732815 | HU58: 0.01919831097 | HV58: 34 | HW58: 4.272566009 | HX58: -0.1140082086 | HY58: -0.05364819074 | HZ58: -0.04466806264 | IA58: 0.01435785387 | IB58: 34 | IC58: 4.272566009 | ID58: -0.1140082086 | IE58: -0.05364819074 | IF58: -0.03993188625 | IG58: 0.00916158916 | IH58: 34 | II58: 4.272566009 | IJ58: -0.1140082086 | IK58: -0.05364819074 | IL58: -0.03558355966 | IM58: 0.003636682869 | IN58: 34 | IO58: 4.272566009 | IP58: -0.1140082086 | IQ58: -0.05364819074 | IR58: -0.03164581588 | IS58: -0.002187980858 | IT58: 34 | IU58: 4.272566009 | IV58: -0.1140082086 | IW58: -0.05364819074 | IX58: -0.02813924138 | IY58: -0.008281950741 | IZ58: 34 | JA58: 4.272566009 | JB58: -0.1140082086 | JC58: -0.05364819074 | JD58: -0.0250821685 | JE58: -0.01461336757 | JF58: 34 | JG58: 4.272566009 | JH58: -0.1140082086 | JI58: -0.05364819074 | JJ58: -0.02249057958 | JK58: -0.02114913076 | JL58: 34 | JM58: 4.272566009 | JN58: -0.1140082086 | JO58: -0.05364819074 | JP58: -0.02037802343 | JQ58: -0.02785507143 | JR58: 34 | JS58: 4.272566009 | JT58: -0.1140082086 | JU58: -0.05364819074 | JV58: -0.01875554447 | JW58: -0.03469613097 | JX58: 34 | JY58: 4.272566009 | JZ58: -0.1140082086 | KA58: -0.05364819074 | KB58: -0.01763162499 | KC58: -0.0416365444 | KD58: 34 | KE58: 4.272566009 | KF58: -0.1140082086 | KG58: -0.05364819074 | KH58: -0.01701214083 | KI58: -0.04864002733 | KJ58: 34 | KK58: 4.272566009 | KL58: -0.1140082086 | KM58: -0.05364819074 | KN58: -0.01690033066 | KO58: -0.0556699656 | KP58: 34 | KQ58: 4.272566009 | KR58: -0.1140082086 | KS58: -0.05364819074 | KT58: -0.01729677902 | KU58: -0.06268960678 | KV58: 34 | KW58: 4.272566009 | KX58: -0.1140082086 | KY58: -0.05364819074 | KZ58: -0.01819941327 | LA58: -0.06966225227 | LB58: 34 | LC58: 2.136283004 | LD58: 0.1063853186 | LE58: -0.06751417617 | LF58: 0.2010043205 | LG58: -0.09043091767
B59: 36 | C59: 4.398229715 | D59: -0.1198331211 | E59: -0.03893614129 | F59: -0.2144651994 | G59: -0.06182509389 | H59: 35 | I59: 4.398229715 | J59: -0.1198331211 | K59: -0.03893614129 | N59: 35 | O59: 4.398229715 | P59: -0.1198331211 | Q59: -0.03893614129 | R59: -0.2144651994 | S59: -0.06182509389 | T59: 35 | U59: 4.398229715 | V59: -0.1198331211 | W59: -0.03893614129 | X59: -0.2158693006 | Y59: -0.05493589702 | Z59: 35 | AA59: 4.398229715 | AB59: -0.1198331211 | AC59: -0.03893614129 | AD59: -0.2167719349 | AE59: -0.04796325153 | AF59: 35 | AG59: 4.398229715 | AH59: -0.1198331211 | AI59: -0.03893614129 | AJ59: -0.2171683832 | AK59: -0.04094361035 | AL59: 35 | AM59: 4.398229715 | AN59: -0.1198331211 | AO59: -0.03893614129 | AP59: -0.2170565731 | AQ59: -0.03391367208 | AR59: 35 | AS59: 4.398229715 | AT59: -0.1198331211 | AU59: -0.03893614129 | AV59: -0.2164370889 | AW59: -0.02691018915 | AX59: 35 | AY59: 4.398229715 | AZ59: -0.1198331211 | BA59: -0.03893614129 | BB59: -0.2153131694 | BC59: -0.01996977572 | BD59: 35 | BE59: 4.398229715 | BF59: -0.1198331211 | BG59: -0.03893614129 | BH59: -0.2136906905 | BI59: -0.01312871618 | BJ59: 35 | BK59: 4.398229715 | BL59: -0.1198331211 | BM59: -0.03893614129 | BN59: -0.2115781343 | BO59: -0.006422775515 | BP59: 35 | BQ59: 4.398229715 | BR59: -0.1198331211 | BS59: -0.03893614129 | BT59: -0.2089865454 | BU59: 0.0001129876801 | BV59: 35 | BW59: 4.398229715 | BX59: -0.1198331211 | BY59: -0.03893614129 | BZ59: -0.2059294725 | CA59: 0.006444404509 | CB59: 35 | CC59: 4.398229715 | CD59: -0.1198331211 | CE59: -0.03893614129 | CF59: -0.202422898 | CG59: 0.01253837439 | CH59: 35 | CI59: 4.398229715 | CJ59: -0.1198331211 | CK59: -0.03893614129 | CL59: -0.1984851542 | CM59: 0.01836303812 | CN59: 35 | CO59: 4.398229715 | CP59: -0.1198331211 | CQ59: -0.03893614129 | CR59: -0.1941368277 | CS59: 0.02388794441 | CT59: 35 | CU59: 4.398229715 | CV59: -0.1198331211 | CW59: -0.03893614129 | CX59: -0.1894006513 | CY59: 0.02908420911 | CZ59: 35 | DA59: 4.398229715 | DB59: -0.1198331211 | DC59: -0.03893614129 | DD59: -0.1843013858 | DE59: 0.03392466622 | DF59: 35 | DG59: 4.398229715 | DH59: -0.1198331211 | DI59: -0.03893614129 | DJ59: -0.17886569 | DK59: 0.03838400986 | DL59: 35 | DM59: 4.398229715 | DN59: -0.1198331211 | DO59: -0.03893614129 | DP59: -0.1731219819 | DQ59: 0.04243892664 | DR59: 35 | DS59: 4.398229715 | DT59: -0.1198331211 | DU59: -0.03893614129 | DV59: -0.1671002893 | DW59: 0.04606821749 | DX59: 35 | DY59: 4.398229715 | DZ59: -0.1198331211 | EA59: -0.03893614129 | EB59: -0.1608320936 | EC59: 0.04925290853 | ED59: 35 | EE59: 4.398229715 | EF59: -0.1198331211 | EG59: -0.03893614129 | EH59: -0.154350165 | EI59: 0.05197635022 | EJ59: 35 | EK59: 4.398229715 | EL59: -0.1198331211 | EM59: -0.03893614129 | EN59: -0.1476883908 | EO59: 0.05422430443 | EP59: 35 | EQ59: 4.398229715 | ER59: -0.1198331211 | ES59: -0.03893614129 | ET59: -0.1408815987 | EU59: 0.05598501889 | EV59: 35 | EW59: 4.398229715 | EX59: -0.1198331211 | EY59: -0.03893614129 | EZ59: -0.1339653746 | FA59: 0.05724928861 | FB59: 35 | FC59: 4.398229715 | FD59: -0.1198331211 | FE59: -0.03893614129 | FF59: -0.1269758764 | FG59: 0.05801050398 | FH59: 35 | FI59: 4.398229715 | FJ59: -0.1198331211 | FK59: -0.03893614129 | FL59: -0.1199496452 | FM59: 0.05826468539 | FN59: 35 | FO59: 4.398229715 | FP59: -0.1198331211 | FQ59: -0.03893614129 | FR59: -0.112923414 | FS59: 0.05801050398 | FT59: 35 | FU59: 4.398229715 | FV59: -0.1198331211 | FW59: -0.03893614129 | FX59: -0.1059339158 | FY59: 0.05724928861 | FZ59: 35 | GA59: 4.398229715 | GB59: -0.1198331211 | GC59: -0.03893614129 | GD59: -0.09901769169 | GE59: 0.05598501889 | GF59: 35 | GG59: 4.398229715 | GH59: -0.1198331211 | GI59: -0.03893614129 | GJ59: -0.09221089962 | GK59: 0.05422430443 | GL59: 35 | GM59: 4.398229715 | GN59: -0.1198331211 | GO59: -0.03893614129 | GP59: -0.08554912542 | GQ59: 0.05197635022 | GR59: 35 | GS59: 4.398229715 | GT59: -0.1198331211 | GU59: -0.03893614129 | GV59: -0.07906719677 | GW59: 0.04925290853 | GX59: 35 | GY59: 4.398229715 | GZ59: -0.1198331211 | HA59: -0.03893614129 | HB59: -0.07279900113 | HC59: 0.04606821749 | HD59: 35 | HE59: 4.398229715 | HF59: -0.1198331211 | HG59: -0.03893614129 | HH59: -0.06677730855 | HI59: 0.04243892664 | HJ59: 35 | HK59: 4.398229715 | HL59: -0.1198331211 | HM59: -0.03893614129 | HN59: -0.06103360037 | HO59: 0.03838400986 | HP59: 35 | HQ59: 4.398229715 | HR59: -0.1198331211 | HS59: -0.03893614129 | HT59: -0.05559790466 | HU59: 0.03392466622 | HV59: 35 | HW59: 4.398229715 | HX59: -0.1198331211 | HY59: -0.03893614129 | HZ59: -0.05049863915 | IA59: 0.02908420911 | IB59: 35 | IC59: 4.398229715 | ID59: -0.1198331211 | IE59: -0.03893614129 | IF59: -0.04576246276 | IG59: 0.02388794441 | IH59: 35 | II59: 4.398229715 | IJ59: -0.1198331211 | IK59: -0.03893614129 | IL59: -0.04141413617 | IM59: 0.01836303812 | IN59: 35 | IO59: 4.398229715 | IP59: -0.1198331211 | IQ59: -0.03893614129 | IR59: -0.03747639239 | IS59: 0.01253837439 | IT59: 35 | IU59: 4.398229715 | IV59: -0.1198331211 | IW59: -0.03893614129 | IX59: -0.03396981789 | IY59: 0.006444404509 | IZ59: 35 | JA59: 4.398229715 | JB59: -0.1198331211 | JC59: -0.03893614129 | JD59: -0.03091274501 | JE59: 0.0001129876801 | JF59: 35 | JG59: 4.398229715 | JH59: -0.1198331211 | JI59: -0.03893614129 | JJ59: -0.02832115609 | JK59: -0.006422775515 | JL59: 35 | JM59: 4.398229715 | JN59: -0.1198331211 | JO59: -0.03893614129 | JP59: -0.02620859994 | JQ59: -0.01312871618 | JR59: 35 | JS59: 4.398229715 | JT59: -0.1198331211 | JU59: -0.03893614129 | JV59: -0.02458612098 | JW59: -0.01996977572 | JX59: 35 | JY59: 4.398229715 | JZ59: -0.1198331211 | KA59: -0.03893614129 | KB59: -0.0234622015 | KC59: -0.02691018915 | KD59: 35 | KE59: 4.398229715 | KF59: -0.1198331211 | KG59: -0.03893614129 | KH59: -0.02284271734 | KI59: -0.03391367208 | KJ59: 35 | KK59: 4.398229715 | KL59: -0.1198331211 | KM59: -0.03893614129 | KN59: -0.02273090717 | KO59: -0.04094361035 | KP59: 35 | KQ59: 4.398229715 | KR59: -0.1198331211 | KS59: -0.03893614129 | KT59: -0.02312735553 | KU59: -0.04796325153 | KV59: 35 | KW59: 4.398229715 | KX59: -0.1198331211 | KY59: -0.03893614129 | KZ59: -0.02402998978 | LA59: -0.05493589702 | LB59: 35 | LC59: 2.199114858 | LD59: 0.1019361413 | LE59: -0.07406094179 | LF59: 0.1965508169 | LG59: -0.09698404928
B60: 37 | C60: 4.523893421 | D60: -0.1237681936 | E60: -0.02361004564 | F60: -0.2184040984 | G60: -0.04648409534 | H60: 36 | I60: 4.523893421 | J60: -0.1237681936 | K60: -0.02361004564 | N60: 36 | O60: 4.523893421 | P60: -0.1237681936 | Q60: -0.02361004564 | R60: -0.2184040984 | S60: -0.04648409534 | T60: 36 | U60: 4.523893421 | V60: -0.1237681936 | W60: -0.02361004564 | X60: -0.2198081996 | Y60: -0.03959489847 | Z60: 36 | AA60: 4.523893421 | AB60: -0.1237681936 | AC60: -0.02361004564 | AD60: -0.2207108338 | AE60: -0.03262225299 | AF60: 36 | AG60: 4.523893421 | AH60: -0.1237681936 | AI60: -0.02361004564 | AJ60: -0.2211072822 | AK60: -0.0256026118 | AL60: 36 | AM60: 4.523893421 | AN60: -0.1237681936 | AO60: -0.02361004564 | AP60: -0.220995472 | AQ60: -0.01857267353 | AR60: 36 | AS60: 4.523893421 | AT60: -0.1237681936 | AU60: -0.02361004564 | AV60: -0.2203759879 | AW60: -0.01156919061 | AX60: 36 | AY60: 4.523893421 | AZ60: -0.1237681936 | BA60: -0.02361004564 | BB60: -0.2192520684 | BC60: -0.004628777171 | BD60: 36 | BE60: 4.523893421 | BF60: -0.1237681936 | BG60: -0.02361004564 | BH60: -0.2176295894 | BI60: 0.002212282371 | BJ60: 36 | BK60: 4.523893421 | BL60: -0.1237681936 | BM60: -0.02361004564 | BN60: -0.2155170333 | BO60: 0.008918223033 | BP60: 36 | BQ60: 4.523893421 | BR60: -0.1237681936 | BS60: -0.02361004564 | BT60: -0.2129254444 | BU60: 0.01545398623 | BV60: 36 | BW60: 4.523893421 | BX60: -0.1237681936 | BY60: -0.02361004564 | BZ60: -0.2098683715 | CA60: 0.02178540306 | CB60: 36 | CC60: 4.523893421 | CD60: -0.1237681936 | CE60: -0.02361004564 | CF60: -0.206361797 | CG60: 0.02787937294 | CH60: 36 | CI60: 4.523893421 | CJ60: -0.1237681936 | CK60: -0.02361004564 | CL60: -0.2024240532 | CM60: 0.03370403667 | CN60: 36 | CO60: 4.523893421 | CP60: -0.1237681936 | CQ60: -0.02361004564 | CR60: -0.1980757266 | CS60: 0.03922894296 | CT60: 36 | CU60: 4.523893421 | CV60: -0.1237681936 | CW60: -0.02361004564 | CX60: -0.1933395502 | CY60: 0.04442520766 | CZ60: 36 | DA60: 4.523893421 | DB60: -0.1237681936 | DC60: -0.02361004564 | DD60: -0.1882402847 | DE60: 0.04926566476 | DF60: 36 | DG60: 4.523893421 | DH60: -0.1237681936 | DI60: -0.02361004564 | DJ60: -0.182804589 | DK60: 0.05372500841 | DL60: 36 | DM60: 4.523893421 | DN60: -0.1237681936 | DO60: -0.02361004564 | DP60: -0.1770608808 | DQ60: 0.05777992518 | DR60: 36 | DS60: 4.523893421 | DT60: -0.1237681936 | DU60: -0.02361004564 | DV60: -0.1710391882 | DW60: 0.06140921604 | DX60: 36 | DY60: 4.523893421 | DZ60: -0.1237681936 | EA60: -0.02361004564 | EB60: -0.1647709926 | EC60: 0.06459390707 | ED60: 36 | EE60: 4.523893421 | EF60: -0.1237681936 | EG60: -0.02361004564 | EH60: -0.1582890639 | EI60: 0.06731734876 | EJ60: 36 | EK60: 4.523893421 | EL60: -0.1237681936 | EM60: -0.02361004564 | EN60: -0.1516272897 | EO60: 0.06956530298 | EP60: 36 | EQ60: 4.523893421 | ER60: -0.1237681936 | ES60: -0.02361004564 | ET60: -0.1448204977 | EU60: 0.07132601744 | EV60: 36 | EW60: 4.523893421 | EX60: -0.1237681936 | EY60: -0.02361004564 | EZ60: -0.1379042736 | FA60: 0.07259028716 | FB60: 36 | FC60: 4.523893421 | FD60: -0.1237681936 | FE60: -0.02361004564 | FF60: -0.1309147754 | FG60: 0.07335150253 | FH60: 36 | FI60: 4.523893421 | FJ60: -0.1237681936 | FK60: -0.02361004564 | FL60: -0.1238885442 | FM60: 0.07360568394 | FN60: 36 | FO60: 4.523893421 | FP60: -0.1237681936 | FQ60: -0.02361004564 | FR60: -0.1168623129 | FS60: 0.07335150253 | FT60: 36 | FU60: 4.523893421 | FV60: -0.1237681936 | FW60: -0.02361004564 | FX60: -0.1098728147 | FY60: 0.07259028716 | FZ60: 36 | GA60: 4.523893421 | GB60: -0.1237681936 | GC60: -0.02361004564 | GD60: -0.1029565906 | GE60: 0.07132601744 | GF60: 36 | GG60: 4.523893421 | GH60: -0.1237681936 | GI60: -0.02361004564 | GJ60: -0.09614979858 | GK60: 0.06956530298 | GL60: 36 | GM60: 4.523893421 | GN60: -0.1237681936 | GO60: -0.02361004564 | GP60: -0.08948802438 | GQ60: 0.06731734876 | GR60: 36 | GS60: 4.523893421 | GT60: -0.1237681936 | GU60: -0.02361004564 | GV60: -0.08300609573 | GW60: 0.06459390707 | GX60: 36 | GY60: 4.523893421 | GZ60: -0.1237681936 | HA60: -0.02361004564 | HB60: -0.07673790008 | HC60: 0.06140921604 | HD60: 36 | HE60: 4.523893421 | HF60: -0.1237681936 | HG60: -0.02361004564 | HH60: -0.0707162075 | HI60: 0.05777992518 | HJ60: 36 | HK60: 4.523893421 | HL60: -0.1237681936 | HM60: -0.02361004564 | HN60: -0.06497249933 | HO60: 0.05372500841 | HP60: 36 | HQ60: 4.523893421 | HR60: -0.1237681936 | HS60: -0.02361004564 | HT60: -0.05953680361 | HU60: 0.04926566476 | HV60: 36 | HW60: 4.523893421 | HX60: -0.1237681936 | HY60: -0.02361004564 | HZ60: -0.0544375381 | IA60: 0.04442520766 | IB60: 36 | IC60: 4.523893421 | ID60: -0.1237681936 | IE60: -0.02361004564 | IF60: -0.04970136171 | IG60: 0.03922894296 | IH60: 36 | II60: 4.523893421 | IJ60: -0.1237681936 | IK60: -0.02361004564 | IL60: -0.04535303513 | IM60: 0.03370403667 | IN60: 36 | IO60: 4.523893421 | IP60: -0.1237681936 | IQ60: -0.02361004564 | IR60: -0.04141529134 | IS60: 0.02787937294 | IT60: 36 | IU60: 4.523893421 | IV60: -0.1237681936 | IW60: -0.02361004564 | IX60: -0.03790871684 | IY60: 0.02178540306 | IZ60: 36 | JA60: 4.523893421 | JB60: -0.1237681936 | JC60: -0.02361004564 | JD60: -0.03485164396 | JE60: 0.01545398623 | JF60: 36 | JG60: 4.523893421 | JH60: -0.1237681936 | JI60: -0.02361004564 | JJ60: -0.03226005505 | JK60: 0.008918223033 | JL60: 36 | JM60: 4.523893421 | JN60: -0.1237681936 | JO60: -0.02361004564 | JP60: -0.03014749889 | JQ60: 0.002212282371 | JR60: 36 | JS60: 4.523893421 | JT60: -0.1237681936 | JU60: -0.02361004564 | JV60: -0.02852501993 | JW60: -0.004628777171 | JX60: 36 | JY60: 4.523893421 | JZ60: -0.1237681936 | KA60: -0.02361004564 | KB60: -0.02740110045 | KC60: -0.01156919061 | KD60: 36 | KE60: 4.523893421 | KF60: -0.1237681936 | KG60: -0.02361004564 | KH60: -0.02678161629 | KI60: -0.01857267353 | KJ60: 36 | KK60: 4.523893421 | KL60: -0.1237681936 | KM60: -0.02361004564 | KN60: -0.02666980612 | KO60: -0.0256026118 | KP60: 36 | KQ60: 4.523893421 | KR60: -0.1237681936 | KS60: -0.02361004564 | KT60: -0.02706625448 | KU60: -0.03262225299 | KV60: 36 | KW60: 4.523893421 | KX60: -0.1237681936 | KY60: -0.02361004564 | KZ60: -0.02796888873 | LA60: -0.03959489847 | LB60: 36 | LC60: 2.261946711 | LD60: 0.09708466859 | LE60: -0.08031542271 | LF60: 0.1916946267 | LG60: -0.103244612
B61: 38 | C61: 4.649557127 | D61: -0.1257513678 | E61: -0.007911605461 | F61: -0.220389201 | G61: -0.03077039021 | H61: 37 | I61: 4.649557127 | J61: -0.1257513678 | K61: -0.007911605461 | N61: 37 | O61: 4.649557127 | P61: -0.1257513678 | Q61: -0.007911605461 | R61: -0.220389201 | S61: -0.03077039021 | T61: 37 | U61: 4.649557127 | V61: -0.1257513678 | W61: -0.007911605461 | X61: -0.2217933022 | Y61: -0.02388119334 | Z61: 37 | AA61: 4.649557127 | AB61: -0.1257513678 | AC61: -0.007911605461 | AD61: -0.2226959364 | AE61: -0.01690854785 | AF61: 37 | AG61: 4.649557127 | AH61: -0.1257513678 | AI61: -0.007911605461 | AJ61: -0.2230923848 | AK61: -0.009888906668 | AL61: 37 | AM61: 4.649557127 | AN61: -0.1257513678 | AO61: -0.007911605461 | AP61: -0.2229805746 | AQ61: -0.002858968394 | AR61: 37 | AS61: 4.649557127 | AT61: -0.1257513678 | AU61: -0.007911605461 | AV61: -0.2223610905 | AW61: 0.004144514528 | AX61: 37 | AY61: 4.649557127 | AZ61: -0.1257513678 | BA61: -0.007911605461 | BB61: -0.221237171 | BC61: 0.01108492796 | BD61: 37 | BE61: 4.649557127 | BF61: -0.1257513678 | BG61: -0.007911605461 | BH61: -0.219614692 | BI61: 0.01792598751 | BJ61: 37 | BK61: 4.649557127 | BL61: -0.1257513678 | BM61: -0.007911605461 | BN61: -0.2175021359 | BO61: 0.02463192817 | BP61: 37 | BQ61: 4.649557127 | BR61: -0.1257513678 | BS61: -0.007911605461 | BT61: -0.214910547 | BU61: 0.03116769136 | BV61: 37 | BW61: 4.649557127 | BX61: -0.1257513678 | BY61: -0.007911605461 | BZ61: -0.2118534741 | CA61: 0.03749910819 | CB61: 37 | CC61: 4.649557127 | CD61: -0.1257513678 | CE61: -0.007911605461 | CF61: -0.2083468996 | CG61: 0.04359307807 | CH61: 37 | CI61: 4.649557127 | CJ61: -0.1257513678 | CK61: -0.007911605461 | CL61: -0.2044091558 | CM61: 0.0494177418 | CN61: 37 | CO61: 4.649557127 | CP61: -0.1257513678 | CQ61: -0.007911605461 | CR61: -0.2000608292 | CS61: 0.05494264809 | CT61: 37 | CU61: 4.649557127 | CV61: -0.1257513678 | CW61: -0.007911605461 | CX61: -0.1953246528 | CY61: 0.0601389128 | CZ61: 37 | DA61: 4.649557127 | DB61: -0.1257513678 | DC61: -0.007911605461 | DD61: -0.1902253873 | DE61: 0.0649793699 | DF61: 37 | DG61: 4.649557127 | DH61: -0.1257513678 | DI61: -0.007911605461 | DJ61: -0.1847896916 | DK61: 0.06943871354 | DL61: 37 | DM61: 4.649557127 | DN61: -0.1257513678 | DO61: -0.007911605461 | DP61: -0.1790459834 | DQ61: 0.07349363032 | DR61: 37 | DS61: 4.649557127 | DT61: -0.1257513678 | DU61: -0.007911605461 | DV61: -0.1730242908 | DW61: 0.07712292117 | DX61: 37 | DY61: 4.649557127 | DZ61: -0.1257513678 | EA61: -0.007911605461 | EB61: -0.1667560952 | EC61: 0.08030761221 | ED61: 37 | EE61: 4.649557127 | EF61: -0.1257513678 | EG61: -0.007911605461 | EH61: -0.1602741665 | EI61: 0.0830310539 | EJ61: 37 | EK61: 4.649557127 | EL61: -0.1257513678 | EM61: -0.007911605461 | EN61: -0.1536123923 | EO61: 0.08527900811 | EP61: 37 | EQ61: 4.649557127 | ER61: -0.1257513678 | ES61: -0.007911605461 | ET61: -0.1468056003 | EU61: 0.08703972258 | EV61: 37 | EW61: 4.649557127 | EX61: -0.1257513678 | EY61: -0.007911605461 | EZ61: -0.1398893762 | FA61: 0.08830399229 | FB61: 37 | FC61: 4.649557127 | FD61: -0.1257513678 | FE61: -0.007911605461 | FF61: -0.132899878 | FG61: 0.08906520766 | FH61: 37 | FI61: 4.649557127 | FJ61: -0.1257513678 | FK61: -0.007911605461 | FL61: -0.1258736468 | FM61: 0.08931938908 | FN61: 37 | FO61: 4.649557127 | FP61: -0.1257513678 | FQ61: -0.007911605461 | FR61: -0.1188474155 | FS61: 0.08906520766 | FT61: 37 | FU61: 4.649557127 | FV61: -0.1257513678 | FW61: -0.007911605461 | FX61: -0.1118579173 | FY61: 0.08830399229 | FZ61: 37 | GA61: 4.649557127 | GB61: -0.1257513678 | GC61: -0.007911605461 | GD61: -0.1049416932 | GE61: 0.08703972258 | GF61: 37 | GG61: 4.649557127 | GH61: -0.1257513678 | GI61: -0.007911605461 | GJ61: -0.09813490118 | GK61: 0.08527900811 | GL61: 37 | GM61: 4.649557127 | GN61: -0.1257513678 | GO61: -0.007911605461 | GP61: -0.09147312698 | GQ61: 0.0830310539 | GR61: 37 | GS61: 4.649557127 | GT61: -0.1257513678 | GU61: -0.007911605461 | GV61: -0.08499119833 | GW61: 0.08030761221 | GX61: 37 | GY61: 4.649557127 | GZ61: -0.1257513678 | HA61: -0.007911605461 | HB61: -0.07872300268 | HC61: 0.07712292117 | HD61: 37 | HE61: 4.649557127 | HF61: -0.1257513678 | HG61: -0.007911605461 | HH61: -0.0727013101 | HI61: 0.07349363032 | HJ61: 37 | HK61: 4.649557127 | HL61: -0.1257513678 | HM61: -0.007911605461 | HN61: -0.06695760193 | HO61: 0.06943871354 | HP61: 37 | HQ61: 4.649557127 | HR61: -0.1257513678 | HS61: -0.007911605461 | HT61: -0.06152190621 | HU61: 0.0649793699 | HV61: 37 | HW61: 4.649557127 | HX61: -0.1257513678 | HY61: -0.007911605461 | HZ61: -0.0564226407 | IA61: 0.0601389128 | IB61: 37 | IC61: 4.649557127 | ID61: -0.1257513678 | IE61: -0.007911605461 | IF61: -0.05168646432 | IG61: 0.05494264809 | IH61: 37 | II61: 4.649557127 | IJ61: -0.1257513678 | IK61: -0.007911605461 | IL61: -0.04733813773 | IM61: 0.0494177418 | IN61: 37 | IO61: 4.649557127 | IP61: -0.1257513678 | IQ61: -0.007911605461 | IR61: -0.04340039394 | IS61: 0.04359307807 | IT61: 37 | IU61: 4.649557127 | IV61: -0.1257513678 | IW61: -0.007911605461 | IX61: -0.03989381944 | IY61: 0.03749910819 | IZ61: 37 | JA61: 4.649557127 | JB61: -0.1257513678 | JC61: -0.007911605461 | JD61: -0.03683674656 | JE61: 0.03116769136 | JF61: 37 | JG61: 4.649557127 | JH61: -0.1257513678 | JI61: -0.007911605461 | JJ61: -0.03424515765 | JK61: 0.02463192817 | JL61: 37 | JM61: 4.649557127 | JN61: -0.1257513678 | JO61: -0.007911605461 | JP61: -0.0321326015 | JQ61: 0.01792598751 | JR61: 37 | JS61: 4.649557127 | JT61: -0.1257513678 | JU61: -0.007911605461 | JV61: -0.03051012253 | JW61: 0.01108492796 | JX61: 37 | JY61: 4.649557127 | JZ61: -0.1257513678 | KA61: -0.007911605461 | KB61: -0.02938620305 | KC61: 0.004144514528 | KD61: 37 | KE61: 4.649557127 | KF61: -0.1257513678 | KG61: -0.007911605461 | KH61: -0.0287667189 | KI61: -0.002858968394 | KJ61: 37 | KK61: 4.649557127 | KL61: -0.1257513678 | KM61: -0.007911605461 | KN61: -0.02865490873 | KO61: -0.009888906668 | KP61: 37 | KQ61: 4.649557127 | KR61: -0.1257513678 | KS61: -0.007911605461 | KT61: -0.02905135708 | KU61: -0.01690854785 | KV61: 37 | KW61: 4.649557127 | KX61: -0.1257513678 | KY61: -0.007911605461 | KZ61: -0.02995399133 | LA61: -0.02388119334 | LB61: 37 | LC61: 2.324778564 | LD61: 0.09185004706 | LE61: -0.08625293535 | LF61: 0.1864549151 | LG61: -0.1091878982
B62: 39 | C62: 4.775220833 | D62: -0.1257513678 | E62: 0.007911605461 | F62: -0.220389201 | G62: -0.014931793 | H62: 38 | I62: 4.775220833 | J62: -0.1257513678 | K62: 0.007911605461 | N62: 38 | O62: 4.775220833 | P62: -0.1257513678 | Q62: 0.007911605461 | R62: -0.220389201 | S62: -0.014931793 | T62: 38 | U62: 4.775220833 | V62: -0.1257513678 | W62: 0.007911605461 | X62: -0.2217933022 | Y62: -0.008042596133 | Z62: 38 | AA62: 4.775220833 | AB62: -0.1257513678 | AC62: 0.007911605461 | AD62: -0.2226959364 | AE62: -0.001069950648 | AF62: 38 | AG62: 4.775220833 | AH62: -0.1257513678 | AI62: 0.007911605461 | AJ62: -0.2230923848 | AK62: 0.005949690536 | AL62: 38 | AM62: 4.775220833 | AN62: -0.1257513678 | AO62: 0.007911605461 | AP62: -0.2229805746 | AQ62: 0.01297962881 | AR62: 38 | AS62: 4.775220833 | AT62: -0.1257513678 | AU62: 0.007911605461 | AV62: -0.2223610905 | AW62: 0.01998311173 | AX62: 38 | AY62: 4.775220833 | AZ62: -0.1257513678 | BA62: 0.007911605461 | BB62: -0.221237171 | BC62: 0.02692352517 | BD62: 38 | BE62: 4.775220833 | BF62: -0.1257513678 | BG62: 0.007911605461 | BH62: -0.219614692 | BI62: 0.03376458471 | BJ62: 38 | BK62: 4.775220833 | BL62: -0.1257513678 | BM62: 0.007911605461 | BN62: -0.2175021359 | BO62: 0.04047052537 | BP62: 38 | BQ62: 4.775220833 | BR62: -0.1257513678 | BS62: 0.007911605461 | BT62: -0.214910547 | BU62: 0.04700628857 | BV62: 38 | BW62: 4.775220833 | BX62: -0.1257513678 | BY62: 0.007911605461 | BZ62: -0.2118534741 | CA62: 0.0533377054 | CB62: 38 | CC62: 4.775220833 | CD62: -0.1257513678 | CE62: 0.007911605461 | CF62: -0.2083468996 | CG62: 0.05943167528 | CH62: 38 | CI62: 4.775220833 | CJ62: -0.1257513678 | CK62: 0.007911605461 | CL62: -0.2044091558 | CM62: 0.065256339 | CN62: 38 | CO62: 4.775220833 | CP62: -0.1257513678 | CQ62: 0.007911605461 | CR62: -0.2000608292 | CS62: 0.0707812453 | CT62: 38 | CU62: 4.775220833 | CV62: -0.1257513678 | CW62: 0.007911605461 | CX62: -0.1953246528 | CY62: 0.07597751 | CZ62: 38 | DA62: 4.775220833 | DB62: -0.1257513678 | DC62: 0.007911605461 | DD62: -0.1902253873 | DE62: 0.0808179671 | DF62: 38 | DG62: 4.775220833 | DH62: -0.1257513678 | DI62: 0.007911605461 | DJ62: -0.1847896916 | DK62: 0.08527731074 | DL62: 38 | DM62: 4.775220833 | DN62: -0.1257513678 | DO62: 0.007911605461 | DP62: -0.1790459834 | DQ62: 0.08933222752 | DR62: 38 | DS62: 4.775220833 | DT62: -0.1257513678 | DU62: 0.007911605461 | DV62: -0.1730242908 | DW62: 0.09296151838 | DX62: 38 | DY62: 4.775220833 | DZ62: -0.1257513678 | EA62: 0.007911605461 | EB62: -0.1667560952 | EC62: 0.09614620941 | ED62: 38 | EE62: 4.775220833 | EF62: -0.1257513678 | EG62: 0.007911605461 | EH62: -0.1602741665 | EI62: 0.0988696511 | EJ62: 38 | EK62: 4.775220833 | EL62: -0.1257513678 | EM62: 0.007911605461 | EN62: -0.1536123923 | EO62: 0.1011176053 | EP62: 38 | EQ62: 4.775220833 | ER62: -0.1257513678 | ES62: 0.007911605461 | ET62: -0.1468056003 | EU62: 0.1028783198 | EV62: 38 | EW62: 4.775220833 | EX62: -0.1257513678 | EY62: 0.007911605461 | EZ62: -0.1398893762 | FA62: 0.1041425895 | FB62: 38 | FC62: 4.775220833 | FD62: -0.1257513678 | FE62: 0.007911605461 | FF62: -0.132899878 | FG62: 0.1049038049 | FH62: 38 | FI62: 4.775220833 | FJ62: -0.1257513678 | FK62: 0.007911605461 | FL62: -0.1258736468 | FM62: 0.1051579863 | FN62: 38 | FO62: 4.775220833 | FP62: -0.1257513678 | FQ62: 0.007911605461 | FR62: -0.1188474155 | FS62: 0.1049038049 | FT62: 38 | FU62: 4.775220833 | FV62: -0.1257513678 | FW62: 0.007911605461 | FX62: -0.1118579173 | FY62: 0.1041425895 | FZ62: 38 | GA62: 4.775220833 | GB62: -0.1257513678 | GC62: 0.007911605461 | GD62: -0.1049416932 | GE62: 0.1028783198 | GF62: 38 | GG62: 4.775220833 | GH62: -0.1257513678 | GI62: 0.007911605461 | GJ62: -0.09813490118 | GK62: 0.1011176053 | GL62: 38 | GM62: 4.775220833 | GN62: -0.1257513678 | GO62: 0.007911605461 | GP62: -0.09147312698 | GQ62: 0.0988696511 | GR62: 38 | GS62: 4.775220833 | GT62: -0.1257513678 | GU62: 0.007911605461 | GV62: -0.08499119833 | GW62: 0.09614620941 | GX62: 38 | GY62: 4.775220833 | GZ62: -0.1257513678 | HA62: 0.007911605461 | HB62: -0.07872300268 | HC62: 0.09296151838 | HD62: 38 | HE62: 4.775220833 | HF62: -0.1257513678 | HG62: 0.007911605461 | HH62: -0.0727013101 | HI62: 0.08933222752 | HJ62: 38 | HK62: 4.775220833 | HL62: -0.1257513678 | HM62: 0.007911605461 | HN62: -0.06695760193 | HO62: 0.08527731074 | HP62: 38 | HQ62: 4.775220833 | HR62: -0.1257513678 | HS62: 0.007911605461 | HT62: -0.06152190621 | HU62: 0.0808179671 | HV62: 38 | HW62: 4.775220833 | HX62: -0.1257513678 | HY62: 0.007911605461 | HZ62: -0.0564226407 | IA62: 0.07597751 | IB62: 38 | IC62: 4.775220833 | ID62: -0.1257513678 | IE62: 0.007911605461 | IF62: -0.05168646432 | IG62: 0.0707812453 | IH62: 38 | II62: 4.775220833 | IJ62: -0.1257513678 | IK62: 0.007911605461 | IL62: -0.04733813773 | IM62: 0.065256339 | IN62: 38 | IO62: 4.775220833 | IP62: -0.1257513678 | IQ62: 0.007911605461 | IR62: -0.04340039394 | IS62: 0.05943167528 | IT62: 38 | IU62: 4.775220833 | IV62: -0.1257513678 | IW62: 0.007911605461 | IX62: -0.03989381944 | IY62: 0.0533377054 | IZ62: 38 | JA62: 4.775220833 | JB62: -0.1257513678 | JC62: 0.007911605461 | JD62: -0.03683674656 | JE62: 0.04700628857 | JF62: 38 | JG62: 4.775220833 | JH62: -0.1257513678 | JI62: 0.007911605461 | JJ62: -0.03424515765 | JK62: 0.04047052537 | JL62: 38 | JM62: 4.775220833 | JN62: -0.1257513678 | JO62: 0.007911605461 | JP62: -0.0321326015 | JQ62: 0.03376458471 | JR62: 38 | JS62: 4.775220833 | JT62: -0.1257513678 | JU62: 0.007911605461 | JV62: -0.03051012253 | JW62: 0.02692352517 | JX62: 38 | JY62: 4.775220833 | JZ62: -0.1257513678 | KA62: 0.007911605461 | KB62: -0.02938620305 | KC62: 0.01998311173 | KD62: 38 | KE62: 4.775220833 | KF62: -0.1257513678 | KG62: 0.007911605461 | KH62: -0.0287667189 | KI62: 0.01297962881 | KJ62: 38 | KK62: 4.775220833 | KL62: -0.1257513678 | KM62: 0.007911605461 | KN62: -0.02865490873 | KO62: 0.005949690536 | KP62: 38 | KQ62: 4.775220833 | KR62: -0.1257513678 | KS62: 0.007911605461 | KT62: -0.02905135708 | KU62: -0.001069950648 | KV62: 38 | KW62: 4.775220833 | KX62: -0.1257513678 | KY62: 0.007911605461 | KZ62: -0.02995399133 | LA62: -0.008042596133 | LB62: 38 | LC62: 2.387610417 | LD62: 0.08625293535 | LE62: -0.09185004706 | LF62: 0.1808523608 | LG62: -0.1147904524
B63: 40 | C63: 4.90088454 | D63: -0.1237681936 | E63: 0.02361004564 | F63: -0.2184040984 | G63: 0.0007819121322 | H63: 39 | I63: 4.90088454 | J63: -0.1237681936 | K63: 0.02361004564 | N63: 39 | O63: 4.90088454 | P63: -0.1237681936 | Q63: 0.02361004564 | R63: -0.2184040984 | S63: 0.0007819121322 | T63: 39 | U63: 4.90088454 | V63: -0.1237681936 | W63: 0.02361004564 | X63: -0.2198081996 | Y63: 0.007671109002 | Z63: 39 | AA63: 4.90088454 | AB63: -0.1237681936 | AC63: 0.02361004564 | AD63: -0.2207108338 | AE63: 0.01464375449 | AF63: 39 | AG63: 4.90088454 | AH63: -0.1237681936 | AI63: 0.02361004564 | AJ63: -0.2211072822 | AK63: 0.02166339567 | AL63: 39 | AM63: 4.90088454 | AN63: -0.1237681936 | AO63: 0.02361004564 | AP63: -0.220995472 | AQ63: 0.02869333394 | AR63: 39 | AS63: 4.90088454 | AT63: -0.1237681936 | AU63: 0.02361004564 | AV63: -0.2203759879 | AW63: 0.03569681687 | AX63: 39 | AY63: 4.90088454 | AZ63: -0.1237681936 | BA63: 0.02361004564 | BB63: -0.2192520684 | BC63: 0.0426372303 | BD63: 39 | BE63: 4.90088454 | BF63: -0.1237681936 | BG63: 0.02361004564 | BH63: -0.2176295894 | BI63: 0.04947828984 | BJ63: 39 | BK63: 4.90088454 | BL63: -0.1237681936 | BM63: 0.02361004564 | BN63: -0.2155170333 | BO63: 0.05618423051 | BP63: 39 | BQ63: 4.90088454 | BR63: -0.1237681936 | BS63: 0.02361004564 | BT63: -0.2129254444 | BU63: 0.0627199937 | BV63: 39 | BW63: 4.90088454 | BX63: -0.1237681936 | BY63: 0.02361004564 | BZ63: -0.2098683715 | CA63: 0.06905141053 | CB63: 39 | CC63: 4.90088454 | CD63: -0.1237681936 | CE63: 0.02361004564 | CF63: -0.206361797 | CG63: 0.07514538041 | CH63: 39 | CI63: 4.90088454 | CJ63: -0.1237681936 | CK63: 0.02361004564 | CL63: -0.2024240532 | CM63: 0.08097004414 | CN63: 39 | CO63: 4.90088454 | CP63: -0.1237681936 | CQ63: 0.02361004564 | CR63: -0.1980757266 | CS63: 0.08649495043 | CT63: 39 | CU63: 4.90088454 | CV63: -0.1237681936 | CW63: 0.02361004564 | CX63: -0.1933395502 | CY63: 0.09169121514 | CZ63: 39 | DA63: 4.90088454 | DB63: -0.1237681936 | DC63: 0.02361004564 | DD63: -0.1882402847 | DE63: 0.09653167224 | DF63: 39 | DG63: 4.90088454 | DH63: -0.1237681936 | DI63: 0.02361004564 | DJ63: -0.182804589 | DK63: 0.1009910159 | DL63: 39 | DM63: 4.90088454 | DN63: -0.1237681936 | DO63: 0.02361004564 | DP63: -0.1770608808 | DQ63: 0.1050459327 | DR63: 39 | DS63: 4.90088454 | DT63: -0.1237681936 | DU63: 0.02361004564 | DV63: -0.1710391882 | DW63: 0.1086752235 | DX63: 39 | DY63: 4.90088454 | DZ63: -0.1237681936 | EA63: 0.02361004564 | EB63: -0.1647709926 | EC63: 0.1118599145 | ED63: 39 | EE63: 4.90088454 | EF63: -0.1237681936 | EG63: 0.02361004564 | EH63: -0.1582890639 | EI63: 0.1145833562 | EJ63: 39 | EK63: 4.90088454 | EL63: -0.1237681936 | EM63: 0.02361004564 | EN63: -0.1516272897 | EO63: 0.1168313105 | EP63: 39 | EQ63: 4.90088454 | ER63: -0.1237681936 | ES63: 0.02361004564 | ET63: -0.1448204977 | EU63: 0.1185920249 | EV63: 39 | EW63: 4.90088454 | EX63: -0.1237681936 | EY63: 0.02361004564 | EZ63: -0.1379042736 | FA63: 0.1198562946 | FB63: 39 | FC63: 4.90088454 | FD63: -0.1237681936 | FE63: 0.02361004564 | FF63: -0.1309147754 | FG63: 0.12061751 | FH63: 39 | FI63: 4.90088454 | FJ63: -0.1237681936 | FK63: 0.02361004564 | FL63: -0.1238885442 | FM63: 0.1208716914 | FN63: 39 | FO63: 4.90088454 | FP63: -0.1237681936 | FQ63: 0.02361004564 | FR63: -0.1168623129 | FS63: 0.12061751 | FT63: 39 | FU63: 4.90088454 | FV63: -0.1237681936 | FW63: 0.02361004564 | FX63: -0.1098728147 | FY63: 0.1198562946 | FZ63: 39 | GA63: 4.90088454 | GB63: -0.1237681936 | GC63: 0.02361004564 | GD63: -0.1029565906 | GE63: 0.1185920249 | GF63: 39 | GG63: 4.90088454 | GH63: -0.1237681936 | GI63: 0.02361004564 | GJ63: -0.09614979858 | GK63: 0.1168313105 | GL63: 39 | GM63: 4.90088454 | GN63: -0.1237681936 | GO63: 0.02361004564 | GP63: -0.08948802438 | GQ63: 0.1145833562 | GR63: 39 | GS63: 4.90088454 | GT63: -0.1237681936 | GU63: 0.02361004564 | GV63: -0.08300609573 | GW63: 0.1118599145 | GX63: 39 | GY63: 4.90088454 | GZ63: -0.1237681936 | HA63: 0.02361004564 | HB63: -0.07673790008 | HC63: 0.1086752235 | HD63: 39 | HE63: 4.90088454 | HF63: -0.1237681936 | HG63: 0.02361004564 | HH63: -0.0707162075 | HI63: 0.1050459327 | HJ63: 39 | HK63: 4.90088454 | HL63: -0.1237681936 | HM63: 0.02361004564 | HN63: -0.06497249933 | HO63: 0.1009910159 | HP63: 39 | HQ63: 4.90088454 | HR63: -0.1237681936 | HS63: 0.02361004564 | HT63: -0.05953680361 | HU63: 0.09653167224 | HV63: 39 | HW63: 4.90088454 | HX63: -0.1237681936 | HY63: 0.02361004564 | HZ63: -0.0544375381 | IA63: 0.09169121514 | IB63: 39 | IC63: 4.90088454 | ID63: -0.1237681936 | IE63: 0.02361004564 | IF63: -0.04970136171 | IG63: 0.08649495043 | IH63: 39 | II63: 4.90088454 | IJ63: -0.1237681936 | IK63: 0.02361004564 | IL63: -0.04535303513 | IM63: 0.08097004414 | IN63: 39 | IO63: 4.90088454 | IP63: -0.1237681936 | IQ63: 0.02361004564 | IR63: -0.04141529134 | IS63: 0.07514538041 | IT63: 39 | IU63: 4.90088454 | IV63: -0.1237681936 | IW63: 0.02361004564 | IX63: -0.03790871684 | IY63: 0.06905141053 | IZ63: 39 | JA63: 4.90088454 | JB63: -0.1237681936 | JC63: 0.02361004564 | JD63: -0.03485164396 | JE63: 0.0627199937 | JF63: 39 | JG63: 4.90088454 | JH63: -0.1237681936 | JI63: 0.02361004564 | JJ63: -0.03226005505 | JK63: 0.05618423051 | JL63: 39 | JM63: 4.90088454 | JN63: -0.1237681936 | JO63: 0.02361004564 | JP63: -0.03014749889 | JQ63: 0.04947828984 | JR63: 39 | JS63: 4.90088454 | JT63: -0.1237681936 | JU63: 0.02361004564 | JV63: -0.02852501993 | JW63: 0.0426372303 | JX63: 39 | JY63: 4.90088454 | JZ63: -0.1237681936 | KA63: 0.02361004564 | KB63: -0.02740110045 | KC63: 0.03569681687 | KD63: 39 | KE63: 4.90088454 | KF63: -0.1237681936 | KG63: 0.02361004564 | KH63: -0.02678161629 | KI63: 0.02869333394 | KJ63: 39 | KK63: 4.90088454 | KL63: -0.1237681936 | KM63: 0.02361004564 | KN63: -0.02666980612 | KO63: 0.02166339567 | KP63: 39 | KQ63: 4.90088454 | KR63: -0.1237681936 | KS63: 0.02361004564 | KT63: -0.02706625448 | KU63: 0.01464375449 | KV63: 39 | KW63: 4.90088454 | KX63: -0.1237681936 | KY63: 0.02361004564 | KZ63: -0.02796888873 | LA63: 0.007671109002 | LB63: 39 | LC63: 2.45044227 | LD63: 0.08031542271 | LE63: -0.09708466859 | LF63: 0.1749090746 | LG63: -0.1200301641
B64: 41 | C64: 5.026548246 | D64: -0.1198331211 | E64: 0.03893614129 | F64: -0.2144651994 | G64: 0.01612291068 | H64: 40 | I64: 5.026548246 | J64: -0.1198331211 | K64: 0.03893614129 | N64: 40 | O64: 5.026548246 | P64: -0.1198331211 | Q64: 0.03893614129 | R64: -0.2144651994 | S64: 0.01612291068 | T64: 40 | U64: 5.026548246 | V64: -0.1198331211 | W64: 0.03893614129 | X64: -0.2158693006 | Y64: 0.02301210755 | Z64: 40 | AA64: 5.026548246 | AB64: -0.1198331211 | AC64: 0.03893614129 | AD64: -0.2167719349 | AE64: 0.02998475303 | AF64: 40 | AG64: 5.026548246 | AH64: -0.1198331211 | AI64: 0.03893614129 | AJ64: -0.2171683832 | AK64: 0.03700439422 | AL64: 40 | AM64: 5.026548246 | AN64: -0.1198331211 | AO64: 0.03893614129 | AP64: -0.2170565731 | AQ64: 0.04403433249 | AR64: 40 | AS64: 5.026548246 | AT64: -0.1198331211 | AU64: 0.03893614129 | AV64: -0.2164370889 | AW64: 0.05103781541 | AX64: 40 | AY64: 5.026548246 | AZ64: -0.1198331211 | BA64: 0.03893614129 | BB64: -0.2153131694 | BC64: 0.05797822885 | BD64: 40 | BE64: 5.026548246 | BF64: -0.1198331211 | BG64: 0.03893614129 | BH64: -0.2136906905 | BI64: 0.06481928839 | BJ64: 40 | BK64: 5.026548246 | BL64: -0.1198331211 | BM64: 0.03893614129 | BN64: -0.2115781343 | BO64: 0.07152522905 | BP64: 40 | BQ64: 5.026548246 | BR64: -0.1198331211 | BS64: 0.03893614129 | BT64: -0.2089865454 | BU64: 0.07806099225 | BV64: 40 | BW64: 5.026548246 | BX64: -0.1198331211 | BY64: 0.03893614129 | BZ64: -0.2059294725 | CA64: 0.08439240908 | CB64: 40 | CC64: 5.026548246 | CD64: -0.1198331211 | CE64: 0.03893614129 | CF64: -0.202422898 | CG64: 0.09048637896 | CH64: 40 | CI64: 5.026548246 | CJ64: -0.1198331211 | CK64: 0.03893614129 | CL64: -0.1984851542 | CM64: 0.09631104269 | CN64: 40 | CO64: 5.026548246 | CP64: -0.1198331211 | CQ64: 0.03893614129 | CR64: -0.1941368277 | CS64: 0.101835949 | CT64: 40 | CU64: 5.026548246 | CV64: -0.1198331211 | CW64: 0.03893614129 | CX64: -0.1894006513 | CY64: 0.1070322137 | CZ64: 40 | DA64: 5.026548246 | DB64: -0.1198331211 | DC64: 0.03893614129 | DD64: -0.1843013858 | DE64: 0.1118726708 | DF64: 40 | DG64: 5.026548246 | DH64: -0.1198331211 | DI64: 0.03893614129 | DJ64: -0.17886569 | DK64: 0.1163320144 | DL64: 40 | DM64: 5.026548246 | DN64: -0.1198331211 | DO64: 0.03893614129 | DP64: -0.1731219819 | DQ64: 0.1203869312 | DR64: 40 | DS64: 5.026548246 | DT64: -0.1198331211 | DU64: 0.03893614129 | DV64: -0.1671002893 | DW64: 0.1240162221 | DX64: 40 | DY64: 5.026548246 | DZ64: -0.1198331211 | EA64: 0.03893614129 | EB64: -0.1608320936 | EC64: 0.1272009131 | ED64: 40 | EE64: 5.026548246 | EF64: -0.1198331211 | EG64: 0.03893614129 | EH64: -0.154350165 | EI64: 0.1299243548 | EJ64: 40 | EK64: 5.026548246 | EL64: -0.1198331211 | EM64: 0.03893614129 | EN64: -0.1476883908 | EO64: 0.132172309 | EP64: 40 | EQ64: 5.026548246 | ER64: -0.1198331211 | ES64: 0.03893614129 | ET64: -0.1408815987 | EU64: 0.1339330235 | EV64: 40 | EW64: 5.026548246 | EX64: -0.1198331211 | EY64: 0.03893614129 | EZ64: -0.1339653746 | FA64: 0.1351972932 | FB64: 40 | FC64: 5.026548246 | FD64: -0.1198331211 | FE64: 0.03893614129 | FF64: -0.1269758764 | FG64: 0.1359585086 | FH64: 40 | FI64: 5.026548246 | FJ64: -0.1198331211 | FK64: 0.03893614129 | FL64: -0.1199496452 | FM64: 0.13621269 | FN64: 40 | FO64: 5.026548246 | FP64: -0.1198331211 | FQ64: 0.03893614129 | FR64: -0.112923414 | FS64: 0.1359585086 | FT64: 40 | FU64: 5.026548246 | FV64: -0.1198331211 | FW64: 0.03893614129 | FX64: -0.1059339158 | FY64: 0.1351972932 | FZ64: 40 | GA64: 5.026548246 | GB64: -0.1198331211 | GC64: 0.03893614129 | GD64: -0.09901769169 | GE64: 0.1339330235 | GF64: 40 | GG64: 5.026548246 | GH64: -0.1198331211 | GI64: 0.03893614129 | GJ64: -0.09221089962 | GK64: 0.132172309 | GL64: 40 | GM64: 5.026548246 | GN64: -0.1198331211 | GO64: 0.03893614129 | GP64: -0.08554912542 | GQ64: 0.1299243548 | GR64: 40 | GS64: 5.026548246 | GT64: -0.1198331211 | GU64: 0.03893614129 | GV64: -0.07906719677 | GW64: 0.1272009131 | GX64: 40 | GY64: 5.026548246 | GZ64: -0.1198331211 | HA64: 0.03893614129 | HB64: -0.07279900113 | HC64: 0.1240162221 | HD64: 40 | HE64: 5.026548246 | HF64: -0.1198331211 | HG64: 0.03893614129 | HH64: -0.06677730855 | HI64: 0.1203869312 | HJ64: 40 | HK64: 5.026548246 | HL64: -0.1198331211 | HM64: 0.03893614129 | HN64: -0.06103360037 | HO64: 0.1163320144 | HP64: 40 | HQ64: 5.026548246 | HR64: -0.1198331211 | HS64: 0.03893614129 | HT64: -0.05559790466 | HU64: 0.1118726708 | HV64: 40 | HW64: 5.026548246 | HX64: -0.1198331211 | HY64: 0.03893614129 | HZ64: -0.05049863915 | IA64: 0.1070322137 | IB64: 40 | IC64: 5.026548246 | ID64: -0.1198331211 | IE64: 0.03893614129 | IF64: -0.04576246276 | IG64: 0.101835949 | IH64: 40 | II64: 5.026548246 | IJ64: -0.1198331211 | IK64: 0.03893614129 | IL64: -0.04141413617 | IM64: 0.09631104269 | IN64: 40 | IO64: 5.026548246 | IP64: -0.1198331211 | IQ64: 0.03893614129 | IR64: -0.03747639239 | IS64: 0.09048637896 | IT64: 40 | IU64: 5.026548246 | IV64: -0.1198331211 | IW64: 0.03893614129 | IX64: -0.03396981789 | IY64: 0.08439240908 | IZ64: 40 | JA64: 5.026548246 | JB64: -0.1198331211 | JC64: 0.03893614129 | JD64: -0.03091274501 | JE64: 0.07806099225 | JF64: 40 | JG64: 5.026548246 | JH64: -0.1198331211 | JI64: 0.03893614129 | JJ64: -0.02832115609 | JK64: 0.07152522905 | JL64: 40 | JM64: 5.026548246 | JN64: -0.1198331211 | JO64: 0.03893614129 | JP64: -0.02620859994 | JQ64: 0.06481928839 | JR64: 40 | JS64: 5.026548246 | JT64: -0.1198331211 | JU64: 0.03893614129 | JV64: -0.02458612098 | JW64: 0.05797822885 | JX64: 40 | JY64: 5.026548246 | JZ64: -0.1198331211 | KA64: 0.03893614129 | KB64: -0.0234622015 | KC64: 0.05103781541 | KD64: 40 | KE64: 5.026548246 | KF64: -0.1198331211 | KG64: 0.03893614129 | KH64: -0.02284271734 | KI64: 0.04403433249 | KJ64: 40 | KK64: 5.026548246 | KL64: -0.1198331211 | KM64: 0.03893614129 | KN64: -0.02273090717 | KO64: 0.03700439422 | KP64: 40 | KQ64: 5.026548246 | KR64: -0.1198331211 | KS64: 0.03893614129 | KT64: -0.02312735553 | KU64: 0.02998475303 | KV64: 40 | KW64: 5.026548246 | KX64: -0.1198331211 | KY64: 0.03893614129 | KZ64: -0.02402998978 | LA64: 0.02301210755 | LB64: 40 | LC64: 2.513274123 | LD64: 0.07406094179 | LE64: -0.1019361413 | LF64: 0.1686485119 | LG64: -0.1248863543
B65: 42 | C65: 5.152211952 | D65: -0.1140082086 | E65: 0.05364819074 | F65: -0.2086346229 | G65: 0.03084926593 | H65: 41 | I65: 5.152211952 | J65: -0.1140082086 | K65: 0.05364819074 | N65: 41 | O65: 5.152211952 | P65: -0.1140082086 | Q65: 0.05364819074 | R65: -0.2086346229 | S65: 0.03084926593 | T65: 41 | U65: 5.152211952 | V65: -0.1140082086 | W65: 0.05364819074 | X65: -0.2100387241 | Y65: 0.0377384628 | Z65: 41 | AA65: 5.152211952 | AB65: -0.1140082086 | AC65: 0.05364819074 | AD65: -0.2109413584 | AE65: 0.04471110828 | AF65: 41 | AG65: 5.152211952 | AH65: -0.1140082086 | AI65: 0.05364819074 | AJ65: -0.2113378067 | AK65: 0.05173074947 | AL65: 41 | AM65: 5.152211952 | AN65: -0.1140082086 | AO65: 0.05364819074 | AP65: -0.2112259966 | AQ65: 0.05876068774 | AR65: 41 | AS65: 5.152211952 | AT65: -0.1140082086 | AU65: 0.05364819074 | AV65: -0.2106065124 | AW65: 0.06576417066 | AX65: 41 | AY65: 5.152211952 | AZ65: -0.1140082086 | BA65: 0.05364819074 | BB65: -0.2094825929 | BC65: 0.0727045841 | BD65: 41 | BE65: 5.152211952 | BF65: -0.1140082086 | BG65: 0.05364819074 | BH65: -0.207860114 | BI65: 0.07954564364 | BJ65: 41 | BK65: 5.152211952 | BL65: -0.1140082086 | BM65: 0.05364819074 | BN65: -0.2057475578 | BO65: 0.0862515843 | BP65: 41 | BQ65: 5.152211952 | BR65: -0.1140082086 | BS65: 0.05364819074 | BT65: -0.2031559689 | BU65: 0.0927873475 | BV65: 41 | BW65: 5.152211952 | BX65: -0.1140082086 | BY65: 0.05364819074 | BZ65: -0.200098896 | CA65: 0.09911876433 | CB65: 41 | CC65: 5.152211952 | CD65: -0.1140082086 | CE65: 0.05364819074 | CF65: -0.1965923215 | CG65: 0.1052127342 | CH65: 41 | CI65: 5.152211952 | CJ65: -0.1140082086 | CK65: 0.05364819074 | CL65: -0.1926545777 | CM65: 0.1110373979 | CN65: 41 | CO65: 5.152211952 | CP65: -0.1140082086 | CQ65: 0.05364819074 | CR65: -0.1883062511 | CS65: 0.1165623042 | CT65: 41 | CU65: 5.152211952 | CV65: -0.1140082086 | CW65: 0.05364819074 | CX65: -0.1835700748 | CY65: 0.1217585689 | CZ65: 41 | DA65: 5.152211952 | DB65: -0.1140082086 | DC65: 0.05364819074 | DD65: -0.1784708092 | DE65: 0.126599026 | DF65: 41 | DG65: 5.152211952 | DH65: -0.1140082086 | DI65: 0.05364819074 | DJ65: -0.1730351135 | DK65: 0.1310583697 | DL65: 41 | DM65: 5.152211952 | DN65: -0.1140082086 | DO65: 0.05364819074 | DP65: -0.1672914054 | DQ65: 0.1351132865 | DR65: 41 | DS65: 5.152211952 | DT65: -0.1140082086 | DU65: 0.05364819074 | DV65: -0.1612697128 | DW65: 0.1387425773 | DX65: 41 | DY65: 5.152211952 | DZ65: -0.1140082086 | EA65: 0.05364819074 | EB65: -0.1550015171 | EC65: 0.1419272683 | ED65: 41 | EE65: 5.152211952 | EF65: -0.1140082086 | EG65: 0.05364819074 | EH65: -0.1485195885 | EI65: 0.14465071 | EJ65: 41 | EK65: 5.152211952 | EL65: -0.1140082086 | EM65: 0.05364819074 | EN65: -0.1418578143 | EO65: 0.1468986642 | EP65: 41 | EQ65: 5.152211952 | ER65: -0.1140082086 | ES65: 0.05364819074 | ET65: -0.1350510222 | EU65: 0.1486593787 | EV65: 41 | EW65: 5.152211952 | EX65: -0.1140082086 | EY65: 0.05364819074 | EZ65: -0.1281347981 | FA65: 0.1499236484 | FB65: 41 | FC65: 5.152211952 | FD65: -0.1140082086 | FE65: 0.05364819074 | FF65: -0.1211452999 | FG65: 0.1506848638 | FH65: 41 | FI65: 5.152211952 | FJ65: -0.1140082086 | FK65: 0.05364819074 | FL65: -0.1141190687 | FM65: 0.1509390452 | FN65: 41 | FO65: 5.152211952 | FP65: -0.1140082086 | FQ65: 0.05364819074 | FR65: -0.1070928375 | FS65: 0.1506848638 | FT65: 41 | FU65: 5.152211952 | FV65: -0.1140082086 | FW65: 0.05364819074 | FX65: -0.1001033393 | FY65: 0.1499236484 | FZ65: 41 | GA65: 5.152211952 | GB65: -0.1140082086 | GC65: 0.05364819074 | GD65: -0.09318711518 | GE65: 0.1486593787 | GF65: 41 | GG65: 5.152211952 | GH65: -0.1140082086 | GI65: 0.05364819074 | GJ65: -0.08638032311 | GK65: 0.1468986642 | GL65: 41 | GM65: 5.152211952 | GN65: -0.1140082086 | GO65: 0.05364819074 | GP65: -0.07971854891 | GQ65: 0.14465071 | GR65: 41 | GS65: 5.152211952 | GT65: -0.1140082086 | GU65: 0.05364819074 | GV65: -0.07323662026 | GW65: 0.1419272683 | GX65: 41 | GY65: 5.152211952 | GZ65: -0.1140082086 | HA65: 0.05364819074 | HB65: -0.06696842462 | HC65: 0.1387425773 | HD65: 41 | HE65: 5.152211952 | HF65: -0.1140082086 | HG65: 0.05364819074 | HH65: -0.06094673204 | HI65: 0.1351132865 | HJ65: 41 | HK65: 5.152211952 | HL65: -0.1140082086 | HM65: 0.05364819074 | HN65: -0.05520302386 | HO65: 0.1310583697 | HP65: 41 | HQ65: 5.152211952 | HR65: -0.1140082086 | HS65: 0.05364819074 | HT65: -0.04976732815 | HU65: 0.126599026 | HV65: 41 | HW65: 5.152211952 | HX65: -0.1140082086 | HY65: 0.05364819074 | HZ65: -0.04466806264 | IA65: 0.1217585689 | IB65: 41 | IC65: 5.152211952 | ID65: -0.1140082086 | IE65: 0.05364819074 | IF65: -0.03993188625 | IG65: 0.1165623042 | IH65: 41 | II65: 5.152211952 | IJ65: -0.1140082086 | IK65: 0.05364819074 | IL65: -0.03558355966 | IM65: 0.1110373979 | IN65: 41 | IO65: 5.152211952 | IP65: -0.1140082086 | IQ65: 0.05364819074 | IR65: -0.03164581588 | IS65: 0.1052127342 | IT65: 41 | IU65: 5.152211952 | IV65: -0.1140082086 | IW65: 0.05364819074 | IX65: -0.02813924138 | IY65: 0.09911876433 | IZ65: 41 | JA65: 5.152211952 | JB65: -0.1140082086 | JC65: 0.05364819074 | JD65: -0.0250821685 | JE65: 0.0927873475 | JF65: 41 | JG65: 5.152211952 | JH65: -0.1140082086 | JI65: 0.05364819074 | JJ65: -0.02249057958 | JK65: 0.0862515843 | JL65: 41 | JM65: 5.152211952 | JN65: -0.1140082086 | JO65: 0.05364819074 | JP65: -0.02037802343 | JQ65: 0.07954564364 | JR65: 41 | JS65: 5.152211952 | JT65: -0.1140082086 | JU65: 0.05364819074 | JV65: -0.01875554447 | JW65: 0.0727045841 | JX65: 41 | JY65: 5.152211952 | JZ65: -0.1140082086 | KA65: 0.05364819074 | KB65: -0.01763162499 | KC65: 0.06576417066 | KD65: 41 | KE65: 5.152211952 | KF65: -0.1140082086 | KG65: 0.05364819074 | KH65: -0.01701214083 | KI65: 0.05876068774 | KJ65: 41 | KK65: 5.152211952 | KL65: -0.1140082086 | KM65: 0.05364819074 | KN65: -0.01690033066 | KO65: 0.05173074947 | KP65: 41 | KQ65: 5.152211952 | KR65: -0.1140082086 | KS65: 0.05364819074 | KT65: -0.01729677902 | KU65: 0.04471110828 | KV65: 41 | KW65: 5.152211952 | KX65: -0.1140082086 | KY65: 0.05364819074 | KZ65: -0.01819941327 | LA65: 0.0377384628 | LB65: 41 | LC65: 2.576105976 | LD65: 0.06751417617 | LE65: -0.1063853186 | LF65: 0.1620953803 | LG65: -0.1293398579
B66: 43 | C66: 5.277875658 | D66: -0.1063853186 | E66: 0.06751417617 | F66: -0.2010043205 | G66: 0.04472873446 | H66: 42 | I66: 5.277875658 | J66: -0.1063853186 | K66: 0.06751417617 | N66: 42 | O66: 5.277875658 | P66: -0.1063853186 | Q66: 0.06751417617 | R66: -0.2010043205 | S66: 0.04472873446 | T66: 42 | U66: 5.277875658 | V66: -0.1063853186 | W66: 0.06751417617 | X66: -0.2024084217 | Y66: 0.05161793133 | Z66: 42 | AA66: 5.277875658 | AB66: -0.1063853186 | AC66: 0.06751417617 | AD66: -0.203311056 | AE66: 0.05859057682 | AF66: 42 | AG66: 5.277875658 | AH66: -0.1063853186 | AI66: 0.06751417617 | AJ66: -0.2037075043 | AK66: 0.065610218 | AL66: 42 | AM66: 5.277875658 | AN66: -0.1063853186 | AO66: 0.06751417617 | AP66: -0.2035956942 | AQ66: 0.07264015627 | AR66: 42 | AS66: 5.277875658 | AT66: -0.1063853186 | AU66: 0.06751417617 | AV66: -0.20297621 | AW66: 0.0796436392 | AX66: 42 | AY66: 5.277875658 | AZ66: -0.1063853186 | BA66: 0.06751417617 | BB66: -0.2018522905 | BC66: 0.08658405263 | BD66: 42 | BE66: 5.277875658 | BF66: -0.1063853186 | BG66: 0.06751417617 | BH66: -0.2002298116 | BI66: 0.09342511217 | BJ66: 42 | BK66: 5.277875658 | BL66: -0.1063853186 | BM66: 0.06751417617 | BN66: -0.1981172554 | BO66: 0.1001310528 | BP66: 42 | BQ66: 5.277875658 | BR66: -0.1063853186 | BS66: 0.06751417617 | BT66: -0.1955256665 | BU66: 0.106666816 | BV66: 42 | BW66: 5.277875658 | BX66: -0.1063853186 | BY66: 0.06751417617 | BZ66: -0.1924685936 | CA66: 0.1129982329 | CB66: 42 | CC66: 5.277875658 | CD66: -0.1063853186 | CE66: 0.06751417617 | CF66: -0.1889620191 | CG66: 0.1190922027 | CH66: 42 | CI66: 5.277875658 | CJ66: -0.1063853186 | CK66: 0.06751417617 | CL66: -0.1850242753 | CM66: 0.1249168665 | CN66: 42 | CO66: 5.277875658 | CP66: -0.1063853186 | CQ66: 0.06751417617 | CR66: -0.1806759487 | CS66: 0.1304417728 | CT66: 42 | CU66: 5.277875658 | CV66: -0.1063853186 | CW66: 0.06751417617 | CX66: -0.1759397724 | CY66: 0.1356380375 | CZ66: 42 | DA66: 5.277875658 | DB66: -0.1063853186 | DC66: 0.06751417617 | DD66: -0.1708405069 | DE66: 0.1404784946 | DF66: 42 | DG66: 5.277875658 | DH66: -0.1063853186 | DI66: 0.06751417617 | DJ66: -0.1654048111 | DK66: 0.1449378382 | DL66: 42 | DM66: 5.277875658 | DN66: -0.1063853186 | DO66: 0.06751417617 | DP66: -0.159661103 | DQ66: 0.148992755 | DR66: 42 | DS66: 5.277875658 | DT66: -0.1063853186 | DU66: 0.06751417617 | DV66: -0.1536394104 | DW66: 0.1526220458 | DX66: 42 | DY66: 5.277875658 | DZ66: -0.1063853186 | EA66: 0.06751417617 | EB66: -0.1473712147 | EC66: 0.1558067369 | ED66: 42 | EE66: 5.277875658 | EF66: -0.1063853186 | EG66: 0.06751417617 | EH66: -0.1408892861 | EI66: 0.1585301786 | EJ66: 42 | EK66: 5.277875658 | EL66: -0.1063853186 | EM66: 0.06751417617 | EN66: -0.1342275119 | EO66: 0.1607781328 | EP66: 42 | EQ66: 5.277875658 | ER66: -0.1063853186 | ES66: 0.06751417617 | ET66: -0.1274207198 | EU66: 0.1625388472 | EV66: 42 | EW66: 5.277875658 | EX66: -0.1063853186 | EY66: 0.06751417617 | EZ66: -0.1205044957 | FA66: 0.163803117 | FB66: 42 | FC66: 5.277875658 | FD66: -0.1063853186 | FE66: 0.06751417617 | FF66: -0.1135149975 | FG66: 0.1645643323 | FH66: 42 | FI66: 5.277875658 | FJ66: -0.1063853186 | FK66: 0.06751417617 | FL66: -0.1064887663 | FM66: 0.1648185137 | FN66: 42 | FO66: 5.277875658 | FP66: -0.1063853186 | FQ66: 0.06751417617 | FR66: -0.09946253506 | FS66: 0.1645643323 | FT66: 42 | FU66: 5.277875658 | FV66: -0.1063853186 | FW66: 0.06751417617 | FX66: -0.09247303688 | FY66: 0.163803117 | FZ66: 42 | GA66: 5.277875658 | GB66: -0.1063853186 | GC66: 0.06751417617 | GD66: -0.08555681278 | GE66: 0.1625388472 | GF66: 42 | GG66: 5.277875658 | GH66: -0.1063853186 | GI66: 0.06751417617 | GJ66: -0.07875002072 | GK66: 0.1607781328 | GL66: 42 | GM66: 5.277875658 | GN66: -0.1063853186 | GO66: 0.06751417617 | GP66: -0.07208824652 | GQ66: 0.1585301786 | GR66: 42 | GS66: 5.277875658 | GT66: -0.1063853186 | GU66: 0.06751417617 | GV66: -0.06560631787 | GW66: 0.1558067369 | GX66: 42 | GY66: 5.277875658 | GZ66: -0.1063853186 | HA66: 0.06751417617 | HB66: -0.05933812222 | HC66: 0.1526220458 | HD66: 42 | HE66: 5.277875658 | HF66: -0.1063853186 | HG66: 0.06751417617 | HH66: -0.05331642964 | HI66: 0.148992755 | HJ66: 42 | HK66: 5.277875658 | HL66: -0.1063853186 | HM66: 0.06751417617 | HN66: -0.04757272147 | HO66: 0.1449378382 | HP66: 42 | HQ66: 5.277875658 | HR66: -0.1063853186 | HS66: 0.06751417617 | HT66: -0.04213702575 | HU66: 0.1404784946 | HV66: 42 | HW66: 5.277875658 | HX66: -0.1063853186 | HY66: 0.06751417617 | HZ66: -0.03703776024 | IA66: 0.1356380375 | IB66: 42 | IC66: 5.277875658 | ID66: -0.1063853186 | IE66: 0.06751417617 | IF66: -0.03230158386 | IG66: 0.1304417728 | IH66: 42 | II66: 5.277875658 | IJ66: -0.1063853186 | IK66: 0.06751417617 | IL66: -0.02795325727 | IM66: 0.1249168665 | IN66: 42 | IO66: 5.277875658 | IP66: -0.1063853186 | IQ66: 0.06751417617 | IR66: -0.02401551348 | IS66: 0.1190922027 | IT66: 42 | IU66: 5.277875658 | IV66: -0.1063853186 | IW66: 0.06751417617 | IX66: -0.02050893898 | IY66: 0.1129982329 | IZ66: 42 | JA66: 5.277875658 | JB66: -0.1063853186 | JC66: 0.06751417617 | JD66: -0.0174518661 | JE66: 0.106666816 | JF66: 42 | JG66: 5.277875658 | JH66: -0.1063853186 | JI66: 0.06751417617 | JJ66: -0.01486027719 | JK66: 0.1001310528 | JL66: 42 | JM66: 5.277875658 | JN66: -0.1063853186 | JO66: 0.06751417617 | JP66: -0.01274772104 | JQ66: 0.09342511217 | JR66: 42 | JS66: 5.277875658 | JT66: -0.1063853186 | JU66: 0.06751417617 | JV66: -0.01112524207 | JW66: 0.08658405263 | JX66: 42 | JY66: 5.277875658 | JZ66: -0.1063853186 | KA66: 0.06751417617 | KB66: -0.01000132259 | KC66: 0.0796436392 | KD66: 42 | KE66: 5.277875658 | KF66: -0.1063853186 | KG66: 0.06751417617 | KH66: -0.009381838436 | KI66: 0.07264015627 | KJ66: 42 | KK66: 5.277875658 | KL66: -0.1063853186 | KM66: 0.06751417617 | KN66: -0.009270028265 | KO66: 0.065610218 | KP66: 42 | KQ66: 5.277875658 | KR66: -0.1063853186 | KS66: 0.06751417617 | KT66: -0.00966647662 | KU66: 0.05859057682 | KV66: 42 | KW66: 5.277875658 | KX66: -0.1063853186 | KY66: 0.06751417617 | KZ66: -0.01056911087 | LA66: 0.05161793133 | LB66: 42 | LC66: 2.638937829 | LD66: 0.06070096294 | LE66: -0.1104146417 | LF66: 0.155275542 | LG66: -0.133373099
